Workbook

Sheet الرئيسية
A1: بسم الله الرحمن الرحيم | D1: ادارة | E1: ……….. | G1: التعليمية | J1: مديرية التربية و التعليم | N1: شيت كنترول الصف الثانى | Z1: 6 | AA1: =IFERROR(SheetsNames(Z1),"") -> شعبة الادارة
D2: مدرسة | E2: ……….. | G2: التجارية | J2: بمحافظة | L2: …….. | N2: للعام الدراسى | Q2: 2019/2018 | Z2: 23 | AA2: =IFERROR(SheetsNames(Z2),"") -> شعبة التأمين
Z3: 24 | AA3: شعبة التسويق
Z4: 7 | AA4: شعبة القانون
A5: مدير إدارة المدرسة الاستاذ / | Z5: 21 | AA5: شعبة جديدة
A6: مدير المدرسة الاستاذ ..... /
A7: رئيس الكنترول الاستاذ ..../
A8: مسئول الكنترول الاستاذ .../
A9: تاريخ حساب السن ........... / | E9: 2018-10-01

Sheet لجان
C1: ادارة ……….. التعليمية | F1: لجنة : | G1: 1 | I1: ادارة ……….. التعليمية | L1: لجنة : | M1: =G1+1 -> 2 | AP1: اختر الشعبة من القائمة
C2: مدرسة ……….. التعليمية | F2: المقر : | G2: 10/2 | I2: مدرسة ……….. التعليمية | L2: المقر : | M2: 11/2 | AB2: اعداد و توزيع اللجان على الفترتين آليا | AQ2: شعبة جديدة
C3: الصف الثانى - | E3: انتظام | F3: شعبة الادارة | I3: الصف الثانى - | K3: انتظام | L3: شعبة الادارة
C4: من : | D4: 1651 | F4: الى : | G4: 1671 | I4: من : | J4: 1672 | L4: الى : | M4: 1692
C5: العدد : | D5: 21 | E5: للعام الدراسى 2019/2018 | F5: الفترة : | G5: مسائى | I5: العدد : | J5: 21 | K5: للعام الدراسى 2019/2018 | L5: الفترة : | M5: مسائى | P5: الفترة | S5: اكتب اسماء المقرات اللازمة فقط ثم اضغط على الزر المناسب
C6: مسلسل | D6: جلوس | E6: الاســـــــــم | F6: فصل | G6: ملاحظات | I6: مسلسل | J6: جلوس | K6: الاســـــــــم | L6: فصل | M6: ملاحظات | P6: مسائى | T6: مقرات اللجان | Y6: لجان الفترة الصباحية | AH6: لجان الفترة المسائية
C7: 1 | D7: 1651 | E7: رحاب حسن مصطفى محمد | F7: 2/2 | I7: 1 | J7: 1672 | K7: فايزة سيد مكى | L7: 3/2 | T7: م | U7: صباحى | V7: مسائى | X7: لجنة | Y7: من | Z7: الى | AA7: العدد | AB7: الشعبة | AC7: النوع | AD7: الفئة | AE7: صباحى | AG7: لجنة | AH7: من | AI7: الى | AJ7: العدد | AK7: الشعبة | AL7: النوع | AM7: الفئة | AN7: مسائى
C8: 2 | D8: 1652 | E8: رحاب عامر فراج مصطفى | F8: 3/2 | I8: 2 | J8: 1673 | K8: فرحة صابر احمد صالح | L8: 2/2 | T8: 1 | U8: 1/3 | V8: 10/2 | X8: 1 | Y8: 1001 | Z8: 1021 | AA8: 21 | AB8: شعبة الادارة | AC8: بنات | AD8: انتظام | AE8: 1/3 | AG8: 1 | AH8: 1651 | AI8: 1671 | AJ8: 21 | AK8: شعبة الادارة | AL8: بنات | AM8: خدمات | AN8: 10/2
C9: 3 | D9: 1653 | E9: رحمة خالد حسين جعفر صالح | F9: 2/2 | I9: 3 | J9: 1674 | K9: فرحة عبده عبد الغنى ابراهيم | L9: 1/2 | T9: 2 | U9: 2/3 | V9: 11/2 | X9: 2 | Y9: 1022 | Z9: 1042 | AA9: 21 | AB9: شعبة الادارة | AC9: بنات | AD9: انتظام | AE9: 2/3 | AG9: 2 | AH9: 1672 | AI9: 1692 | AJ9: 21 | AK9: شعبة الادارة | AL9: بنات | AM9: خدمات | AN9: 11/2
C10: 4 | D10: 1654 | E10: رشا حسين موسى محمد | F10: 2/2 | I10: 4 | J10: 1675 | K10: فرحة فراج السيد طاهر | L10: 5/2 | T10: 3 | U10: 3/3 | V10: 12/2 | X10: 3 | Y10: 1043 | Z10: 1062 | AA10: 20 | AB10: شعبة الادارة | AC10: بنات | AD10: انتظام | AE10: 3/3 | AG10: 3 | AH10: 1693 | AI10: 1712 | AJ10: 20 | AK10: شعبة الادارة | AL10: بنات | AM10: خدمات | AN10: 12/2
C11: 5 | D11: 1655 | E11: رضا عبد الحميد عبد السلام احمد | F11: 1/2 | I11: 5 | J11: 1676 | K11: فوزية محمد نوبى محمود | L11: 1/2 | T11: 4 | U11: 4/3 | V11: 13/2 | X11: 4 | Y11: 1063 | Z11: 1082 | AA11: 20 | AB11: شعبة الادارة | AC11: بنات | AD11: انتظام | AE11: 4/3 | AG11: 4 | AH11: 1851 | AI11: 1871 | AJ11: 21 | AK11: شعبة التسويق | AL11: بنات | AM11: انتظام | AN11: 13/2
C12: 6 | D12: 1656 | E12: رقية احمد عبد المطلب مطر | F12: 7/2 | I12: 6 | J12: 1677 | K12: كاملة يوسف محمد احمد | L12: 3/2 | T12: 5 | U12: 5/3 | V12: 14/2 | X12: 5 | Y12: 1083 | Z12: 1102 | AA12: 20 | AB12: شعبة الادارة | AC12: بنات | AD12: انتظام | AE12: 5/3 | AG12: 5 | AH12: 1872 | AI12: 1891 | AJ12: 20 | AK12: شعبة التسويق | AL12: بنات | AM12: انتظام | AN12: 14/2
C13: 7 | D13: 1657 | E13: روضة رمضان مصطفى حفنى | F13: 1/2 | I13: 7 | J13: 1678 | K13: كريمة محمد الطاهر مهدى | L13: 3/2 | T13: 6 | U13: 6/3 | V13: 15/2 | X13: 6 | Y13: 1103 | Z13: 1122 | AA13: 20 | AB13: شعبة الادارة | AC13: بنات | AD13: انتظام | AE13: 6/3 | AG13: 6 | AH13: 1892 | AI13: 1911 | AJ13: 20 | AK13: شعبة التسويق | AL13: بنات | AM13: انتظام | AN13: 15/2
C14: 8 | D14: 1658 | E14: ريهام عاطف محمود اسماعيل | F14: 3/2 | I14: 8 | J14: 1679 | K14: كريمة نجار حسين حسن | L14: 3/2 | T14: 7 | U14: 7/3 | V14: 16/2 | X14: 7 | Y14: 1123 | Z14: 1142 | AA14: 20 | AB14: شعبة الادارة | AC14: بنات | AD14: انتظام | AE14: 7/3 | AG14: 7 | AH14: 1912 | AI14: 1931 | AJ14: 20 | AK14: شعبة التسويق | AL14: بنات | AM14: انتظام | AN14: 16/2
C15: 9 | D15: 1659 | E15: ريهام على قرنى احمد | F15: 6/2 | I15: 9 | J15: 1680 | K15: ليلى محمود يسين مرسى | L15: 4/2 | T15: 8 | U15: 8/3 | V15: 1/1 | X15: 8 | Y15: 1151 | Z15: 1173 | AA15: 23 | AB15: شعبة التأمين | AC15: بنات | AD15: انتظام | AE15: 8/3 | AG15: 8 | AH15: 1951 | AI15: 1966 | AJ15: 16 | AK15: شعبة القانون | AL15: بنات | AM15: انتظام | AN15: 1/1
C16: 10 | D16: 1660 | E16: زمزم حسين عباس ابراهيم | F16: 2/2 | I16: 10 | J16: 1681 | K16: محاسن حسن على حسن | L16: 1/2 | T16: 9 | U16: 9/3 | V16: 2/1 | X16: 9 | Y16: 1174 | Z16: 1195 | AA16: 22 | AB16: شعبة التأمين | AC16: بنات | AD16: انتظام | AE16: 9/3 | AG16: 9 | AH16: 1967 | AI16: 1982 | AJ16: 16 | AK16: شعبة القانون | AL16: بنات | AM16: انتظام | AN16: 2/1
C17: 11 | D17: 1661 | E17: زهرة محمد عبدالله عطيتو | F17: 4/2 | I17: 11 | J17: 1682 | K17: مديحة محمد الطاهر محمد | L17: 1/2 | T17: 10 | U17: 10/3 | V17: 3/1 | X17: 10 | Y17: 1196 | Z17: 1217 | AA17: 22 | AB17: شعبة التأمين | AC17: بنات | AD17: انتظام | AE17: 10/3 | AG17: 10 | AH17: 2001 | AI17: 2016 | AJ17: 16 | AK17: شعبة القانون | AL17: بنين | AM17: انتظام | AN17: 3/1
C18: 12 | D18: 1662 | E18: زينب احمد عبد المطلب محمد | F18: 2/2 | I18: 12 | J18: 1683 | K18: مروة ابراهيم محمد ابراهيم | L18: 4/2 | T18: 11 | U18: 11/3 | V18: 4/1 | X18: 11 | Y18: 1218 | Z18: 1239 | AA18: 22 | AB18: شعبة التأمين | AC18: بنات | AD18: انتظام | AE18: 11/3 | AG18: 11 | AH18: 2017 | AI18: 2031 | AJ18: 15 | AK18: شعبة القانون | AL18: بنين | AM18: انتظام | AN18: 4/1
C19: 13 | D19: 1663 | E19: زينب احمد على محمود | F19: 2/2 | I19: 13 | J19: 1684 | K19: مروة على حسن شحات | L19: 2/2 | T19: 12 | U19: 12/3 | V19: 5/1 | X19: 12 | Y19: 1240 | Z19: 1261 | AA19: 22 | AB19: شعبة التأمين | AC19: بنات | AD19: انتظام | AE19: 12/3 | AG19: 12 | AH19: 2051 | AI19: 2073 | AJ19: 23 | AK19: شعبة جديدة | AL19: بنات | AM19: انتظام | AN19: 5/1
C20: 14 | D20: 1664 | E20: زينب جابر كمال محمد | F20: 2/2 | I20: 14 | J20: 1685 | K20: مروة محمود عطا احمد | L20: 1/2 | T20: 13 | U20: 13/3 | V20: 6/1 | X20: 13 | Y20: 1262 | Z20: 1283 | AA20: 22 | AB20: شعبة التأمين | AC20: بنات | AD20: انتظام | AE20: 13/3 | AG20: 13 | AH20: 2074 | AI20: 2096 | AJ20: 23 | AK20: شعبة جديدة | AL20: بنات | AM20: انتظام | AN20: 6/1
C21: 15 | D21: 1665 | E21: زينب صابر مصطفى محمد | F21: 1/2 | I21: 15 | J21: 1686 | K21: مريم تامر حلمى فاخورى | L21: 5/2 | T21: 14 | U21: 14/3 | V21: 7/1 | X21: 14 | Y21: 1284 | Z21: 1305 | AA21: 22 | AB21: شعبة التأمين | AC21: بنات | AD21: انتظام | AE21: 14/3 | AG21: 14
C22: 16 | D22: 1666 | E22: زينب عطية هاشم نصار | F22: 3/2 | I22: 16 | J22: 1687 | K22: مريم صالح مدنى على | L22: 5/2 | T22: 15 | U22: 15/3 | V22: 8/1 | X22: 15 | Y22: 1301 | Z22: 1317 | AA22: 17 | AB22: شعبة التسويق | AC22: بنات | AD22: انتظام | AE22: 15/3 | AG22: 15
C23: 17 | D23: 1667 | E23: زينب محمد احمد بشير | F23: 5/2 | I23: 17 | J23: 1688 | K23: مريم محمد سعد حسن | L23: 1/2 | T23: 16 | U23: 1/2 | V23: 9/1 | X23: 16 | Y23: 1318 | Z23: 1334 | AA23: 17 | AB23: شعبة التسويق | AC23: بنات | AD23: انتظام | AE23: 1/2 | AG23: 16
C24: 18 | D24: 1668 | E24: زينب محمود ركابى ابو الوفا | F24: 1/2 | I24: 18 | J24: 1689 | K24: منار احمد سلطان قاسم | L24: 4/2 | T24: 17 | U24: 2/2 | V24: 10/1 | X24: 17 | Y24: 1335 | Z24: 1350 | AA24: 16 | AB24: شعبة التسويق | AC24: بنات | AD24: انتظام | AE24: 2/2 | AG24: 17
C25: 19 | D25: 1669 | E25: سارة عبد الله مصطفى احمد | F25: 2/2 | I25: 19 | J25: 1690 | K25: منار شعبان امين ابراهيم | L25: 4/2 | T25: 18 | U25: 3/2 | V25: 11/1 | X25: 18 | Y25: 1351 | Z25: 1366 | AA25: 16 | AB25: شعبة التسويق | AC25: بنات | AD25: انتظام | AE25: 3/2 | AG25: 18
C26: 20 | D26: 1670 | E26: فاطمة محمد خليفة طه | F26: 1/2 | I26: 20 | J26: 1691 | K26: منار شعبان حسن على | L26: 4/2 | T26: 19 | U26: 4/2 | V26: 12/1 | X26: 19 | Y26: 1367 | Z26: 1382 | AA26: 16 | AB26: شعبة التسويق | AC26: بنات | AD26: انتظام | AE26: 4/2 | AG26: 19
C27: 21 | D27: 1671 | E27: فاطمة يوسف سيد عبد الكريم | F27: 4/2 | I27: 21 | J27: 1692 | K27: منار على احمد على | L27: 4/2 | T27: 20 | U27: 5/2 | V27: 13/1 | X27: 20 | Y27: 1401 | Z27: 1421 | AA27: 21 | AB27: شعبة القانون | AC27: بنات | AD27: انتظام | AE27: 5/2 | AG27: 20
T28: 21 | U28: 6/2 | V28: 14/1 | X28: 21 | Y28: 1422 | Z28: 1442 | AA28: 21 | AB28: شعبة القانون | AC28: بنات | AD28: انتظام | AE28: 6/2 | AG28: 21
T29: 22 | U29: 7/2 | V29: 15/1 | X29: 22 | Y29: 1443 | Z29: 1463 | AA29: 21 | AB29: شعبة القانون | AC29: بنات | AD29: انتظام | AE29: 7/2 | AG29: 22
T30: 23 | U30: 8/2 | V30: 16/1 | X30: 23 | Y30: 1464 | Z30: 1484 | AA30: 21 | AB30: شعبة القانون | AC30: بنات | AD30: انتظام | AE30: 8/2 | AG30: 23
T31: 24 | U31: 9/2 | V31: 17/1 | X31: 24 | Y31: 1485 | Z31: 1505 | AA31: 21 | AB31: شعبة القانون | AC31: بنات | AD31: انتظام | AE31: 9/2 | AG31: 24
C32: كنترول الصف الثانى | F32: رئيس الكنترول | I32: كنترول الصف الثانى | L32: رئيس الكنترول | T32: 25 | U32: 10/2 | X32: 25 | Y32: 1551 | Z32: 1569 | AA32: 19 | AB32: شعبة جديدة | AC32: بنات | AD32: انتظام | AE32: 10/2 | AG32: 25
T33: 26 | U33: 11/2 | X33: 26 | Y33: 1570 | Z33: 1588 | AA33: 19 | AB33: شعبة جديدة | AC33: بنات | AD33: انتظام | AE33: 11/2 | AG33: 26
T34: 27 | U34: 12/2 | X34: 27 | Y34: 1589 | Z34: 1606 | AA34: 18 | AB34: شعبة جديدة | AC34: بنات | AD34: انتظام | AE34: 12/2 | AG34: 27
T35: 28 | U35: 13/2 | X35: 28 | Y35: 1607 | Z35: 1624 | AA35: 18 | AB35: شعبة جديدة | AC35: بنات | AD35: انتظام | AE35: 13/2 | AG35: 28
T36: 29 | U36: 14/2 | X36: 29 | Y36: 1625 | Z36: 1642 | AA36: 18 | AB36: شعبة جديدة | AC36: بنات | AD36: انتظام | AE36: 14/2 | AG36: 29
U37: 15/2 | X37: 30 | AG37: 30
U38: 16/2 | X38: 31 | AG38: 31
X39: 32 | AG39: 32
X40: 33 | AG40: 33
X41: 34 | AG41: 34
X42: 35 | AG42: 35
X43: 36 | AG43: 36
X44: 37 | AG44: 37
X45: 38 | AG45: 38
X46: 39 | AG46: 39
T47: 40 | X47: 40 | AG47: 40
X48: 41 | AG48: 41
X49: 42 | AG49: 42
X50: 43 | AG50: 43
X51: 44 | AG51: 44
X52: 45 | AG52: 45
X53: 46 | AG53: 46
X54: 47 | AG54: 47
X55: 48 | AG55: 48
X56: 49 | AG56: 49
X57: 50 | AG57: 50
C91: 85 | D91: 1001 | E91: ابتسام دسوقى جلال عابدين | F91: 2018-01-02
C92: 86 | D92: 1002 | E92: اسراء احمد مصطفى محمد احمد | F92: 2018-04-02
C93: 87 | D93: 1003 | E93: اسراء اشرف مصطفى شحات | F93: 2018-05-02
C94: 88 | D94: 1004 | E94: اسراء عبيد الله محمد عبد الله | F94: 2018-05-02
C95: 89 | D95: 1005 | E95: اسراء محمد بدرى سلامة | F95: 2018-01-02
C96: 90 | D96: 1006 | E96: اسراء محمود احمد بسطاوى | F96: 2018-02-02
C97: 91 | D97: 1007 | E97: اسراء محمود محمد ابراهيم | F97: 2018-01-02
C98: 92 | D98: 1008 | E98: اسراء مصطفى محمود محمد | F98: 2018-01-02
C99: 93 | D99: 1009 | E99: اسماء احمد سيد ابو المجد | F99: 2018-05-02
C100: 94 | D100: 1010 | E100: اسماء جمال نوبى شحات | F100: 2018-03-02
C101: 95 | D101: 1011 | E101: اسماء سليمان احمد سليم | F101: 2018-01-02
C102: 96 | D102: 1012 | E102: اسماء صبرى احمد الامين | F102: 2018-05-02
C103: 97 | D103: 1013 | E103: اسماء محسوب سيد محمد | F103: 2018-02-02
C104: 98 | D104: 1014 | E104: الزهراء ناصر عبد العال عبد الرحيم | F104: 2018-07-02
C105: 99 | D105: 1015 | E105: الشيماء محمود عباس محمد | F105: 2018-01-02
C106: 100 | D106: 1016 | E106: امال محمود سيد ابو المجد | F106: 2018-05-02
C107: 101 | D107: 1017 | E107: امانى ادريس محمد رسلان | F107: 2018-03-02
C108: 102 | D108: 1018 | E108: امانى يحيى محمد احمد | F108: 2018-05-02
C109: 103 | D109: 1019 | E109: امل ثابت عبداللاه جهلان | F109: 2018-06-02
C110: 104 | D110: 1020 | E110: امل عبد الحميد شحاتة احمد | F110: 2018-03-02
C111: 105 | D111: 1021 | E111: اميرة جمال يوسف محمد | F111: 2018-02-02

Sheet ارقام الجلوس
D1: ارقام جلوس الصف الثانى لعام | G1: 2019/2018 | N1: ورقة : | O1: 1 | Q1: اختر الشعبة من القائمة
E2: جميع الشعب | R2: شعبة الادارة
E4: اخطار برقم الجلوس | H4: صباحى | L4: اخطار برقم الجلوس | O4: صباحى
C5: مدرسة ………..التجارية | G5: رقم الجلوس / | H5: 1001 | J5: مدرسة ………..التجارية | N5: رقم الجلوس / | O5: 1007
C6: الاسم / | D6: ابتسام دسوقى جلال عابدين | G6: رقم اللجنة / | H6: 1 | J6: الاسم / | K6: اسراء محمود محمد ابراهيم | N6: رقم اللجنة / | O6: 1
C7: الفصل / | D7: 1/2 | G7: مقر اللجنة / | H7: 1/3 | J7: الفصل / | K7: 1/2 | N7: مقر اللجنة / | O7: 1/3
E9: اخطار برقم الجلوس | H9: صباحى | L9: اخطار برقم الجلوس | O9: صباحى
C10: مدرسة ………..التجارية | G10: رقم الجلوس / | H10: 1002 | J10: مدرسة ………..التجارية | N10: رقم الجلوس / | O10: 1008
C11: الاسم / | D11: اسراء احمد مصطفى محمد احمد | G11: رقم اللجنة / | H11: 1 | J11: الاسم / | K11: اسراء مصطفى محمود محمد | N11: رقم اللجنة / | O11: 1
C12: الفصل / | D12: 4/2 | G12: مقر اللجنة / | H12: 1/3 | J12: الفصل / | K12: 1/2 | N12: مقر اللجنة / | O12: 1/3
E14: اخطار برقم الجلوس | H14: صباحى | L14: اخطار برقم الجلوس | O14: صباحى
C15: مدرسة ………..التجارية | G15: رقم الجلوس / | H15: 1003 | J15: مدرسة ………..التجارية | N15: رقم الجلوس / | O15: 1009
C16: الاسم / | D16: اسراء اشرف مصطفى شحات | G16: رقم اللجنة / | H16: 1 | J16: الاسم / | K16: اسماء احمد سيد ابو المجد | N16: رقم اللجنة / | O16: 1
C17: الفصل / | D17: 5/2 | G17: مقر اللجنة / | H17: 1/3 | J17: الفصل / | K17: 5/2 | N17: مقر اللجنة / | O17: 1/3
E19: اخطار برقم الجلوس | H19: صباحى | L19: اخطار برقم الجلوس | O19: صباحى
C20: مدرسة ………..التجارية | G20: رقم الجلوس / | H20: 1004 | J20: مدرسة ………..التجارية | N20: رقم الجلوس / | O20: 1010
C21: الاسم / | D21: اسراء عبيد الله محمد عبد الله | G21: رقم اللجنة / | H21: 1 | J21: الاسم / | K21: اسماء جمال نوبى شحات | N21: رقم اللجنة / | O21: 1
C22: الفصل / | D22: 5/2 | G22: مقر اللجنة / | H22: 1/3 | J22: الفصل / | K22: 3/2 | N22: مقر اللجنة / | O22: 1/3
E24: اخطار برقم الجلوس | H24: صباحى | L24: اخطار برقم الجلوس | N24: صباحى | O24: صباحى
C25: مدرسة ………..التجارية | G25: رقم الجلوس / | H25: 1005 | J25: مدرسة ………..التجارية | N25: رقم الجلوس / | O25: 1011
C26: الاسم / | D26: اسراء محمد بدرى سلامة | G26: رقم اللجنة / | H26: 1 | J26: الاسم / | K26: اسماء سليمان احمد سليم | N26: رقم اللجنة / | O26: 1
C27: الفصل / | D27: 1/2 | G27: مقر اللجنة / | H27: 1/3 | J27: الفصل / | K27: 1/2 | N27: مقر اللجنة / | O27: 1/3
E29: اخطار برقم الجلوس | H29: صباحى | L29: اخطار برقم الجلوس | O29: صباحى
C30: مدرسة ………..التجارية | G30: رقم الجلوس / | H30: 1006 | J30: مدرسة ………..التجارية | N30: رقم الجلوس / | O30: 1012
C31: الاسم / | D31: اسراء محمود احمد بسطاوى | G31: رقم اللجنة / | H31: 1 | J31: الاسم / | K31: اسماء صبرى احمد الامين | N31: رقم اللجنة / | O31: 1
C32: الفصل / | D32: 2/2 | G32: مقر اللجنة / | H32: 1/3 | J32: الفصل / | K32: 5/2 | N32: مقر اللجنة / | O32: 1/3

Sheet شعبة الادارة
B1: بسم الله الرحمن الرحيم | AC1: شيت كنترول للعام الدراسى | AL1: 2019/2018 | CC1: =COLUMN() -> 81 | CZ1: النوع | DA1: الفترة | DB1: صباحى | DE1: عدد اللجان | DF1: مسائى | DI1: عدد اللجان
C2: ادارة ……….. التعليمية | E2: 2018-10-01 | L2: الفترة | M2: العدد | AF2: الصف الثانى - | AJ2: شعبة الادارة | DA2: الفئة | DB2: من | DC2: الى | DD2: العدد | DF2: من | DG2: الى | DH2: العدد
C3: مدرسة ………..التجارية | L3: صباحى | M3: 142 | R3: =COLUMN() -> 18 | AG3: الشيت العام | CL3: اكتب اسماء المواد كما ستظهر فى الشهادة | CZ3: بنات | DA3: انتظام | DB3: 1001 | DC3: =IF(DD3>0,DB3+DD3-1,"") -> 1142 | DD3: 142 | DE3: 7 | DG3: =IF(DH3>0,DF3+DH3-1,"") ->  | DH3: 0
CZ4: بنات | DA4: خدمات | DC4: =IF(DD4>0,DB4+DD4-1,"") ->  | DD4: 0 | DF4: 1651 | DG4: =IF(DH4>0,DF4+DH4-1,"") -> 1712 | DH4: 62 | DI4: 3
A5: مسلسل | B5: البيانات الاساسية البيانات الاساسية | O5: السرى | P5: لغة عربية | T5: لغة انجليزية | X5: لغة فرنسية | AB5: محاسبة مالية | AF5: احصاء | AJ5: رياضة مالية | AN5: اقتصاد | AR5: سكرتارية عربية | AV5: سكرتارية اجنبية | AZ5: ادارة مشروعات | BD5: ادارة مخازن | BH5: حاسب آلى | BQ5: مجموع نصف العام | BR5: مجموع كلى | BS5: مواطنة وحقوق انسان | BW5: تربية دينية | CA5: نتيجة | CB5: مواد الرسوب | CC5: عدد المواد | CD5: اللجنة و مقرها | CH5: عربى | CI5: انجليزى | CJ5: فرنسى | CK5: محاسبة مالية | CL5: احصاء | CM5: رياضة مالية | CN5: اقتصاد | CO5: سكرتارية عربية | CP5: سكرتارية اجنبية | CQ5: ادارة مشروعات | CR5: ادارة مخازن | CS5: حاسب | CT5: مواطنة | CU5: دين | CV5: مجموع | CW5: عدد المواد (مواطنة-دين) | CX5: كل المواد | CZ5: بنين | DA5: انتظام | DC5: =IF(DD5>0,DB5+DD5-1,"") ->  | DD5: 0 | DG5: =IF(DH5>0,DF5+DH5-1,"") ->  | DH5: 0
B6: رقم جلوس | C6: الاســــــــــــــم | D6: الفصــــــــــل | E6: تاريخ الميلاد | F6: السن فى 10/1 | I6: الجنسية | J6: الديانة | K6: النوع | L6: الفئة | M6: الفترة | N6: الحالــــــــة | P6: اعمال السنة | Q6: نصف العام | R6: آخر العام | S6: المجموع | T6: اعمال السنة | U6: نصف العام | V6: آخر العام | W6: المجموع | X6: اعمال السنة | Y6: نصف العام | Z6: آخر العام | AA6: المجموع | AB6: اعمال السنة | AC6: نصف العام | AD6: آخر العام | AE6: المجموع | AF6: اعمال السنة | AG6: نصف العام | AH6: آخر العام | AI6: المجموع | AJ6: اعمال السنة | AK6: نصف العام | AL6: آخر العام | AM6: المجموع | AN6: اعمال السنة | AO6: نصف العام | AP6: آخر العام | AQ6: المجموع | AR6: اعمال السنة | AS6: نصف العام | AT6: آخر العام | AU6: المجموع | AV6: اعمال السنة | AW6: نصف العام | AX6: آخر العام | AY6: المجموع | AZ6: اعمال السنة | BA6: نصف العام | BB6: آخر العام | BC6: المجموع | BD6: اعمال السنة | BE6: نصف العام | BF6: آخر العام | BG6: المجموع | BH6: اعمال السنة | BJ6: نصف العام | BL6: آخر العام | BN6: مجموع عملى | BO6: مجموع تحريرى | BP6: مجموع حاسب | BS6: اعمال السنة | BT6: نصف العام | BU6: آخر العام | BV6: المجموع | BW6: اعمال السنة | BX6: نصف العام | BY6: آخر العام | BZ6: المجموع | CH6: تفريغ مـــــواد الرسوب - تفريغ مـــــواد الرسوب - تفريغ مـــــواد الرسوب - تفريغ مـــــواد الرسوب | CZ6: بنين | DA6: خدمات | DC6: =IF(DD6>0,DB6+DD6-1,"") ->  | DD6: 0 | DG6: =IF(DH6>0,DF6+DH6-1,"") ->  | DH6: 0
BH7: عملى | BI7: تحريرى | BJ7: عملى | BK7: تحريرى | BL7: عملى | BM7: تحريرى | CZ7: يتم اختيار رقم اول لجنة لكل فئة و كتابة عدد لجانها فقط ثم استخدام الازرار ( الخلايا الملونة فقط )
F8: يوم | G8: شهر | H8: سنة | O8: عظمى | P8: 10 | Q8: 20 | R8: 20 | S8: 50 | T8: 10 | U8: 20 | V8: 20 | W8: 50 | X8: 6 | Y8: 12 | Z8: 12 | AA8: 30 | AB8: 10 | AC8: 20 | AD8: 20 | AE8: 50 | AF8: 10 | AG8: 20 | AH8: 20 | AI8: 50 | AJ8: 10 | AK8: 20 | AL8: 20 | AM8: 50 | AN8: 10 | AO8: 20 | AP8: 20 | AQ8: 50 | AR8: 10 | AS8: 20 | AT8: 20 | AU8: 50 | AV8: 10 | AW8: 20 | AX8: 20 | AY8: 50 | AZ8: 10 | BA8: 20 | BB8: 20 | BC8: 50 | BD8: 10 | BE8: 20 | BF8: 20 | BG8: 50 | BH8: 4 | BI8: 6 | BJ8: 8 | BK8: 12 | BL8: 8 | BM8: 12 | BN8: 20 | BO8: 30 | BP8: 50 | BR8: 580 | BS8: 4 | BT8: 8 | BU8: 8 | BV8: 20 | BW8: 4 | BX8: 8 | BY8: 8 | BZ8: 20 | CD8: لجنة | CE8: مقر
O9: صغرى | P9: 0 | Q9: 0 | R9: 5 | S9: 25 | T9: 0 | U9: 0 | V9: 5 | W9: 20 | X9: 0 | Y9: 0 | Z9: 3 | AA9: 9 | AB9: 0 | AC9: 0 | AD9: 5 | AE9: 25 | AF9: 0 | AG9: 0 | AH9: 5 | AI9: 25 | AJ9: 0 | AK9: 0 | AL9: 5 | AM9: 25 | AN9: 0 | AO9: 0 | AP9: 5 | AQ9: 25 | AR9: 0 | AS9: 0 | AT9: 5 | AU9: 25 | AV9: 0 | AW9: 0 | AX9: 5 | AY9: 20 | AZ9: 0 | BA9: 0 | BB9: 5 | BC9: 25 | BD9: 0 | BE9: 0 | BF9: 5 | BG9: 25 | BH9: 0 | BI9: 0 | BK9: 0 | BL9: 2 | BM9: 3 | BN9: 10 | BO9: 15 | BP9: 25 | BR9: 290 | BS9: 0 | BT9: 0 | BU9: 2 | BV9: 10 | BW9: 0 | BX9: 0 | BY9: 2 | BZ9: 10
A10: 1 | B10: 1001 | C10: ابتسام دسوقى جلال عابدين | D10: 1/2 | E10: 2000-08-12 | F10: 19 | G10: 1 | H10: 18 | K10: بنات | L10: انتظام | M10: صباحى | O10: 3001 | P10: 9 | Q10: 12 | R10: 13 | S10: =IF($C10="","",SUM(P10,Q10,R10)) -> 34 | T10: 8 | U10: 2 | V10: 10 | W10: =IF($C10="","",SUM(T10,U10,V10)) -> 20 | X10: 4 | Y10: 4 | Z10: 7 | AA10: =IF($C10="","",SUM(X10,Y10,Z10)) -> 15 | AB10: 9 | AC10: 10 | AD10: 13 | AE10: =IF($C10="","",SUM(AB10,AC10,AD10)) -> 32 | AF10: 9 | AG10: 6 | AH10: 14 | AI10: =IF($C10="","",SUM(AF10,AG10,AH10)) -> 29 | AJ10: 9 | AK10: 7 | AL10: 17 | AM10: =IF($C10="","",SUM(AJ10:AL10)) -> 33 | AN10: 9 | AO10: 13 | AP10: 15 | AQ10: =IF($C10="","",SUM(AN10,AO10,AP10)) -> 37 | AR10: 9 | AS10: 15 | AT10: 15 | AU10: =IF($C10="","",SUM(AR10,AS10,AT10)) -> 39 | AV10: 9 | AW10: 9 | AX10: 16 | AY10: =IF($C10="","",SUM(AV10,AW10,AX10)) -> 34 | AZ10: 10 | BA10: 18 | BB10: 19 | BC10: =IF($C10="","",SUM(AZ10,BA10,BB10)) -> 47 | BD10: 10 | BE10: 17 | BF10: 19 | BG10: =IF($C10="","",SUM(BD10,BE10,BF10)) -> 46 | BH10: 2 | BI10: 5 | BJ10: 4 | BK10: 10 | BL10: 4 | BM10: 12 | BN10: =IF($C10="","",SUM(BH10,BJ10,BL10)) -> 10 | BO10: 27 | BP10: =IF($C10="","",SUM(BN10,BO10)) -> 37 | BQ10: =IF($C10="","",SUM(Q10,U10,Y10,AC10,AG10,AK10,AO10,AS10,AW10,BA10,BE10,BJ10,BK10)) -> 127 | BR10: =IF($C10="","",SUM(S10,W10,AA10,AE10,AI10,AM10,AQ10,AU10,AY10,BC10,BG10,BP10)) -> 403 | BS10: 3 | BT10: 5 | BU10: 8 | BV10: =IF($C10="","",SUM(BS10,BT10,BU10)) -> 16 | BW10: 3 | BX10: 6 | BY10: 8 | BZ10: =IF($C10="","",SUM(BW10,BX10,BY10)) -> 17 | CA10: =IF($C10="","",IF(CC10=0,"ناجحة",IF(CC10<=2,"دورثان","راسبة"))) -> ناجحة | CB10: =IF($C10="","",IF(CC10=0,"ومنقولة للصف الثالث",IF(CC10>0,"فى : "&CONCATENATE(CH10,CI10,CJ10,CK10,CL10,CM10,CN10,CO10,CP10,CQ10,CR10,CS10,CT10,CU10,CV10),CONCATENATE(CH10,CI10,CJ10,CK10,CL10,CM10,CN10,CO10,CP10,CQ10,CR10,CS10,CT10,CU10,CV10)))) -> ومنقولة للصف الثالث | CC10: =IF($C10="","",COUNTIF($CH10:$CS10,"?*")+COUNTIF($CV10,"?*")) -> 0 | CD10: 1 | CE10: 1/3 | CH10: =IF($C10="","",IF(OR(R10<$R$9,R10="غ",S10<$S$9),$CH$5&" - ","")) ->  | CI10: =IF($C10="","",IF(OR(V10<$V$9,V10="غ",W10<$W$9),$CI$5&" - ","")) ->  | CJ10: =IF($C10="","",IF(OR(Z10<$Z$9,Z10="غ",AA10<$AA$9),CJ$5&" - ","")) ->  | CK10: =IF($C10="","",IF(OR(AD10<$AD$9,AD10="غ",AE10<$AE$9),CK$5&" - ","")) ->  | CL10: =IF($C10="","",IF(OR(AH10<$AH$9,AH10="غ",AI10<$AI$9),CL$5&" - ","")) ->  | CM10: =IF($C10="","",IF(OR(AL10<$AL$9,AL10="غ",AM10<$AM$9),CM$5&" - ","")) ->  | CN10: =IF($C10="","",IF(OR(AP10<$AP$9,AP10="غ",AQ10<$AQ$9),CN$5&" - ","")) ->  | CO10: =IF($C10="","",IF(OR(AT10<$AT$9,AT10="غ",AU10<$AU$9),CO$5&" - ","")) ->  | CP10: =IF($C10="","",IF(OR(AX10<$AX$9,AX10="غ",AY10<$AY$9),CP$5&" - ","")) ->  | CQ10: =IF($C10="","",IF(OR(BB10<$BB$9,BB10="غ",BC10<$BC$9),CQ$5&" - ","")) ->  | CR10: =IF($C10="","",IF(OR(BF10<$BF$9,BF10="غ",BG10<$BG$9),CR$5&" - ","")) ->  | CS10: =IF($C10="","",IF(OR(BN10<$BN$9,BN10="غ",BO10<$BO$9,BO10="غ",BP10<$BP$9),CS$5&" - ","")) ->  | CT10: =IF($C10="","",IF(OR(BU10<$BU$9,BU10="غ",BV10<$BV$9),CT$5&" - ","")) ->  | CU10: =IF($C10="","",IF(OR(BY10<$BY$9,BY10="غ",BZ10<$BZ$9),CU$5&" - ","")) ->  | CV10: =IF($C10="","",IF(BR10<$BR$9,CV$5,"")) ->  | CW10: =IF($C10="","",COUNTIF($CT10:$CU10,"?*")) -> 0 | CX10: =IF($C10="","",CC10+CW10) -> 0
A11: 2 | B11: 1002 | C11: اسراء احمد مصطفى محمد احمد | D11: 4/2 | E11: 2001-06-07 | F11: 24 | G11: 3 | H11: 17 | K11: بنات | L11: انتظام | M11: صباحى | O11: 3002 | P11: 9 | Q11: 13 | R11: 15 | S11: 37 | T11: 8 | U11: 7 | V11: 12 | W11: 27 | X11: 4 | Y11: 4 | Z11: 7 | AA11: 15 | AB11: 9 | AC11: 15 | AD11: 16 | AE11: 40 | AF11: 9 | AG11: 17 | AH11: 18 | AI11: 44 | AJ11: 9 | AK11: 12 | AL11: 20 | AM11: 41 | AN11: 9 | AO11: 16 | AP11: 17 | AQ11: 42 | AR11: 10 | AS11: 19 | AT11: 18 | AU11: 47 | AV11: 9 | AW11: 15 | AX11: 15 | AY11: 39 | AZ11: 10 | BA11: 18 | BB11: 19 | BC11: 47 | BD11: 9 | BE11: 17 | BF11: 18 | BG11: 44 | BH11: 4 | BI11: 5 | BJ11: 8 | BK11: 10 | BL11: 7 | BM11: 12 | BN11: 19 | BO11: 27 | BP11: 46 | BQ11: 171 | BR11: 469 | BS11: 3 | BT11: 5 | BU11: 8 | BV11: 16 | BW11: 3 | BX11: 8 | BY11: 7 | BZ11: 18 | CA11: ناجحة | CB11: ومنقولة للصف الثالث | CC11: =IF($C11="","",COUNTIF($CH11:$CS11,"?*")+COUNTIF($CV11,"?*")) -> 0 | CD11: 1 | CE11: 1/3 | CW11: =IF($C11="","",COUNTIF($CT11:$CU11,"?*")) -> 0 | CX11: =IF($C11="","",CC11+CW11) -> 0
A12: 3 | B12: 1003 | C12: اسراء اشرف مصطفى شحات | D12: 5/2 | E12: 2002-11-21 | F12: 10 | G12: 10 | H12: 15 | K12: بنات | L12: انتظام | M12: صباحى | N12: باقية | O12: 3003 | P12: 9 | Q12: 11 | R12: 13 | S12: 33 | T12: 8 | U12: 5 | V12: 9 | W12: 22 | X12: 4 | Y12: 2 | Z12: 6 | AA12: 12 | AB12: 9 | AC12: 15 | AD12: 16 | AE12: 40 | AF12: 10 | AG12: 20 | AH12: 19 | AI12: 49 | AJ12: 9 | AK12: 20 | AL12: 20 | AM12: 49 | AN12: 9 | AO12: 17 | AP12: 17 | AQ12: 43 | AR12: 9 | AS12: 17 | AT12: 17 | AU12: 43 | AV12: 9 | AW12: 16 | AX12: 15 | AY12: 40 | AZ12: 9 | BA12: 18 | BB12: 17 | BC12: 44 | BD12: 10 | BE12: 19 | BF12: 19 | BG12: 48 | BH12: 4 | BI12: 5 | BJ12: 7 | BK12: 10 | BL12: 4 | BM12: 12 | BN12: 15 | BO12: 27 | BP12: 42 | BQ12: 177 | BR12: 465 | BS12: 3 | BT12: 6 | BU12: 8 | BV12: 17 | BW12: 3 | BX12: 8 | BY12: 6 | BZ12: 17 | CA12: ناجحة | CB12: ومنقولة للصف الثالث | CC12: 0 | CD12: 1 | CE12: 1/3 | CW12: 0 | CX12: 0
A13: 4 | B13: 1004 | C13: اسراء عبيد الله محمد عبد الله | D13: 5/2 | K13: بنات | L13: انتظام | M13: صباحى | O13: 3004 | P13: 9 | Q13: 9 | R13: 13 | S13: 31 | T13: 8 | U13: 5 | V13: 7 | W13: 20 | X13: 4 | Y13: 4 | Z13: 4 | AA13: 12 | AB13: 9 | AC13: 11 | AD13: 7 | AE13: 27 | AF13: 9 | AG13: 10 | AH13: 16 | AI13: 35 | AJ13: 9 | AK13: 8 | AL13: 8 | AM13: 25 | AN13: 9 | AO13: 15 | AP13: 18 | AQ13: 42 | AR13: 9 | AS13: 16 | AT13: 15 | AU13: 40 | AV13: 9 | AW13: 12 | AX13: 15 | AY13: 36 | AZ13: 9 | BA13: 18 | BB13: 17 | BC13: 44 | BD13: 10 | BE13: 20 | BF13: 19 | BG13: 49 | BH13: 3 | BI13: 5 | BJ13: 5 | BK13: 10 | BL13: 4 | BM13: 12 | BN13: 12 | BO13: 27 | BP13: 39 | BQ13: 143 | BR13: 400 | BS13: 3 | BT13: 5 | BU13: 8 | BV13: 16 | BW13: 3 | BX13: 5 | BY13: 3 | BZ13: 11 | CA13: ناجحة | CB13: ومنقولة للصف الثالث | CC13: 0 | CD13: 1 | CE13: 1/3 | CW13: 0 | CX13: 0
A14: 5 | B14: 1005 | C14: اسراء محمد بدرى سلامة | D14: 1/2 | K14: بنات | L14: انتظام | M14: صباحى | O14: 3005 | P14: 9 | Q14: 13 | R14: 17 | S14: 39 | T14: 8 | U14: 7 | V14: 8 | W14: 23 | X14: 4 | Y14: 5 | Z14: 6 | AA14: 15 | AB14: 9 | AC14: 9 | AD14: 15 | AE14: 33 | AF14: 10 | AG14: 20 | AH14: 20 | AI14: 50 | AJ14: 9 | AK14: 16 | AL14: 19 | AM14: 44 | AN14: 9 | AO14: 16 | AP14: 19 | AQ14: 44 | AR14: 10 | AS14: 20 | AT14: 18 | AU14: 48 | AV14: 9 | AW14: 15 | AX14: 14 | AY14: 38 | AZ14: 10 | BA14: 18 | BB14: 19 | BC14: 47 | BD14: 10 | BE14: 19 | BF14: 18 | BG14: 47 | BH14: 3 | BI14: 5 | BJ14: 6 | BK14: 11 | BL14: 4 | BM14: 12 | BN14: 13 | BO14: 28 | BP14: 41 | BQ14: 175 | BR14: 469 | BS14: 3 | BT14: 7 | BU14: 8 | BV14: 18 | BW14: 3 | BX14: 5 | BY14: 5 | BZ14: 13 | CA14: ناجحة | CB14: ومنقولة للصف الثالث | CC14: 0 | CD14: 1 | CE14: 1/3 | CW14: 0 | CX14: 0
A15: 6 | B15: 1006 | C15: اسراء محمود احمد بسطاوى | D15: 2/2 | K15: بنات | L15: انتظام | M15: صباحى | O15: 3006 | P15: 9 | Q15: 7 | R15: 9 | S15: 25 | T15: 8 | U15: 5 | V15: 7 | W15: 20 | X15: 4 | Y15: 4 | Z15: 5 | AA15: 13 | AB15: 8 | AC15: 11 | AD15: 12 | AE15: 31 | AF15: 9 | AG15: 4 | AH15: 20 | AI15: 33 | AJ15: 9 | AK15: 12 | AL15: 16 | AM15: 37 | AN15: 9 | AO15: 11 | AP15: 19 | AQ15: 39 | AR15: 9 | AS15: 8 | AT15: 13 | AU15: 30 | AV15: 9 | AW15: 11 | AX15: 16 | AY15: 36 | AZ15: 9 | BA15: 18 | BB15: 14 | BC15: 41 | BD15: 10 | BE15: 19 | BF15: 18 | BG15: 47 | BH15: 2 | BI15: 5 | BJ15: 4 | BK15: 9 | BL15: 5 | BM15: 12 | BN15: 11 | BO15: 26 | BP15: 37 | BQ15: 123 | BR15: 389 | BS15: 3 | BT15: 3 | BU15: 7 | BV15: 13 | BW15: 3 | BX15: 4 | BY15: 3 | BZ15: 10 | CA15: ناجحة | CB15: ومنقولة للصف الثالث | CC15: 0 | CD15: 1 | CE15: 1/3 | CW15: 0 | CX15: 0
A16: 7 | B16: 1007 | C16: اسراء محمود محمد ابراهيم | D16: 1/2 | K16: بنات | L16: انتظام | M16: صباحى | O16: 3007 | P16: 9 | Q16: 9 | R16: 12 | S16: 30 | T16: 8 | U16: 6 | V16: 6 | W16: 20 | X16: 4 | Y16: 5 | Z16: 6 | AA16: 15 | AB16: 9 | AC16: 7 | AD16: 13 | AE16: 29 | AF16: 9 | AG16: 8 | AH16: 20 | AI16: 37 | AJ16: 10 | AK16: 18 | AL16: 19 | AM16: 47 | AN16: 9 | AO16: 8 | AP16: 20 | AQ16: 37 | AR16: 9 | AS16: 11 | AT16: 17 | AU16: 37 | AV16: 9 | AW16: 12 | AX16: 11 | AY16: 32 | AZ16: 9 | BA16: 17 | BB16: 18 | BC16: 44 | BD16: 9 | BE16: 17 | BF16: 18 | BG16: 44 | BH16: 2 | BI16: 5 | BJ16: 4 | BK16: 10 | BL16: 7 | BM16: 12 | BN16: 13 | BO16: 27 | BP16: 40 | BQ16: 132 | BR16: 412 | BS16: 3 | BT16: 5 | BU16: 8 | BV16: 16 | BW16: 3 | BX16: 4 | BY16: 6 | BZ16: 13 | CA16: ناجحة | CB16: ومنقولة للصف الثالث | CC16: 0 | CD16: 1 | CE16: 1/3 | CW16: 0 | CX16: 0
A17: 8 | B17: 1008 | C17: اسراء مصطفى محمود محمد | D17: 1/2 | K17: بنات | L17: انتظام | M17: صباحى | O17: 3008 | P17: 9 | Q17: 11 | R17: 13 | S17: 33 | T17: 8 | U17: 6 | V17: 6 | W17: 20 | X17: 4 | Y17: 4 | Z17: 5 | AA17: 13 | AB17: 9 | AC17: 9 | AD17: 12 | AE17: 30 | AF17: 9 | AG17: 10 | AH17: 19 | AI17: 38 | AJ17: 9 | AK17: 9 | AL17: 19 | AM17: 37 | AN17: 9 | AO17: 15 | AP17: 20 | AQ17: 44 | AR17: 9 | AS17: 13 | AT17: 17 | AU17: 39 | AV17: 9 | AW17: 16 | AX17: 12 | AY17: 37 | AZ17: 9 | BA17: 17 | BB17: 16 | BC17: 42 | BD17: 10 | BE17: 17 | BF17: 19 | BG17: 46 | BH17: 3 | BI17: 5 | BJ17: 6 | BK17: 10 | BL17: 4 | BM17: 12 | BN17: 13 | BO17: 27 | BP17: 40 | BQ17: 143 | BR17: 419 | BS17: 3 | BT17: 6 | BU17: 8 | BV17: 17 | BW17: 3 | BX17: 3 | BY17: 6 | BZ17: 12 | CA17: ناجحة | CB17: ومنقولة للصف الثالث | CC17: 0 | CD17: 1 | CE17: 1/3 | CW17: 0 | CX17: 0
A18: 9 | B18: 1009 | C18: اسماء احمد سيد ابو المجد | D18: 5/2 | K18: بنات | L18: انتظام | M18: صباحى | O18: 3009 | P18: 9 | Q18: 9 | R18: 9 | S18: 27 | T18: 8 | U18: 6 | V18: 6 | W18: 20 | X18: 4 | Y18: 5 | Z18: 5 | AA18: 14 | AB18: 9 | AC18: 16 | AD18: 11 | AE18: 36 | AF18: 9 | AG18: 14 | AH18: 20 | AI18: 43 | AJ18: 9 | AK18: 16 | AL18: 14 | AM18: 39 | AN18: 10 | AO18: 16 | AP18: 20 | AQ18: 46 | AR18: 9 | AS18: 11 | AT18: 19 | AU18: 39 | AV18: 9 | AW18: 16 | AX18: 12 | AY18: 37 | AZ18: 10 | BA18: 18 | BB18: 19 | BC18: 47 | BD18: 10 | BE18: 19 | BF18: 17 | BG18: 46 | BH18: 3 | BI18: 5 | BJ18: 6 | BK18: 11 | BL18: 7 | BM18: 12 | BN18: 16 | BO18: 28 | BP18: 44 | BQ18: 163 | BR18: 438 | BS18: 3 | BT18: 5 | BU18: 7 | BV18: 15 | BW18: 3 | BX18: 3 | BY18: 4 | BZ18: 10 | CA18: ناجحة | CB18: ومنقولة للصف الثالث | CC18: 0 | CD18: 1 | CE18: 1/3 | CW18: 0 | CX18: 0
A19: 10 | B19: 1010 | C19: اسماء جمال نوبى شحات | D19: 3/2 | K19: بنات | L19: انتظام | M19: صباحى | O19: 3010 | P19: 9 | Q19: 12 | R19: 15 | S19: 36 | T19: 8 | U19: 7 | V19: 8 | W19: 23 | X19: 5 | Y19: 5 | Z19: 7 | AA19: 17 | AB19: 9 | AC19: 12 | AD19: 16 | AE19: 37 | AF19: 9 | AG19: 14 | AH19: 20 | AI19: 43 | AJ19: 9 | AK19: 12 | AL19: 18 | AM19: 39 | AN19: 10 | AO19: 16 | AP19: 20 | AQ19: 46 | AR19: 9 | AS19: 16 | AT19: 19 | AU19: 44 | AV19: 9 | AW19: 19 | AX19: 14 | AY19: 42 | AZ19: 10 | BA19: 18 | BB19: 18 | BC19: 46 | BD19: 10 | BE19: 19 | BF19: 18 | BG19: 47 | BH19: 4 | BI19: 5 | BJ19: 8 | BK19: 12 | BL19: 5 | BM19: 12 | BN19: 17 | BO19: 29 | BP19: 46 | BQ19: 170 | BR19: 466 | BS19: 3 | BT19: 6 | BU19: 8 | BV19: 17 | BW19: 3 | BX19: 6 | BY19: 5 | BZ19: 14 | CA19: ناجحة | CB19: ومنقولة للصف الثالث | CC19: 0 | CD19: 1 | CE19: 1/3 | CW19: 0 | CX19: 0
A20: 11 | B20: 1011 | C20: اسماء سليمان احمد سليم | D20: 1/2 | K20: بنات | L20: انتظام | M20: صباحى | O20: 3011 | P20: 9 | Q20: 8 | R20: 14 | S20: 31 | T20: 8 | U20: 5 | V20: 7 | W20: 20 | X20: 4 | Y20: 5 | Z20: 5 | AA20: 14 | AB20: 9 | AC20: 11 | AD20: 5 | AE20: 25 | AF20: 10 | AG20: 17 | AH20: 19 | AI20: 46 | AJ20: 9 | AK20: 8 | AL20: 8 | AM20: 25 | AN20: 9 | AO20: 14 | AP20: 19 | AQ20: 42 | AR20: 9 | AS20: 18 | AT20: 16 | AU20: 43 | AV20: 9 | AW20: 11 | AX20: 11 | AY20: 31 | AZ20: 10 | BA20: 18 | BB20: 19 | BC20: 47 | BD20: 9 | BE20: 16 | BF20: 17 | BG20: 42 | BH20: 4 | BI20: 5 | BJ20: 8 | BK20: 11 | BL20: 4 | BM20: 12 | BN20: 16 | BO20: 28 | BP20: 44 | BQ20: 150 | BR20: 410 | BS20: 3 | BT20: 5 | BU20: 8 | BV20: 16 | BW20: 3 | BX20: 4 | BY20: 7 | BZ20: 14 | CA20: ناجحة | CB20: ومنقولة للصف الثالث | CC20: 0 | CD20: 1 | CE20: 1/3 | CW20: 0 | CX20: 0
A21: 12 | B21: 1012 | C21: اسماء صبرى احمد الامين | D21: 5/2 | K21: بنات | L21: انتظام | M21: صباحى | O21: 3012 | P21: 9 | Q21: 12 | R21: 15 | S21: 36 | T21: 8 | U21: 5 | V21: 11 | W21: 24 | X21: 4 | Y21: 4 | Z21: 4 | AA21: 12 | AB21: 9 | AC21: 11 | AD21: 5 | AE21: 25 | AF21: 9 | AG21: 7 | AH21: 14 | AI21: 30 | AJ21: 9 | AK21: 5 | AL21: 12 | AM21: 26 | AN21: 9 | AO21: 9 | AP21: 18 | AQ21: 36 | AR21: 9 | AS21: 14 | AT21: 16 | AU21: 39 | AV21: 9 | AW21: 13 | AX21: 13 | AY21: 35 | AZ21: 10 | BA21: 18 | BB21: 19 | BC21: 47 | BD21: 10 | BE21: 17 | BF21: 19 | BG21: 46 | BH21: 2 | BI21: 5 | BJ21: 4 | BK21: 11 | BL21: 4 | BM21: 12 | BN21: 10 | BO21: 28 | BP21: 38 | BQ21: 130 | BR21: 394 | BS21: 3 | BT21: 5 | BU21: 8 | BV21: 16 | BW21: 3 | BX21: 5 | BY21: 7 | BZ21: 15 | CA21: ناجحة | CB21: ومنقولة للصف الثالث | CC21: 0 | CD21: 1 | CE21: 1/3 | CW21: 0 | CX21: 0
A22: 13 | B22: 1013 | C22: اسماء محسوب سيد محمد | D22: 2/2 | K22: بنات | L22: انتظام | M22: صباحى | O22: 3013 | P22: 9 | Q22: 13 | R22: 13 | S22: 35 | T22: 8 | U22: 5 | V22: 10 | W22: 23 | X22: 4 | Y22: 4 | Z22: 4 | AA22: 12 | AB22: 9 | AC22: 13 | AD22: 9 | AE22: 31 | AF22: 9 | AG22: 10 | AH22: 17 | AI22: 36 | AJ22: 9 | AK22: 6 | AL22: 14 | AM22: 29 | AN22: 9 | AO22: 14 | AP22: 19 | AQ22: 42 | AR22: 9 | AS22: 16 | AT22: 18 | AU22: 43 | AV22: 9 | AW22: 12 | AX22: 11 | AY22: 32 | AZ22: 10 | BA22: 19 | BB22: 17 | BC22: 46 | BD22: 10 | BE22: 17 | BF22: 19 | BG22: 46 | BH22: 2 | BI22: 5 | BJ22: 4 | BK22: 11 | BL22: 5 | BM22: 12 | BN22: 11 | BO22: 28 | BP22: 39 | BQ22: 144 | BR22: 414 | BS22: 3 | BT22: 5 | BU22: 8 | BV22: 16 | BW22: 3 | BX22: 6 | BY22: 6 | BZ22: 15 | CA22: ناجحة | CB22: ومنقولة للصف الثالث | CC22: 0 | CD22: 1 | CE22: 1/3 | CW22: 0 | CX22: 0
A23: 14 | B23: 1014 | C23: الزهراء ناصر عبد العال عبد الرحيم | D23: 7/2 | K23: بنات | L23: انتظام | M23: صباحى | O23: 3014 | P23: 9 | Q23: 9 | R23: 13 | S23: 31 | T23: 8 | U23: 5 | V23: 7 | W23: 20 | X23: 4 | Y23: 3 | Z23: 3 | AA23: 10 | AB23: 8 | AC23: 10 | AD23: 7 | AE23: 25 | AF23: 9 | AG23: 6 | AH23: 10 | AI23: 25 | AJ23: 9 | AK23: 9 | AL23: 7 | AM23: 25 | AN23: 9 | AO23: 15 | AP23: 11 | AQ23: 35 | AR23: 9 | AS23: 9 | AT23: 15 | AU23: 33 | AV23: 9 | AW23: 14 | AX23: 14 | AY23: 37 | AZ23: 9 | BA23: 13 | BB23: 17 | BC23: 39 | BD23: 9 | BE23: 17 | BF23: 16 | BG23: 42 | BH23: 3 | BI23: 5 | BJ23: 6 | BK23: 8 | BL23: 4 | BM23: 7 | BN23: 13 | BO23: 20 | BP23: 33 | BQ23: 124 | BR23: 355 | BS23: 3 | BT23: 4 | BU23: 8 | BV23: 15 | BW23: 3 | BX23: 7 | BY23: 4 | BZ23: 14 | CA23: ناجحة | CB23: ومنقولة للصف الثالث | CC23: 0 | CD23: 1 | CE23: 1/3 | CW23: 0 | CX23: 0
A24: 15 | B24: 1015 | C24: الشيماء محمود عباس محمد | D24: 1/2 | K24: بنات | L24: انتظام | M24: صباحى | O24: 3015 | P24: 9 | Q24: 12 | R24: 14 | S24: 35 | T24: 8 | U24: 5 | V24: 8 | W24: 21 | X24: 4 | Y24: 4 | Z24: 6 | AA24: 14 | AB24: 9 | AC24: 17 | AD24: 14 | AE24: 40 | AF24: 10 | AG24: 20 | AH24: 20 | AI24: 50 | AJ24: 10 | AK24: 19 | AL24: 20 | AM24: 49 | AN24: 9 | AO24: 17 | AP24: 17 | AQ24: 43 | AR24: 10 | AS24: 18 | AT24: 18 | AU24: 46 | AV24: 9 | AW24: 12 | AX24: 15 | AY24: 36 | AZ24: 9 | BA24: 18 | BB24: 16 | BC24: 43 | BD24: 10 | BE24: 19 | BF24: 17 | BG24: 46 | BH24: 2 | BI24: 5 | BJ24: 3 | BK24: 10 | BL24: 5 | BM24: 12 | BN24: 10 | BO24: 27 | BP24: 37 | BQ24: 174 | BR24: 460 | BS24: 3 | BT24: 8 | BU24: 8 | BV24: 19 | BW24: 3 | BX24: 4 | BY24: 3 | BZ24: 10 | CA24: ناجحة | CB24: ومنقولة للصف الثالث | CC24: 0 | CD24: 1 | CE24: 1/3 | CW24: 0 | CX24: 0
A25: 16 | B25: 1016 | C25: امال محمود سيد ابو المجد | D25: 5/2 | K25: بنات | L25: انتظام | M25: صباحى | O25: 3016 | P25: 9 | Q25: 10 | R25: 14 | S25: 33 | T25: 8 | U25: 2 | V25: 10 | W25: 20 | X25: 4 | Y25: 4 | Z25: 5 | AA25: 13 | AB25: 9 | AC25: 8 | AD25: 9 | AE25: 26 | AF25: 9 | AG25: 7 | AH25: 14 | AI25: 30 | AJ25: 9 | AK25: 6 | AL25: 19 | AM25: 34 | AN25: 9 | AO25: 10 | AP25: 18 | AQ25: 37 | AR25: 9 | AS25: 12 | AT25: 15 | AU25: 36 | AV25: 9 | AW25: 13 | AX25: 14 | AY25: 36 | AZ25: 9 | BA25: 18 | BB25: 16 | BC25: 43 | BD25: 9 | BE25: 16 | BF25: 17 | BG25: 42 | BH25: 3 | BI25: 5 | BJ25: 5 | BK25: 11 | BL25: 4 | BM25: 12 | BN25: 12 | BO25: 28 | BP25: 40 | BQ25: 122 | BR25: 390 | BS25: 3 | BT25: 5 | BU25: 8 | BV25: 16 | BW25: 3 | BX25: 4 | BY25: 6 | BZ25: 13 | CA25: ناجحة | CB25: ومنقولة للصف الثالث | CC25: 0 | CD25: 1 | CE25: 1/3 | CW25: 0 | CX25: 0
A26: 17 | B26: 1017 | C26: امانى ادريس محمد رسلان | D26: 3/2 | K26: بنات | L26: انتظام | M26: صباحى | O26: 3017 | P26: 9 | Q26: 10 | R26: 6 | S26: 25 | T26: 8 | U26: 4 | V26: 8 | W26: 20 | X26: 4 | Y26: 3 | Z26: 5 | AA26: 12 | AB26: 9 | AC26: 11 | AD26: 5 | AE26: 25 | AF26: 9 | AG26: 3 | AH26: 13 | AI26: 25 | AJ26: 9 | AK26: 3 | AL26: 14 | AM26: 26 | AN26: 9 | AO26: 10 | AP26: 17 | AQ26: 36 | AR26: 9 | AS26: 8 | AT26: 13 | AU26: 30 | AV26: 9 | AW26: 11 | AX26: 12 | AY26: 32 | AZ26: 9 | BA26: 18 | BB26: 16 | BC26: 43 | BD26: 9 | BE26: 17 | BF26: 14 | BG26: 40 | BH26: 2 | BI26: 5 | BJ26: 4 | BK26: 10 | BL26: 4 | BM26: 11 | BN26: 10 | BO26: 26 | BP26: 36 | BQ26: 112 | BR26: 350 | BS26: 3 | BT26: 5 | BU26: 8 | BV26: 16 | BW26: 3 | BX26: 4 | BY26: 3 | BZ26: 10 | CA26: ناجحة | CB26: ومنقولة للصف الثالث | CC26: 0 | CD26: 1 | CE26: 1/3 | CW26: 0 | CX26: 0
A27: 18 | B27: 1018 | C27: امانى يحيى محمد احمد | D27: 5/2 | K27: بنات | L27: انتظام | M27: صباحى | O27: 3018 | P27: 9 | Q27: 12 | R27: 14 | S27: 35 | T27: 8 | U27: 6 | V27: 9 | W27: 23 | X27: 4 | Y27: 4 | Z27: 5 | AA27: 13 | AB27: 9 | AC27: 10 | AD27: 11 | AE27: 30 | AF27: 9 | AG27: 8 | AH27: 15 | AI27: 32 | AJ27: 9 | AK27: 7 | AL27: 18 | AM27: 34 | AN27: 9 | AO27: 16 | AP27: 19 | AQ27: 44 | AR27: 9 | AS27: 18 | AT27: 14 | AU27: 41 | AV27: 9 | AW27: 9 | AX27: 13 | AY27: 31 | AZ27: 10 | BA27: 19 | BB27: 20 | BC27: 49 | BD27: 10 | BE27: 17 | BF27: 19 | BG27: 46 | BH27: 3 | BI27: 5 | BJ27: 6 | BK27: 12 | BL27: 4 | BM27: 12 | BN27: 13 | BO27: 29 | BP27: 42 | BQ27: 144 | BR27: 420 | BS27: 3 | BT27: 5 | BU27: 8 | BV27: 16 | BW27: 3 | BX27: 6 | BY27: 7 | BZ27: 16 | CA27: ناجحة | CB27: ومنقولة للصف الثالث | CC27: 0 | CD27: 1 | CE27: 1/3 | CW27: 0 | CX27: 0
A28: 19 | B28: 1019 | C28: امل ثابت عبداللاه جهلان | D28: 6/2 | K28: بنات | L28: انتظام | M28: صباحى | O28: 3019 | P28: 9 | Q28: 10 | R28: 12 | S28: 31 | T28: 8 | U28: 3 | V28: 9 | W28: 20 | X28: 4 | Y28: 4 | Z28: 6 | AA28: 14 | AB28: 9 | AC28: 12 | AD28: 13 | AE28: 34 | AF28: 9 | AG28: 13 | AH28: 17 | AI28: 39 | AJ28: 9 | AK28: 10 | AL28: 19 | AM28: 38 | AN28: 9 | AO28: 11 | AP28: 18 | AQ28: 38 | AR28: 9 | AS28: 19 | AT28: 20 | AU28: 48 | AV28: 9 | AW28: 15 | AX28: 13 | AY28: 37 | AZ28: 9 | BA28: 17 | BB28: 17 | BC28: 43 | BD28: 10 | BE28: 19 | BF28: 18 | BG28: 47 | BH28: 2 | BI28: 5 | BJ28: 4 | BK28: 12 | BL28: 4 | BM28: 12 | BN28: 10 | BO28: 29 | BP28: 39 | BQ28: 149 | BR28: 428 | BS28: 3 | BT28: 5 | BU28: 8 | BV28: 16 | BW28: 3 | BX28: 5 | BY28: 5 | BZ28: 13 | CA28: ناجحة | CB28: ومنقولة للصف الثالث | CC28: 0 | CD28: 1 | CE28: 1/3 | CW28: 0 | CX28: 0
A29: 20 | B29: 1020 | C29: امل عبد الحميد شحاتة احمد | D29: 3/2 | K29: بنات | L29: انتظام | M29: صباحى | O29: 3020 | P29: 9 | Q29: 9 | R29: 11 | S29: 29 | T29: 8 | U29: 4 | V29: 8 | W29: 20 | X29: 4 | Y29: 4 | Z29: 5 | AA29: 13 | AB29: 9 | AC29: 4 | AD29: 0 | AE29: 13 | AF29: 9 | AG29: 2 | AH29: 1 | AI29: 12 | AJ29: 9 | AK29: 0 | AL29: 6 | AM29: 15 | AN29: 9 | AO29: 6 | AP29: 15 | AQ29: 30 | AR29: 9 | AS29: 8 | AT29: 14 | AU29: 31 | AV29: 9 | AW29: 9 | AX29: 15 | AY29: 33 | AZ29: 9 | BA29: 17 | BB29: 18 | BC29: 44 | BD29: 9 | BE29: 15 | BF29: 20 | BG29: 44 | BH29: 2 | BI29: 5 | BJ29: 4 | BK29: 8 | BL29: 5 | BM29: 9 | BN29: 11 | BO29: 22 | BP29: 33 | BQ29: 90 | BR29: 317 | BS29: 3 | BT29: 4 | BU29: 8 | BV29: 15 | BW29: 3 | BX29: 4 | BY29: 4 | BZ29: 11 | CA29: راسبة | CB29: فى : محاسبة مالية - احصاء - رياضة مالية - | CC29: 3 | CD29: 1 | CE29: 1/3 | CK29: محاسبة مالية - | CL29: احصاء - | CM29: رياضة مالية - | CW29: 0 | CX29: 3
A30: 21 | B30: 1021 | C30: اميرة جمال يوسف محمد | D30: 2/2 | K30: بنات | L30: انتظام | M30: صباحى | O30: 3021 | P30: 9 | Q30: 9 | R30: 12 | S30: 30 | T30: 8 | U30: 4 | V30: 8 | W30: 20 | X30: 4 | Y30: 4 | Z30: 3 | AA30: 11 | AB30: 3 | AC30: 8 | AD30: 2 | AE30: 13 | AF30: 9 | AG30: 5 | AH30: 4 | AI30: 18 | AJ30: 9 | AK30: 9 | AL30: 7 | AM30: 25 | AN30: 9 | AO30: 8 | AP30: 16 | AQ30: 33 | AR30: 9 | AS30: 7 | AT30: 14 | AU30: 30 | AV30: 9 | AW30: 12 | AX30: 13 | AY30: 34 | AZ30: 9 | BA30: 17 | BB30: 18 | BC30: 44 | BD30: 9 | BE30: 13 | BF30: 17 | BG30: 39 | BH30: 2 | BI30: 5 | BJ30: 5 | BK30: 9 | BL30: 4 | BM30: 8 | BN30: 11 | BO30: 22 | BP30: 33 | BQ30: 110 | BR30: 330 | BS30: 3 | BT30: 5 | BU30: 1 | BV30: 9 | BW30: 3 | BX30: 5 | BY30: 1 | BZ30: 9 | CA30: دورثان | CB30: فى : محاسبة مالية - احصاء - مواطنة - دين - | CC30: 2 | CD30: 1 | CE30: 1/3 | CK30: محاسبة مالية - | CL30: احصاء - | CT30: مواطنة - | CU30: دين - | CW30: 2 | CX30: 4
A31: 22 | B31: 1022 | C31: اميرة حسين مصطفى محمد | D31: 3/2 | K31: بنات | L31: انتظام | M31: صباحى | O31: 3022 | P31: 9 | Q31: 10 | R31: 14 | S31: 33 | T31: 8 | U31: 5 | V31: 10 | W31: 23 | X31: 4 | Y31: 5 | Z31: 4 | AA31: 13 | AB31: 9 | AC31: 8 | AD31: 13 | AE31: 30 | AF31: 9 | AG31: 6 | AH31: 10 | AI31: 25 | AJ31: 9 | AK31: 7 | AL31: 12 | AM31: 28 | AN31: 9 | AO31: 7 | AP31: 15 | AQ31: 31 | AR31: 9 | AS31: 11 | AT31: 15 | AU31: 35 | AV31: 9 | AW31: 11 | AX31: 13 | AY31: 33 | AZ31: 9 | BA31: 17 | BB31: 18 | BC31: 44 | BD31: 9 | BE31: 14 | BF31: 18 | BG31: 41 | BH31: 2 | BI31: 5 | BJ31: 4 | BK31: 9 | BL31: 4 | BM31: 9 | BN31: 10 | BO31: 23 | BP31: 33 | BQ31: 114 | BR31: 369 | BS31: 3 | BT31: 6 | BU31: 8 | BV31: 17 | BW31: 3 | BX31: 5 | BY31: 4 | BZ31: 12 | CA31: ناجحة | CB31: ومنقولة للصف الثالث | CC31: 0 | CD31: 2 | CE31: 2/3 | CW31: 0 | CX31: 0
A32: 23 | B32: 1023 | C32: اميرة رمضان جابر موسى | D32: 3/2 | K32: بنات | L32: انتظام | M32: صباحى | O32: 3023 | P32: 10 | Q32: 14 | R32: 17 | S32: 41 | T32: 8 | U32: 7 | V32: 5 | W32: 20 | X32: 4 | Y32: 4 | Z32: 5 | AA32: 13 | AB32: 9 | AC32: 11 | AD32: 8 | AE32: 28 | AF32: 9 | AG32: 11 | AH32: 12 | AI32: 32 | AJ32: 9 | AK32: 14 | AL32: 15 | AM32: 38 | AN32: 9 | AO32: 16 | AP32: 16 | AQ32: 41 | AR32: 10 | AS32: 18 | AT32: 18 | AU32: 46 | AV32: 9 | AW32: 16 | AX32: 14 | AY32: 39 | AZ32: 10 | BA32: 18 | BB32: 20 | BC32: 48 | BD32: 10 | BE32: 18 | BF32: 19 | BG32: 47 | BH32: 3 | BI32: 5 | BJ32: 5 | BK32: 7 | BL32: 4 | BM32: 7 | BN32: 12 | BO32: 19 | BP32: 31 | BQ32: 159 | BR32: 424 | BS32: 3 | BT32: 7 | BU32: 8 | BV32: 18 | BW32: 3 | BX32: 5 | BY32: 5 | BZ32: 13 | CA32: ناجحة | CB32: ومنقولة للصف الثالث | CC32: 0 | CD32: 2 | CE32: 2/3 | CW32: 0 | CX32: 0
A33: 24 | B33: 1024 | C33: اميرة سيد احمد سيد | D33: 1/2 | K33: بنات | L33: انتظام | M33: صباحى | O33: 3024 | P33: 10 | Q33: 15 | R33: 17 | S33: 42 | T33: 8 | U33: 7 | V33: 9 | W33: 24 | X33: 4 | Y33: 5 | Z33: 5 | AA33: 14 | AB33: 10 | AC33: 20 | AD33: 20 | AE33: 50 | AF33: 10 | AG33: 20 | AH33: 20 | AI33: 50 | AJ33: 10 | AK33: 20 | AL33: 20 | AM33: 50 | AN33: 9 | AO33: 16 | AP33: 18 | AQ33: 43 | AR33: 10 | AS33: 20 | AT33: 18 | AU33: 48 | AV33: 9 | AW33: 17 | AX33: 15 | AY33: 41 | AZ33: 10 | BA33: 18 | BB33: 20 | BC33: 48 | BD33: 10 | BE33: 19 | BF33: 18 | BG33: 47 | BH33: 4 | BI33: 5 | BJ33: 8 | BK33: 8 | BL33: 4 | BM33: 5 | BN33: 16 | BO33: 18 | BP33: 34 | BQ33: 193 | BR33: 491 | BS33: 3 | BT33: 7 | BU33: 8 | BV33: 18 | BW33: 3 | BX33: 7 | BY33: 5 | BZ33: 15 | CA33: ناجحة | CB33: ومنقولة للصف الثالث | CC33: 0 | CD33: 2 | CE33: 2/3 | CW33: 0 | CX33: 0
A34: 25 | B34: 1025 | C34: اميرة عامر مدبولى الضوى | D34: 3/2 | K34: بنات | L34: انتظام | M34: صباحى | O34: 3025 | P34: 10 | Q34: 13 | R34: 17 | S34: 40 | T34: 8 | U34: 6 | V34: 6 | W34: 20 | X34: 4 | Y34: 5 | Z34: 6 | AA34: 15 | AB34: 9 | AC34: 10 | AD34: 16 | AE34: 35 | AF34: 9 | AG34: 8 | AH34: 15 | AI34: 32 | AJ34: 9 | AK34: 12 | AL34: 18 | AM34: 39 | AN34: 9 | AO34: 15 | AP34: 17 | AQ34: 41 | AR34: 9 | AS34: 12 | AT34: 14 | AU34: 35 | AV34: 9 | AW34: 13 | AX34: 14 | AY34: 36 | AZ34: 9 | BA34: 14 | BB34: 19 | BC34: 42 | BD34: 10 | BE34: 18 | BF34: 18 | BG34: 46 | BH34: 2 | BI34: 5 | BJ34: 4 | BK34: 5 | BL34: 4 | BM34: 5 | BN34: 10 | BO34: 15 | BP34: 25 | BQ34: 135 | BR34: 406 | BS34: 3 | BT34: 6 | BU34: 5 | BV34: 14 | BW34: 3 | BX34: 3 | BY34: 4 | BZ34: 10 | CA34: ناجحة | CB34: ومنقولة للصف الثالث | CC34: 0 | CD34: 2 | CE34: 2/3 | CW34: 0 | CX34: 0
A35: 26 | B35: 1026 | C35: اميرة عدلى سعدى إبراهيم | D35: 5/2 | K35: بنات | L35: انتظام | M35: صباحى | O35: 3026 | P35: 9 | Q35: 9 | R35: 14 | S35: 32 | T35: 8 | U35: 2 | V35: 3 | W35: 13 | X35: 4 | Y35: 5 | Z35: 5 | AA35: 14 | AB35: 9 | AC35: 6 | AD35: 11 | AE35: 26 | AF35: 9 | AG35: 3 | AH35: 6 | AI35: 18 | AJ35: 9 | AK35: 1 | AL35: 3 | AM35: 13 | AN35: 9 | AO35: 14 | AP35: 16 | AQ35: 39 | AR35: 9 | AS35: 6 | AT35: 12 | AU35: 27 | AV35: 9 | AW35: 8 | AX35: 14 | AY35: 31 | AZ35: 10 | BA35: 17 | BB35: 20 | BC35: 47 | BD35: 10 | BE35: 19 | BF35: 17 | BG35: 46 | BH35: 2 | BI35: 5 | BJ35: 4 | BK35: 5 | BL35: 5 | BM35: 5 | BN35: 11 | BO35: 15 | BP35: 26 | BQ35: 99 | BR35: 332 | BS35: 3 | BT35: 6 | BU35: 8 | BV35: 17 | BW35: 3 | BX35: 3 | BY35: 5 | BZ35: 11 | CA35: راسبة | CB35: فى : انجليزى - احصاء - رياضة مالية - | CC35: 3 | CD35: 2 | CE35: 2/3 | CI35: انجليزى - | CL35: احصاء - | CM35: رياضة مالية - | CW35: 0 | CX35: 3
A36: 27 | B36: 1027 | C36: اميرة قرنى سيد جودة | D36: 5/2 | K36: بنات | L36: انتظام | M36: صباحى | O36: 3027 | P36: 9 | Q36: 11 | R36: 12 | S36: 32 | T36: 8 | U36: 5 | V36: 7 | W36: 20 | X36: 4 | Y36: 4 | Z36: 6 | AA36: 14 | AB36: 9 | AC36: 11 | AD36: 13 | AE36: 33 | AF36: 9 | AG36: 6 | AH36: 10 | AI36: 25 | AJ36: 9 | AK36: 3 | AL36: 18 | AM36: 30 | AN36: 9 | AO36: 10 | AP36: 18 | AQ36: 37 | AR36: 9 | AS36: 8 | AT36: 17 | AU36: 34 | AV36: 9 | AW36: 9 | AX36: 14 | AY36: 32 | AZ36: 9 | BA36: 16 | BB36: 19 | BC36: 44 | BD36: 9 | BE36: 16 | BF36: 19 | BG36: 44 | BH36: 3 | BI36: 5 | BJ36: 6 | BK36: 9 | BL36: 4 | BM36: 10 | BN36: 13 | BO36: 24 | BP36: 37 | BQ36: 114 | BR36: 382 | BS36: 3 | BT36: 7 | BU36: 8 | BV36: 18 | BW36: 3 | BX36: 4 | BY36: 3 | BZ36: 10 | CA36: ناجحة | CB36: ومنقولة للصف الثالث | CC36: 0 | CD36: 2 | CE36: 2/3 | CW36: 0 | CX36: 0
A37: 28 | B37: 1028 | C37: اميرة محمد نوبى محمد | D37: 5/2 | K37: بنات | L37: انتظام | M37: صباحى | O37: 3028 | P37: 9 | Q37: 10 | R37: 13 | S37: 32 | T37: 8 | U37: 7 | V37: 6 | W37: 21 | X37: 4 | Y37: 5 | Z37: 5 | AA37: 14 | AB37: 9 | AC37: 12 | AD37: 16 | AE37: 37 | AF37: 9 | AG37: 11 | AH37: 11 | AI37: 31 | AJ37: 9 | AK37: 5 | AL37: 11 | AM37: 25 | AN37: 9 | AO37: 12 | AP37: 18 | AQ37: 39 | AR37: 9 | AS37: 15 | AT37: 17 | AU37: 41 | AV37: 9 | AW37: 14 | AX37: 15 | AY37: 38 | AZ37: 10 | BA37: 18 | BB37: 20 | BC37: 48 | BD37: 10 | BE37: 18 | BF37: 18 | BG37: 46 | BH37: 2 | BI37: 5 | BJ37: 4 | BK37: 10 | BL37: 4 | BM37: 10 | BN37: 10 | BO37: 25 | BP37: 35 | BQ37: 141 | BR37: 407 | BS37: 3 | BT37: 7 | BU37: 8 | BV37: 18 | BW37: 3 | BX37: 4 | BY37: 6 | BZ37: 13 | CA37: ناجحة | CB37: ومنقولة للصف الثالث | CC37: 0 | CD37: 2 | CE37: 2/3 | CW37: 0 | CX37: 0
A38: 29 | B38: 1029 | C38: اميرة محمود محمد على | D38: 3/2 | K38: بنات | L38: انتظام | M38: صباحى | O38: 3029 | P38: 9 | Q38: 13 | R38: 16 | S38: 38 | T38: 8 | U38: 5 | V38: 8 | W38: 21 | X38: 4 | Y38: 5 | Z38: 6 | AA38: 15 | AB38: 9 | AC38: 19 | AD38: 13 | AE38: 41 | AF38: 9 | AG38: 4 | AH38: 16 | AI38: 29 | AJ38: 9 | AK38: 9 | AL38: 16 | AM38: 34 | AN38: 9 | AO38: 10 | AP38: 19 | AQ38: 38 | AR38: 9 | AS38: 15 | AT38: 19 | AU38: 43 | AV38: 9 | AW38: 15 | AX38: 15 | AY38: 39 | AZ38: 10 | BA38: 18 | BB38: 20 | BC38: 48 | BD38: 9 | BE38: 16 | BF38: 18 | BG38: 43 | BH38: 2 | BI38: 5 | BJ38: 4 | BK38: 9 | BL38: 4 | BM38: 10 | BN38: 10 | BO38: 24 | BP38: 34 | BQ38: 142 | BR38: 423 | BS38: 3 | BT38: 8 | BU38: 8 | BV38: 19 | BW38: 3 | BX38: 6 | BY38: 8 | BZ38: 17 | CA38: ناجحة | CB38: ومنقولة للصف الثالث | CC38: 0 | CD38: 2 | CE38: 2/3 | CW38: 0 | CX38: 0
A39: 30 | B39: 1030 | C39: اميمة جمال عبد العال سيد | D39: 1/2 | K39: بنات | L39: انتظام | M39: صباحى | O39: 3030 | P39: 9 | Q39: 12 | R39: 12 | S39: 33 | T39: 8 | U39: 7 | V39: 5 | W39: 20 | X39: 4 | Y39: 5 | Z39: 6 | AA39: 15 | AB39: 9 | AC39: 10 | AD39: 14 | AE39: 33 | AF39: 9 | AG39: 5 | AH39: 12 | AI39: 26 | AJ39: 9 | AK39: 5 | AL39: 11 | AM39: 25 | AN39: 9 | AO39: 10 | AP39: 17 | AQ39: 36 | AR39: 9 | AS39: 13 | AT39: 14 | AU39: 36 | AV39: 9 | AW39: 16 | AX39: 13 | AY39: 38 | AZ39: 10 | BA39: 16 | BB39: 20 | BC39: 46 | BD39: 9 | BE39: 12 | BF39: 19 | BG39: 40 | BH39: 2 | BI39: 5 | BJ39: 4 | BK39: 7 | BL39: 4 | BM39: 8 | BN39: 10 | BO39: 20 | BP39: 30 | BQ39: 122 | BR39: 378 | BS39: 3 | BT39: 5 | BU39: 8 | BV39: 16 | BW39: 3 | BX39: 5 | BY39: 7 | BZ39: 15 | CA39: ناجحة | CB39: ومنقولة للصف الثالث | CC39: 0 | CD39: 2 | CE39: 2/3 | CW39: 0 | CX39: 0
A40: 31 | B40: 1031 | C40: اميمة فؤاد السيد البدرى | D40: 2/2 | K40: بنات | L40: انتظام | M40: صباحى | O40: 3031 | P40: 9 | Q40: 7 | R40: 10 | S40: 26 | T40: 8 | U40: 1 | V40: 1 | W40: 10 | X40: 4 | Y40: 2 | Z40: 4 | AA40: 10 | AB40: 9 | AC40: 6 | AD40: 2 | AE40: 17 | AF40: 9 | AG40: 0 | AH40: 6 | AI40: 15 | AJ40: 9 | AK40: 1 | AL40: 0 | AM40: 10 | AN40: 9 | AO40: 10 | AP40: 16 | AQ40: 35 | AR40: 9 | AS40: 5 | AT40: 11 | AU40: 25 | AV40: 9 | AW40: 9 | AX40: 11 | AY40: 29 | AZ40: 9 | BA40: 14 | BB40: 20 | BC40: 43 | BD40: 9 | BE40: 16 | BF40: 12 | BG40: 37 | BH40: 2 | BI40: 5 | BJ40: 4 | BK40: 8 | BL40: 4 | BM40: 6 | BN40: 10 | BO40: 19 | BP40: 29 | BQ40: 83 | BR40: 286 | BS40: 3 | BT40: 7 | BU40: 8 | BV40: 18 | BW40: 3 | BX40: 4 | BY40: 3 | BZ40: 10 | CA40: راسبة | CB40: فى : انجليزى - محاسبة مالية - احصاء - رياضة مالية - مجموع | CC40: 5 | CD40: 2 | CE40: 2/3 | CI40: انجليزى - | CK40: محاسبة مالية - | CL40: احصاء - | CM40: رياضة مالية - | CV40: مجموع | CW40: 0 | CX40: 5
A41: 32 | B41: 1032 | C41: امينة عيد إبراهيم احمد | D41: 3/2 | K41: بنات | L41: انتظام | M41: صباحى | O41: 3032 | P41: غ | Q41: غ | R41: غ | S41: 0 | T41: غ | U41: غ | V41: غ | W41: 0 | X41: غ | Y41: غ | Z41: غ | AA41: 0 | AB41: غ | AC41: غ | AD41: غ | AE41: 0 | AF41: غ | AG41: غ | AH41: غ | AI41: 0 | AJ41: غ | AK41: غ | AL41: غ | AM41: 0 | AN41: غ | AO41: غ | AP41: غ | AQ41: 0 | AR41: غ | AS41: غ | AT41: غ | AU41: 0 | AV41: غ | AW41: غ | AX41: غ | AY41: 0 | AZ41: غ | BA41: غ | BB41: غ | BC41: 0 | BD41: غ | BE41: غ | BF41: غ | BG41: 0 | BH41: غ | BI41: غ | BJ41: غ | BK41: غ | BL41: غ | BM41: غ | BN41: 0 | BO41: 0 | BP41: 0 | BQ41: 0 | BR41: 0 | BS41: غ | BT41: غ | BU41: غ | BV41: 0 | BW41: غ | BX41: غ | BY41: غ | BZ41: 0 | CA41: راسبة | CB41: فى : عربى - انجليزى - فرنسى - محاسبة مالية - احصاء - رياضة مالية - اقتصاد - سكرتارية عربية - سكرتارية اجنبية - ادارة مشروعات - ادارة مخازن - حاسب - مواطنة - دين - مجموع | CC41: 13 | CD41: 2 | CE41: 2/3 | CH41: عربى - | CI41: انجليزى - | CJ41: فرنسى - | CK41: محاسبة مالية - | CL41: احصاء - | CM41: رياضة مالية - | CN41: اقتصاد - | CO41: سكرتارية عربية - | CP41: سكرتارية اجنبية - | CQ41: ادارة مشروعات - | CR41: ادارة مخازن - | CS41: حاسب - | CT41: مواطنة - | CU41: دين - | CV41: مجموع | CW41: 2 | CX41: 15
A42: 33 | B42: 1033 | C42: انعام مجدى رضوان خليل | D42: 4/2 | K42: بنات | L42: انتظام | M42: صباحى | O42: 3033 | P42: 9 | Q42: 8 | R42: 12 | S42: 29 | T42: 8 | U42: 3 | V42: 5 | W42: 16 | X42: 4 | Y42: 6 | Z42: 5 | AA42: 15 | AB42: 9 | AC42: 7 | AD42: 14 | AE42: 30 | AF42: 9 | AG42: 6 | AH42: 10 | AI42: 25 | AJ42: 9 | AK42: 1 | AL42: 8 | AM42: 18 | AN42: 9 | AO42: 9 | AP42: 17 | AQ42: 35 | AR42: 9 | AS42: 6 | AT42: 12 | AU42: 27 | AV42: 9 | AW42: 10 | AX42: 14 | AY42: 33 | AZ42: 10 | BA42: 19 | BB42: 19 | BC42: 48 | BD42: 9 | BE42: 15 | BF42: 19 | BG42: 43 | BH42: 3 | BI42: 5 | BJ42: 5 | BK42: 7 | BL42: 4 | BM42: 5 | BN42: 12 | BO42: 17 | BP42: 29 | BQ42: 102 | BR42: 348 | BS42: 3 | BT42: 6 | BU42: 8 | BV42: 17 | BW42: 3 | BX42: 4 | BY42: 3 | BZ42: 10 | CA42: دورثان | CB42: فى : انجليزى - رياضة مالية - | CC42: 2 | CD42: 2 | CE42: 2/3 | CI42: انجليزى - | CM42: رياضة مالية - | CW42: 0 | CX42: 2
A43: 34 | B43: 1034 | C43: ايرين وجيه فهيم زكى | D43: 5/2 | K43: بنات | L43: انتظام | M43: صباحى | O43: 3034 | P43: 9 | Q43: 14 | R43: 14 | S43: 37 | T43: 8 | U43: 5 | V43: 7 | W43: 20 | X43: 4 | Y43: 4 | Z43: 6 | AA43: 14 | AB43: 9 | AC43: 8 | AD43: 15 | AE43: 32 | AF43: 9 | AG43: 10 | AH43: 13 | AI43: 32 | AJ43: 9 | AK43: 10 | AL43: 9 | AM43: 28 | AN43: 9 | AO43: 11 | AP43: 17 | AQ43: 37 | AR43: 9 | AS43: 18 | AT43: 17 | AU43: 44 | AV43: 9 | AW43: 14 | AX43: 15 | AY43: 38 | AZ43: 10 | BA43: 17 | BB43: 20 | BC43: 47 | BD43: 9 | BE43: 15 | BF43: 18 | BG43: 42 | BH43: 2 | BI43: 5 | BJ43: 4 | BK43: 8 | BL43: 7 | BM43: 9 | BN43: 13 | BO43: 22 | BP43: 35 | BQ43: 138 | BR43: 406 | BS43: 3 | BT43: 7 | BU43: 8 | BV43: 18 | BW43: 3 | BX43: 6 | BY43: 7 | BZ43: 16 | CA43: ناجحة | CB43: ومنقولة للصف الثالث | CC43: 0 | CD43: 2 | CE43: 2/3 | CW43: 0 | CX43: 0
A44: 35 | B44: 1035 | C44: ايمان احمد سيد نور الدين | D44: 5/2 | K44: بنات | L44: انتظام | M44: صباحى | O44: 3035 | P44: 9 | Q44: 12 | R44: 15 | S44: 36 | T44: 8 | U44: 5 | V44: 8 | W44: 21 | X44: 5 | Y44: 6 | Z44: 7 | AA44: 18 | AB44: 9 | AC44: 14 | AD44: 16 | AE44: 39 | AF44: 10 | AG44: 17 | AH44: 20 | AI44: 47 | AJ44: 9 | AK44: 17 | AL44: 9 | AM44: 35 | AN44: 9 | AO44: 11 | AP44: 15 | AQ44: 35 | AR44: 9 | AS44: 14 | AT44: 19 | AU44: 42 | AV44: 9 | AW44: 13 | AX44: 13 | AY44: 35 | AZ44: 10 | BA44: 17 | BB44: 19 | BC44: 46 | BD44: 10 | BE44: 19 | BF44: 18 | BG44: 47 | BH44: 3 | BI44: 5 | BJ44: 6 | BK44: 6 | BL44: 5 | BM44: 4 | BN44: 14 | BO44: 15 | BP44: 29 | BQ44: 157 | BR44: 430 | BS44: 3 | BT44: 8 | BU44: 7 | BV44: 18 | BW44: 3 | BX44: 5 | BY44: 5 | BZ44: 13 | CA44: ناجحة | CB44: ومنقولة للصف الثالث | CC44: 0 | CD44: 2 | CE44: 2/3 | CW44: 0 | CX44: 0
A45: 36 | B45: 1036 | C45: ايمان احمد شحاتة احمد | D45: 3/2 | K45: بنات | L45: انتظام | M45: صباحى | O45: 3036 | P45: 9 | Q45: 13 | R45: 16 | S45: 38 | T45: 8 | U45: 5 | V45: 7 | W45: 20 | X45: 4 | Y45: 4 | Z45: 5 | AA45: 13 | AB45: 9 | AC45: 14 | AD45: 17 | AE45: 40 | AF45: 10 | AG45: 18 | AH45: 20 | AI45: 48 | AJ45: 10 | AK45: 18 | AL45: 20 | AM45: 48 | AN45: 9 | AO45: 15 | AP45: 18 | AQ45: 42 | AR45: 10 | AS45: 18 | AT45: 19 | AU45: 47 | AV45: 9 | AW45: 13 | AX45: 14 | AY45: 36 | AZ45: 10 | BA45: 18 | BB45: 19 | BC45: 47 | BD45: 10 | BE45: 18 | BF45: 19 | BG45: 47 | BH45: 2 | BI45: 5 | BJ45: 4 | BK45: 10 | BL45: 4 | BM45: 8 | BN45: 10 | BO45: 23 | BP45: 33 | BQ45: 168 | BR45: 459 | BS45: 3 | BT45: 5 | BU45: 8 | BV45: 16 | BW45: 3 | BX45: 6 | BY45: 4 | BZ45: 13 | CA45: ناجحة | CB45: ومنقولة للصف الثالث | CC45: 0 | CD45: 2 | CE45: 2/3 | CW45: 0 | CX45: 0
A46: 37 | B46: 1037 | C46: ايمان احمد صادق محمد | D46: 3/2 | K46: بنات | L46: انتظام | M46: صباحى | O46: 3037 | P46: 10 | Q46: 15 | R46: 19 | S46: 44 | T46: 8 | U46: 8 | V46: 11 | W46: 27 | X46: 4 | Y46: 5 | Z46: 6 | AA46: 15 | AB46: 9 | AC46: 15 | AD46: 17 | AE46: 41 | AF46: 9 | AG46: 16 | AH46: 19 | AI46: 44 | AJ46: 9 | AK46: 13 | AL46: 17 | AM46: 39 | AN46: 9 | AO46: 15 | AP46: 16 | AQ46: 40 | AR46: 9 | AS46: 19 | AT46: 17 | AU46: 45 | AV46: 9 | AW46: 18 | AX46: 14 | AY46: 41 | AZ46: 10 | BA46: 18 | BB46: 20 | BC46: 48 | BD46: 10 | BE46: 19 | BF46: 20 | BG46: 49 | BH46: 3 | BI46: 5 | BJ46: 5 | BK46: 8 | BL46: 5 | BM46: 4 | BN46: 13 | BO46: 17 | BP46: 30 | BQ46: 174 | BR46: 463 | BS46: 3 | BT46: 5 | BU46: 8 | BV46: 16 | BW46: 3 | BX46: 5 | BY46: 7 | BZ46: 15 | CA46: ناجحة | CB46: ومنقولة للصف الثالث | CC46: 0 | CD46: 2 | CE46: 2/3 | CW46: 0 | CX46: 0
A47: 38 | B47: 1038 | C47: ايمان حامد محمود محمد | D47: 4/2 | K47: بنات | L47: انتظام | M47: صباحى | O47: 3038 | P47: 9 | Q47: 13 | R47: 14 | S47: 36 | T47: 8 | U47: 6 | V47: 6 | W47: 20 | X47: 4 | Y47: 5 | Z47: 5 | AA47: 14 | AB47: 9 | AC47: 17 | AD47: 15 | AE47: 41 | AF47: 9 | AG47: 15 | AH47: 6 | AI47: 30 | AJ47: 9 | AK47: 8 | AL47: 9 | AM47: 26 | AN47: 9 | AO47: 14 | AP47: 13 | AQ47: 36 | AR47: 9 | AS47: 19 | AT47: 12 | AU47: 40 | AV47: 9 | AW47: 17 | AX47: 16 | AY47: 42 | AZ47: 10 | BA47: 16 | BB47: 20 | BC47: 46 | BD47: 10 | BE47: 18 | BF47: 19 | BG47: 47 | BH47: 2 | BI47: 5 | BJ47: 4 | BK47: 6 | BL47: 6 | BM47: 8 | BN47: 12 | BO47: 19 | BP47: 31 | BQ47: 158 | BR47: 409 | BS47: 3 | BT47: 7 | BU47: 8 | BV47: 18 | BW47: 3 | BX47: 5 | BY47: 3 | BZ47: 11 | CA47: ناجحة | CB47: ومنقولة للصف الثالث | CC47: 0 | CD47: 2 | CE47: 2/3 | CW47: 0 | CX47: 0
A48: 39 | B48: 1039 | C48: ايمان صلاح عبد الدايم صالح | D48: 5/2 | K48: بنات | L48: انتظام | M48: صباحى | O48: 3039 | P48: غ | Q48: غ | R48: غ | S48: 0 | T48: غ | U48: غ | V48: غ | W48: 0 | X48: غ | Y48: غ | Z48: غ | AA48: 0 | AB48: غ | AC48: غ | AD48: غ | AE48: 0 | AF48: غ | AG48: غ | AH48: غ | AI48: 0 | AJ48: غ | AK48: غ | AL48: غ | AM48: 0 | AN48: غ | AO48: غ | AP48: غ | AQ48: 0 | AR48: غ | AS48: غ | AT48: غ | AU48: 0 | AV48: غ | AW48: غ | AX48: غ | AY48: 0 | AZ48: غ | BA48: غ | BB48: غ | BC48: 0 | BD48: غ | BE48: غ | BF48: غ | BG48: 0 | BH48: غ | BI48: غ | BJ48: غ | BK48: غ | BL48: غ | BM48: غ | BN48: 0 | BO48: 0 | BP48: 0 | BQ48: 0 | BR48: 0 | BS48: غ | BT48: غ | BU48: غ | BV48: 0 | BW48: غ | BX48: غ | BY48: غ | BZ48: 0 | CA48: راسبة | CB48: فى : عربى - انجليزى - فرنسى - محاسبة مالية - احصاء - رياضة مالية - اقتصاد - سكرتارية عربية - سكرتارية اجنبية - ادارة مشروعات - ادارة مخازن - حاسب - مواطنة - دين - مجموع | CC48: 13 | CD48: 2 | CE48: 2/3 | CH48: عربى - | CI48: انجليزى - | CJ48: فرنسى - | CK48: محاسبة مالية - | CL48: احصاء - | CM48: رياضة مالية - | CN48: اقتصاد - | CO48: سكرتارية عربية - | CP48: سكرتارية اجنبية - | CQ48: ادارة مشروعات - | CR48: ادارة مخازن - | CS48: حاسب - | CT48: مواطنة - | CU48: دين - | CV48: مجموع | CW48: 2 | CX48: 15
A49: 40 | B49: 1040 | C49: ايمان صلاح عبد اللطيف محمد | D49: 1/2 | K49: بنات | L49: انتظام | M49: صباحى | O49: 3040 | P49: 9 | Q49: 10 | R49: 13 | S49: 32 | T49: 8 | U49: 5 | V49: 7 | W49: 20 | X49: 4 | Y49: 5 | Z49: 5 | AA49: 14 | AB49: 3 | AC49: 13 | AD49: 15 | AE49: 31 | AF49: 9 | AG49: 14 | AH49: 20 | AI49: 43 | AJ49: 9 | AK49: 12 | AL49: 20 | AM49: 41 | AN49: 9 | AO49: 15 | AP49: 17 | AQ49: 41 | AR49: 10 | AS49: 19 | AT49: 17 | AU49: 46 | AV49: 9 | AW49: 14 | AX49: 13 | AY49: 36 | AZ49: 10 | BA49: 18 | BB49: 18 | BC49: 46 | BD49: 10 | BE49: 18 | BF49: 18 | BG49: 46 | BH49: 3 | BI49: 5 | BJ49: 5 | BK49: 7 | BL49: 3 | BM49: 6 | BN49: 11 | BO49: 18 | BP49: 29 | BQ49: 155 | BR49: 425 | BS49: 3 | BT49: 7 | BU49: 8 | BV49: 18 | BW49: 3 | BX49: 5 | BY49: 4 | BZ49: 12 | CA49: ناجحة | CB49: ومنقولة للصف الثالث | CC49: 0 | CD49: 2 | CE49: 2/3 | CW49: 0 | CX49: 0
A50: 41 | B50: 1041 | C50: ايمان عبد الحميد فريد سليمان | D50: 2/2 | K50: بنات | L50: انتظام | M50: صباحى | O50: 3041 | P50: 9 | Q50: 12 | R50: 14 | S50: 35 | T50: 8 | U50: 7 | V50: 9 | W50: 24 | X50: 4 | Y50: 5 | Z50: 4 | AA50: 13 | AB50: 9 | AC50: 14 | AD50: 16 | AE50: 39 | AF50: 10 | AG50: 20 | AH50: 18 | AI50: 48 | AJ50: 9 | AK50: 16 | AL50: 20 | AM50: 45 | AN50: 9 | AO50: 16 | AP50: 14 | AQ50: 39 | AR50: 9 | AS50: 19 | AT50: 18 | AU50: 46 | AV50: 9 | AW50: 15 | AX50: 13 | AY50: 37 | AZ50: 10 | BA50: 17 | BB50: 19 | BC50: 46 | BD50: 10 | BE50: 19 | BF50: 18 | BG50: 47 | BH50: 3 | BI50: 5 | BJ50: 6 | BK50: 9 | BL50: 4 | BM50: 6 | BN50: 13 | BO50: 20 | BP50: 33 | BQ50: 175 | BR50: 452 | BS50: 3 | BT50: 7 | BU50: 8 | BV50: 18 | BW50: 3 | BX50: 5 | BY50: 3 | BZ50: 11 | CA50: ناجحة | CB50: ومنقولة للصف الثالث | CC50: 0 | CD50: 2 | CE50: 2/3 | CW50: 0 | CX50: 0
A51: 42 | B51: 1042 | C51: ايمان محمد احمد عبد الله | D51: 2/2 | K51: بنات | L51: انتظام | M51: صباحى | O51: 3042 | P51: 9 | Q51: 7 | R51: 11 | S51: 27 | T51: 9 | U51: 6 | V51: 5 | W51: 20 | X51: 4 | Y51: 5 | Z51: 4 | AA51: 13 | AB51: 3 | AC51: 8 | AD51: 14 | AE51: 25 | AF51: 9 | AG51: 11 | AH51: 5 | AI51: 25 | AJ51: 9 | AK51: 5 | AL51: 11 | AM51: 25 | AN51: 9 | AO51: 14 | AP51: 9 | AQ51: 32 | AR51: 9 | AS51: 4 | AT51: 12 | AU51: 25 | AV51: 9 | AW51: 5 | AX51: 6 | AY51: 20 | AZ51: 9 | BA51: 11 | BB51: 18 | BC51: 38 | BD51: 9 | BE51: 17 | BF51: 16 | BG51: 42 | BH51: 3 | BI51: 5 | BJ51: 5 | BK51: 9 | BL51: 5 | BM51: 6 | BN51: 13 | BO51: 20 | BP51: 33 | BQ51: 107 | BR51: 325 | BS51: 3 | BT51: 4 | BU51: 5 | BV51: 12 | BW51: 3 | BX51: 4 | BY51: 3 | BZ51: 10 | CA51: ناجحة | CB51: ومنقولة للصف الثالث | CC51: 0 | CD51: 2 | CE51: 2/3 | CW51: 0 | CX51: 0
A52: 43 | B52: 1043 | C52: ايمان محمد مصطفى محمد | D52: 3/2 | K52: بنات | L52: انتظام | M52: صباحى | O52: 3043 | P52: 9 | Q52: 9 | R52: 13 | S52: 31 | T52: 8 | U52: 1 | V52: 2 | W52: 11 | X52: 4 | Y52: 5 | Z52: 5 | AA52: 14 | AB52: 8 | AC52: 12 | AD52: 5 | AE52: 25 | AF52: 9 | AG52: 11 | AH52: 5 | AI52: 25 | AJ52: 9 | AK52: 0 | AL52: 8 | AM52: 17 | AN52: 9 | AO52: 13 | AP52: 12 | AQ52: 34 | AR52: 9 | AS52: 10 | AT52: 12 | AU52: 31 | AV52: 9 | AW52: 9 | AX52: 14 | AY52: 32 | AZ52: 9 | BA52: 16 | BB52: 18 | BC52: 43 | BD52: 10 | BE52: 17 | BF52: 20 | BG52: 47 | BH52: 3 | BI52: 5 | BJ52: 5 | BK52: 6 | BL52: 4 | BM52: 7 | BN52: 12 | BO52: 18 | BP52: 30 | BQ52: 114 | BR52: 340 | BS52: 3 | BT52: 7 | BU52: 8 | BV52: 18 | BW52: 3 | BX52: 4 | BY52: 5 | BZ52: 12 | CA52: دورثان | CB52: فى : انجليزى - رياضة مالية - | CC52: 2 | CD52: 3 | CE52: 3/3 | CI52: انجليزى - | CM52: رياضة مالية - | CW52: 0 | CX52: 2
A53: 44 | B53: 1044 | C53: ايمان محمود احمد صالح | D53: 5/2 | K53: بنات | L53: انتظام | M53: صباحى | O53: 3044 | P53: 9 | Q53: 11 | R53: 13 | S53: 33 | T53: 8 | U53: 2 | V53: 4 | W53: 14 | X53: 4 | Y53: 4 | Z53: 4 | AA53: 12 | AB53: 9 | AC53: 7 | AD53: 11 | AE53: 27 | AF53: 9 | AG53: 9 | AH53: 7 | AI53: 25 | AJ53: 9 | AK53: 2 | AL53: 6 | AM53: 17 | AN53: 9 | AO53: 11 | AP53: 18 | AQ53: 38 | AR53: 9 | AS53: 16 | AT53: 13 | AU53: 38 | AV53: 9 | AW53: 12 | AX53: 16 | AY53: 37 | AZ53: 9 | BA53: 17 | BB53: 17 | BC53: 43 | BD53: 9 | BE53: 15 | BF53: 19 | BG53: 43 | BH53: 3 | BI53: 5 | BJ53: 5 | BK53: 8 | BL53: 4 | BM53: 6 | BN53: 12 | BO53: 19 | BP53: 31 | BQ53: 119 | BR53: 358 | BS53: 3 | BT53: 7 | BU53: 8 | BV53: 18 | BW53: 3 | BX53: 4 | BY53: 5 | BZ53: 12 | CA53: دورثان | CB53: فى : انجليزى - رياضة مالية - | CC53: 2 | CD53: 3 | CE53: 3/3 | CI53: انجليزى - | CM53: رياضة مالية - | CW53: 0 | CX53: 2
A54: 45 | B54: 1045 | C54: ايمان ناصر رجب محمود | D54: 3/2 | K54: بنات | L54: انتظام | M54: صباحى | O54: 3045 | P54: 9 | Q54: 7 | R54: 13 | S54: 29 | T54: 8 | U54: 7 | V54: 5 | W54: 20 | X54: 4 | Y54: 4 | Z54: 3 | AA54: 11 | AB54: 9 | AC54: 9 | AD54: 7 | AE54: 25 | AF54: 9 | AG54: 14 | AH54: 15 | AI54: 38 | AJ54: 9 | AK54: 5 | AL54: 16 | AM54: 30 | AN54: 9 | AO54: 11 | AP54: 16 | AQ54: 36 | AR54: 9 | AS54: 9 | AT54: 11 | AU54: 29 | AV54: 9 | AW54: 3 | AX54: 14 | AY54: 26 | AZ54: 10 | BA54: 19 | BB54: 18 | BC54: 47 | BD54: 9 | BE54: 14 | BF54: 20 | BG54: 43 | BH54: 3 | BI54: 5 | BJ54: 6 | BK54: 7 | BL54: 5 | BM54: 8 | BN54: 14 | BO54: 20 | BP54: 34 | BQ54: 115 | BR54: 368 | BS54: 3 | BT54: 4 | BU54: 7 | BV54: 14 | BW54: 3 | BX54: 4 | BY54: 4 | BZ54: 11 | CA54: ناجحة | CB54: ومنقولة للصف الثالث | CC54: 0 | CD54: 3 | CE54: 3/3 | CW54: 0 | CX54: 0
A55: 46 | B55: 1046 | C55: ايناس شحات عبد العظيم | D55: 4/2 | K55: بنات | L55: انتظام | M55: صباحى | O55: 3046 | P55: 9 | Q55: 9 | R55: 12 | S55: 30 | T55: 8 | U55: 7 | V55: 5 | W55: 20 | X55: 4 | Y55: 4 | Z55: 4 | AA55: 12 | AB55: 8 | AC55: 11 | AD55: 10 | AE55: 29 | AF55: 10 | AG55: 19 | AH55: 18 | AI55: 47 | AJ55: 10 | AK55: 20 | AL55: 19 | AM55: 49 | AN55: 9 | AO55: 9 | AP55: 15 | AQ55: 33 | AR55: 9 | AS55: 10 | AT55: 16 | AU55: 35 | AV55: 9 | AW55: 15 | AX55: 13 | AY55: 37 | AZ55: 10 | BA55: 18 | BB55: 18 | BC55: 46 | BD55: 9 | BE55: 15 | BF55: 20 | BG55: 44 | BH55: 3 | BI55: 5 | BJ55: 5 | BK55: 8 | BL55: 7 | BM55: 6 | BN55: 15 | BO55: 19 | BP55: 34 | BQ55: 150 | BR55: 416 | BS55: 3 | BT55: 7 | BU55: 7 | BV55: 17 | BW55: 3 | BX55: 4 | BY55: 5 | BZ55: 12 | CA55: ناجحة | CB55: ومنقولة للصف الثالث | CC55: 0 | CD55: 3 | CE55: 3/3 | CW55: 0 | CX55: 0
A56: 47 | B56: 1047 | C56: ايناس شعبان محمد احمد | D56: 3/2 | K56: بنات | L56: انتظام | M56: صباحى | O56: 3047 | P56: 9 | Q56: 9 | R56: 11 | S56: 29 | T56: 8 | U56: 5 | V56: 7 | W56: 20 | X56: 4 | Y56: 4 | Z56: 6 | AA56: 14 | AB56: 9 | AC56: 8 | AD56: 13 | AE56: 30 | AF56: 9 | AG56: 19 | AH56: 11 | AI56: 39 | AJ56: 9 | AK56: 7 | AL56: 14 | AM56: 30 | AN56: 9 | AO56: 11 | AP56: 11 | AQ56: 31 | AR56: 9 | AS56: 15 | AT56: 12 | AU56: 36 | AV56: 9 | AW56: 10 | AX56: 12 | AY56: 31 | AZ56: 9 | BA56: 18 | BB56: 14 | BC56: 41 | BD56: 10 | BE56: 17 | BF56: 20 | BG56: 47 | BH56: 3 | BI56: 5 | BJ56: 5 | BK56: 7 | BL56: 4 | BM56: 8 | BN56: 12 | BO56: 20 | BP56: 32 | BQ56: 135 | BR56: 380 | BS56: 3 | BT56: 7 | BU56: 8 | BV56: 18 | BW56: 3 | BX56: 7 | BY56: 8 | BZ56: 18 | CA56: ناجحة | CB56: ومنقولة للصف الثالث | CC56: 0 | CD56: 3 | CE56: 3/3 | CW56: 0 | CX56: 0
A57: 48 | B57: 1048 | C57: آلاء فوزى عبد العزيز محمد | D57: 3/2 | K57: بنات | L57: انتظام | M57: صباحى | O57: 3048 | P57: 9 | Q57: 8 | R57: 8 | S57: 25 | T57: 8 | U57: 1 | V57: 3 | W57: 12 | X57: 4 | Y57: 3 | Z57: 4 | AA57: 11 | AB57: 9 | AC57: 9 | AD57: 7 | AE57: 25 | AF57: 9 | AG57: 16 | AH57: 12 | AI57: 37 | AJ57: 9 | AK57: 4 | AL57: 13 | AM57: 26 | AN57: 9 | AO57: 11 | AP57: 11 | AQ57: 31 | AR57: 9 | AS57: 9 | AT57: 12 | AU57: 30 | AV57: 9 | AW57: 11 | AX57: 11 | AY57: 31 | AZ57: 9 | BA57: 15 | BB57: 17 | BC57: 41 | BD57: 9 | BE57: 15 | BF57: 18 | BG57: 42 | BH57: 3 | BI57: 5 | BJ57: 4 | BK57: 8 | BL57: 5 | BM57: 8 | BN57: 12 | BO57: 21 | BP57: 33 | BQ57: 114 | BR57: 344 | BS57: 3 | BT57: 6 | BU57: 8 | BV57: 17 | BW57: 3 | BX57: 3 | BY57: 4 | BZ57: 10 | CA57: دورثان | CB57: فى : انجليزى - | CC57: 1 | CD57: 3 | CE57: 3/3 | CI57: انجليزى - | CW57: 0 | CX57: 1
A58: 49 | B58: 1049 | C58: آلاء ناصر احمد عيسى | D58: 2/2 | J58: مسيحية | K58: بنات | L58: انتظام | M58: صباحى | O58: 3049 | P58: 9 | Q58: 8 | R58: 11 | S58: 28 | T58: 8 | U58: 7 | V58: 5 | W58: 20 | X58: 4 | Y58: 4 | Z58: 5 | AA58: 13 | AB58: 9 | AC58: 8 | AD58: 8 | AE58: 25 | AF58: 9 | AG58: 0 | AH58: 9 | AI58: 18 | AJ58: 9 | AK58: 0 | AL58: 3 | AM58: 12 | AN58: 9 | AO58: 7 | AP58: 9 | AQ58: 25 | AR58: 9 | AS58: 10 | AT58: 11 | AU58: 30 | AV58: 9 | AW58: 12 | AX58: 11 | AY58: 32 | AZ58: 9 | BA58: 15 | BB58: 13 | BC58: 37 | BD58: 9 | BE58: 13 | BF58: 19 | BG58: 41 | BH58: 4 | BI58: 5 | BJ58: 8 | BK58: 8 | BL58: 4 | BM58: 8 | BN58: 16 | BO58: 21 | BP58: 37 | BQ58: 100 | BR58: 318 | BS58: 3 | BT58: 6 | BU58: 8 | BV58: 17 | BW58: 3 | BX58: 4 | BY58: 7 | BZ58: 14 | CA58: دورثان | CB58: فى : احصاء - رياضة مالية - | CC58: 2 | CD58: 3 | CE58: 3/3 | CL58: احصاء - | CM58: رياضة مالية - | CW58: 0 | CX58: 2
A59: 50 | B59: 1050 | C59: آمنة محمود يسن خليل | D59: 2/2 | K59: بنات | L59: انتظام | M59: صباحى | O59: 3050 | P59: 9 | Q59: 8 | R59: 11 | S59: 28 | T59: 8 | U59: 2 | V59: 2 | W59: 12 | X59: 4 | Y59: 3 | Z59: 6 | AA59: 13 | AB59: 9 | AC59: 7 | AD59: 11 | AE59: 27 | AF59: 9 | AG59: 9 | AH59: 7 | AI59: 25 | AJ59: 9 | AK59: 1 | AL59: 5 | AM59: 15 | AN59: 9 | AO59: 4 | AP59: 14 | AQ59: 27 | AR59: 9 | AS59: 9 | AT59: 12 | AU59: 30 | AV59: 9 | AW59: 10 | AX59: 12 | AY59: 31 | AZ59: 10 | BA59: 19 | BB59: 19 | BC59: 48 | BD59: 9 | BE59: 15 | BF59: 19 | BG59: 43 | BH59: 2 | BI59: 5 | BJ59: 4 | BK59: 6 | BL59: 4 | BM59: 10 | BN59: 10 | BO59: 21 | BP59: 31 | BQ59: 97 | BR59: 330 | BS59: 3 | BT59: 7 | BU59: 7 | BV59: 17 | BW59: 3 | BX59: 4 | BY59: 3 | BZ59: 10 | CA59: دورثان | CB59: فى : انجليزى - رياضة مالية - | CC59: 2 | CD59: 3 | CE59: 3/3 | CI59: انجليزى - | CM59: رياضة مالية - | CW59: 0 | CX59: 2
A60: 51 | B60: 1051 | C60: آية احمد سلطان محمد | D60: 6/2 | K60: بنات | L60: انتظام | M60: صباحى | O60: 3098 | P60: 9 | Q60: 9 | R60: 13 | S60: 31 | T60: 8 | U60: 6 | V60: 6 | W60: 20 | X60: 4 | Y60: 4 | Z60: 4 | AA60: 12 | AB60: 9 | AC60: 11 | AD60: 5 | AE60: 25 | AF60: 9 | AG60: 4 | AH60: 17 | AI60: 30 | AJ60: 9 | AK60: 8 | AL60: 10 | AM60: 27 | AN60: 9 | AO60: 5 | AP60: 18 | AQ60: 32 | AR60: 9 | AS60: 16 | AT60: 7 | AU60: 32 | AV60: 9 | AW60: 15 | AX60: 11 | AY60: 35 | AZ60: 9 | BA60: 16 | BB60: 17 | BC60: 42 | BD60: 9 | BE60: 12 | BF60: 20 | BG60: 41 | BH60: 4 | BI60: 5 | BJ60: 8 | BK60: 3 | BL60: 5 | BM60: 7 | BN60: 17 | BO60: 15 | BP60: 32 | BQ60: 117 | BR60: 359 | BS60: 3 | BT60: 5 | BU60: 6 | BV60: 14 | BW60: 3 | BX60: 5 | BY60: 3 | BZ60: 11 | CA60: ناجحة | CB60: ومنقولة للصف الثالث | CC60: 0 | CD60: 3 | CE60: 3/3 | CW60: 0 | CX60: 0
A61: 52 | B61: 1052 | C61: آية جابر نجم الدين عبد الكريم | D61: 5/2 | K61: بنات | L61: انتظام | M61: صباحى | O61: 3099 | P61: 9 | Q61: 11 | R61: 15 | S61: 35 | T61: 8 | U61: 6 | V61: 6 | W61: 20 | X61: 4 | Y61: 4 | Z61: 6 | AA61: 14 | AB61: 9 | AC61: 15 | AD61: 15 | AE61: 39 | AF61: 10 | AG61: 19 | AH61: 19 | AI61: 48 | AJ61: 9 | AK61: 12 | AL61: 20 | AM61: 41 | AN61: 9 | AO61: 15 | AP61: 18 | AQ61: 42 | AR61: 9 | AS61: 13 | AT61: 14 | AU61: 36 | AV61: 9 | AW61: 16 | AX61: 14 | AY61: 39 | AZ61: 9 | BA61: 17 | BB61: 18 | BC61: 44 | BD61: 10 | BE61: 18 | BF61: 20 | BG61: 48 | BH61: 3 | BI61: 5 | BJ61: 5 | BK61: 9 | BL61: 5 | BM61: 10 | BN61: 13 | BO61: 24 | BP61: 37 | BQ61: 160 | BR61: 443 | BS61: 3 | BT61: 7 | BU61: 8 | BV61: 18 | BW61: 3 | BX61: 6 | BY61: 5 | BZ61: 14 | CA61: ناجحة | CB61: ومنقولة للصف الثالث | CC61: 0 | CD61: 3 | CE61: 3/3 | CW61: 0 | CX61: 0
A62: 53 | B62: 1053 | C62: آية جمال محمد امين | D62: 5/2 | K62: بنات | L62: انتظام | M62: صباحى | O62: 3100 | P62: 9 | Q62: 10 | R62: 12 | S62: 31 | T62: 8 | U62: 5 | V62: 7 | W62: 20 | X62: 4 | Y62: 4 | Z62: 3 | AA62: 11 | AB62: 9 | AC62: 11 | AD62: 13 | AE62: 33 | AF62: 9 | AG62: 8 | AH62: 20 | AI62: 37 | AJ62: 9 | AK62: 14 | AL62: 19 | AM62: 42 | AN62: 9 | AO62: 11 | AP62: 19 | AQ62: 39 | AR62: 9 | AS62: 12 | AT62: 15 | AU62: 36 | AV62: 9 | AW62: 12 | AX62: 14 | AY62: 35 | AZ62: 9 | BA62: 16 | BB62: 16 | BC62: 41 | BD62: 9 | BE62: 12 | BF62: 20 | BG62: 41 | BH62: 3 | BI62: 5 | BJ62: 7 | BK62: 9 | BL62: 6 | BM62: 7 | BN62: 16 | BO62: 21 | BP62: 37 | BQ62: 131 | BR62: 403 | BS62: 3 | BT62: 6 | BU62: 8 | BV62: 17 | BW62: 3 | BX62: 4 | BY62: 4 | BZ62: 11 | CA62: ناجحة | CB62: ومنقولة للصف الثالث | CC62: 0 | CD62: 3 | CE62: 3/3 | CW62: 0 | CX62: 0
A63: 54 | B63: 1054 | C63: آية حسانى محمد حسانى | D63: 1/2 | K63: بنات | L63: انتظام | M63: صباحى | O63: 3101 | P63: 9 | Q63: 8 | R63: 10 | S63: 27 | T63: 8 | U63: 4 | V63: 8 | W63: 20 | X63: 4 | Y63: 5 | Z63: 4 | AA63: 13 | AB63: 9 | AC63: 14 | AD63: 17 | AE63: 40 | AF63: 10 | AG63: 18 | AH63: 20 | AI63: 48 | AJ63: 10 | AK63: 16 | AL63: 20 | AM63: 46 | AN63: 9 | AO63: 12 | AP63: 19 | AQ63: 40 | AR63: 9 | AS63: 12 | AT63: 19 | AU63: 40 | AV63: 9 | AW63: 17 | AX63: 14 | AY63: 40 | AZ63: 10 | BA63: 19 | BB63: 18 | BC63: 47 | BD63: 10 | BE63: 17 | BF63: 20 | BG63: 47 | BH63: 3 | BI63: 5 | BJ63: 5 | BK63: 11 | BL63: 5 | BM63: 9 | BN63: 13 | BO63: 25 | BP63: 38 | BQ63: 158 | BR63: 446 | BS63: 3 | BT63: 8 | BU63: 7 | BV63: 18 | BW63: 3 | BX63: 5 | BY63: 6 | BZ63: 14 | CA63: ناجحة | CB63: ومنقولة للصف الثالث | CC63: 0 | CD63: 3 | CE63: 3/3 | CW63: 0 | CX63: 0
A64: 55 | B64: 1055 | C64: آية سيد الامير على | D64: 3/2 | K64: بنات | L64: انتظام | M64: صباحى | O64: 3102 | P64: 9 | Q64: 9 | R64: 13 | S64: 31 | T64: 8 | U64: 7 | V64: 5 | W64: 20 | X64: 4 | Y64: 5 | Z64: 4 | AA64: 13 | AB64: 9 | AC64: 13 | AD64: 18 | AE64: 40 | AF64: 10 | AG64: 16 | AH64: 20 | AI64: 46 | AJ64: 9 | AK64: 15 | AL64: 20 | AM64: 44 | AN64: 9 | AO64: 13 | AP64: 19 | AQ64: 41 | AR64: 9 | AS64: 16 | AT64: 16 | AU64: 41 | AV64: 9 | AW64: 14 | AX64: 14 | AY64: 37 | AZ64: 9 | BA64: 18 | BB64: 17 | BC64: 44 | BD64: 10 | BE64: 17 | BF64: 20 | BG64: 47 | BH64: 3 | BI64: 5 | BJ64: 7 | BK64: 8 | BL64: 6 | BM64: 8 | BN64: 16 | BO64: 21 | BP64: 37 | BQ64: 158 | BR64: 441 | BS64: 3 | BT64: 8 | BU64: 7 | BV64: 18 | BW64: 3 | BX64: 5 | BY64: 7 | BZ64: 15 | CA64: ناجحة | CB64: ومنقولة للصف الثالث | CC64: 0 | CD64: 3 | CE64: 3/3 | CW64: 0 | CX64: 0
A65: 56 | B65: 1056 | C65: آية محمود النوبى احمد | D65: 2/2 | K65: بنات | L65: انتظام | M65: صباحى | O65: 3103 | P65: غ | Q65: غ | R65: غ | S65: 0 | T65: غ | U65: غ | V65: غ | W65: 0 | X65: غ | Y65: غ | Z65: غ | AA65: 0 | AB65: غ | AC65: غ | AD65: غ | AE65: 0 | AF65: غ | AG65: غ | AH65: غ | AI65: 0 | AJ65: غ | AK65: غ | AL65: غ | AM65: 0 | AN65: غ | AO65: غ | AP65: غ | AQ65: 0 | AR65: غ | AS65: غ | AT65: غ | AU65: 0 | AV65: غ | AW65: غ | AX65: غ | AY65: 0 | AZ65: غ | BA65: غ | BB65: غ | BC65: 0 | BD65: غ | BE65: غ | BF65: غ | BG65: 0 | BH65: غ | BI65: غ | BJ65: غ | BK65: غ | BL65: غ | BM65: غ | BN65: 0 | BO65: 0 | BP65: 0 | BQ65: 0 | BR65: 0 | BS65: غ | BT65: غ | BU65: غ | BV65: 0 | BW65: غ | BX65: غ | BY65: غ | BZ65: 0 | CA65: راسبة | CB65: فى : عربى - انجليزى - فرنسى - محاسبة مالية - احصاء - رياضة مالية - اقتصاد - سكرتارية عربية - سكرتارية اجنبية - ادارة مشروعات - ادارة مخازن - حاسب - مواطنة - دين - مجموع | CC65: 13 | CD65: 3 | CE65: 3/3 | CH65: عربى - | CI65: انجليزى - | CJ65: فرنسى - | CK65: محاسبة مالية - | CL65: احصاء - | CM65: رياضة مالية - | CN65: اقتصاد - | CO65: سكرتارية عربية - | CP65: سكرتارية اجنبية - | CQ65: ادارة مشروعات - | CR65: ادارة مخازن - | CS65: حاسب - | CT65: مواطنة - | CU65: دين - | CV65: مجموع | CW65: 2 | CX65: 15
A66: 57 | B66: 1057 | C66: آية محمود محمد محمود | D66: 3/2 | K66: بنات | L66: انتظام | M66: صباحى | O66: 3104 | P66: 9 | Q66: 13 | R66: 16 | S66: 38 | T66: 8 | U66: 6 | V66: 8 | W66: 22 | X66: 4 | Y66: 6 | Z66: 5 | AA66: 15 | AB66: 10 | AC66: 18 | AD66: 20 | AE66: 48 | AF66: 10 | AG66: 17 | AH66: 20 | AI66: 47 | AJ66: 9 | AK66: 16 | AL66: 19 | AM66: 44 | AN66: 9 | AO66: 12 | AP66: 19 | AQ66: 40 | AR66: 10 | AS66: 16 | AT66: 20 | AU66: 46 | AV66: 9 | AW66: 19 | AX66: 16 | AY66: 44 | AZ66: 10 | BA66: 20 | BB66: 20 | BC66: 50 | BD66: 10 | BE66: 18 | BF66: 20 | BG66: 48 | BH66: 3 | BI66: 5 | BJ66: 6 | BK66: 11 | BL66: 5 | BM66: 9 | BN66: 14 | BO66: 25 | BP66: 39 | BQ66: 178 | BR66: 481 | BS66: 3 | BT66: 8 | BU66: 8 | BV66: 19 | BW66: 3 | BX66: 7 | BY66: 8 | BZ66: 18 | CA66: ناجحة | CB66: ومنقولة للصف الثالث | CC66: 0 | CD66: 3 | CE66: 3/3 | CW66: 0 | CX66: 0
A67: 58 | B67: 1058 | C67: بسمة عبد الحميد محمد | D67: 2/2 | K67: بنات | L67: انتظام | M67: صباحى | O67: 3105 | P67: 9 | Q67: 11 | R67: 10 | S67: 30 | T67: 8 | U67: 6 | V67: 8 | W67: 22 | X67: 4 | Y67: 6 | Z67: 6 | AA67: 16 | AB67: 9 | AC67: 11 | AD67: 5 | AE67: 25 | AF67: 9 | AG67: 12 | AH67: 20 | AI67: 41 | AJ67: 9 | AK67: 12 | AL67: 13 | AM67: 34 | AN67: 9 | AO67: 16 | AP67: 17 | AQ67: 42 | AR67: 9 | AS67: 17 | AT67: 18 | AU67: 44 | AV67: 9 | AW67: 16 | AX67: 17 | AY67: 42 | AZ67: 10 | BA67: 18 | BB67: 19 | BC67: 47 | BD67: 10 | BE67: 19 | BF67: 20 | BG67: 49 | BH67: 3 | BI67: 5 | BJ67: 6 | BK67: 9 | BL67: 5 | BM67: 8 | BN67: 14 | BO67: 22 | BP67: 36 | BQ67: 159 | BR67: 428 | BS67: 3 | BT67: 8 | BU67: 8 | BV67: 19 | BW67: 3 | BX67: 5 | BY67: 6 | BZ67: 14 | CA67: ناجحة | CB67: ومنقولة للصف الثالث | CC67: 0 | CD67: 3 | CE67: 3/3 | CW67: 0 | CX67: 0
A68: 59 | B68: 1059 | C68: بسمة عطيتو عبده عبدالله | D68: 3/2 | K68: بنات | L68: انتظام | M68: صباحى | O68: 3106 | P68: 10 | Q68: 13 | R68: 18 | S68: 41 | T68: 8 | U68: 8 | V68: 10 | W68: 26 | X68: 4 | Y68: 5 | Z68: 6 | AA68: 15 | AB68: 9 | AC68: 15 | AD68: 19 | AE68: 43 | AF68: 10 | AG68: 17 | AH68: 20 | AI68: 47 | AJ68: 9 | AK68: 14 | AL68: 20 | AM68: 43 | AN68: 9 | AO68: 15 | AP68: 20 | AQ68: 44 | AR68: 9 | AS68: 14 | AT68: 18 | AU68: 41 | AV68: 9 | AW68: 18 | AX68: 18 | AY68: 45 | AZ68: 10 | BA68: 19 | BB68: 19 | BC68: 48 | BD68: 10 | BE68: 19 | BF68: 20 | BG68: 49 | BH68: 3 | BI68: 5 | BJ68: 5 | BK68: 11 | BL68: 5 | BM68: 9 | BN68: 13 | BO68: 25 | BP68: 38 | BQ68: 173 | BR68: 480 | BS68: 3 | BT68: 8 | BU68: 8 | BV68: 19 | BW68: 3 | BX68: 6 | BY68: 8 | BZ68: 17 | CA68: ناجحة | CB68: ومنقولة للصف الثالث | CC68: 0 | CD68: 3 | CE68: 3/3 | CW68: 0 | CX68: 0
A69: 60 | B69: 1060 | C69: بسنت عادل فؤاد يعقوب | D69: 5/2 | K69: بنات | L69: انتظام | M69: صباحى | O69: 3107 | P69: 9 | Q69: 13 | R69: 14 | S69: 36 | T69: 8 | U69: 7 | V69: 10 | W69: 25 | X69: 4 | Y69: 6 | Z69: 6 | AA69: 16 | AB69: 9 | AC69: 16 | AD69: 16 | AE69: 41 | AF69: 9 | AG69: 15 | AH69: 20 | AI69: 44 | AJ69: 9 | AK69: 13 | AL69: 20 | AM69: 42 | AN69: 9 | AO69: 15 | AP69: 20 | AQ69: 44 | AR69: 9 | AS69: 12 | AT69: 16 | AU69: 37 | AV69: 9 | AW69: 18 | AX69: 15 | AY69: 42 | AZ69: 10 | BA69: 19 | BB69: 19 | BC69: 48 | BD69: 10 | BE69: 18 | BF69: 20 | BG69: 48 | BH69: 3 | BI69: 5 | BJ69: 6 | BK69: 10 | BL69: 5 | BM69: 9 | BN69: 14 | BO69: 24 | BP69: 38 | BQ69: 168 | BR69: 461 | BS69: 3 | BT69: 7 | BU69: 8 | BV69: 18 | BW69: 3 | BX69: 6 | BY69: 7 | BZ69: 16 | CA69: ناجحة | CB69: ومنقولة للصف الثالث | CC69: 0 | CD69: 3 | CE69: 3/3 | CW69: 0 | CX69: 0
A70: 61 | B70: 1061 | C70: تهانى محمد على احمد | D70: 3/2 | J70: مسيحية | K70: بنات | L70: انتظام | M70: صباحى | O70: 3108 | P70: 9 | Q70: 11 | R70: 13 | S70: 33 | T70: 8 | U70: 6 | V70: 9 | W70: 23 | X70: 4 | Y70: 5 | Z70: 6 | AA70: 15 | AB70: 9 | AC70: 13 | AD70: 11 | AE70: 33 | AF70: 9 | AG70: 14 | AH70: 20 | AI70: 43 | AJ70: 9 | AK70: 12 | AL70: 20 | AM70: 41 | AN70: 9 | AO70: 16 | AP70: 20 | AQ70: 45 | AR70: 9 | AS70: 13 | AT70: 17 | AU70: 39 | AV70: 9 | AW70: 14 | AX70: 15 | AY70: 38 | AZ70: 10 | BA70: 19 | BB70: 19 | BC70: 48 | BD70: 10 | BE70: 18 | BF70: 20 | BG70: 48 | BH70: 3 | BI70: 5 | BJ70: 6 | BK70: 9 | BL70: 5 | BM70: 9 | BN70: 14 | BO70: 23 | BP70: 37 | BQ70: 156 | BR70: 443 | BS70: 3 | BT70: 7 | BU70: 8 | BV70: 18 | BW70: 3 | BX70: 7 | BY70: 8 | BZ70: 18 | CA70: ناجحة | CB70: ومنقولة للصف الثالث | CC70: 0 | CD70: 3 | CE70: 3/3 | CW70: 0 | CX70: 0
A71: 62 | B71: 1062 | C71: جهاد مصطفى يونس محمد | D71: 2/2 | K71: بنات | L71: انتظام | M71: صباحى | O71: 3109 | P71: 9 | Q71: 11 | R71: 14 | S71: 34 | T71: 8 | U71: 6 | V71: 9 | W71: 23 | X71: 4 | Y71: 4 | Z71: 7 | AA71: 15 | AB71: 9 | AC71: 15 | AD71: 13 | AE71: 37 | AF71: 10 | AG71: 19 | AH71: 20 | AI71: 49 | AJ71: 9 | AK71: 16 | AL71: 19 | AM71: 44 | AN71: 9 | AO71: 13 | AP71: 20 | AQ71: 42 | AR71: 9 | AS71: 17 | AT71: 18 | AU71: 44 | AV71: 9 | AW71: 16 | AX71: 15 | AY71: 40 | AZ71: 10 | BA71: 19 | BB71: 19 | BC71: 48 | BD71: 9 | BE71: 14 | BF71: 20 | BG71: 43 | BH71: 3 | BI71: 5 | BJ71: 5 | BK71: 9 | BL71: 5 | BM71: 8 | BN71: 13 | BO71: 22 | BP71: 35 | BQ71: 164 | BR71: 454 | BS71: 3 | BT71: 7 | BU71: 8 | BV71: 18 | BW71: 3 | BX71: 7 | BY71: 6 | BZ71: 16 | CA71: ناجحة | CB71: ومنقولة للصف الثالث | CC71: 0 | CD71: 3 | CE71: 3/3 | CW71: 0 | CX71: 0
A72: 63 | B72: 1063 | C72: حنان فراج عثمان احمد | D72: 5/2 | K72: بنات | L72: انتظام | M72: صباحى | O72: 3110 | P72: 9 | Q72: 10 | R72: 12 | S72: 31 | T72: 8 | U72: 4 | V72: 6 | W72: 18 | X72: 4 | Y72: 3 | Z72: 4 | AA72: 11 | AB72: 9 | AC72: 3 | AD72: 0 | AE72: 12 | AF72: 10 | AG72: 18 | AH72: 20 | AI72: 48 | AJ72: 9 | AK72: 16 | AL72: 19 | AM72: 44 | AN72: 9 | AO72: 14 | AP72: 20 | AQ72: 43 | AR72: 9 | AS72: 13 | AT72: 16 | AU72: 38 | AV72: 9 | AW72: 16 | AX72: 15 | AY72: 40 | AZ72: 10 | BA72: 19 | BB72: 19 | BC72: 48 | BD72: 9 | BE72: 15 | BF72: 20 | BG72: 44 | BH72: 3 | BI72: 5 | BJ72: 5 | BK72: 8 | BL72: 5 | BM72: 4 | BN72: 13 | BO72: 17 | BP72: 30 | BQ72: 144 | BR72: 407 | BS72: 3 | BT72: 7 | BU72: 8 | BV72: 18 | BW72: 3 | BX72: 4 | BY72: 4 | BZ72: 11 | CA72: دورثان | CB72: فى : انجليزى - محاسبة مالية - | CC72: 2 | CD72: 4 | CE72: 4/3 | CI72: انجليزى - | CK72: محاسبة مالية - | CW72: 0 | CX72: 2
A73: 64 | B73: 1064 | C73: حورية محمد عامر سيد | D73: 1/2 | J73: مسيحية | K73: بنات | L73: انتظام | M73: صباحى | O73: 3111 | P73: 9 | Q73: 10 | R73: 11 | S73: 30 | T73: 8 | U73: 7 | V73: 5 | W73: 20 | X73: 4 | Y73: 4 | Z73: 4 | AA73: 12 | AB73: 9 | AC73: 12 | AD73: 9 | AE73: 30 | AF73: 10 | AG73: 16 | AH73: 20 | AI73: 46 | AJ73: 10 | AK73: 16 | AL73: 20 | AM73: 46 | AN73: 9 | AO73: 14 | AP73: 20 | AQ73: 43 | AR73: 9 | AS73: 13 | AT73: 17 | AU73: 39 | AV73: 9 | AW73: 19 | AX73: 15 | AY73: 43 | AZ73: 9 | BA73: 18 | BB73: 16 | BC73: 43 | BD73: 10 | BE73: 18 | BF73: 20 | BG73: 48 | BH73: 3 | BI73: 5 | BJ73: 4 | BK73: 9 | BL73: 5 | BM73: 9 | BN73: 12 | BO73: 23 | BP73: 35 | BQ73: 160 | BR73: 435 | BS73: 3 | BT73: 6 | BU73: 8 | BV73: 17 | BW73: 3 | BX73: 6 | BY73: 4 | BZ73: 13 | CA73: ناجحة | CB73: ومنقولة للصف الثالث | CC73: 0 | CD73: 4 | CE73: 4/3 | CW73: 0 | CX73: 0
A74: 65 | B74: 1065 | C74: خلود خالد حسان طلب | D74: 2/2 | K74: بنات | L74: انتظام | M74: صباحى | O74: 3112 | P74: 9 | Q74: 4 | R74: 4 | S74: =IF($C74="","",SUM(P74,Q74,R74)) -> 17 | T74: 8 | U74: 2 | V74: 3 | W74: =IF($C74="","",SUM(T74,U74,V74)) -> 13 | X74: 4 | Y74: 6 | Z74: 4 | AA74: =IF($C74="","",SUM(X74,Y74,Z74)) -> 14 | AB74: 9 | AC74: 2 | AD74: 1 | AE74: =IF($C74="","",SUM(AB74,AC74,AD74)) -> 12 | AF74: 9 | AG74: 0 | AH74: 20 | AI74: =IF($C74="","",SUM(AF74,AG74,AH74)) -> 29 | AJ74: 9 | AK74: 5 | AL74: 11 | AM74: =IF($C74="","",SUM(AJ74:AL74)) -> 25 | AN74: 9 | AO74: 5 | AP74: 20 | AQ74: =IF($C74="","",SUM(AN74,AO74,AP74)) -> 34 | AR74: 9 | AS74: 12 | AT74: 12 | AU74: =IF($C74="","",SUM(AR74,AS74,AT74)) -> 33 | AV74: 9 | AW74: 12 | AX74: 16 | AY74: =IF($C74="","",SUM(AV74,AW74,AX74)) -> 37 | AZ74: 9 | BA74: 16 | BB74: 18 | BC74: =IF($C74="","",SUM(AZ74,BA74,BB74)) -> 43 | BD74: 10 | BE74: 18 | BF74: 20 | BG74: =IF($C74="","",SUM(BD74,BE74,BF74)) -> 48 | BH74: 2 | BI74: 5 | BJ74: 4 | BK74: 7 | BL74: 4 | BM74: 7 | BN74: =IF($C74="","",SUM(BH74,BJ74,BL74)) -> 10 | BO74: 19 | BP74: =IF($C74="","",SUM(BN74,BO74)) -> 29 | BQ74: =IF($C74="","",SUM(Q74,U74,Y74,AC74,AG74,AK74,AO74,AS74,AW74,BA74,BE74,BJ74,BK74)) -> 93 | BR74: =IF($C74="","",SUM(S74,W74,AA74,AE74,AI74,AM74,AQ74,AU74,AY74,BC74,BG74,BP74)) -> 334 | BS74: 3 | BT74: 4 | BU74: 7 | BV74: =IF($C74="","",SUM(BS74,BT74,BU74)) -> 14 | BW74: 3 | BX74: 4 | BY74: 3 | BZ74: =IF($C74="","",SUM(BW74,BX74,BY74)) -> 10 | CA74: =IF($C74="","",IF(CC74=0,"ناجحة",IF(CC74<=2,"دورثان","راسبة"))) -> راسبة | CB74: =IF($C74="","",IF(CC74=0,"ومنقولة للصف الثالث",IF(CC74>0,"فى : "&CONCATENATE(CH74,CI74,CJ74,CK74,CL74,CM74,CN74,CO74,CP74,CQ74,CR74,CS74,CT74,CU74,CV74),CONCATENATE(CH74,CI74,CJ74,CK74,CL74,CM74,CN74,CO74,CP74,CQ74,CR74,CS74,CT74,CU74,CV74)))) -> فى : عربى - انجليزى - محاسبة مالية - | CC74: 3 | CD74: 4 | CE74: 4/3 | CH74: =IF($C74="","",IF(OR(R74<$R$9,R74="غ",S74<$S$9),$CH$5&" - ","")) -> عربى - | CI74: =IF($C74="","",IF(OR(V74<$V$9,V74="غ",W74<$W$9),$CI$5&" - ","")) -> انجليزى - | CJ74: =IF($C74="","",IF(OR(Z74<$Z$9,Z74="غ",AA74<$AA$9),CJ$5&" - ","")) ->  | CK74: =IF($C74="","",IF(OR(AD74<$AD$9,AD74="غ",AE74<$AE$9),CK$5&" - ","")) -> محاسبة مالية - | CL74: =IF($C74="","",IF(OR(AH74<$AH$9,AH74="غ",AI74<$AI$9),CL$5&" - ","")) ->  | CM74: =IF($C74="","",IF(OR(AL74<$AL$9,AL74="غ",AM74<$AM$9),CM$5&" - ","")) ->  | CN74: =IF($C74="","",IF(OR(AP74<$AP$9,AP74="غ",AQ74<$AQ$9),CN$5&" - ","")) ->  | CO74: =IF($C74="","",IF(OR(AT74<$AT$9,AT74="غ",AU74<$AU$9),CO$5&" - ","")) ->  | CP74: =IF($C74="","",IF(OR(AX74<$AX$9,AX74="غ",AY74<$AY$9),CP$5&" - ","")) ->  | CQ74: =IF($C74="","",IF(OR(BB74<$BB$9,BB74="غ",BC74<$BC$9),CQ$5&" - ","")) ->  | CR74: =IF($C74="","",IF(OR(BF74<$BF$9,BF74="غ",BG74<$BG$9),CR$5&" - ","")) ->  | CS74: =IF($C74="","",IF(OR(BN74<$BN$9,BN74="غ",BO74<$BO$9,BO74="غ",BP74<$BP$9),CS$5&" - ","")) ->  | CT74: =IF($C74="","",IF(OR(BU74<$BU$9,BU74="غ",BV74<$BV$9),CT$5&" - ","")) ->  | CU74: =IF($C74="","",IF(OR(BY74<$BY$9,BY74="غ",BZ74<$BZ$9),CU$5&" - ","")) ->  | CV74: =IF($C74="","",IF(BR74<$BR$9,CV$5,"")) ->  | CW74: 0 | CX74: 3
A75: 66 | B75: 1066 | C75: خلود خالد سيد حسن | D75: 1/2 | J75: مسيحية | K75: بنات | L75: انتظام | M75: صباحى | O75: 3113 | P75: 9 | Q75: 11 | R75: 15 | S75: 35 | T75: 8 | U75: 6 | V75: 9 | W75: 23 | X75: 5 | Y75: 7 | Z75: 7 | AA75: 19 | AB75: 9 | AC75: 15 | AD75: 18 | AE75: 42 | AF75: 10 | AG75: 20 | AH75: 20 | AI75: 50 | AJ75: 10 | AK75: 19 | AL75: 20 | AM75: 49 | AN75: 9 | AO75: 14 | AP75: 19 | AQ75: 42 | AR75: 10 | AS75: 19 | AT75: 17 | AU75: 46 | AV75: 9 | AW75: 15 | AX75: 14 | AY75: 38 | AZ75: 10 | BA75: 18 | BB75: 19 | BC75: 47 | BD75: 10 | BE75: 20 | BF75: 20 | BG75: 50 | BH75: 4 | BI75: 5 | BJ75: 8 | BK75: 5 | BL75: 6 | BM75: 12 | BN75: 18 | BO75: 22 | BP75: 40 | BQ75: 177 | BR75: 481 | BS75: 3 | BT75: 4 | BU75: 8 | BV75: 15 | BW75: 3 | BX75: 7 | BY75: 5 | BZ75: 15 | CA75: ناجحة | CB75: ومنقولة للصف الثالث | CC75: =IF($C75="","",COUNTIF($CH75:$CS75,"?*")+COUNTIF($CV75,"?*")) -> 0 | CD75: 4 | CE75: 4/3 | CW75: =IF($C75="","",COUNTIF($CT75:$CU75,"?*")) -> 0 | CX75: =IF($C75="","",CC75+CW75) -> 0
A76: 67 | B76: 1067 | C76: دنيا بغدادى عبد الراضى بغدادى | D76: 2/2 | K76: بنات | L76: انتظام | M76: صباحى | O76: 3114 | P76: 9 | Q76: 10 | R76: 14 | S76: 33 | T76: 8 | U76: 7 | V76: 5 | W76: 20 | X76: 5 | Y76: 7 | Z76: 6 | AA76: 18 | AB76: 9 | AC76: 13 | AD76: 13 | AE76: 35 | AF76: 9 | AG76: 15 | AH76: 17 | AI76: 41 | AJ76: 10 | AK76: 19 | AL76: 20 | AM76: 49 | AN76: 9 | AO76: 7 | AP76: 18 | AQ76: 34 | AR76: 9 | AS76: 18 | AT76: 13 | AU76: 40 | AV76: 9 | AW76: 12 | AX76: 18 | AY76: 39 | AZ76: 10 | BA76: 19 | BB76: 18 | BC76: 47 | BD76: 10 | BE76: 20 | BF76: 20 | BG76: 50 | BH76: 3 | BI76: 5 | BJ76: 5 | BK76: 6 | BL76: 4 | BM76: 12 | BN76: 12 | BO76: 23 | BP76: 35 | BQ76: 158 | BR76: 441 | BS76: 3 | BT76: 5 | BU76: 8 | BV76: 16 | BW76: 3 | BX76: 5 | BY76: 5 | BZ76: 13 | CA76: ناجحة | CB76: ومنقولة للصف الثالث | CC76: 0 | CD76: 4 | CE76: 4/3 | CW76: 0 | CX76: 0
A77: 68 | B77: 1068 | C77: دنيا حسن زكى محمد | D77: 4/2 | K77: بنات | L77: انتظام | M77: صباحى | O77: 3115 | P77: 9 | Q77: 10 | R77: 14 | S77: 33 | T77: 8 | U77: 7 | V77: 5 | W77: 20 | X77: 4 | Y77: 6 | Z77: 6 | AA77: 16 | AB77: 9 | AC77: 11 | AD77: 13 | AE77: 33 | AF77: 9 | AG77: 13 | AH77: 17 | AI77: 39 | AJ77: 9 | AK77: 17 | AL77: 16 | AM77: 42 | AN77: 9 | AO77: 17 | AP77: 16 | AQ77: 42 | AR77: 9 | AS77: 17 | AT77: 14 | AU77: 40 | AV77: 9 | AW77: 11 | AX77: 14 | AY77: 34 | AZ77: 10 | BA77: 20 | BB77: 17 | BC77: 47 | BD77: 10 | BE77: 16 | BF77: 20 | BG77: 46 | BH77: 2 | BI77: 5 | BJ77: 4 | BK77: 11 | BL77: 5 | BM77: 12 | BN77: 11 | BO77: 28 | BP77: 39 | BQ77: 160 | BR77: 431 | BS77: 3 | BT77: 7 | BU77: 8 | BV77: 18 | BW77: 3 | BX77: 5 | BY77: 6 | BZ77: 14 | CA77: ناجحة | CB77: ومنقولة للصف الثالث | CC77: 0 | CD77: 4 | CE77: 4/3 | CW77: 0 | CX77: 0
A78: 69 | B78: 1069 | C78: دينا جلال محمد يونس | D78: 5/2 | K78: بنات | L78: انتظام | M78: صباحى | O78: 3116 | P78: 9 | Q78: 9 | R78: 14 | S78: 32 | T78: 8 | U78: 7 | V78: 5 | W78: 20 | X78: 4 | Y78: 4 | Z78: 4 | AA78: 12 | AB78: 9 | AC78: 9 | AD78: 7 | AE78: 25 | AF78: 9 | AG78: 9 | AH78: 11 | AI78: 29 | AJ78: 9 | AK78: 15 | AL78: 19 | AM78: 43 | AN78: 9 | AO78: 7 | AP78: 11 | AQ78: 27 | AR78: 9 | AS78: 16 | AT78: 15 | AU78: 40 | AV78: 9 | AW78: 13 | AX78: 15 | AY78: 37 | AZ78: 9 | BA78: 13 | BB78: 20 | BC78: 42 | BD78: 9 | BE78: 13 | BF78: 18 | BG78: 40 | BH78: 3 | BI78: 5 | BJ78: 7 | BK78: 10 | BL78: 5 | BM78: 12 | BN78: 15 | BO78: 27 | BP78: 42 | BQ78: 132 | BR78: 389 | BS78: 3 | BT78: 5 | BU78: 8 | BV78: 16 | BW78: 3 | BX78: 3 | BY78: 6 | BZ78: 12 | CA78: ناجحة | CB78: ومنقولة للصف الثالث | CC78: 0 | CD78: 4 | CE78: 4/3 | CW78: 0 | CX78: 0
A79: 70 | B79: 1070 | C79: دينا حمدنا الله شاذلى محمود | D79: 1/2 | K79: بنات | L79: انتظام | M79: صباحى | O79: 3117 | P79: 9 | Q79: 8 | R79: 8 | S79: 25 | T79: 8 | U79: 1 | V79: 5 | W79: 14 | X79: 4 | Y79: 6 | Z79: 5 | AA79: 15 | AB79: 9 | AC79: 1 | AD79: 0 | AE79: 10 | AF79: 9 | AG79: 3 | AH79: 18 | AI79: 30 | AJ79: 9 | AK79: 0 | AL79: 16 | AM79: 25 | AN79: 9 | AO79: 7 | AP79: 9 | AQ79: 25 | AR79: 9 | AS79: 9 | AT79: 10 | AU79: 28 | AV79: 9 | AW79: 9 | AX79: 14 | AY79: 32 | AZ79: 10 | BA79: 18 | BB79: 19 | BC79: 47 | BD79: 9 | BE79: 17 | BF79: 18 | BG79: 44 | BH79: 2 | BI79: 5 | BJ79: 4 | BK79: 7 | BL79: 4 | BM79: 12 | BN79: 10 | BO79: 24 | BP79: 34 | BQ79: 90 | BR79: 329 | BS79: 3 | BT79: 3 | BU79: 5 | BV79: 11 | BW79: 3 | BX79: 3 | BY79: 5 | BZ79: 11 | CA79: دورثان | CB79: فى : انجليزى - محاسبة مالية - | CC79: 2 | CD79: 4 | CE79: 4/3 | CI79: انجليزى - | CK79: محاسبة مالية - | CW79: 0 | CX79: 2
A80: 71 | B80: 1071 | C80: دينا ركابى محمد حسن | D80: 4/2 | K80: بنات | L80: انتظام | M80: صباحى | O80: 3118 | P80: 9 | Q80: 10 | R80: 13 | S80: 32 | T80: 8 | U80: 6 | V80: 6 | W80: 20 | X80: 4 | Y80: 6 | Z80: 4 | AA80: 14 | AB80: 9 | AC80: 17 | AD80: 16 | AE80: 42 | AF80: 9 | AG80: 15 | AH80: 17 | AI80: 41 | AJ80: 9 | AK80: 9 | AL80: 18 | AM80: 36 | AN80: 9 | AO80: 10 | AP80: 20 | AQ80: 39 | AR80: 9 | AS80: 14 | AT80: 17 | AU80: 40 | AV80: 9 | AW80: 15 | AX80: 14 | AY80: 38 | AZ80: 10 | BA80: 18 | BB80: 19 | BC80: 47 | BD80: 10 | BE80: 17 | BF80: 19 | BG80: 46 | BH80: 3 | BI80: 5 | BJ80: 5 | BK80: 6 | BL80: 4 | BM80: 12 | BN80: 12 | BO80: 23 | BP80: 35 | BQ80: 148 | BR80: 430 | BS80: 3 | BT80: 6 | BU80: 8 | BV80: 17 | BW80: 3 | BX80: 5 | BY80: 6 | BZ80: 14 | CA80: ناجحة | CB80: ومنقولة للصف الثالث | CC80: 0 | CD80: 4 | CE80: 4/3 | CW80: 0 | CX80: 0
A81: 72 | B81: 1072 | C81: دينا علوان حامد محمد | D81: 2/2 | K81: بنات | L81: انتظام | M81: صباحى | O81: 3119 | P81: 9 | Q81: 13 | R81: 13 | S81: 35 | T81: 8 | U81: 7 | V81: 7 | W81: 22 | X81: 4 | Y81: 5 | Z81: 6 | AA81: 15 | AB81: 9 | AC81: 13 | AD81: 12 | AE81: 34 | AF81: 9 | AG81: 3 | AH81: 19 | AI81: 31 | AJ81: 9 | AK81: 8 | AL81: 17 | AM81: 34 | AN81: 9 | AO81: 10 | AP81: 7 | AQ81: 26 | AR81: 9 | AS81: 17 | AT81: 17 | AU81: 43 | AV81: 9 | AW81: 17 | AX81: 14 | AY81: 40 | AZ81: 10 | BA81: 18 | BB81: 19 | BC81: 47 | BD81: 10 | BE81: 19 | BF81: 19 | BG81: 48 | BH81: 3 | BI81: 5 | BJ81: 5 | BK81: 5 | BL81: 4 | BM81: 12 | BN81: 12 | BO81: 22 | BP81: 34 | BQ81: 140 | BR81: 409 | BS81: 3 | BT81: 7 | BU81: 7 | BV81: 17 | BW81: 3 | BX81: 8 | BY81: 4 | BZ81: 15 | CA81: ناجحة | CB81: ومنقولة للصف الثالث | CC81: 0 | CD81: 4 | CE81: 4/3 | CW81: 0 | CX81: 0
A82: 73 | B82: 1073 | C82: دينا على عبد القادر محمد | D82: 3/2 | K82: بنات | L82: انتظام | M82: صباحى | O82: 3120 | P82: 10 | Q82: 16 | R82: 16 | S82: 42 | T82: 8 | U82: 8 | V82: 8 | W82: 24 | X82: 4 | Y82: 5 | Z82: 4 | AA82: 13 | AB82: 9 | AC82: 16 | AD82: 17 | AE82: 42 | AF82: 10 | AG82: 17 | AH82: 19 | AI82: 46 | AJ82: 9 | AK82: 15 | AL82: 20 | AM82: 44 | AN82: 9 | AO82: 14 | AP82: 20 | AQ82: 43 | AR82: 10 | AS82: 17 | AT82: 19 | AU82: 46 | AV82: 9 | AW82: 15 | AX82: 17 | AY82: 41 | AZ82: 10 | BA82: 18 | BB82: 20 | BC82: 48 | BD82: 10 | BE82: 20 | BF82: 19 | BG82: 49 | BH82: 4 | BI82: 5 | BJ82: 8 | BK82: 9 | BL82: 6 | BM82: 12 | BN82: 18 | BO82: 26 | BP82: 44 | BQ82: 178 | BR82: 482 | BS82: 3 | BT82: 7 | BU82: 8 | BV82: 18 | BW82: 3 | BX82: 7 | BY82: 4 | BZ82: 14 | CA82: ناجحة | CB82: ومنقولة للصف الثالث | CC82: 0 | CD82: 4 | CE82: 4/3 | CW82: 0 | CX82: 0
A83: 74 | B83: 1074 | C83: رانيا على عبد الحفيظ حامد | D83: 5/2 | K83: بنات | L83: انتظام | M83: صباحى | O83: 3121 | P83: 9 | Q83: 10 | R83: 12 | S83: 31 | T83: 8 | U83: 7 | V83: 5 | W83: 20 | X83: 4 | Y83: 6 | Z83: 4 | AA83: 14 | AB83: 9 | AC83: 8 | AD83: 8 | AE83: 25 | AF83: 9 | AG83: 15 | AH83: 19 | AI83: 43 | AJ83: 9 | AK83: 10 | AL83: 16 | AM83: 35 | AN83: 9 | AO83: 9 | AP83: 13 | AQ83: 31 | AR83: 9 | AS83: 13 | AT83: 11 | AU83: 33 | AV83: 9 | AW83: 11 | AX83: 16 | AY83: 36 | AZ83: 9 | BA83: 15 | BB83: 20 | BC83: 44 | BD83: 10 | BE83: 17 | BF83: 19 | BG83: 46 | BH83: 4 | BI83: 5 | BJ83: 8 | BK83: 10 | BL83: 5 | BM83: 11 | BN83: 17 | BO83: 26 | BP83: 43 | BQ83: 139 | BR83: 401 | BS83: 3 | BT83: 5 | BU83: 8 | BV83: 16 | BW83: 3 | BX83: 4 | BY83: 5 | BZ83: 12 | CA83: ناجحة | CB83: ومنقولة للصف الثالث | CC83: 0 | CD83: 4 | CE83: 4/3 | CW83: 0 | CX83: 0
A84: 75 | B84: 1075 | C84: رانيا محمود ابو الوفا محمد | D84: 2/2 | K84: بنات | L84: انتظام | M84: صباحى | O84: 3122 | P84: 9 | Q84: 7 | R84: 9 | S84: 25 | T84: 8 | U84: 7 | V84: 5 | W84: 20 | X84: 4 | Y84: 2 | Z84: 4 | AA84: 10 | AB84: 9 | AC84: 9 | AD84: 7 | AE84: 25 | AF84: 9 | AG84: 1 | AH84: 15 | AI84: 25 | AJ84: 9 | AK84: 3 | AL84: 17 | AM84: 29 | AN84: 9 | AO84: 8 | AP84: 14 | AQ84: 31 | AR84: 9 | AS84: 12 | AT84: 12 | AU84: 33 | AV84: 9 | AW84: 9 | AX84: 17 | AY84: 35 | AZ84: 9 | BA84: 13 | BB84: 19 | BC84: 41 | BD84: 10 | BE84: 17 | BF84: 19 | BG84: 46 | BH84: 3 | BI84: 5 | BJ84: 5 | BK84: 9 | BL84: 5 | BM84: 11 | BN84: 13 | BO84: 25 | BP84: 38 | BQ84: 102 | BR84: 358 | BS84: 3 | BT84: 5 | BU84: 8 | BV84: 16 | BW84: 3 | BX84: 3 | BY84: 4 | BZ84: 10 | CA84: ناجحة | CB84: ومنقولة للصف الثالث | CC84: 0 | CD84: 4 | CE84: 4/3 | CW84: 0 | CX84: 0
A85: 76 | B85: 1076 | C85: رانيا يوسف على احمد | D85: 1/2 | K85: بنات | L85: انتظام | M85: صباحى | O85: 3123 | P85: 9 | Q85: 14 | R85: 13 | S85: 36 | T85: 8 | U85: 7 | V85: 8 | W85: 23 | X85: 4 | Y85: 6 | Z85: 4 | AA85: 14 | AB85: 9 | AC85: 12 | AD85: 16 | AE85: 37 | AF85: 9 | AG85: 15 | AH85: 16 | AI85: 40 | AJ85: 9 | AK85: 15 | AL85: 20 | AM85: 44 | AN85: 9 | AO85: 9 | AP85: 19 | AQ85: 37 | AR85: 10 | AS85: 20 | AT85: 16 | AU85: 46 | AV85: 9 | AW85: 15 | AX85: 15 | AY85: 39 | AZ85: 10 | BA85: 17 | BB85: 19 | BC85: 46 | BD85: 10 | BE85: 20 | BF85: 18 | BG85: 48 | BH85: 3 | BI85: 5 | BJ85: 5 | BK85: 8 | BL85: 4 | BM85: 11 | BN85: 12 | BO85: 24 | BP85: 36 | BQ85: 163 | BR85: 446 | BS85: 3 | BT85: 7 | BU85: 7 | BV85: 17 | BW85: 3 | BX85: 8 | BY85: 7 | BZ85: 18 | CA85: ناجحة | CB85: ومنقولة للصف الثالث | CC85: 0 | CD85: 4 | CE85: 4/3 | CW85: 0 | CX85: 0
A86: 77 | B86: 1077 | C86: سارة محمد ياسين محمود | D86: 5/2 | K86: بنات | L86: انتظام | M86: صباحى | O86: 3124 | P86: 9 | Q86: 12 | R86: 13 | S86: 34 | T86: 8 | U86: 6 | V86: 6 | W86: 20 | X86: 4 | Y86: 6 | Z86: 6 | AA86: 16 | AB86: 9 | AC86: 17 | AD86: 20 | AE86: 46 | AF86: 9 | AG86: 17 | AH86: 17 | AI86: 43 | AJ86: 10 | AK86: 17 | AL86: 20 | AM86: 47 | AN86: 9 | AO86: 12 | AP86: 19 | AQ86: 40 | AR86: 9 | AS86: 18 | AT86: 17 | AU86: 44 | AV86: 9 | AW86: 14 | AX86: 17 | AY86: 40 | AZ86: 10 | BA86: 18 | BB86: 19 | BC86: 47 | BD86: 10 | BE86: 19 | BF86: 18 | BG86: 47 | BH86: 2 | BI86: 5 | BJ86: 4 | BK86: 10 | BL86: 4 | BM86: 12 | BN86: 10 | BO86: 27 | BP86: 37 | BQ86: 170 | BR86: 461 | BS86: 3 | BT86: 6 | BU86: 7 | BV86: 16 | BW86: 3 | BX86: 4 | BY86: 6 | BZ86: 13 | CA86: ناجحة | CB86: ومنقولة للصف الثالث | CC86: 0 | CD86: 4 | CE86: 4/3 | CW86: 0 | CX86: 0
A87: 78 | B87: 1078 | C87: سارة محمود احمد عبد العظيم | D87: 5/2 | K87: بنات | L87: انتظام | M87: صباحى | O87: 3125 | P87: 9 | Q87: 13 | R87: 13 | S87: 35 | T87: 8 | U87: 7 | V87: 6 | W87: 21 | X87: 4 | Y87: 6 | Z87: 3 | AA87: 13 | AB87: 9 | AC87: 14 | AD87: 13 | AE87: 36 | AF87: 9 | AG87: 8 | AH87: 14 | AI87: 31 | AJ87: 9 | AK87: 12 | AL87: 18 | AM87: 39 | AN87: 9 | AO87: 5 | AP87: 17 | AQ87: 31 | AR87: 9 | AS87: 17 | AT87: 15 | AU87: 41 | AV87: 9 | AW87: 16 | AX87: 14 | AY87: 39 | AZ87: 9 | BA87: 15 | BB87: 16 | BC87: 40 | BD87: 10 | BE87: 18 | BF87: 17 | BG87: 45 | BH87: 3 | BI87: 5 | BJ87: 4 | BK87: 8 | BL87: 4 | BM87: 9 | BN87: 11 | BO87: 22 | BP87: 33 | BQ87: 143 | BR87: 404 | BS87: 3 | BT87: 5 | BU87: 8 | BV87: 16 | BW87: 3 | BX87: 5 | BY87: 2 | BZ87: 10 | CA87: ناجحة | CB87: ومنقولة للصف الثالث | CC87: 0 | CD87: 4 | CE87: 4/3 | CW87: 0 | CX87: 0
A88: 79 | B88: 1079 | C88: سحر احمد محمد ناصر | D88: 4/2 | K88: بنات | L88: انتظام | M88: صباحى | O88: 3126 | P88: 9 | Q88: 11 | R88: 17 | S88: 37 | T88: 8 | U88: 6 | V88: 6 | W88: 20 | X88: 4 | Y88: 5 | Z88: 8 | AA88: 17 | AB88: 6 | AC88: 15 | AD88: 17 | AE88: 38 | AF88: 9 | AG88: 12 | AH88: 18 | AI88: 39 | AJ88: 10 | AK88: 20 | AL88: 18 | AM88: 48 | AN88: 9 | AO88: 4 | AP88: 17 | AQ88: 30 | AR88: 9 | AS88: 18 | AT88: 17 | AU88: 44 | AV88: 9 | AW88: 12 | AX88: 18 | AY88: 39 | AZ88: 9 | BA88: 13 | BB88: 20 | BC88: 42 | BD88: 10 | BE88: 19 | BF88: 17 | BG88: 46 | BH88: 3 | BI88: 5 | BJ88: 5 | BK88: 10 | BL88: 5 | BM88: 12 | BN88: 13 | BO88: 27 | BP88: 40 | BQ88: 150 | BR88: 440 | BS88: 3 | BT88: 5 | BU88: 8 | BV88: 16 | BW88: 3 | BX88: 6 | BY88: 6 | BZ88: 15 | CA88: ناجحة | CB88: ومنقولة للصف الثالث | CC88: 0 | CD88: 4 | CE88: 4/3 | CW88: 0 | CX88: 0
A89: 80 | B89: 1080 | C89: سلمة مهدى حامد محمود | D89: 2/2 | K89: بنات | L89: انتظام | M89: صباحى | O89: 3127 | P89: 9 | Q89: 13 | R89: 13 | S89: 35 | T89: 8 | U89: 8 | V89: 10 | W89: 26 | X89: 5 | Y89: 7 | Z89: 7 | AA89: 19 | AB89: 9 | AC89: 13 | AD89: 10 | AE89: 32 | AF89: 9 | AG89: 10 | AH89: 18 | AI89: 37 | AJ89: 10 | AK89: 20 | AL89: 20 | AM89: 50 | AN89: 9 | AO89: 9 | AP89: 17 | AQ89: 35 | AR89: 9 | AS89: 19 | AT89: 16 | AU89: 44 | AV89: 9 | AW89: 13 | AX89: 18 | AY89: 40 | AZ89: 10 | BA89: 18 | BB89: 19 | BC89: 47 | BD89: 10 | BE89: 20 | BF89: 19 | BG89: 49 | BH89: 4 | BI89: 5 | BJ89: 8 | BK89: 5 | BL89: 4 | BM89: 12 | BN89: 16 | BO89: 22 | BP89: 38 | BQ89: 163 | BR89: 452 | BS89: 3 | BT89: 5 | BU89: 7 | BV89: 15 | BW89: 3 | BX89: 8 | BY89: 7 | BZ89: 18 | CA89: ناجحة | CB89: ومنقولة للصف الثالث | CC89: 0 | CD89: 4 | CE89: 4/3 | CW89: 0 | CX89: 0
A90: 81 | B90: 1081 | C90: سلوى محمد هاشم عبد الجليل | D90: 5/2 | K90: بنات | L90: انتظام | M90: صباحى | O90: 3128 | P90: 10 | Q90: 13 | R90: 17 | S90: 40 | T90: 8 | U90: 6 | V90: 10 | W90: 24 | X90: 5 | Y90: 7 | Z90: 7 | AA90: 19 | AB90: 10 | AC90: 19 | AD90: 20 | AE90: 49 | AF90: 9 | AG90: 17 | AH90: 18 | AI90: 44 | AJ90: 10 | AK90: 20 | AL90: 20 | AM90: 50 | AN90: 9 | AO90: 10 | AP90: 18 | AQ90: 37 | AR90: 9 | AS90: 18 | AT90: 17 | AU90: 44 | AV90: 9 | AW90: 15 | AX90: 16 | AY90: 40 | AZ90: 10 | BA90: 18 | BB90: 19 | BC90: 47 | BD90: 10 | BE90: 20 | BF90: 19 | BG90: 49 | BH90: 3 | BI90: 5 | BJ90: 7 | BK90: 4 | BL90: 4 | BM90: 12 | BN90: 14 | BO90: 21 | BP90: 35 | BQ90: 174 | BR90: 478 | BS90: 3 | BT90: 7 | BU90: 8 | BV90: 18 | BW90: 3 | BX90: 8 | BY90: 7 | BZ90: 18 | CA90: ناجحة | CB90: ومنقولة للصف الثالث | CC90: 0 | CD90: 4 | CE90: 4/3 | CW90: 0 | CX90: 0
A91: 82 | B91: 1082 | C91: سماح سالم ابراهيم احمد | D91: 3/2 | K91: بنات | L91: انتظام | M91: صباحى | O91: 3129 | P91: 10 | Q91: 13 | R91: 17 | S91: 40 | T91: 8 | U91: 5 | V91: 9 | W91: 22 | X91: 4 | Y91: 5 | Z91: 6 | AA91: 15 | AB91: 9 | AC91: 18 | AD91: 20 | AE91: 47 | AF91: 10 | AG91: 18 | AH91: 20 | AI91: 48 | AJ91: 10 | AK91: 20 | AL91: 20 | AM91: 50 | AN91: 9 | AO91: 10 | AP91: 19 | AQ91: 38 | AR91: 10 | AS91: 19 | AT91: 17 | AU91: 46 | AV91: 9 | AW91: 16 | AX91: 17 | AY91: 42 | AZ91: 10 | BA91: 18 | BB91: 20 | BC91: 48 | BD91: 10 | BE91: 19 | BF91: 20 | BG91: 49 | BH91: 4 | BI91: 5 | BJ91: 8 | BK91: 11 | BL91: 4 | BM91: 12 | BN91: 16 | BO91: 28 | BP91: 44 | BQ91: 180 | BR91: 489 | BS91: 3 | BT91: 5 | BU91: 8 | BV91: 16 | BW91: 3 | BX91: 7 | BY91: 6 | BZ91: 16 | CA91: ناجحة | CB91: ومنقولة للصف الثالث | CC91: 0 | CD91: 4 | CE91: 4/3 | CW91: 0 | CX91: 0
A92: 83 | B92: 1083 | C92: سمية عطية عامر عبد الله | D92: 4/2 | K92: بنات | L92: انتظام | M92: صباحى | O92: 3130 | P92: 10 | Q92: 13 | R92: 17 | S92: 40 | T92: 8 | U92: 7 | V92: 8 | W92: 23 | X92: 4 | Y92: 6 | Z92: 4 | AA92: 14 | AB92: 9 | AC92: 12 | AD92: 19 | AE92: 40 | AF92: 10 | AG92: 18 | AH92: 20 | AI92: 48 | AJ92: 10 | AK92: 20 | AL92: 20 | AM92: 50 | AN92: 9 | AO92: 10 | AP92: 19 | AQ92: 38 | AR92: 9 | AS92: 19 | AT92: 15 | AU92: 43 | AV92: 9 | AW92: 15 | AX92: 17 | AY92: 41 | AZ92: 10 | BA92: 18 | BB92: 20 | BC92: 48 | BD92: 10 | BE92: 19 | BF92: 20 | BG92: 49 | BH92: 2 | BI92: 5 | BJ92: 4 | BK92: 10 | BL92: 5 | BM92: 11 | BN92: 11 | BO92: 26 | BP92: 37 | BQ92: 171 | BR92: 471 | BS92: 3 | BT92: 6 | BU92: 8 | BV92: 17 | BW92: 3 | BX92: 5 | BY92: 7 | BZ92: 15 | CA92: ناجحة | CB92: ومنقولة للصف الثالث | CC92: 0 | CD92: 5 | CE92: 5/3 | CW92: 0 | CX92: 0
A93: 84 | B93: 1084 | C93: سميحة حسن احمد حسين | D93: 5/2 | K93: بنات | L93: انتظام | M93: صباحى | O93: 3131 | P93: 9 | Q93: 10 | R93: 16 | S93: 35 | T93: 8 | U93: 6 | V93: 6 | W93: 20 | X93: 4 | Y93: 6 | Z93: 4 | AA93: 14 | AB93: 9 | AC93: 10 | AD93: 9 | AE93: 28 | AF93: 9 | AG93: 3 | AH93: 20 | AI93: 32 | AJ93: 9 | AK93: 1 | AL93: 20 | AM93: 30 | AN93: 9 | AO93: 8 | AP93: 19 | AQ93: 36 | AR93: 9 | AS93: 17 | AT93: 18 | AU93: 44 | AV93: 9 | AW93: 12 | AX93: 17 | AY93: 38 | AZ93: 10 | BA93: 17 | BB93: 20 | BC93: 47 | BD93: 10 | BE93: 19 | BF93: 20 | BG93: 49 | BH93: 3 | BI93: 5 | BJ93: 6 | BK93: 8 | BL93: 4 | BM93: 11 | BN93: 13 | BO93: 24 | BP93: 37 | BQ93: 123 | BR93: 410 | BS93: 3 | BT93: 7 | BU93: 8 | BV93: 18 | BW93: 3 | BX93: 6 | BY93: 7 | BZ93: 16 | CA93: ناجحة | CB93: ومنقولة للصف الثالث | CC93: 0 | CD93: 5 | CE93: 5/3 | CW93: 0 | CX93: 0
A94: 85 | B94: 1085 | C94: شاهيناز عبده على احمد | D94: 4/2 | K94: بنات | L94: انتظام | M94: صباحى | O94: 3132 | P94: 9 | Q94: 12 | R94: 13 | S94: 34 | T94: 8 | U94: 7 | V94: 5 | W94: 20 | X94: 4 | Y94: 6 | Z94: 5 | AA94: 15 | AB94: 9 | AC94: 7 | AD94: 13 | AE94: 29 | AF94: 9 | AG94: 9 | AH94: 20 | AI94: 38 | AJ94: 9 | AK94: 14 | AL94: 20 | AM94: 43 | AN94: 9 | AO94: 7 | AP94: 20 | AQ94: 36 | AR94: 9 | AS94: 16 | AT94: 18 | AU94: 43 | AV94: 9 | AW94: 10 | AX94: 17 | AY94: 36 | AZ94: 10 | BA94: 17 | BB94: 20 | BC94: 47 | BD94: 10 | BE94: 19 | BF94: 17 | BG94: 46 | BH94: 3 | BI94: 5 | BJ94: 6 | BK94: 8 | BL94: 5 | BM94: 11 | BN94: 14 | BO94: 24 | BP94: 38 | BQ94: 138 | BR94: 425 | BS94: 3 | BT94: 8 | BU94: 8 | BV94: 19 | BW94: 3 | BX94: 5 | BY94: 7 | BZ94: 15 | CA94: ناجحة | CB94: ومنقولة للصف الثالث | CC94: 0 | CD94: 5 | CE94: 5/3 | CW94: 0 | CX94: 0
A95: 86 | B95: 1086 | C95: شمس محمد احمد محمود | D95: 2/2 | K95: بنات | L95: انتظام | M95: صباحى | O95: 3133 | P95: 9 | Q95: 8 | R95: 12 | S95: 29 | T95: 8 | U95: 5 | V95: 7 | W95: 20 | X95: 4 | Y95: 6 | Z95: 4 | AA95: 14 | AB95: 9 | AC95: 11 | AD95: 19 | AE95: 39 | AF95: 9 | AG95: 8 | AH95: 20 | AI95: 37 | AJ95: 9 | AK95: 15 | AL95: 20 | AM95: 44 | AN95: 9 | AO95: 8 | AP95: 18 | AQ95: 35 | AR95: 9 | AS95: 15 | AT95: 18 | AU95: 42 | AV95: 9 | AW95: 15 | AX95: 16 | AY95: 40 | AZ95: 10 | BA95: 17 | BB95: 19 | BC95: 46 | BD95: 9 | BE95: 16 | BF95: 18 | BG95: 43 | BH95: 3 | BI95: 5 | BJ95: 7 | BK95: 5 | BL95: 5 | BM95: 12 | BN95: 15 | BO95: 22 | BP95: 37 | BQ95: 136 | BR95: 426 | BS95: 3 | BT95: 7 | BU95: 8 | BV95: 18 | BW95: 3 | BX95: 5 | BY95: 5 | BZ95: 13 | CA95: ناجحة | CB95: ومنقولة للصف الثالث | CC95: 0 | CD95: 5 | CE95: 5/3 | CW95: 0 | CX95: 0
A96: 87 | B96: 1087 | C96: شيماء حسن احمد عبد الرحيم | D96: 4/2 | K96: بنات | L96: انتظام | M96: صباحى | O96: 3134 | P96: 9 | Q96: 13 | R96: 16 | S96: 38 | T96: 8 | U96: 5 | V96: 7 | W96: 20 | X96: 4 | Y96: 6 | Z96: 4 | AA96: 14 | AB96: 9 | AC96: 15 | AD96: 20 | AE96: 44 | AF96: 9 | AG96: 19 | AH96: 20 | AI96: 48 | AJ96: 10 | AK96: 20 | AL96: 20 | AM96: 50 | AN96: 9 | AO96: 12 | AP96: 20 | AQ96: 41 | AR96: 10 | AS96: 19 | AT96: 18 | AU96: 47 | AV96: 9 | AW96: 17 | AX96: 17 | AY96: 43 | AZ96: 10 | BA96: 16 | BB96: 20 | BC96: 46 | BD96: 9 | BE96: 16 | BF96: 17 | BG96: 42 | BH96: 4 | BI96: 5 | BJ96: 8 | BK96: 7 | BL96: 5 | BM96: 12 | BN96: 17 | BO96: 24 | BP96: 41 | BQ96: 173 | BR96: 474 | BS96: 3 | BT96: 8 | BU96: 8 | BV96: 19 | BW96: 3 | BX96: 6 | BY96: 8 | BZ96: 17 | CA96: ناجحة | CB96: ومنقولة للصف الثالث | CC96: 0 | CD96: 5 | CE96: 5/3 | CW96: 0 | CX96: 0
A97: 88 | B97: 1088 | C97: شيماء رمضان ابراهيم طايع | D97: 7/2 | K97: بنات | L97: انتظام | M97: صباحى | O97: 3135 | P97: 10 | Q97: 15 | R97: 18 | S97: 43 | T97: 8 | U97: 6 | V97: 9 | W97: 23 | X97: 4 | Y97: 6 | Z97: 5 | AA97: 15 | AB97: 9 | AC97: 14 | AD97: 17 | AE97: 40 | AF97: 9 | AG97: 15 | AH97: 20 | AI97: 44 | AJ97: 9 | AK97: 8 | AL97: 20 | AM97: 37 | AN97: 9 | AO97: 11 | AP97: 20 | AQ97: 40 | AR97: 10 | AS97: 19 | AT97: 17 | AU97: 46 | AV97: 9 | AW97: 15 | AX97: 16 | AY97: 40 | AZ97: 10 | BA97: 17 | BB97: 20 | BC97: 47 | BD97: 10 | BE97: 17 | BF97: 19 | BG97: 46 | BH97: 2 | BI97: 5 | BJ97: 4 | BK97: 12 | BL97: 8 | BM97: 9 | BN97: 14 | BO97: 26 | BP97: 40 | BQ97: 159 | BR97: 461 | BS97: 3 | BT97: 6 | BU97: 8 | BV97: 17 | BW97: 3 | BX97: 7 | BY97: 5 | BZ97: 15 | CA97: ناجحة | CB97: ومنقولة للصف الثالث | CC97: 0 | CD97: 5 | CE97: 5/3 | CW97: 0 | CX97: 0
A98: 89 | B98: 1089 | C98: شيماء سيد عبد المنجى السباعى | D98: 5/2 | K98: بنات | L98: انتظام | M98: صباحى | O98: 3136 | P98: 9 | Q98: 10 | R98: 13 | S98: 32 | T98: 8 | U98: 7 | V98: 5 | W98: 20 | X98: 4 | Y98: 4 | Z98: 5 | AA98: 13 | AB98: 9 | AC98: 10 | AD98: 10 | AE98: 29 | AF98: 9 | AG98: 1 | AH98: 18 | AI98: 28 | AJ98: 9 | AK98: 9 | AL98: 7 | AM98: 25 | AN98: 9 | AO98: 5 | AP98: 11 | AQ98: 25 | AR98: 9 | AS98: 12 | AT98: 13 | AU98: 34 | AV98: 9 | AW98: 12 | AX98: 14 | AY98: 35 | AZ98: 9 | BA98: 14 | BB98: 15 | BC98: 38 | BD98: 10 | BE98: 18 | BF98: 18 | BG98: 46 | BH98: 3 | BI98: 5 | BJ98: 6 | BK98: 6 | BL98: 5 | BM98: 9 | BN98: 14 | BO98: 20 | BP98: 34 | BQ98: 114 | BR98: 359 | BS98: 3 | BT98: 5 | BU98: 8 | BV98: 16 | BW98: 3 | BX98: 5 | BY98: 7 | BZ98: 15 | CA98: ناجحة | CB98: ومنقولة للصف الثالث | CC98: 0 | CD98: 5 | CE98: 5/3 | CW98: 0 | CX98: 0
A99: 90 | B99: 1090 | C99: شيماء سيد نجار محمدين | D99: 1/2 | K99: بنات | L99: انتظام | M99: صباحى | O99: 3137 | P99: 9 | Q99: 10 | R99: 12 | S99: 31 | T99: 8 | U99: 3 | V99: 4 | W99: 15 | X99: 4 | Y99: 5 | Z99: 4 | AA99: 13 | AB99: 9 | AC99: 11 | AD99: 5 | AE99: 25 | AF99: 9 | AG99: 8 | AH99: 19 | AI99: 36 | AJ99: 9 | AK99: 2 | AL99: 7 | AM99: 18 | AN99: 9 | AO99: 7 | AP99: 12 | AQ99: 28 | AR99: 9 | AS99: 13 | AT99: 16 | AU99: 38 | AV99: 9 | AW99: 12 | AX99: 17 | AY99: 38 | AZ99: 9 | BA99: 17 | BB99: 15 | BC99: 41 | BD99: 10 | BE99: 18 | BF99: 18 | BG99: 46 | BH99: 3 | BI99: 5 | BJ99: 6 | BK99: 9 | BL99: 5 | BM99: 9 | BN99: 14 | BO99: 23 | BP99: 37 | BQ99: 121 | BR99: 366 | BS99: 3 | BT99: 3 | BU99: 8 | BV99: 14 | BW99: 3 | BX99: 4 | BY99: 3 | BZ99: 10 | CA99: دورثان | CB99: فى : انجليزى - رياضة مالية - | CC99: 2 | CD99: 5 | CE99: 5/3 | CI99: انجليزى - | CM99: رياضة مالية - | CW99: 0 | CX99: 2
A100: 91 | B100: 1091 | C100: شيماء عبد الحميد فؤاد احمد | D100: 1/2 | K100: بنات | L100: انتظام | M100: صباحى | O100: 3138 | P100: 9 | Q100: 10 | R100: 15 | S100: 34 | T100: 8 | U100: 5 | V100: 9 | W100: 22 | X100: 4 | Y100: 4 | Z100: 3 | AA100: 11 | AB100: 8 | AC100: 8 | AD100: 9 | AE100: 25 | AF100: 9 | AG100: 10 | AH100: 12 | AI100: 31 | AJ100: 9 | AK100: 10 | AL100: 11 | AM100: 30 | AN100: 9 | AO100: 13 | AP100: 15 | AQ100: 37 | AR100: 9 | AS100: 16 | AT100: 14 | AU100: 39 | AV100: 9 | AW100: 15 | AX100: 14 | AY100: 38 | AZ100: 9 | BA100: 16 | BB100: 19 | BC100: 44 | BD100: 10 | BE100: 17 | BF100: 19 | BG100: 46 | BH100: 3 | BI100: 5 | BJ100: 5 | BK100: 7 | BL100: 6 | BM100: 8 | BN100: 14 | BO100: 20 | BP100: 34 | BQ100: 136 | BR100: 391 | BS100: 3 | BT100: 5 | BU100: 8 | BV100: 16 | BW100: 3 | BX100: 5 | BY100: 6 | BZ100: 14 | CA100: ناجحة | CB100: ومنقولة للصف الثالث | CC100: 0 | CD100: 5 | CE100: 5/3 | CW100: 0 | CX100: 0
A101: 92 | B101: 1092 | C101: شيماء عبد المنعم صلاح احمد | D101: 4/2 | K101: بنات | L101: انتظام | M101: صباحى | O101: 3139 | P101: 9 | Q101: 10 | R101: 11 | S101: 30 | T101: 8 | U101: 7 | V101: 5 | W101: 20 | X101: 4 | Y101: 5 | Z101: 5 | AA101: 14 | AB101: 9 | AC101: 11 | AD101: 5 | AE101: 25 | AF101: 9 | AG101: 13 | AH101: 20 | AI101: 42 | AJ101: 9 | AK101: 11 | AL101: 18 | AM101: 38 | AN101: 9 | AO101: 6 | AP101: 13 | AQ101: 28 | AR101: 9 | AS101: 13 | AT101: 17 | AU101: 39 | AV101: 9 | AW101: 9 | AX101: 17 | AY101: 35 | AZ101: 10 | BA101: 18 | BB101: 18 | BC101: 46 | BD101: 9 | BE101: 14 | BF101: 17 | BG101: 40 | BH101: 3 | BI101: 5 | BJ101: 5 | BK101: 11 | BL101: 4 | BM101: 9 | BN101: 12 | BO101: 25 | BP101: 37 | BQ101: 133 | BR101: 394 | BS101: 3 | BT101: 4 | BU101: 8 | BV101: 15 | BW101: 3 | BX101: 4 | BY101: 3 | BZ101: 10 | CA101: ناجحة | CB101: ومنقولة للصف الثالث | CC101: 0 | CD101: 5 | CE101: 5/3 | CW101: 0 | CX101: 0
A102: 93 | B102: 1093 | C102: شيماء عبد النعيم امين عبد الحميد | D102: 5/2 | K102: بنات | L102: انتظام | M102: صباحى | O102: 3140 | P102: 9 | Q102: 9 | R102: 12 | S102: 30 | T102: 8 | U102: 7 | V102: 5 | W102: 20 | X102: 4 | Y102: 4 | Z102: 3 | AA102: 11 | AB102: 9 | AC102: 12 | AD102: 14 | AE102: 35 | AF102: 9 | AG102: 9 | AH102: 13 | AI102: 31 | AJ102: 9 | AK102: 9 | AL102: 15 | AM102: 33 | AN102: 9 | AO102: 16 | AP102: 18 | AQ102: 43 | AR102: 9 | AS102: 18 | AT102: 16 | AU102: 43 | AV102: 9 | AW102: 14 | AX102: 14 | AY102: 37 | AZ102: 9 | BA102: 18 | BB102: 14 | BC102: 41 | BD102: 10 | BE102: 17 | BF102: 19 | BG102: 46 | BH102: 3 | BI102: 5 | BJ102: 5 | BK102: 5 | BL102: 4 | BM102: 10 | BN102: 12 | BO102: 20 | BP102: 32 | BQ102: 143 | BR102: 402 | BS102: 3 | BT102: 7 | BU102: 8 | BV102: 18 | BW102: 3 | BX102: 5 | BY102: 5 | BZ102: 13 | CA102: ناجحة | CB102: ومنقولة للصف الثالث | CC102: 0 | CD102: 5 | CE102: 5/3 | CW102: 0 | CX102: 0
A103: 94 | B103: 1094 | C103: شيماء محمد محمود اسماعيل | D103: 1/2 | K103: بنات | L103: انتظام | M103: صباحى | O103: 3141 | P103: 9 | Q103: 8 | R103: 10 | S103: 27 | T103: 8 | U103: 4 | V103: 3 | W103: 15 | X103: 4 | Y103: 6 | Z103: 4 | AA103: 14 | AB103: 9 | AC103: 11 | AD103: 5 | AE103: 25 | AF103: 9 | AG103: 4 | AH103: 17 | AI103: 30 | AJ103: 5 | AK103: 0 | AL103: 11 | AM103: 16 | AN103: 9 | AO103: 6 | AP103: 10 | AQ103: 25 | AR103: 9 | AS103: 9 | AT103: 16 | AU103: 34 | AV103: 9 | AW103: 13 | AX103: 17 | AY103: 39 | AZ103: 10 | BA103: 19 | BB103: 18 | BC103: 47 | BD103: 9 | BE103: 16 | BF103: 18 | BG103: 43 | BH103: 2 | BI103: 5 | BJ103: 4 | BK103: 9 | BL103: 5 | BM103: 9 | BN103: 11 | BO103: 23 | BP103: 34 | BQ103: 109 | BR103: 349 | BS103: 3 | BT103: 2 | BU103: 8 | BV103: 13 | BW103: 3 | BX103: 4 | BY103: 4 | BZ103: 11 | CA103: دورثان | CB103: فى : انجليزى - رياضة مالية - | CC103: 2 | CD103: 5 | CE103: 5/3 | CI103: انجليزى - | CM103: رياضة مالية - | CW103: 0 | CX103: 2
A104: 95 | B104: 1095 | C104: صابرين شحتو محمد ملازم | D104: 3/2 | K104: بنات | L104: انتظام | M104: صباحى | O104: 3142 | P104: 9 | Q104: 11 | R104: 18 | S104: 38 | T104: 8 | U104: 6 | V104: 6 | W104: 20 | X104: 4 | Y104: 5 | Z104: 5 | AA104: 14 | AB104: 10 | AC104: 7 | AD104: 8 | AE104: 25 | AF104: 9 | AG104: 2 | AH104: 6 | AI104: 17 | AJ104: 9 | AK104: 7 | AL104: 9 | AM104: 25 | AN104: 9 | AO104: 10 | AP104: 16 | AQ104: 35 | AR104: 9 | AS104: 10 | AT104: 18 | AU104: 37 | AV104: 9 | AW104: 12 | AX104: 14 | AY104: 35 | AZ104: 9 | BA104: 17 | BB104: 18 | BC104: 44 | BD104: 10 | BE104: 17 | BF104: 19 | BG104: 46 | BH104: 4 | BI104: 5 | BJ104: 8 | BK104: 5 | BL104: 6 | BM104: 8 | BN104: 18 | BO104: 18 | BP104: 36 | BQ104: 117 | BR104: 372 | BS104: 3 | BT104: 7 | BU104: 8 | BV104: 18 | BW104: 3 | BX104: 5 | BY104: 7 | BZ104: 15 | CA104: دورثان | CB104: فى : احصاء - | CC104: 1 | CD104: 5 | CE104: 5/3 | CL104: احصاء - | CW104: 0 | CX104: 1
A105: 96 | B105: 1096 | C105: صابرين عبد الناصر عبد الفتاح | D105: 4/2 | K105: بنات | L105: انتظام | M105: صباحى | O105: 3051 | P105: 9 | Q105: 9 | R105: 10 | S105: 28 | T105: 8 | U105: 7 | V105: 5 | W105: 20 | X105: 4 | Y105: 5 | Z105: 5 | AA105: 14 | AB105: 7 | AC105: 5 | AD105: 17 | AE105: 29 | AF105: 9 | AG105: 12 | AH105: 17 | AI105: 38 | AJ105: 9 | AK105: 12 | AL105: 12 | AM105: 33 | AN105: 9 | AO105: 9 | AP105: 12 | AQ105: 30 | AR105: 9 | AS105: 16 | AT105: 15 | AU105: 40 | AV105: 9 | AW105: 9 | AX105: 14 | AY105: 32 | AZ105: 9 | BA105: 17 | BB105: 16 | BC105: 42 | BD105: 10 | BE105: 17 | BF105: 19 | BG105: 46 | BH105: 2 | BI105: 5 | BJ105: 4 | BK105: 7 | BL105: 4 | BM105: 8 | BN105: 10 | BO105: 20 | BP105: 30 | BQ105: 129 | BR105: 382 | BS105: 3 | BT105: 4 | BU105: 8 | BV105: 15 | BW105: 3 | BX105: 4 | BY105: 5 | BZ105: 12 | CA105: ناجحة | CB105: ومنقولة للصف الثالث | CC105: 0 | CD105: 5 | CE105: 5/3 | CW105: 0 | CX105: 0
A106: 97 | B106: 1097 | C106: صابرين محمد على محمد | D106: 2/2 | K106: بنات | L106: انتظام | M106: صباحى | O106: 3052 | P106: 9 | Q106: 11 | R106: 14 | S106: 34 | T106: 8 | U106: 5 | V106: 7 | W106: 20 | X106: 4 | Y106: 3 | Z106: 3 | AA106: 10 | AB106: 9 | AC106: 3 | AD106: 6 | AE106: 18 | AF106: 9 | AG106: 0 | AH106: 5 | AI106: 14 | AJ106: 9 | AK106: 8 | AL106: 8 | AM106: 25 | AN106: 9 | AO106: 7 | AP106: 16 | AQ106: 32 | AR106: 9 | AS106: 7 | AT106: 13 | AU106: 29 | AV106: 9 | AW106: 10 | AX106: 14 | AY106: 33 | AZ106: 9 | BA106: 12 | BB106: 16 | BC106: 37 | BD106: 9 | BE106: 13 | BF106: 19 | BG106: 41 | BH106: 2 | BI106: 5 | BJ106: 4 | BK106: 7 | BL106: 4 | BM106: 12 | BN106: 10 | BO106: 24 | BP106: 34 | BQ106: 90 | BR106: 327 | BS106: 3 | BT106: 7 | BU106: 8 | BV106: 18 | BW106: 3 | BX106: 4 | BY106: 4 | BZ106: 11 | CA106: دورثان | CB106: فى : محاسبة مالية - احصاء - | CC106: 2 | CD106: 5 | CE106: 5/3 | CK106: محاسبة مالية - | CL106: احصاء - | CW106: 0 | CX106: 2
A107: 98 | B107: 1098 | C107: صفاء احمد فؤاد محمود | D107: 5/2 | K107: بنات | L107: انتظام | M107: صباحى | O107: 3053 | P107: 9 | Q107: 12 | R107: 14 | S107: 35 | T107: 8 | U107: 6 | V107: 8 | W107: 22 | X107: 5 | Y107: 7 | Z107: 8 | AA107: 20 | AB107: 9 | AC107: 19 | AD107: 19 | AE107: 47 | AF107: 10 | AG107: 19 | AH107: 20 | AI107: 49 | AJ107: 10 | AK107: 19 | AL107: 20 | AM107: 49 | AN107: 9 | AO107: 9 | AP107: 17 | AQ107: 35 | AR107: 9 | AS107: 15 | AT107: 15 | AU107: 39 | AV107: 9 | AW107: 16 | AX107: 14 | AY107: 39 | AZ107: 10 | BA107: 19 | BB107: 19 | BC107: 48 | BD107: 9 | BE107: 16 | BF107: 18 | BG107: 43 | BH107: 3 | BI107: 5 | BJ107: 7 | BK107: 12 | BL107: 6 | BM107: 8 | BN107: 16 | BO107: 25 | BP107: 41 | BQ107: 176 | BR107: 467 | BS107: 3 | BT107: 4 | BU107: 8 | BV107: 15 | BW107: 3 | BX107: 4 | BY107: 5 | BZ107: 12 | CA107: ناجحة | CB107: ومنقولة للصف الثالث | CC107: 0 | CD107: 5 | CE107: 5/3 | CW107: 0 | CX107: 0
A108: 99 | B108: 1099 | C108: عائشة حمدنالله ادريس سيد | D108: 4/2 | K108: بنات | L108: انتظام | M108: صباحى | O108: 3054 | P108: 9 | Q108: 9 | R108: 13 | S108: 31 | T108: 8 | U108: 7 | V108: 5 | W108: 20 | X108: 4 | Y108: 5 | Z108: 4 | AA108: 13 | AB108: 9 | AC108: 10 | AD108: 13 | AE108: 32 | AF108: 9 | AG108: 9 | AH108: 12 | AI108: 30 | AJ108: 9 | AK108: 6 | AL108: 10 | AM108: 25 | AN108: 9 | AO108: 8 | AP108: 17 | AQ108: 34 | AR108: 9 | AS108: 12 | AT108: 12 | AU108: 33 | AV108: 9 | AW108: 14 | AX108: 15 | AY108: 38 | AZ108: 10 | BA108: 19 | BB108: 17 | BC108: 46 | BD108: 10 | BE108: 18 | BF108: 20 | BG108: 48 | BH108: 2 | BI108: 5 | BJ108: 4 | BK108: 9 | BL108: 5 | BM108: 8 | BN108: 11 | BO108: 22 | BP108: 33 | BQ108: 130 | BR108: 383 | BS108: 3 | BT108: 7 | BU108: 7 | BV108: 17 | BW108: 3 | BX108: 4 | BY108: 7 | BZ108: 14 | CA108: ناجحة | CB108: ومنقولة للصف الثالث | CC108: 0 | CD108: 5 | CE108: 5/3 | CW108: 0 | CX108: 0
A109: 100 | B109: 1100 | C109: عائشة محمود على محمد | D109: 5/2 | J109: مسيحية | K109: بنات | L109: انتظام | M109: صباحى | O109: 3055 | P109: 9 | Q109: 12 | R109: 16 | S109: 37 | T109: 8 | U109: 6 | V109: 8 | W109: 22 | X109: 4 | Y109: 6 | Z109: 7 | AA109: 17 | AB109: 9 | AC109: 16 | AD109: 18 | AE109: 43 | AF109: 9 | AG109: 15 | AH109: 17 | AI109: 41 | AJ109: 9 | AK109: 13 | AL109: 19 | AM109: 41 | AN109: 9 | AO109: 11 | AP109: 20 | AQ109: 40 | AR109: 10 | AS109: 20 | AT109: 16 | AU109: 46 | AV109: 9 | AW109: 16 | AX109: 17 | AY109: 42 | AZ109: 10 | BA109: 19 | BB109: 18 | BC109: 47 | BD109: 10 | BE109: 17 | BF109: 19 | BG109: 46 | BH109: 3 | BI109: 5 | BJ109: 6 | BK109: 12 | BL109: 5 | BM109: 9 | BN109: 14 | BO109: 26 | BP109: 40 | BQ109: 169 | BR109: 462 | BS109: 3 | BT109: 6 | BU109: 8 | BV109: 17 | BW109: 3 | BX109: 5 | BY109: 7 | BZ109: 15 | CA109: ناجحة | CB109: ومنقولة للصف الثالث | CC109: 0 | CD109: 5 | CE109: 5/3 | CW109: 0 | CX109: 0
A110: 101 | B110: 1101 | C110: عبير احمد عبد الرحيم صغير | D110: 4/2 | J110: مسيحية | K110: بنات | L110: انتظام | M110: صباحى | O110: 3056 | P110: 9 | Q110: 10 | R110: 12 | S110: 31 | T110: 8 | U110: 6 | V110: 6 | W110: 20 | X110: 4 | Y110: 4 | Z110: 4 | AA110: 12 | AB110: 9 | AC110: 5 | AD110: 11 | AE110: 25 | AF110: 9 | AG110: 2 | AH110: 16 | AI110: 27 | AJ110: 9 | AK110: 3 | AL110: 14 | AM110: 26 | AN110: 9 | AO110: 13 | AP110: 17 | AQ110: 39 | AR110: 9 | AS110: 12 | AT110: 10 | AU110: 31 | AV110: 9 | AW110: 13 | AX110: 15 | AY110: 37 | AZ110: 10 | BA110: 19 | BB110: 17 | BC110: 46 | BD110: 10 | BE110: 16 | BF110: 20 | BG110: 46 | BH110: 3 | BI110: 5 | BJ110: 5 | BK110: 9 | BL110: 5 | BM110: 8 | BN110: 13 | BO110: 22 | BP110: 35 | BQ110: 117 | BR110: 375 | BS110: 3 | BT110: 5 | BU110: 7 | BV110: 15 | BW110: 3 | BX110: 5 | BY110: 8 | BZ110: 16 | CA110: ناجحة | CB110: ومنقولة للصف الثالث | CC110: 0 | CD110: 5 | CE110: 5/3 | CW110: 0 | CX110: 0
A111: 102 | B111: 1102 | C111: عبير حسانى الحفنى احمد | D111: 4/2 | K111: بنات | L111: انتظام | M111: صباحى | O111: 3057 | P111: 9 | Q111: 13 | R111: 15 | S111: 37 | T111: 8 | U111: 7 | V111: 5 | W111: 20 | X111: 5 | Y111: 7 | Z111: 8 | AA111: 20 | AB111: 9 | AC111: 17 | AD111: 20 | AE111: 46 | AF111: 9 | AG111: 14 | AH111: 18 | AI111: 41 | AJ111: 9 | AK111: 10 | AL111: 13 | AM111: 32 | AN111: 9 | AO111: 11 | AP111: 15 | AQ111: 35 | AR111: 10 | AS111: 19 | AT111: 17 | AU111: 46 | AV111: 9 | AW111: 13 | AX111: 17 | AY111: 39 | AZ111: 10 | BA111: 19 | BB111: 18 | BC111: 47 | BD111: 10 | BE111: 17 | BF111: 19 | BG111: 46 | BH111: 3 | BI111: 5 | BJ111: 6 | BK111: 12 | BL111: 5 | BM111: 9 | BN111: 14 | BO111: 26 | BP111: 40 | BQ111: 165 | BR111: 449 | BS111: 3 | BT111: 3 | BU111: 8 | BV111: 14 | BW111: 3 | BX111: 5 | BY111: 6 | BZ111: 14 | CA111: ناجحة | CB111: ومنقولة للصف الثالث | CC111: 0 | CD111: 5 | CE111: 5/3 | CW111: 0 | CX111: 0
A112: 103 | B112: 1103 | C112: عبير عبد الهادى محمد محمد | D112: 1/2 | K112: بنات | L112: انتظام | M112: صباحى | O112: 3058 | P112: 9 | Q112: 13 | R112: 14 | S112: 36 | T112: 8 | U112: 4 | V112: 8 | W112: 20 | X112: 4 | Y112: 4 | Z112: 3 | AA112: 11 | AB112: 9 | AC112: 10 | AD112: 14 | AE112: 33 | AF112: 9 | AG112: 4 | AH112: 17 | AI112: 30 | AJ112: 9 | AK112: 6 | AL112: 16 | AM112: 31 | AN112: 9 | AO112: 9 | AP112: 18 | AQ112: 36 | AR112: 9 | AS112: 11 | AT112: 9 | AU112: 29 | AV112: 9 | AW112: 12 | AX112: 15 | AY112: 36 | AZ112: 10 | BA112: 20 | BB112: 16 | BC112: 46 | BD112: 10 | BE112: 17 | BF112: 20 | BG112: 47 | BH112: 3 | BI112: 5 | BJ112: 5 | BK112: 9 | BL112: 7 | BM112: 12 | BN112: 15 | BO112: 26 | BP112: 41 | BQ112: 124 | BR112: 396 | BS112: 3 | BT112: 6 | BU112: 8 | BV112: 17 | BW112: 3 | BX112: 7 | BY112: 8 | BZ112: 18 | CA112: ناجحة | CB112: ومنقولة للصف الثالث | CC112: 0 | CD112: 6 | CE112: 6/3 | CW112: 0 | CX112: 0
A113: 104 | B113: 1104 | C113: عبير عثمان محمود محمد | D113: 2/2 | K113: بنات | L113: انتظام | M113: صباحى | O113: 3059 | P113: 9 | Q113: 13 | R113: 10 | S113: 32 | T113: 8 | U113: 9 | V113: 8 | W113: 25 | X113: 5 | Y113: 8 | Z113: 7 | AA113: 20 | AB113: 10 | AC113: 19 | AD113: 19 | AE113: 48 | AF113: 10 | AG113: 20 | AH113: 18 | AI113: 48 | AJ113: 10 | AK113: 20 | AL113: 20 | AM113: 50 | AN113: 9 | AO113: 16 | AP113: 15 | AQ113: 40 | AR113: 9 | AS113: 19 | AT113: 16 | AU113: 44 | AV113: 10 | AW113: 19 | AX113: 18 | AY113: 47 | AZ113: 10 | BA113: 19 | BB113: 19 | BC113: 48 | BD113: 9 | BE113: 16 | BF113: 19 | BG113: 44 | BH113: 3 | BI113: 5 | BJ113: 5 | BK113: 12 | BL113: 7 | BM113: 11 | BN113: 15 | BO113: 28 | BP113: 43 | BQ113: 195 | BR113: 489 | BS113: 3 | BT113: 5 | BU113: 8 | BV113: 16 | BW113: 3 | BX113: 6 | BY113: 5 | BZ113: 14 | CA113: ناجحة | CB113: ومنقولة للصف الثالث | CC113: 0 | CD113: 6 | CE113: 6/3 | CW113: 0 | CX113: 0
A114: 105 | B114: 1105 | C114: عبير ماهر يسن احمد | D114: 5/2 | K114: بنات | L114: انتظام | M114: صباحى | O114: 3060 | P114: 9 | Q114: 12 | R114: 13 | S114: 34 | T114: 8 | U114: 7 | V114: 8 | W114: 23 | X114: 4 | Y114: 4 | Z114: 5 | AA114: 13 | AB114: 9 | AC114: 11 | AD114: 16 | AE114: 36 | AF114: 9 | AG114: 8 | AH114: 14 | AI114: 31 | AJ114: 9 | AK114: 17 | AL114: 17 | AM114: 43 | AN114: 9 | AO114: 15 | AP114: 17 | AQ114: 41 | AR114: 9 | AS114: 19 | AT114: 17 | AU114: 45 | AV114: 9 | AW114: 15 | AX114: 15 | AY114: 39 | AZ114: 10 | BA114: 19 | BB114: 20 | BC114: 49 | BD114: 10 | BE114: 16 | BF114: 20 | BG114: 46 | BH114: 4 | BI114: 5 | BJ114: 8 | BK114: 10 | BL114: 4 | BM114: 12 | BN114: 16 | BO114: 27 | BP114: 43 | BQ114: 161 | BR114: 443 | BS114: 3 | BT114: 7 | BU114: 8 | BV114: 18 | BW114: 3 | BX114: 5 | BY114: 7 | BZ114: 15 | CA114: ناجحة | CB114: ومنقولة للصف الثالث | CC114: 0 | CD114: 6 | CE114: 6/3 | CW114: 0 | CX114: 0
A115: 106 | B115: 1106 | C115: عزة ماهر يسن احمد | D115: 5/2 | K115: بنات | L115: انتظام | M115: صباحى | O115: 3061 | P115: 9 | Q115: 11 | R115: 12 | S115: 32 | T115: 8 | U115: 7 | V115: 5 | W115: 20 | X115: 5 | Y115: 7 | Z115: 5 | AA115: 17 | AB115: 9 | AC115: 6 | AD115: 15 | AE115: 30 | AF115: 9 | AG115: 12 | AH115: 17 | AI115: 38 | AJ115: 9 | AK115: 7 | AL115: 14 | AM115: 30 | AN115: 9 | AO115: 13 | AP115: 16 | AQ115: 38 | AR115: 9 | AS115: 18 | AT115: 15 | AU115: 42 | AV115: 9 | AW115: 10 | AX115: 17 | AY115: 36 | AZ115: 9 | BA115: 16 | BB115: 19 | BC115: 44 | BD115: 9 | BE115: 16 | BF115: 19 | BG115: 44 | BH115: 3 | BI115: 5 | BJ115: 5 | BK115: 10 | BL115: 6 | BM115: 9 | BN115: 14 | BO115: 24 | BP115: 38 | BQ115: 138 | BR115: 409 | BS115: 3 | BT115: 5 | BU115: 7 | BV115: 15 | BW115: 3 | BX115: 5 | BY115: 4 | BZ115: 12 | CA115: ناجحة | CB115: ومنقولة للصف الثالث | CC115: 0 | CD115: 6 | CE115: 6/3 | CW115: 0 | CX115: 0
A116: 107 | B116: 1107 | C116: عزيزة بدوى محمود عثمان | D116: 5/2 | K116: بنات | L116: انتظام | M116: صباحى | O116: 3062 | P116: 9 | Q116: 10 | R116: 12 | S116: 31 | T116: 8 | U116: 6 | V116: 6 | W116: 20 | X116: 4 | Y116: 5 | Z116: 5 | AA116: 14 | AB116: 9 | AC116: 6 | AD116: 2 | AE116: 17 | AF116: 9 | AG116: 5 | AH116: 11 | AI116: 25 | AJ116: 9 | AK116: 10 | AL116: 6 | AM116: 25 | AN116: 9 | AO116: 7 | AP116: 11 | AQ116: 27 | AR116: 9 | AS116: 11 | AT116: 11 | AU116: 31 | AV116: 9 | AW116: 11 | AX116: 14 | AY116: 34 | AZ116: 9 | BA116: 15 | BB116: 16 | BC116: 40 | BD116: 9 | BE116: 15 | BF116: 18 | BG116: 42 | BH116: 3 | BI116: 5 | BJ116: 4 | BK116: 7 | BL116: 6 | BM116: 8 | BN116: 13 | BO116: 20 | BP116: 33 | BQ116: 112 | BR116: 339 | BS116: 3 | BT116: 7 | BU116: 7 | BV116: 17 | BW116: 3 | BX116: 5 | BY116: 5 | BZ116: 13 | CA116: دورثان | CB116: فى : محاسبة مالية - | CC116: 1 | CD116: 6 | CE116: 6/3 | CK116: محاسبة مالية - | CW116: 0 | CX116: 1
A117: 108 | B117: 1108 | C117: عطيات ياسين عيد احمد | D117: 5/2 | K117: بنات | L117: انتظام | M117: صباحى | O117: 3063 | P117: 9 | Q117: 10 | R117: 11 | S117: 30 | T117: 8 | U117: 6 | V117: 6 | W117: 20 | X117: 4 | Y117: 6 | Z117: 6 | AA117: 16 | AB117: 8 | AC117: 8 | AD117: 1 | AE117: 17 | AF117: 9 | AG117: 5 | AH117: 18 | AI117: 32 | AJ117: 9 | AK117: 1 | AL117: 5 | AM117: 15 | AN117: 9 | AO117: 7 | AP117: 10 | AQ117: 26 | AR117: 9 | AS117: 14 | AT117: 12 | AU117: 35 | AV117: 9 | AW117: 8 | AX117: 14 | AY117: 31 | AZ117: 9 | BA117: 15 | BB117: 14 | BC117: 38 | BD117: 9 | BE117: 14 | BF117: 18 | BG117: 41 | BH117: 2 | BI117: 5 | BJ117: 4 | BK117: 9 | BL117: 4 | BM117: 9 | BN117: 10 | BO117: 23 | BP117: 33 | BQ117: 107 | BR117: 334 | BS117: 3 | BT117: 5 | BU117: 8 | BV117: 16 | BW117: 3 | BX117: 3 | BY117: 4 | BZ117: 10 | CA117: دورثان | CB117: فى : محاسبة مالية - رياضة مالية - | CC117: 2 | CD117: 6 | CE117: 6/3 | CK117: محاسبة مالية - | CM117: رياضة مالية - | CW117: 0 | CX117: 2
A118: 109 | B118: 1109 | C118: علا صالح عبد الحفيظ عثمان | D118: 5/2 | K118: بنات | L118: انتظام | M118: صباحى | O118: 3064 | P118: 9 | Q118: 9 | R118: 16 | S118: 34 | T118: 8 | U118: 4 | V118: 8 | W118: 20 | X118: 4 | Y118: 4 | Z118: 4 | AA118: 12 | AB118: 9 | AC118: 8 | AD118: 12 | AE118: 29 | AF118: 9 | AG118: 11 | AH118: 16 | AI118: 36 | AJ118: 9 | AK118: 6 | AL118: 16 | AM118: 31 | AN118: 9 | AO118: 14 | AP118: 13 | AQ118: 36 | AR118: 9 | AS118: 19 | AT118: 16 | AU118: 44 | AV118: 9 | AW118: 11 | AX118: 15 | AY118: 35 | AZ118: 10 | BA118: 20 | BB118: 17 | BC118: 47 | BD118: 10 | BE118: 17 | BF118: 20 | BG118: 47 | BH118: 2 | BI118: 5 | BJ118: 4 | BK118: 9 | BL118: 5 | BM118: 8 | BN118: 11 | BO118: 22 | BP118: 33 | BQ118: 136 | BR118: 404 | BS118: 3 | BT118: 6 | BU118: 8 | BV118: 17 | BW118: 3 | BX118: 5 | BY118: 7 | BZ118: 15 | CA118: ناجحة | CB118: ومنقولة للصف الثالث | CC118: 0 | CD118: 6 | CE118: 6/3 | CW118: 0 | CX118: 0
A119: 110 | B119: 1110 | C119: علياء حمدى محمد محمود | D119: 7/2 | K119: بنات | L119: انتظام | M119: صباحى | O119: 3065 | P119: 9 | Q119: 13 | R119: 14 | S119: 36 | T119: 8 | U119: 7 | V119: 5 | W119: 20 | X119: 4 | Y119: 6 | Z119: 4 | AA119: 14 | AB119: 9 | AC119: 15 | AD119: 13 | AE119: 37 | AF119: 10 | AG119: 20 | AH119: 20 | AI119: 50 | AJ119: 10 | AK119: 17 | AL119: 20 | AM119: 47 | AN119: 9 | AO119: 9 | AP119: 10 | AQ119: 28 | AR119: 9 | AS119: 15 | AT119: 16 | AU119: 40 | AV119: 9 | AW119: 13 | AX119: 17 | AY119: 39 | AZ119: 10 | BA119: 18 | BB119: 18 | BC119: 46 | BD119: 9 | BE119: 15 | BF119: 16 | BG119: 40 | BH119: 2 | BI119: 5 | BJ119: 4 | BK119: 11 | BL119: 4 | BM119: 10 | BN119: 10 | BO119: 26 | BP119: 36 | BQ119: 163 | BR119: 433 | BS119: 3 | BT119: 6 | BU119: 6 | BV119: 15 | BW119: 3 | BX119: 4 | BY119: 4 | BZ119: 11 | CA119: ناجحة | CB119: ومنقولة للصف الثالث | CC119: 0 | CD119: 6 | CE119: 6/3 | CW119: 0 | CX119: 0
A120: 111 | B120: 1111 | C120: علية عبد الستار على محمود | D120: 3/2 | K120: بنات | L120: انتظام | M120: صباحى | O120: 3066 | P120: 9 | Q120: 11 | R120: 16 | S120: 36 | T120: 8 | U120: 5 | V120: 9 | W120: 22 | X120: 4 | Y120: 4 | Z120: 4 | AA120: 12 | AB120: 9 | AC120: 10 | AD120: 6 | AE120: 25 | AF120: 9 | AG120: 4 | AH120: 12 | AI120: 25 | AJ120: 9 | AK120: 4 | AL120: 19 | AM120: 32 | AN120: 9 | AO120: 17 | AP120: 15 | AQ120: 41 | AR120: 9 | AS120: 15 | AT120: 16 | AU120: 40 | AV120: 9 | AW120: 11 | AX120: 15 | AY120: 35 | AZ120: 9 | BA120: 18 | BB120: 17 | BC120: 44 | BD120: 9 | BE120: 14 | BF120: 20 | BG120: 43 | BH120: 2 | BI120: 5 | BJ120: 4 | BK120: 8 | BL120: 4 | BM120: 8 | BN120: 10 | BO120: 21 | BP120: 31 | BQ120: 125 | BR120: 386 | BS120: 3 | BT120: 6 | BU120: 8 | BV120: 17 | BW120: 3 | BX120: 4 | BY120: 7 | BZ120: 14 | CA120: ناجحة | CB120: ومنقولة للصف الثالث | CC120: 0 | CD120: 6 | CE120: 6/3 | CW120: 0 | CX120: 0
A121: 112 | B121: 1112 | C121: غادة النجار السيد عبد الرحمن | D121: 4/2 | K121: بنات | L121: انتظام | M121: صباحى | O121: 3067 | P121: 9 | Q121: 10 | R121: 17 | S121: 36 | T121: 8 | U121: 7 | V121: 7 | W121: 22 | X121: 5 | Y121: 7 | Z121: 6 | AA121: 18 | AB121: 9 | AC121: 14 | AD121: 12 | AE121: 35 | AF121: 9 | AG121: 12 | AH121: 20 | AI121: 41 | AJ121: 9 | AK121: 17 | AL121: 19 | AM121: 45 | AN121: 9 | AO121: 8 | AP121: 19 | AQ121: 36 | AR121: 10 | AS121: 19 | AT121: 17 | AU121: 46 | AV121: 9 | AW121: 13 | AX121: 15 | AY121: 37 | AZ121: 9 | BA121: 17 | BB121: 17 | BC121: 43 | BD121: 10 | BE121: 20 | BF121: 19 | BG121: 49 | BH121: 3 | BI121: 5 | BJ121: 5 | BK121: 5 | BL121: 6 | BM121: 11 | BN121: 14 | BO121: 21 | BP121: 35 | BQ121: 154 | BR121: 443 | BS121: 3 | BT121: 7 | BU121: 8 | BV121: 18 | BW121: 3 | BX121: 7 | BY121: 6 | BZ121: 16 | CA121: ناجحة | CB121: ومنقولة للصف الثالث | CC121: 0 | CD121: 6 | CE121: 6/3 | CW121: 0 | CX121: 0
A122: 113 | B122: 1113 | C122: غادة رجب عبد النعيم احمد | D122: 4/2 | K122: بنات | L122: انتظام | M122: صباحى | O122: 3068 | P122: 10 | Q122: 14 | R122: 18 | S122: 42 | T122: 8 | U122: 7 | V122: 10 | W122: 25 | X122: 4 | Y122: 4 | Z122: 3 | AA122: 11 | AB122: 9 | AC122: 10 | AD122: 17 | AE122: 36 | AF122: 10 | AG122: 16 | AH122: 20 | AI122: 46 | AJ122: 9 | AK122: 5 | AL122: 19 | AM122: 33 | AN122: 9 | AO122: 14 | AP122: 17 | AQ122: 40 | AR122: 9 | AS122: 18 | AT122: 16 | AU122: 43 | AV122: 9 | AW122: 16 | AX122: 15 | AY122: 40 | AZ122: 10 | BA122: 20 | BB122: 18 | BC122: 48 | BD122: 10 | BE122: 18 | BF122: 20 | BG122: 48 | BH122: 3 | BI122: 5 | BJ122: 5 | BK122: 9 | BL122: 4 | BM122: 7 | BN122: 12 | BO122: 21 | BP122: 33 | BQ122: 156 | BR122: 445 | BS122: 3 | BT122: 8 | BU122: 8 | BV122: 19 | BW122: 3 | BX122: 7 | BY122: 8 | BZ122: 18 | CA122: ناجحة | CB122: ومنقولة للصف الثالث | CC122: 0 | CD122: 6 | CE122: 6/3 | CW122: 0 | CX122: 0
A123: 114 | B123: 1114 | C123: غادة رجب ناصر السيد | D123: 4/2 | K123: بنات | L123: انتظام | M123: صباحى | O123: 3069 | P123: 9 | Q123: 12 | R123: 15 | S123: 36 | T123: 8 | U123: 5 | V123: 7 | W123: 20 | X123: 4 | Y123: 5 | Z123: 6 | AA123: 15 | AB123: 9 | AC123: 13 | AD123: 15 | AE123: 37 | AF123: 9 | AG123: 12 | AH123: 16 | AI123: 37 | AJ123: 9 | AK123: 12 | AL123: 13 | AM123: 34 | AN123: 9 | AO123: 10 | AP123: 18 | AQ123: 37 | AR123: 9 | AS123: 18 | AT123: 17 | AU123: 44 | AV123: 9 | AW123: 17 | AX123: 14 | AY123: 40 | AZ123: 10 | BA123: 17 | BB123: 20 | BC123: 47 | BD123: 10 | BE123: 19 | BF123: 18 | BG123: 47 | BH123: 3 | BI123: 5 | BJ123: 5 | BK123: 7 | BL123: 5 | BM123: 10 | BN123: 13 | BO123: 22 | BP123: 35 | BQ123: 152 | BR123: 429 | BS123: 3 | BT123: 6 | BU123: 8 | BV123: 17 | BW123: 3 | BX123: 6 | BY123: 5 | BZ123: 14 | CA123: ناجحة | CB123: ومنقولة للصف الثالث | CC123: 0 | CD123: 6 | CE123: 6/3 | CW123: 0 | CX123: 0
A124: 115 | B124: 1115 | C124: غادة شاذلى احمد موسى | D124: 2/2 | K124: بنات | L124: انتظام | M124: صباحى | O124: 3070 | P124: 9 | Q124: 7 | R124: 9 | S124: 25 | T124: 8 | U124: 5 | V124: 7 | W124: 20 | X124: 4 | Y124: 4 | Z124: 3 | AA124: 11 | AB124: 9 | AC124: 8 | AD124: 12 | AE124: 29 | AF124: 9 | AG124: 1 | AH124: 6 | AI124: 16 | AJ124: 9 | AK124: 2 | AL124: 7 | AM124: 18 | AN124: 9 | AO124: 7 | AP124: 9 | AQ124: 25 | AR124: 9 | AS124: 18 | AT124: 8 | AU124: 35 | AV124: 9 | AW124: 10 | AX124: 13 | AY124: 32 | AZ124: 10 | BA124: 18 | BB124: 18 | BC124: 46 | BD124: 10 | BE124: 18 | BF124: 20 | BG124: 48 | BH124: 3 | BI124: 5 | BJ124: 7 | BK124: 9 | BL124: 5 | BM124: 5 | BN124: 15 | BO124: 19 | BP124: 34 | BQ124: 114 | BR124: 339 | BS124: 3 | BT124: 4 | BU124: 6 | BV124: 13 | BW124: 3 | BX124: 3 | BY124: 5 | BZ124: 11 | CA124: دورثان | CB124: فى : احصاء - رياضة مالية - | CC124: 2 | CD124: 6 | CE124: 6/3 | CL124: احصاء - | CM124: رياضة مالية - | CW124: 0 | CX124: 2
A125: 116 | B125: 1116 | C125: فاتن احمد مصطفى حسان | D125: 4/2 | K125: بنات | L125: انتظام | M125: صباحى | O125: 3071 | P125: 9 | Q125: 10 | R125: 15 | S125: 34 | T125: 8 | U125: 6 | V125: 6 | W125: 20 | X125: 5 | Y125: 8 | Z125: 4 | AA125: 17 | AB125: 9 | AC125: 6 | AD125: 2 | AE125: 17 | AF125: 9 | AG125: 3 | AH125: 2 | AI125: 14 | AJ125: 9 | AK125: 16 | AL125: 6 | AM125: 31 | AN125: 9 | AO125: 9 | AP125: 17 | AQ125: 35 | AR125: 10 | AS125: 19 | AT125: 17 | AU125: 46 | AV125: 9 | AW125: 12 | AX125: 15 | AY125: 36 | AZ125: 9 | BA125: 14 | BB125: 14 | BC125: 37 | BD125: 9 | BE125: 19 | BF125: 15 | BG125: 43 | BH125: 2 | BI125: 5 | BJ125: 4 | BK125: 8 | BL125: 4 | BM125: 11 | BN125: 10 | BO125: 24 | BP125: 34 | BQ125: 134 | BR125: 364 | BS125: 3 | BT125: 4 | BU125: 5 | BV125: 12 | BW125: 3 | BX125: 5 | BY125: 4 | BZ125: 12 | CA125: دورثان | CB125: فى : محاسبة مالية - احصاء - | CC125: 2 | CD125: 6 | CE125: 6/3 | CK125: محاسبة مالية - | CL125: احصاء - | CW125: 0 | CX125: 2
A126: 117 | B126: 1117 | C126: فاطمة ابو الحسن ابراهيم طايع | D126: 1/2 | K126: بنات | L126: انتظام | M126: صباحى | O126: 3072 | P126: 9 | Q126: 8 | R126: 12 | S126: 29 | T126: 8 | U126: 6 | V126: 6 | W126: 20 | X126: 4 | Y126: 4 | Z126: 4 | AA126: 12 | AB126: 9 | AC126: 13 | AD126: 15 | AE126: 37 | AF126: 9 | AG126: 11 | AH126: 16 | AI126: 36 | AJ126: 9 | AK126: 17 | AL126: 18 | AM126: 44 | AN126: 9 | AO126: 11 | AP126: 16 | AQ126: 36 | AR126: 9 | AS126: 19 | AT126: 14 | AU126: 42 | AV126: 9 | AW126: 14 | AX126: 15 | AY126: 38 | AZ126: 10 | BA126: 20 | BB126: 20 | BC126: 50 | BD126: 10 | BE126: 17 | BF126: 20 | BG126: 47 | BH126: 3 | BI126: 5 | BJ126: 4 | BK126: 9 | BL126: 4 | BM126: 12 | BN126: 11 | BO126: 26 | BP126: 37 | BQ126: 153 | BR126: 428 | BS126: 3 | BT126: 6 | BU126: 8 | BV126: 17 | BW126: 3 | BX126: 4 | BY126: 8 | BZ126: 15 | CA126: ناجحة | CB126: ومنقولة للصف الثالث | CC126: 0 | CD126: 6 | CE126: 6/3 | CW126: 0 | CX126: 0
A127: 118 | B127: 1118 | C127: فاطمة ابو العلا محمود سليمان | D127: 3/2 | K127: بنات | L127: انتظام | M127: صباحى | O127: 3073 | P127: 9 | Q127: 9 | R127: 13 | S127: 31 | T127: 8 | U127: 7 | V127: 5 | W127: 20 | X127: 4 | Y127: 6 | Z127: 5 | AA127: 15 | AB127: 9 | AC127: 11 | AD127: 5 | AE127: 25 | AF127: 9 | AG127: 1 | AH127: 4 | AI127: 14 | AJ127: 9 | AK127: 2 | AL127: 5 | AM127: 16 | AN127: 9 | AO127: 6 | AP127: 14 | AQ127: 29 | AR127: 9 | AS127: 10 | AT127: 14 | AU127: 33 | AV127: 9 | AW127: 10 | AX127: 13 | AY127: 32 | AZ127: 9 | BA127: 11 | BB127: 17 | BC127: 37 | BD127: 9 | BE127: 13 | BF127: 10 | BG127: 32 | BH127: 3 | BI127: 5 | BJ127: 6 | BK127: 5 | BL127: 4 | BM127: 8 | BN127: 13 | BO127: 18 | BP127: 31 | BQ127: 97 | BR127: 315 | BS127: 3 | BT127: 5 | BU127: 8 | BV127: 16 | BW127: 3 | BX127: 6 | BY127: 4 | BZ127: 13 | CA127: دورثان | CB127: فى : احصاء - رياضة مالية - | CC127: 2 | CD127: 6 | CE127: 6/3 | CL127: احصاء - | CM127: رياضة مالية - | CW127: 0 | CX127: 2
A128: 119 | B128: 1119 | C128: فاطمة احمد الليثى عبد الدايم | D128: 3/2 | K128: بنات | L128: انتظام | M128: صباحى | O128: 3074 | P128: 9 | Q128: 10 | R128: 13 | S128: 32 | T128: 8 | U128: 6 | V128: 6 | W128: 20 | X128: 4 | Y128: 3 | Z128: 4 | AA128: 11 | AB128: 9 | AC128: 12 | AD128: 11 | AE128: 32 | AF128: 9 | AG128: 6 | AH128: 13 | AI128: 28 | AJ128: 9 | AK128: 13 | AL128: 13 | AM128: 35 | AN128: 9 | AO128: 12 | AP128: 10 | AQ128: 31 | AR128: 9 | AS128: 18 | AT128: 14 | AU128: 41 | AV128: 9 | AW128: 15 | AX128: 14 | AY128: 38 | AZ128: 9 | BA128: 15 | BB128: 11 | BC128: 35 | BD128: 9 | BE128: 14 | BF128: 20 | BG128: 43 | BH128: 2 | BI128: 5 | BJ128: 4 | BK128: 9 | BL128: 5 | BM128: 10 | BN128: 11 | BO128: 24 | BP128: 35 | BQ128: 137 | BR128: 381 | BS128: 3 | BT128: 6 | BU128: 7 | BV128: 16 | BW128: 3 | BX128: 5 | BY128: 6 | BZ128: 14 | CA128: ناجحة | CB128: ومنقولة للصف الثالث | CC128: 0 | CD128: 6 | CE128: 6/3 | CW128: 0 | CX128: 0
A129: 120 | B129: 1120 | C129: فاطمة بكرى عبد الحميد الضوى | D129: 1/2 | K129: بنات | L129: انتظام | M129: صباحى | O129: 3075 | P129: 9 | Q129: 9 | R129: 14 | S129: 32 | T129: 8 | U129: 3 | V129: 4 | W129: 15 | X129: 4 | Y129: 6 | Z129: 3 | AA129: 13 | AB129: 9 | AC129: 10 | AD129: 0 | AE129: 19 | AF129: 9 | AG129: 6 | AH129: 10 | AI129: 25 | AJ129: 9 | AK129: 4 | AL129: 14 | AM129: 27 | AN129: 9 | AO129: 13 | AP129: 14 | AQ129: 36 | AR129: 9 | AS129: 13 | AT129: 16 | AU129: 38 | AV129: 9 | AW129: 8 | AX129: 15 | AY129: 32 | AZ129: 9 | BA129: 13 | BB129: 15 | BC129: 37 | BD129: 9 | BE129: 12 | BF129: 15 | BG129: 36 | BH129: 2 | BI129: 5 | BJ129: 4 | BK129: 7 | BL129: 5 | BM129: 8 | BN129: 11 | BO129: 20 | BP129: 31 | BQ129: 108 | BR129: 341 | BS129: 3 | BT129: 4 | BU129: 7 | BV129: 14 | BW129: 3 | BX129: 5 | BY129: 6 | BZ129: 14 | CA129: دورثان | CB129: فى : انجليزى - محاسبة مالية - | CC129: 2 | CD129: 6 | CE129: 6/3 | CI129: انجليزى - | CK129: محاسبة مالية - | CW129: 0 | CX129: 2
A130: 121 | B130: 1121 | C130: فاطمة حسن محمد رشيدى | D130: 1/2 | K130: بنات | L130: انتظام | M130: صباحى | O130: 3076 | P130: 9 | Q130: 8 | R130: 8 | S130: 25 | T130: 8 | U130: 6 | V130: 6 | W130: 20 | X130: 4 | Y130: 4 | Z130: 4 | AA130: 12 | AB130: 8 | AC130: 5 | AD130: 12 | AE130: 25 | AF130: 9 | AG130: 3 | AH130: 13 | AI130: 25 | AJ130: 9 | AK130: 7 | AL130: 18 | AM130: 34 | AN130: 9 | AO130: 10 | AP130: 9 | AQ130: 28 | AR130: 9 | AS130: 10 | AT130: 10 | AU130: 29 | AV130: 9 | AW130: 14 | AX130: 11 | AY130: 34 | AZ130: 9 | BA130: 18 | BB130: 17 | BC130: 44 | BD130: 9 | BE130: 11 | BF130: 20 | BG130: 40 | BH130: 3 | BI130: 5 | BJ130: 5 | BK130: 8 | BL130: 4 | BM130: 11 | BN130: 12 | BO130: 24 | BP130: 36 | BQ130: 109 | BR130: 352 | BS130: 3 | BT130: 4 | BU130: 8 | BV130: 15 | BW130: 3 | BX130: 5 | BY130: 5 | BZ130: 13 | CA130: ناجحة | CB130: ومنقولة للصف الثالث | CC130: 0 | CD130: 6 | CE130: 6/3 | CW130: 0 | CX130: 0
A131: 122 | B131: 1122 | C131: فاطمة حمدنا الله محمد خضرى | D131: 4/2 | J131: مسيحية | K131: بنات | L131: انتظام | M131: صباحى | O131: 3077 | P131: 9 | Q131: 11 | R131: 14 | S131: 34 | T131: 8 | U131: 7 | V131: 5 | W131: 20 | X131: 4 | Y131: 5 | Z131: 5 | AA131: 14 | AB131: 9 | AC131: 12 | AD131: 7 | AE131: 28 | AF131: 9 | AG131: 5 | AH131: 11 | AI131: 25 | AJ131: 9 | AK131: 9 | AL131: 14 | AM131: 32 | AN131: 9 | AO131: 5 | AP131: 13 | AQ131: 27 | AR131: 9 | AS131: 15 | AT131: 17 | AU131: 41 | AV131: 9 | AW131: 11 | AX131: 16 | AY131: 36 | AZ131: 9 | BA131: 14 | BB131: 16 | BC131: 39 | BD131: 9 | BE131: 15 | BF131: 15 | BG131: 39 | BH131: 3 | BI131: 5 | BJ131: 5 | BK131: 11 | BL131: 5 | BM131: 10 | BN131: 13 | BO131: 26 | BP131: 39 | BQ131: 125 | BR131: 374 | BS131: 3 | BT131: 7 | BU131: 7 | BV131: 17 | BW131: 3 | BX131: 5 | BY131: 5 | BZ131: 13 | CA131: ناجحة | CB131: ومنقولة للصف الثالث | CC131: 0 | CD131: 6 | CE131: 6/3 | CW131: 0 | CX131: 0
A132: 123 | B132: 1123 | C132: فاطمة خالد احمد حمدان | D132: 4/2 | J132: مسيحية | K132: بنات | L132: انتظام | M132: صباحى | O132: 3078 | P132: 9 | Q132: 13 | R132: 14 | S132: 36 | T132: 8 | U132: 5 | V132: 8 | W132: 21 | X132: 4 | Y132: 4 | Z132: 4 | AA132: 12 | AB132: 9 | AC132: 10 | AD132: 6 | AE132: 25 | AF132: 9 | AG132: 2 | AH132: 18 | AI132: 29 | AJ132: 9 | AK132: 3 | AL132: 13 | AM132: 25 | AN132: 9 | AO132: 8 | AP132: 17 | AQ132: 34 | AR132: 9 | AS132: 15 | AT132: 13 | AU132: 37 | AV132: 9 | AW132: 16 | AX132: 16 | AY132: 41 | AZ132: 10 | BA132: 20 | BB132: 17 | BC132: 47 | BD132: 9 | BE132: 15 | BF132: 19 | BG132: 43 | BH132: 3 | BI132: 5 | BJ132: 5 | BK132: 9 | BL132: 7 | BM132: 12 | BN132: 15 | BO132: 26 | BP132: 41 | BQ132: 125 | BR132: 391 | BS132: 3 | BT132: 6 | BU132: 6 | BV132: 15 | BW132: 3 | BX132: 5 | BY132: 7 | BZ132: 15 | CA132: ناجحة | CB132: ومنقولة للصف الثالث | CC132: 0 | CD132: 7 | CE132: 7/3 | CW132: 0 | CX132: 0
A133: 124 | B133: 1124 | C133: فاطمة صلاح الدين عبد السلام | D133: 7/2 | K133: بنات | L133: انتظام | M133: صباحى | O133: 3079 | P133: 9 | Q133: 10 | R133: 10 | S133: 29 | T133: 8 | U133: 7 | V133: 5 | W133: 20 | X133: 4 | Y133: 5 | Z133: 4 | AA133: 13 | AB133: 9 | AC133: 8 | AD133: 8 | AE133: 25 | AF133: 9 | AG133: 14 | AH133: 18 | AI133: 41 | AJ133: 10 | AK133: 17 | AL133: 19 | AM133: 46 | AN133: 9 | AO133: 4 | AP133: 15 | AQ133: 28 | AR133: 9 | AS133: 16 | AT133: 17 | AU133: 42 | AV133: 9 | AW133: 9 | AX133: 14 | AY133: 32 | AZ133: 9 | BA133: 14 | BB133: 15 | BC133: 38 | BD133: 9 | BE133: 18 | BF133: 17 | BG133: 44 | BH133: 2 | BI133: 5 | BJ133: 4 | BK133: 9 | BL133: 4 | BM133: 9 | BN133: 10 | BO133: 23 | BP133: 33 | BQ133: 135 | BR133: 391 | BS133: 3 | BT133: 7 | BU133: 7 | BV133: 17 | BW133: 3 | BX133: 6 | BY133: 4 | BZ133: 13 | CA133: ناجحة | CB133: ومنقولة للصف الثالث | CC133: 0 | CD133: 7 | CE133: 7/3 | CW133: 0 | CX133: 0
A134: 125 | B134: 1125 | C134: فاطمة عبد العزيز محمود امين | D134: 4/2 | K134: بنات | L134: انتظام | M134: صباحى | O134: 3080 | P134: 9 | Q134: 14 | R134: 14 | S134: 37 | T134: 8 | U134: 5 | V134: 7 | W134: 20 | X134: 4 | Y134: 6 | Z134: 4 | AA134: 14 | AB134: 9 | AC134: 5 | AD134: 4 | AE134: 18 | AF134: 9 | AG134: 4 | AH134: 13 | AI134: 26 | AJ134: 9 | AK134: 2 | AL134: 5 | AM134: 16 | AN134: 9 | AO134: 3 | AP134: 13 | AQ134: 25 | AR134: 9 | AS134: 16 | AT134: 13 | AU134: 38 | AV134: 9 | AW134: 11 | AX134: 16 | AY134: 36 | AZ134: 10 | BA134: 20 | BB134: 17 | BC134: 47 | BD134: 9 | BE134: 15 | BF134: 19 | BG134: 43 | BH134: 3 | BI134: 5 | BJ134: 4 | BK134: 9 | BL134: 5 | BM134: 12 | BN134: 12 | BO134: 26 | BP134: 38 | BQ134: 114 | BR134: 358 | BS134: 3 | BT134: 5 | BU134: 8 | BV134: 16 | BW134: 3 | BX134: 4 | BY134: 5 | BZ134: 12 | CA134: دورثان | CB134: فى : محاسبة مالية - رياضة مالية - | CC134: 2 | CD134: 7 | CE134: 7/3 | CK134: محاسبة مالية - | CM134: رياضة مالية - | CW134: 0 | CX134: 2
A135: 126 | B135: 1126 | C135: فاطمة عبد الله محمود محمد | D135: 4/2 | K135: بنات | L135: انتظام | M135: صباحى | O135: 3081 | P135: غ | Q135: غ | R135: غ | S135: 0 | T135: غ | U135: غ | V135: غ | W135: 0 | X135: غ | Y135: غ | Z135: غ | AA135: 0 | AB135: غ | AC135: غ | AD135: غ | AE135: 0 | AF135: غ | AG135: غ | AH135: غ | AI135: 0 | AJ135: غ | AK135: غ | AL135: غ | AM135: 0 | AN135: غ | AO135: غ | AP135: غ | AQ135: 0 | AR135: غ | AS135: غ | AT135: غ | AU135: 0 | AV135: غ | AW135: غ | AX135: غ | AY135: 0 | AZ135: غ | BA135: غ | BB135: غ | BC135: 0 | BD135: غ | BE135: غ | BF135: غ | BG135: 0 | BH135: غ | BI135: غ | BJ135: غ | BK135: غ | BL135: غ | BM135: غ | BN135: 0 | BO135: 0 | BP135: 0 | BQ135: 0 | BR135: 0 | BS135: غ | BT135: غ | BU135: غ | BV135: 0 | BW135: غ | BX135: غ | BY135: غ | BZ135: 0 | CA135: راسبة | CB135: فى : عربى - انجليزى - فرنسى - محاسبة مالية - احصاء - رياضة مالية - اقتصاد - سكرتارية عربية - سكرتارية اجنبية - ادارة مشروعات - ادارة مخازن - حاسب - مواطنة - دين - مجموع | CC135: 13 | CD135: 7 | CE135: 7/3 | CH135: عربى - | CI135: انجليزى - | CJ135: فرنسى - | CK135: محاسبة مالية - | CL135: احصاء - | CM135: رياضة مالية - | CN135: اقتصاد - | CO135: سكرتارية عربية - | CP135: سكرتارية اجنبية - | CQ135: ادارة مشروعات - | CR135: ادارة مخازن - | CS135: حاسب - | CT135: مواطنة - | CU135: دين - | CV135: مجموع | CW135: 2 | CX135: 15
A136: 127 | B136: 1127 | C136: ندا سيد عابدين سيد | D136: 3/2 | K136: بنات | L136: انتظام | M136: صباحى | O136: 3082 | P136: 10 | Q136: 13 | R136: 19 | S136: 42 | T136: 8 | U136: 6 | V136: 8 | W136: 22 | X136: 4 | Y136: 4 | Z136: 7 | AA136: 15 | AB136: 10 | AC136: 19 | AD136: 20 | AE136: 49 | AF136: 10 | AG136: 20 | AH136: 20 | AI136: 50 | AJ136: 10 | AK136: 19 | AL136: 19 | AM136: 48 | AN136: 9 | AO136: 18 | AP136: 19 | AQ136: 46 | AR136: 9 | AS136: 20 | AT136: 17 | AU136: 46 | AV136: 10 | AW136: 18 | AX136: 19 | AY136: 47 | AZ136: 10 | BA136: 20 | BB136: 20 | BC136: 50 | BD136: 9 | BE136: 15 | BF136: 20 | BG136: 44 | BH136: 3 | BI136: 5 | BJ136: 6 | BK136: 10 | BL136: 5 | BM136: 11 | BN136: 14 | BO136: 26 | BP136: 40 | BQ136: 188 | BR136: 499 | BS136: 3 | BT136: 8 | BU136: 8 | BV136: 19 | BW136: 3 | BX136: 7 | BY136: 8 | BZ136: 18 | CA136: ناجحة | CB136: ومنقولة للصف الثالث | CC136: 0 | CD136: 7 | CE136: 7/3 | CW136: 0 | CX136: 0
A137: 128 | B137: 1128 | C137: ندى مصطفى زكى ابو الوفا | D137: 4/2 | K137: بنات | L137: انتظام | M137: صباحى | O137: 3083 | P137: 10 | Q137: 13 | R137: 17 | S137: 40 | T137: 8 | U137: 5 | V137: 7 | W137: 20 | X137: 5 | Y137: 8 | Z137: 5 | AA137: 18 | AB137: 9 | AC137: 14 | AD137: 17 | AE137: 40 | AF137: 10 | AG137: 19 | AH137: 20 | AI137: 49 | AJ137: 10 | AK137: 20 | AL137: 20 | AM137: 50 | AN137: 9 | AO137: 10 | AP137: 17 | AQ137: 36 | AR137: 9 | AS137: 17 | AT137: 18 | AU137: 44 | AV137: 9 | AW137: 19 | AX137: 16 | AY137: 44 | AZ137: 10 | BA137: 19 | BB137: 17 | BC137: 46 | BD137: 9 | BE137: 16 | BF137: 18 | BG137: 43 | BH137: 3 | BI137: 5 | BJ137: 5 | BK137: 7 | BL137: 8 | BM137: 12 | BN137: 16 | BO137: 24 | BP137: 40 | BQ137: 172 | BR137: 470 | BS137: 3 | BT137: 8 | BU137: 8 | BV137: 19 | BW137: 3 | BX137: 8 | BY137: 7 | BZ137: 18 | CA137: ناجحة | CB137: ومنقولة للصف الثالث | CC137: 0 | CD137: 7 | CE137: 7/3 | CW137: 0 | CX137: 0
A138: 129 | B138: 1129 | C138: نرجس عمر مصطفى احمد | D138: 2/2 | K138: بنات | L138: انتظام | M138: صباحى | O138: 3084 | P138: 9 | Q138: 7 | R138: 9 | S138: =IF($C138="","",SUM(P138,Q138,R138)) -> 25 | T138: 8 | U138: 7 | V138: 5 | W138: =IF($C138="","",SUM(T138,U138,V138)) -> 20 | X138: 4 | Y138: 5 | Z138: 5 | AA138: =IF($C138="","",SUM(X138,Y138,Z138)) -> 14 | AB138: 10 | AC138: 20 | AD138: 19 | AE138: =IF($C138="","",SUM(AB138,AC138,AD138)) -> 49 | AF138: 10 | AG138: 20 | AH138: 20 | AI138: =IF($C138="","",SUM(AF138,AG138,AH138)) -> 50 | AJ138: 10 | AK138: 20 | AL138: 20 | AM138: =IF($C138="","",SUM(AJ138:AL138)) -> 50 | AN138: 9 | AO138: 13 | AP138: 19 | AQ138: =IF($C138="","",SUM(AN138,AO138,AP138)) -> 41 | AR138: 10 | AS138: 19 | AT138: 18 | AU138: =IF($C138="","",SUM(AR138,AS138,AT138)) -> 47 | AV138: 10 | AW138: 17 | AX138: 19 | AY138: =IF($C138="","",SUM(AV138,AW138,AX138)) -> 46 | AZ138: 10 | BA138: 20 | BB138: 20 | BC138: =IF($C138="","",SUM(AZ138,BA138,BB138)) -> 50 | BD138: 10 | BE138: 17 | BF138: 20 | BG138: =IF($C138="","",SUM(BD138,BE138,BF138)) -> 47 | BH138: 3 | BI138: 5 | BJ138: 4 | BK138: 10 | BL138: 5 | BM138: 11 | BN138: =IF($C138="","",SUM(BH138,BJ138,BL138)) -> 12 | BO138: 26 | BP138: =IF($C138="","",SUM(BN138,BO138)) -> 38 | BQ138: =IF($C138="","",SUM(Q138,U138,Y138,AC138,AG138,AK138,AO138,AS138,AW138,BA138,BE138,BJ138,BK138)) -> 179 | BR138: =IF($C138="","",SUM(S138,W138,AA138,AE138,AI138,AM138,AQ138,AU138,AY138,BC138,BG138,BP138)) -> 477 | BS138: 3 | BT138: 6 | BU138: 6 | BV138: =IF($C138="","",SUM(BS138,BT138,BU138)) -> 15 | BW138: 3 | BX138: 5 | BY138: 2 | BZ138: =IF($C138="","",SUM(BW138,BX138,BY138)) -> 10 | CA138: =IF($C138="","",IF(CC138=0,"ناجحة",IF(CC138<=2,"دورثان","راسبة"))) -> ناجحة | CB138: =IF($C138="","",IF(CC138=0,"ومنقولة للصف الثالث",IF(CC138>0,"فى : "&CONCATENATE(CH138,CI138,CJ138,CK138,CL138,CM138,CN138,CO138,CP138,CQ138,CR138,CS138,CT138,CU138,CV138),CONCATENATE(CH138,CI138,CJ138,CK138,CL138,CM138,CN138,CO138,CP138,CQ138,CR138,CS138,CT138,CU138,CV138)))) -> ومنقولة للصف الثالث | CC138: 0 | CD138: 7 | CE138: 7/3 | CH138: =IF($C138="","",IF(OR(R138<$R$9,R138="غ",S138<$S$9),$CH$5&" - ","")) ->  | CI138: =IF($C138="","",IF(OR(V138<$V$9,V138="غ",W138<$W$9),$CI$5&" - ","")) ->  | CJ138: =IF($C138="","",IF(OR(Z138<$Z$9,Z138="غ",AA138<$AA$9),CJ$5&" - ","")) ->  | CK138: =IF($C138="","",IF(OR(AD138<$AD$9,AD138="غ",AE138<$AE$9),CK$5&" - ","")) ->  | CL138: =IF($C138="","",IF(OR(AH138<$AH$9,AH138="غ",AI138<$AI$9),CL$5&" - ","")) ->  | CM138: =IF($C138="","",IF(OR(AL138<$AL$9,AL138="غ",AM138<$AM$9),CM$5&" - ","")) ->  | CN138: =IF($C138="","",IF(OR(AP138<$AP$9,AP138="غ",AQ138<$AQ$9),CN$5&" - ","")) ->  | CO138: =IF($C138="","",IF(OR(AT138<$AT$9,AT138="غ",AU138<$AU$9),CO$5&" - ","")) ->  | CP138: =IF($C138="","",IF(OR(AX138<$AX$9,AX138="غ",AY138<$AY$9),CP$5&" - ","")) ->  | CQ138: =IF($C138="","",IF(OR(BB138<$BB$9,BB138="غ",BC138<$BC$9),CQ$5&" - ","")) ->  | CR138: =IF($C138="","",IF(OR(BF138<$BF$9,BF138="غ",BG138<$BG$9),CR$5&" - ","")) ->  | CS138: =IF($C138="","",IF(OR(BN138<$BN$9,BN138="غ",BO138<$BO$9,BO138="غ",BP138<$BP$9),CS$5&" - ","")) ->  | CT138: =IF($C138="","",IF(OR(BU138<$BU$9,BU138="غ",BV138<$BV$9),CT$5&" - ","")) ->  | CU138: =IF($C138="","",IF(OR(BY138<$BY$9,BY138="غ",BZ138<$BZ$9),CU$5&" - ","")) ->  | CV138: =IF($C138="","",IF(BR138<$BR$9,CV$5,"")) ->  | CW138: 0 | CX138: 0
A139: 130 | B139: 1130 | C139: نعمة فتحى احمد بدران | D139: 1/2 | K139: بنات | L139: انتظام | M139: صباحى | O139: 3085 | P139: 9 | Q139: 13 | R139: 15 | S139: 37 | T139: 8 | U139: 4 | V139: 8 | W139: 20 | X139: 4 | Y139: 6 | Z139: 5 | AA139: 15 | AB139: 9 | AC139: 15 | AD139: 13 | AE139: 37 | AF139: 9 | AG139: 13 | AH139: 18 | AI139: 40 | AJ139: 9 | AK139: 13 | AL139: 16 | AM139: 38 | AN139: 9 | AO139: 12 | AP139: 19 | AQ139: 40 | AR139: 10 | AS139: 19 | AT139: 18 | AU139: 47 | AV139: 9 | AW139: 17 | AX139: 15 | AY139: 41 | AZ139: 9 | BA139: 15 | BB139: 17 | BC139: 41 | BD139: 9 | BE139: 18 | BF139: 16 | BG139: 43 | BH139: 2 | BI139: 5 | BJ139: 4 | BK139: 10 | BL139: 6 | BM139: 12 | BN139: 12 | BO139: 27 | BP139: 39 | BQ139: 159 | BR139: 438 | BS139: 3 | BT139: 7 | BU139: 7 | BV139: 17 | BW139: 3 | BX139: 8 | BY139: 7 | BZ139: 18 | CA139: ناجحة | CB139: ومنقولة للصف الثالث | CC139: =IF($C139="","",COUNTIF($CH139:$CS139,"?*")+COUNTIF($CV139,"?*")) -> 0 | CD139: 7 | CE139: 7/3 | CW139: =IF($C139="","",COUNTIF($CT139:$CU139,"?*")) -> 0 | CX139: =IF($C139="","",CC139+CW139) -> 0
A140: 131 | B140: 1131 | C140: نعمة محمد موسى الفاوى | D140: 3/2 | K140: بنات | L140: انتظام | M140: صباحى | O140: 3086 | P140: 9 | Q140: 9 | R140: 16 | S140: 34 | T140: 8 | U140: 9 | V140: 8 | W140: 25 | X140: 4 | Y140: 4 | Z140: 7 | AA140: 15 | AB140: 9 | AC140: 14 | AD140: 18 | AE140: 41 | AF140: 9 | AG140: 19 | AH140: 16 | AI140: 44 | AJ140: 10 | AK140: 20 | AL140: 19 | AM140: 49 | AN140: 9 | AO140: 15 | AP140: 19 | AQ140: 43 | AR140: 10 | AS140: 18 | AT140: 20 | AU140: 48 | AV140: 9 | AW140: 19 | AX140: 14 | AY140: 42 | AZ140: 10 | BA140: 20 | BB140: 20 | BC140: 50 | BD140: 10 | BE140: 18 | BF140: 20 | BG140: 48 | BH140: 3 | BI140: 5 | BJ140: 5 | BK140: 10 | BL140: 7 | BM140: 12 | BN140: 15 | BO140: 27 | BP140: 42 | BQ140: 180 | BR140: 481 | BS140: 3 | BT140: 7 | BU140: 8 | BV140: 18 | BW140: 3 | BX140: 7 | BY140: 8 | BZ140: 18 | CA140: ناجحة | CB140: ومنقولة للصف الثالث | CC140: 0 | CD140: 7 | CE140: 7/3 | CW140: 0 | CX140: 0
A141: 132 | B141: 1132 | C141: نفيسة سعدى حامد محمد | D141: 5/2 | K141: بنات | L141: انتظام | M141: صباحى | O141: 3087 | P141: 10 | Q141: 17 | R141: 19 | S141: 46 | T141: 8 | U141: 10 | V141: 13 | W141: 31 | X141: 4 | Y141: 5 | Z141: 5 | AA141: 14 | AB141: 9 | AC141: 17 | AD141: 16 | AE141: 42 | AF141: 9 | AG141: 18 | AH141: 20 | AI141: 47 | AJ141: 10 | AK141: 20 | AL141: 18 | AM141: 48 | AN141: 9 | AO141: 18 | AP141: 20 | AQ141: 47 | AR141: 10 | AS141: 19 | AT141: 17 | AU141: 46 | AV141: 9 | AW141: 17 | AX141: 13 | AY141: 39 | AZ141: 10 | BA141: 19 | BB141: 20 | BC141: 49 | BD141: 10 | BE141: 19 | BF141: 18 | BG141: 47 | BH141: 3 | BI141: 5 | BJ141: 6 | BK141: 11 | BL141: 7 | BM141: 12 | BN141: 16 | BO141: 28 | BP141: 44 | BQ141: 196 | BR141: 500 | BS141: 3 | BT141: 7 | BU141: 8 | BV141: 18 | BW141: 3 | BX141: 8 | BY141: 5 | BZ141: 16 | CA141: ناجحة | CB141: ومنقولة للصف الثالث | CC141: 0 | CD141: 7 | CE141: 7/3 | CW141: 0 | CX141: 0
A142: 133 | B142: 1133 | C142: نهى إسماعيل شيبة الحمد احمد | D142: 2/2 | K142: بنات | L142: انتظام | M142: صباحى | O142: 3088 | P142: 9 | Q142: 14 | R142: 13 | S142: 36 | T142: 8 | U142: 7 | V142: 6 | W142: 21 | X142: 4 | Y142: 4 | Z142: 6 | AA142: 14 | AB142: 10 | AC142: 18 | AD142: 20 | AE142: 48 | AF142: 9 | AG142: 18 | AH142: 17 | AI142: 44 | AJ142: 10 | AK142: 20 | AL142: 20 | AM142: 50 | AN142: 9 | AO142: 16 | AP142: 18 | AQ142: 43 | AR142: 10 | AS142: 19 | AT142: 20 | AU142: 49 | AV142: 9 | AW142: 19 | AX142: 15 | AY142: 43 | AZ142: 10 | BA142: 20 | BB142: 20 | BC142: 50 | BD142: 10 | BE142: 18 | BF142: 20 | BG142: 48 | BH142: 4 | BI142: 5 | BJ142: 8 | BK142: 8 | BL142: 5 | BM142: 12 | BN142: 17 | BO142: 25 | BP142: 42 | BQ142: 189 | BR142: 488 | BS142: 3 | BT142: 6 | BU142: 7 | BV142: 16 | BW142: 3 | BX142: 7 | BY142: 7 | BZ142: 17 | CA142: ناجحة | CB142: ومنقولة للصف الثالث | CC142: 0 | CD142: 7 | CE142: 7/3 | CW142: 0 | CX142: 0
A143: 134 | B143: 1134 | C143: نورا مبارك احمد مدنى | D143: 4/2 | K143: بنات | L143: انتظام | M143: صباحى | O143: 3089 | P143: 9 | Q143: 12 | R143: 17 | S143: 38 | T143: 8 | U143: 6 | V143: 6 | W143: 20 | X143: 4 | Y143: 6 | Z143: 4 | AA143: 14 | AB143: 9 | AC143: 15 | AD143: 19 | AE143: 43 | AF143: 9 | AG143: 11 | AH143: 16 | AI143: 36 | AJ143: 9 | AK143: 16 | AL143: 18 | AM143: 43 | AN143: 9 | AO143: 6 | AP143: 20 | AQ143: 35 | AR143: 9 | AS143: 15 | AT143: 16 | AU143: 40 | AV143: 9 | AW143: 15 | AX143: 13 | AY143: 37 | AZ143: 10 | BA143: 17 | BB143: 19 | BC143: 46 | BD143: 9 | BE143: 19 | BF143: 16 | BG143: 44 | BH143: 2 | BI143: 5 | BJ143: 4 | BK143: 8 | BL143: 5 | BM143: 11 | BN143: 11 | BO143: 24 | BP143: 35 | BQ143: 150 | BR143: 431 | BS143: 3 | BT143: 7 | BU143: 7 | BV143: 17 | BW143: 3 | BX143: 5 | BY143: 6 | BZ143: 14 | CA143: ناجحة | CB143: ومنقولة للصف الثالث | CC143: 0 | CD143: 7 | CE143: 7/3 | CW143: 0 | CX143: 0
A144: 135 | B144: 1135 | C144: نوره شحات عبد ربه متولى | D144: 1/2 | K144: بنات | L144: انتظام | M144: صباحى | O144: 3090 | P144: 10 | Q144: 13 | R144: 17 | S144: 40 | T144: 8 | U144: 10 | V144: 12 | W144: 30 | X144: 4 | Y144: 5 | Z144: 5 | AA144: 14 | AB144: 10 | AC144: 19 | AD144: 17 | AE144: 46 | AF144: 9 | AG144: 20 | AH144: 20 | AI144: 49 | AJ144: 10 | AK144: 20 | AL144: 20 | AM144: 50 | AN144: 9 | AO144: 5 | AP144: 19 | AQ144: 33 | AR144: 9 | AS144: 16 | AT144: 18 | AU144: 43 | AV144: 9 | AW144: 17 | AX144: 17 | AY144: 43 | AZ144: 10 | BA144: 19 | BB144: 20 | BC144: 49 | BD144: 10 | BE144: 17 | BF144: 20 | BG144: 47 | BH144: 3 | BI144: 5 | BJ144: 5 | BK144: 9 | BL144: 7 | BM144: 12 | BN144: 15 | BO144: 26 | BP144: 41 | BQ144: 175 | BR144: 485 | BS144: 3 | BT144: 8 | BU144: 8 | BV144: 19 | BW144: 3 | BX144: 6 | BY144: 5 | BZ144: 14 | CA144: ناجحة | CB144: ومنقولة للصف الثالث | CC144: 0 | CD144: 7 | CE144: 7/3 | CW144: 0 | CX144: 0
A145: 136 | B145: 1136 | C145: نورهان عبد الحميد سليمان عبد الدايم | D145: 2/2 | K145: بنات | L145: انتظام | M145: صباحى | O145: 3091 | P145: 10 | Q145: 14 | R145: 16 | S145: 40 | T145: 8 | U145: 8 | V145: 12 | W145: 28 | X145: 5 | Y145: 7 | Z145: 5 | AA145: 17 | AB145: 9 | AC145: 19 | AD145: 15 | AE145: 43 | AF145: 10 | AG145: 20 | AH145: 20 | AI145: 50 | AJ145: 10 | AK145: 20 | AL145: 20 | AM145: 50 | AN145: 9 | AO145: 6 | AP145: 17 | AQ145: 32 | AR145: 9 | AS145: 19 | AT145: 16 | AU145: 44 | AV145: 9 | AW145: 15 | AX145: 16 | AY145: 40 | AZ145: 9 | BA145: 17 | BB145: 15 | BC145: 41 | BD145: 10 | BE145: 20 | BF145: 18 | BG145: 48 | BH145: 4 | BI145: 5 | BJ145: 8 | BK145: 10 | BL145: 8 | BM145: 11 | BN145: 20 | BO145: 26 | BP145: 46 | BQ145: 183 | BR145: 479 | BS145: 3 | BT145: 7 | BU145: 8 | BV145: 18 | BW145: 3 | BX145: 6 | BY145: 7 | BZ145: 16 | CA145: ناجحة | CB145: ومنقولة للصف الثالث | CC145: 0 | CD145: 7 | CE145: 7/3 | CW145: 0 | CX145: 0
A146: 137 | B146: 1137 | C146: نيفين ابراهيم بولس ايوب | D146: 5/2 | J146: مسيحية | K146: بنات | L146: انتظام | M146: صباحى | O146: 3092 | P146: 9 | Q146: 12 | R146: 14 | S146: 35 | T146: 8 | U146: 7 | V146: 6 | W146: 21 | X146: 4 | Y146: 4 | Z146: 5 | AA146: 13 | AB146: 9 | AC146: 15 | AD146: 11 | AE146: 35 | AF146: 10 | AG146: 20 | AH146: 20 | AI146: 50 | AJ146: 10 | AK146: 20 | AL146: 19 | AM146: 49 | AN146: 9 | AO146: 10 | AP146: 19 | AQ146: 38 | AR146: 10 | AS146: 19 | AT146: 20 | AU146: 49 | AV146: 9 | AW146: 15 | AX146: 15 | AY146: 39 | AZ146: 10 | BA146: 19 | BB146: 20 | BC146: 49 | BD146: 10 | BE146: 19 | BF146: 20 | BG146: 49 | BH146: 3 | BI146: 5 | BJ146: 5 | BK146: 9 | BL146: 5 | BM146: 12 | BN146: 13 | BO146: 26 | BP146: 39 | BQ146: 174 | BR146: 466 | BS146: 3 | BT146: 7 | BU146: 7 | BV146: 17 | BW146: 3 | BX146: 7 | BY146: 5 | BZ146: 15 | CA146: ناجحة | CB146: ومنقولة للصف الثالث | CC146: 0 | CD146: 7 | CE146: 7/3 | CW146: 0 | CX146: 0
A147: 138 | B147: 1138 | C147: هاجر عبد الرازق عبد العزيز | D147: 6/2 | K147: بنات | L147: انتظام | M147: صباحى | O147: 3093 | P147: 9 | Q147: 10 | R147: 14 | S147: 33 | T147: 8 | U147: 9 | V147: 8 | W147: 25 | X147: 4 | Y147: 7 | Z147: 3 | AA147: 14 | AB147: 9 | AC147: 12 | AD147: 9 | AE147: 30 | AF147: 9 | AG147: 13 | AH147: 15 | AI147: 37 | AJ147: 9 | AK147: 11 | AL147: 18 | AM147: 38 | AN147: 9 | AO147: 11 | AP147: 18 | AQ147: 38 | AR147: 10 | AS147: 20 | AT147: 18 | AU147: 48 | AV147: 9 | AW147: 15 | AX147: 15 | AY147: 39 | AZ147: 10 | BA147: 18 | BB147: 19 | BC147: 47 | BD147: 10 | BE147: 19 | BF147: 18 | BG147: 47 | BH147: 3 | BI147: 5 | BJ147: 5 | BK147: 8 | BL147: 5 | BM147: 11 | BN147: 13 | BO147: 24 | BP147: 37 | BQ147: 158 | BR147: 433 | BS147: 3 | BT147: 7 | BU147: 7 | BV147: 17 | BW147: 3 | BX147: 5 | BY147: 5 | BZ147: 13 | CA147: ناجحة | CB147: ومنقولة للصف الثالث | CC147: 0 | CD147: 7 | CE147: 7/3 | CW147: 0 | CX147: 0
A148: 139 | B148: 1139 | C148: هاجر عبدالله محمود محمد | D148: 3/2 | K148: بنات | L148: انتظام | M148: صباحى | O148: 3094 | P148: 9 | Q148: 12 | R148: 16 | S148: 37 | T148: 8 | U148: 6 | V148: 8 | W148: 22 | X148: 4 | Y148: 4 | Z148: 6 | AA148: 14 | AB148: 8 | AC148: 15 | AD148: 17 | AE148: 40 | AF148: 9 | AG148: 13 | AH148: 18 | AI148: 40 | AJ148: 9 | AK148: 14 | AL148: 18 | AM148: 41 | AN148: 9 | AO148: 13 | AP148: 18 | AQ148: 40 | AR148: 10 | AS148: 18 | AT148: 19 | AU148: 47 | AV148: 9 | AW148: 19 | AX148: 14 | AY148: 42 | AZ148: 10 | BA148: 20 | BB148: 20 | BC148: 50 | BD148: 10 | BE148: 19 | BF148: 20 | BG148: 49 | BH148: 3 | BI148: 5 | BJ148: 5 | BK148: 9 | BL148: 5 | BM148: 12 | BN148: 13 | BO148: 26 | BP148: 39 | BQ148: 167 | BR148: 461 | BS148: 3 | BT148: 8 | BU148: 8 | BV148: 19 | BW148: 3 | BX148: 7 | BY148: 6 | BZ148: 16 | CA148: ناجحة | CB148: ومنقولة للصف الثالث | CC148: 0 | CD148: 7 | CE148: 7/3 | CW148: 0 | CX148: 0
A149: 140 | B149: 1140 | C149: هالة سعدى نجار محمد | D149: 2/2 | K149: بنات | L149: انتظام | M149: صباحى | O149: 3095 | P149: 10 | Q149: 15 | R149: 18 | S149: 43 | T149: 8 | U149: 17 | V149: 18 | W149: 43 | X149: 5 | Y149: 9 | Z149: 6 | AA149: 20 | AB149: 9 | AC149: 16 | AD149: 15 | AE149: 40 | AF149: 10 | AG149: 19 | AH149: 20 | AI149: 49 | AJ149: 10 | AK149: 20 | AL149: 20 | AM149: 50 | AN149: 9 | AO149: 14 | AP149: 18 | AQ149: 41 | AR149: 9 | AS149: 20 | AT149: 15 | AU149: 44 | AV149: 9 | AW149: 16 | AX149: 14 | AY149: 39 | AZ149: 10 | BA149: 18 | BB149: 19 | BC149: 47 | BD149: 10 | BE149: 19 | BF149: 18 | BG149: 47 | BH149: 3 | BI149: 5 | BJ149: 5 | BK149: 10 | BL149: 5 | BM149: 11 | BN149: 13 | BO149: 26 | BP149: 39 | BQ149: 198 | BR149: 502 | BS149: 3 | BT149: 8 | BU149: 8 | BV149: 19 | BW149: 3 | BX149: 8 | BY149: 6 | BZ149: 17 | CA149: ناجحة | CB149: ومنقولة للصف الثالث | CC149: 0 | CD149: 7 | CE149: 7/3 | CW149: 0 | CX149: 0
A150: 141 | B150: 1141 | C150: هالة صلاح برسى محمد | D150: 6/2 | K150: بنات | L150: انتظام | M150: صباحى | O150: 3096 | P150: 9 | Q150: 11 | R150: 16 | S150: 36 | T150: 8 | U150: 9 | V150: 8 | W150: 25 | X150: 4 | Y150: 5 | Z150: 5 | AA150: 14 | AB150: 10 | AC150: 18 | AD150: 20 | AE150: 48 | AF150: 10 | AG150: 20 | AH150: 20 | AI150: 50 | AJ150: 9 | AK150: 20 | AL150: 16 | AM150: 45 | AN150: 9 | AO150: 17 | AP150: 19 | AQ150: 45 | AR150: 10 | AS150: 20 | AT150: 20 | AU150: 50 | AV150: 9 | AW150: 17 | AX150: 16 | AY150: 42 | AZ150: 10 | BA150: 17 | BB150: 20 | BC150: 47 | BD150: 10 | BE150: 19 | BF150: 20 | BG150: 49 | BH150: 3 | BI150: 5 | BJ150: 6 | BK150: 9 | BL150: 5 | BM150: 12 | BN150: 14 | BO150: 26 | BP150: 40 | BQ150: 188 | BR150: 491 | BS150: 3 | BT150: 6 | BU150: 8 | BV150: 17 | BW150: 3 | BX150: 6 | BY150: 5 | BZ150: 14 | CA150: ناجحة | CB150: ومنقولة للصف الثالث | CC150: 0 | CD150: 7 | CE150: 7/3 | CW150: 0 | CX150: 0
A151: 142 | B151: 1142 | C151: هالة مجدى حسين ابراهيم | D151: 1/2 | K151: بنات | L151: انتظام | M151: صباحى | O151: 3097 | P151: 9 | Q151: 11 | R151: 14 | S151: 34 | T151: 8 | U151: 7 | V151: 5 | W151: 20 | X151: 5 | Y151: 9 | Z151: 4 | AA151: 18 | AB151: 9 | AC151: 11 | AD151: 12 | AE151: 32 | AF151: 9 | AG151: 5 | AH151: 11 | AI151: 25 | AJ151: 9 | AK151: 9 | AL151: 16 | AM151: 34 | AN151: 9 | AO151: 17 | AP151: 16 | AQ151: 42 | AR151: 9 | AS151: 13 | AT151: 18 | AU151: 40 | AV151: 9 | AW151: 10 | AX151: 13 | AY151: 32 | AZ151: 9 | BA151: 17 | BB151: 17 | BC151: 43 | BD151: 9 | BE151: 16 | BF151: 19 | BG151: 44 | BH151: 3 | BI151: 5 | BJ151: 5 | BK151: 6 | BL151: 6 | BM151: 9 | BN151: 14 | BO151: 20 | BP151: 34 | BQ151: 136 | BR151: 398 | BS151: 3 | BT151: 7 | BU151: 7 | BV151: 17 | BW151: 3 | BX151: 8 | BY151: 6 | BZ151: 17 | CA151: ناجحة | CB151: ومنقولة للصف الثالث | CC151: 0 | CD151: 7 | CE151: 7/3 | CW151: 0 | CX151: 0
A152: 143 | B152: 1651 | C152: رحاب حسن مصطفى محمد | D152: 2/2 | K152: بنات | L152: خدمات | M152: مسائى | O152: 3132 | P152: 10 | Q152: 15 | R152: 17 | S152: 42 | T152: 8 | U152: 14 | V152: 10 | W152: 32 | X152: 5 | Y152: 7 | Z152: 5 | AA152: 17 | AB152: 9 | AC152: 17 | AD152: 18 | AE152: 44 | AF152: 10 | AG152: 20 | AH152: 17 | AI152: 47 | AJ152: 9 | AK152: 14 | AL152: 14 | AM152: 37 | AN152: 9 | AO152: 16 | AP152: 19 | AQ152: 44 | AR152: 10 | AS152: 19 | AT152: 19 | AU152: 48 | AV152: 9 | AW152: 19 | AX152: 15 | AY152: 43 | AZ152: 10 | BA152: 19 | BB152: 20 | BC152: 49 | BD152: 10 | BE152: 18 | BF152: 20 | BG152: 48 | BH152: 4 | BI152: 5 | BJ152: 8 | BK152: 10 | BL152: 5 | BM152: 12 | BN152: 17 | BO152: 27 | BP152: 44 | BQ152: 196 | BR152: 495 | BS152: 3 | BT152: 7 | BU152: 8 | BV152: 18 | BW152: 3 | BX152: 6 | BY152: 8 | BZ152: 17 | CA152: ناجحة | CB152: ومنقولة للصف الثالث | CC152: 0 | CD152: 1 | CE152: 10/2 | CW152: 0 | CX152: 0
A153: 144 | B153: 1652 | C153: رحاب عامر فراج مصطفى | D153: 3/2 | K153: بنات | L153: خدمات | M153: مسائى | O153: 3133 | P153: 9 | Q153: 12 | R153: 14 | S153: 35 | T153: 8 | U153: 5 | V153: 7 | W153: 20 | X153: 4 | Y153: 5 | Z153: 6 | AA153: 15 | AB153: 9 | AC153: 8 | AD153: 18 | AE153: 35 | AF153: 10 | AG153: 17 | AH153: 19 | AI153: 46 | AJ153: 9 | AK153: 16 | AL153: 18 | AM153: 43 | AN153: 9 | AO153: 14 | AP153: 15 | AQ153: 38 | AR153: 10 | AS153: 18 | AT153: 18 | AU153: 46 | AV153: 9 | AW153: 14 | AX153: 15 | AY153: 38 | AZ153: 9 | BA153: 17 | BB153: 16 | BC153: 42 | BD153: 10 | BE153: 19 | BF153: 17 | BG153: 46 | BH153: 2 | BI153: 5 | BJ153: 4 | BK153: 9 | BL153: 5 | BM153: 10 | BN153: 11 | BO153: 24 | BP153: 35 | BQ153: 158 | BR153: 439 | BS153: 3 | BT153: 7 | BU153: 7 | BV153: 17 | BW153: 3 | BX153: 6 | BY153: 7 | BZ153: 16 | CA153: ناجحة | CB153: ومنقولة للصف الثالث | CC153: 0 | CD153: 1 | CE153: 10/2 | CW153: 0 | CX153: 0
A154: 145 | B154: 1653 | C154: رحمة خالد حسين جعفر صالح | D154: 2/2 | K154: بنات | L154: خدمات | M154: مسائى | O154: 3134 | P154: 9 | Q154: 10 | R154: 15 | S154: 34 | T154: 8 | U154: 10 | V154: 6 | W154: 24 | X154: 4 | Y154: 6 | Z154: 4 | AA154: 14 | AB154: 9 | AC154: 13 | AD154: 13 | AE154: 35 | AF154: 9 | AG154: 13 | AH154: 15 | AI154: 37 | AJ154: 9 | AK154: 15 | AL154: 13 | AM154: 37 | AN154: 9 | AO154: 12 | AP154: 18 | AQ154: 39 | AR154: 10 | AS154: 19 | AT154: 17 | AU154: 46 | AV154: 9 | AW154: 16 | AX154: 15 | AY154: 40 | AZ154: 10 | BA154: 20 | BB154: 20 | BC154: 50 | BD154: 10 | BE154: 18 | BF154: 20 | BG154: 48 | BH154: 3 | BI154: 5 | BJ154: 6 | BK154: 10 | BL154: 5 | BM154: 12 | BN154: 14 | BO154: 27 | BP154: 41 | BQ154: 168 | BR154: 445 | BS154: 3 | BT154: 7 | BU154: 6 | BV154: 16 | BW154: 3 | BX154: 5 | BY154: 2 | BZ154: 10 | CA154: ناجحة | CB154: ومنقولة للصف الثالث | CC154: 0 | CD154: 1 | CE154: 10/2 | CW154: 0 | CX154: 0
A155: 146 | B155: 1654 | C155: رشا حسين موسى محمد | D155: 2/2 | K155: بنات | L155: خدمات | M155: مسائى | O155: 3135 | P155: 9 | Q155: 11 | R155: 14 | S155: 34 | T155: 8 | U155: 5 | V155: 7 | W155: 20 | X155: 4 | Y155: 6 | Z155: 5 | AA155: 15 | AB155: 9 | AC155: 14 | AD155: 15 | AE155: 38 | AF155: 9 | AG155: 9 | AH155: 15 | AI155: 33 | AJ155: 10 | AK155: 16 | AL155: 20 | AM155: 46 | AN155: 9 | AO155: 6 | AP155: 18 | AQ155: 33 | AR155: 10 | AS155: 19 | AT155: 18 | AU155: 47 | AV155: 9 | AW155: 16 | AX155: 14 | AY155: 39 | AZ155: 9 | BA155: 18 | BB155: 15 | BC155: 42 | BD155: 9 | BE155: 16 | BF155: 18 | BG155: 43 | BH155: 2 | BI155: 5 | BJ155: 4 | BK155: 6 | BL155: 5 | BM155: 9 | BN155: 11 | BO155: 20 | BP155: 31 | BQ155: 146 | BR155: 421 | BS155: 3 | BT155: 7 | BU155: 8 | BV155: 18 | BW155: 3 | BX155: 5 | BY155: 6 | BZ155: 14 | CA155: ناجحة | CB155: ومنقولة للصف الثالث | CC155: 0 | CD155: 1 | CE155: 10/2 | CW155: 0 | CX155: 0
A156: 147 | B156: 1655 | C156: رضا عبد الحميد عبد السلام احمد | D156: 1/2 | K156: بنات | L156: خدمات | M156: مسائى | O156: 3136 | P156: 9 | Q156: 11 | R156: 13 | S156: 33 | T156: 8 | U156: 6 | V156: 6 | W156: 20 | X156: 4 | Y156: 4 | Z156: 5 | AA156: 13 | AB156: 9 | AC156: 7 | AD156: 9 | AE156: 25 | AF156: 9 | AG156: 8 | AH156: 8 | AI156: 25 | AJ156: 9 | AK156: 11 | AL156: 5 | AM156: 25 | AN156: 9 | AO156: 6 | AP156: 17 | AQ156: 32 | AR156: 10 | AS156: 19 | AT156: 17 | AU156: 46 | AV156: 9 | AW156: 15 | AX156: 14 | AY156: 38 | AZ156: 10 | BA156: 19 | BB156: 20 | BC156: 49 | BD156: 10 | BE156: 18 | BF156: 20 | BG156: 48 | BH156: 3 | BI156: 5 | BJ156: 5 | BK156: 10 | BL156: 6 | BM156: 12 | BN156: 14 | BO156: 27 | BP156: 41 | BQ156: 139 | BR156: 395 | BS156: 3 | BT156: 7 | BU156: 8 | BV156: 18 | BW156: 3 | BX156: 6 | BY156: 4 | BZ156: 13 | CA156: ناجحة | CB156: ومنقولة للصف الثالث | CC156: 0 | CD156: 1 | CE156: 10/2 | CW156: 0 | CX156: 0
A157: 148 | B157: 1656 | C157: رقية احمد عبد المطلب مطر | D157: 7/2 | K157: بنات | L157: خدمات | M157: مسائى | O157: 3137 | P157: غ | Q157: غ | R157: غ | S157: 0 | T157: غ | U157: غ | V157: غ | W157: 0 | X157: غ | Y157: غ | Z157: غ | AA157: 0 | AB157: غ | AC157: غ | AD157: غ | AE157: 0 | AF157: غ | AG157: غ | AH157: غ | AI157: 0 | AJ157: غ | AK157: غ | AL157: غ | AM157: 0 | AN157: غ | AO157: غ | AP157: غ | AQ157: 0 | AR157: غ | AS157: غ | AT157: غ | AU157: 0 | AV157: غ | AW157: غ | AX157: غ | AY157: 0 | AZ157: غ | BA157: غ | BB157: غ | BC157: 0 | BD157: غ | BE157: غ | BF157: غ | BG157: 0 | BH157: غ | BI157: غ | BJ157: غ | BK157: غ | BL157: غ | BM157: غ | BN157: 0 | BO157: 0 | BP157: 0 | BQ157: 0 | BR157: 0 | BS157: غ | BT157: غ | BU157: غ | BV157: 0 | BW157: غ | BX157: غ | BY157: غ | BZ157: 0 | CA157: راسبة | CB157: فى : عربى - انجليزى - فرنسى - محاسبة مالية - احصاء - رياضة مالية - اقتصاد - سكرتارية عربية - سكرتارية اجنبية - ادارة مشروعات - ادارة مخازن - حاسب - مواطنة - دين - مجموع | CC157: 13 | CD157: 1 | CE157: 10/2 | CH157: عربى - | CI157: انجليزى - | CJ157: فرنسى - | CK157: محاسبة مالية - | CL157: احصاء - | CM157: رياضة مالية - | CN157: اقتصاد - | CO157: سكرتارية عربية - | CP157: سكرتارية اجنبية - | CQ157: ادارة مشروعات - | CR157: ادارة مخازن - | CS157: حاسب - | CT157: مواطنة - | CU157: دين - | CV157: مجموع | CW157: 2 | CX157: 15
A158: 149 | B158: 1657 | C158: روضة رمضان مصطفى حفنى | D158: 1/2 | K158: بنات | L158: خدمات | M158: مسائى | O158: 3138 | P158: 9 | Q158: 12 | R158: 15 | S158: 36 | T158: 8 | U158: 6 | V158: 7 | W158: 21 | X158: 4 | Y158: 4 | Z158: 4 | AA158: 12 | AB158: 9 | AC158: 10 | AD158: 15 | AE158: 34 | AF158: 9 | AG158: 11 | AH158: 16 | AI158: 36 | AJ158: 9 | AK158: 17 | AL158: 18 | AM158: 44 | AN158: 9 | AO158: 8 | AP158: 18 | AQ158: 35 | AR158: 10 | AS158: 19 | AT158: 19 | AU158: 48 | AV158: 9 | AW158: 16 | AX158: 14 | AY158: 39 | AZ158: 10 | BA158: 18 | BB158: 18 | BC158: 46 | BD158: 10 | BE158: 19 | BF158: 20 | BG158: 49 | BH158: 2 | BI158: 5 | BJ158: 4 | BK158: 10 | BL158: 5 | BM158: 12 | BN158: 11 | BO158: 27 | BP158: 38 | BQ158: 154 | BR158: 438 | BS158: 3 | BT158: 7 | BU158: 8 | BV158: 18 | BW158: 3 | BX158: 6 | BY158: 3 | BZ158: 12 | CA158: ناجحة | CB158: ومنقولة للصف الثالث | CC158: 0 | CD158: 1 | CE158: 10/2 | CW158: 0 | CX158: 0
A159: 150 | B159: 1658 | C159: ريهام عاطف محمود اسماعيل | D159: 3/2 | K159: بنات | L159: خدمات | M159: مسائى | O159: 3139 | P159: 10 | Q159: 16 | R159: 18 | S159: 44 | T159: 8 | U159: 7 | V159: 5 | W159: 20 | X159: 5 | Y159: 7 | Z159: 5 | AA159: 17 | AB159: 9 | AC159: 15 | AD159: 18 | AE159: 42 | AF159: 9 | AG159: 8 | AH159: 17 | AI159: 34 | AJ159: 10 | AK159: 16 | AL159: 20 | AM159: 46 | AN159: 9 | AO159: 13 | AP159: 19 | AQ159: 41 | AR159: 9 | AS159: 16 | AT159: 16 | AU159: 41 | AV159: 9 | AW159: 19 | AX159: 15 | AY159: 43 | AZ159: 9 | BA159: 12 | BB159: 18 | BC159: 39 | BD159: 9 | BE159: 14 | BF159: 16 | BG159: 39 | BH159: 3 | BI159: 5 | BJ159: 5 | BK159: 7 | BL159: 6 | BM159: 10 | BN159: 14 | BO159: 22 | BP159: 36 | BQ159: 155 | BR159: 442 | BS159: 3 | BT159: 7 | BU159: 8 | BV159: 18 | BW159: 3 | BX159: 6 | BY159: 8 | BZ159: 17 | CA159: ناجحة | CB159: ومنقولة للصف الثالث | CC159: 0 | CD159: 1 | CE159: 10/2 | CW159: 0 | CX159: 0
A160: 151 | B160: 1659 | C160: ريهام على قرنى احمد | D160: 6/2 | K160: بنات | L160: خدمات | M160: مسائى | O160: 3140 | P160: 9 | Q160: 12 | R160: 13 | S160: 34 | T160: 8 | U160: 6 | V160: 6 | W160: 20 | X160: 4 | Y160: 5 | Z160: 4 | AA160: 13 | AB160: 9 | AC160: 11 | AD160: 5 | AE160: 25 | AF160: 9 | AG160: 7 | AH160: 15 | AI160: 31 | AJ160: 9 | AK160: 10 | AL160: 6 | AM160: 25 | AN160: 9 | AO160: 10 | AP160: 18 | AQ160: 37 | AR160: 9 | AS160: 14 | AT160: 11 | AU160: 34 | AV160: 9 | AW160: 16 | AX160: 14 | AY160: 39 | AZ160: 10 | BA160: 19 | BB160: 18 | BC160: 47 | BD160: 10 | BE160: 19 | BF160: 20 | BG160: 49 | BH160: 2 | BI160: 5 | BJ160: 4 | BK160: 9 | BL160: 4 | BM160: 12 | BN160: 10 | BO160: 26 | BP160: 36 | BQ160: 142 | BR160: 390 | BS160: 3 | BT160: 8 | BU160: 8 | BV160: 19 | BW160: 3 | BX160: 6 | BY160: 6 | BZ160: 15 | CA160: ناجحة | CB160: ومنقولة للصف الثالث | CC160: 0 | CD160: 1 | CE160: 10/2 | CW160: 0 | CX160: 0
A161: 152 | B161: 1660 | C161: زمزم حسين عباس ابراهيم | D161: 2/2 | K161: بنات | L161: خدمات | M161: مسائى | O161: 3141 | P161: 9 | Q161: 10 | R161: 13 | S161: 32 | T161: 8 | U161: 7 | V161: 5 | W161: 20 | X161: 4 | Y161: 6 | Z161: 4 | AA161: 14 | AB161: 9 | AC161: 10 | AD161: 17 | AE161: 36 | AF161: 9 | AG161: 9 | AH161: 14 | AI161: 32 | AJ161: 9 | AK161: 8 | AL161: 18 | AM161: 35 | AN161: 9 | AO161: 9 | AP161: 18 | AQ161: 36 | AR161: 9 | AS161: 17 | AT161: 18 | AU161: 44 | AV161: 9 | AW161: 13 | AX161: 14 | AY161: 36 | AZ161: 10 | BA161: 18 | BB161: 18 | BC161: 46 | BD161: 9 | BE161: 12 | BF161: 18 | BG161: 39 | BH161: 3 | BI161: 5 | BJ161: 5 | BK161: 8 | BL161: 5 | BM161: 10 | BN161: 13 | BO161: 23 | BP161: 36 | BQ161: 132 | BR161: 406 | BS161: 3 | BT161: 7 | BU161: 5 | BV161: 15 | BW161: 3 | BX161: 5 | BY161: 5 | BZ161: 13 | CA161: ناجحة | CB161: ومنقولة للصف الثالث | CC161: 0 | CD161: 1 | CE161: 10/2 | CW161: 0 | CX161: 0
A162: 153 | B162: 1661 | C162: زهرة محمد عبدالله عطيتو | D162: 4/2 | K162: بنات | L162: خدمات | M162: مسائى | O162: 3142 | P162: 9 | Q162: 9 | R162: 11 | S162: 29 | T162: 8 | U162: 2 | V162: 3 | W162: 13 | X162: 4 | Y162: 4 | Z162: 3 | AA162: 11 | AB162: 9 | AC162: 8 | AD162: 1 | AE162: 18 | AF162: 9 | AG162: 3 | AH162: 1 | AI162: 13 | AJ162: 9 | AK162: 1 | AL162: 2 | AM162: 12 | AN162: 9 | AO162: 7 | AP162: 18 | AQ162: 34 | AR162: 9 | AS162: 9 | AT162: 10 | AU162: 28 | AV162: 9 | AW162: 16 | AX162: 13 | AY162: 38 | AZ162: 10 | BA162: 20 | BB162: 18 | BC162: 48 | BD162: 9 | BE162: 14 | BF162: 20 | BG162: 43 | BH162: 3 | BI162: 5 | BJ162: 5 | BK162: 9 | BL162: 5 | BM162: 12 | BN162: 13 | BO162: 26 | BP162: 39 | BQ162: 107 | BR162: 326 | BS162: 3 | BT162: 6 | BU162: 7 | BV162: 16 | BW162: 3 | BX162: 5 | BY162: 4 | BZ162: 12 | CA162: راسبة | CB162: فى : انجليزى - محاسبة مالية - احصاء - رياضة مالية - | CC162: 4 | CD162: 1 | CE162: 10/2 | CI162: انجليزى - | CK162: محاسبة مالية - | CL162: احصاء - | CM162: رياضة مالية - | CW162: 0 | CX162: 4
A163: 154 | B163: 1662 | C163: زينب احمد عبد المطلب محمد | D163: 2/2 | K163: بنات | L163: خدمات | M163: مسائى | O163: 3143 | P163: 9 | Q163: 11 | R163: 11 | S163: 31 | T163: 8 | U163: 5 | V163: 8 | W163: 21 | X163: 4 | Y163: 4 | Z163: 6 | AA163: 14 | AB163: 9 | AC163: 13 | AD163: 14 | AE163: 36 | AF163: 10 | AG163: 19 | AH163: 20 | AI163: 49 | AJ163: 9 | AK163: 15 | AL163: 20 | AM163: 44 | AN163: 9 | AO163: 11 | AP163: 11 | AQ163: 31 | AR163: 9 | AS163: 15 | AT163: 17 | AU163: 41 | AV163: 9 | AW163: 13 | AX163: 18 | AY163: 40 | AZ163: 9 | BA163: 14 | BB163: 19 | BC163: 42 | BD163: 9 | BE163: 17 | BF163: 18 | BG163: 44 | BH163: 2 | BI163: 5 | BJ163: 4 | BK163: 10 | BL163: 7 | BM163: 11 | BN163: 13 | BO163: 26 | BP163: 39 | BQ163: 151 | BR163: 432 | BS163: 3 | BT163: 6 | BU163: 5 | BV163: 14 | BW163: 3 | BX163: 5 | BY163: 5 | BZ163: 13 | CA163: ناجحة | CB163: ومنقولة للصف الثالث | CC163: 0 | CD163: 1 | CE163: 10/2 | CW163: 0 | CX163: 0
A164: 155 | B164: 1663 | C164: زينب احمد على محمود | D164: 2/2 | K164: بنات | L164: خدمات | M164: مسائى | O164: 3144 | P164: 9 | Q164: 12 | R164: 13 | S164: 34 | T164: 8 | U164: 6 | V164: 6 | W164: 20 | X164: 4 | Y164: 6 | Z164: 5 | AA164: 15 | AB164: 9 | AC164: 8 | AD164: 14 | AE164: 31 | AF164: 9 | AG164: 17 | AH164: 12 | AI164: 38 | AJ164: 10 | AK164: 20 | AL164: 19 | AM164: 49 | AN164: 9 | AO164: 13 | AP164: 18 | AQ164: 40 | AR164: 10 | AS164: 17 | AT164: 19 | AU164: 46 | AV164: 9 | AW164: 16 | AX164: 13 | AY164: 38 | AZ164: 10 | BA164: 19 | BB164: 18 | BC164: 47 | BD164: 10 | BE164: 19 | BF164: 20 | BG164: 49 | BH164: 2 | BI164: 5 | BJ164: 4 | BK164: 10 | BL164: 5 | BM164: 12 | BN164: 11 | BO164: 27 | BP164: 38 | BQ164: 167 | BR164: 445 | BS164: 3 | BT164: 7 | BU164: 8 | BV164: 18 | BW164: 3 | BX164: 5 | BY164: 4 | BZ164: 12 | CA164: ناجحة | CB164: ومنقولة للصف الثالث | CC164: 0 | CD164: 1 | CE164: 10/2 | CW164: 0 | CX164: 0
A165: 156 | B165: 1664 | C165: زينب جابر كمال محمد | D165: 2/2 | K165: بنات | L165: خدمات | M165: مسائى | O165: 3145 | P165: 9 | Q165: 9 | R165: 16 | S165: 34 | T165: 8 | U165: 7 | V165: 11 | W165: 26 | X165: 4 | Y165: 5 | Z165: 5 | AA165: 14 | AB165: 9 | AC165: 14 | AD165: 16 | AE165: 39 | AF165: 9 | AG165: 18 | AH165: 17 | AI165: 44 | AJ165: 9 | AK165: 19 | AL165: 20 | AM165: 48 | AN165: 9 | AO165: 7 | AP165: 20 | AQ165: 36 | AR165: 9 | AS165: 17 | AT165: 17 | AU165: 43 | AV165: 9 | AW165: 15 | AX165: 14 | AY165: 38 | AZ165: 9 | BA165: 14 | BB165: 17 | BC165: 40 | BD165: 9 | BE165: 13 | BF165: 17 | BG165: 39 | BH165: 2 | BI165: 5 | BJ165: 4 | BK165: 10 | BL165: 4 | BM165: 12 | BN165: 10 | BO165: 27 | BP165: 37 | BQ165: 152 | BR165: 438 | BS165: 3 | BT165: 6 | BU165: 8 | BV165: 17 | BW165: 3 | BX165: 7 | BY165: 6 | BZ165: 16 | CA165: ناجحة | CB165: ومنقولة للصف الثالث | CC165: 0 | CD165: 1 | CE165: 10/2 | CW165: 0 | CX165: 0
A166: 157 | B166: 1665 | C166: زينب صابر مصطفى محمد | D166: 1/2 | K166: بنات | L166: خدمات | M166: مسائى | O166: 3146 | P166: 10 | Q166: 13 | R166: 17 | S166: 40 | T166: 8 | U166: 5 | V166: 7 | W166: 20 | X166: 4 | Y166: 6 | Z166: 5 | AA166: 15 | AB166: 9 | AC166: 14 | AD166: 15 | AE166: 38 | AF166: 10 | AG166: 19 | AH166: 20 | AI166: 49 | AJ166: 10 | AK166: 18 | AL166: 20 | AM166: 48 | AN166: 9 | AO166: 12 | AP166: 17 | AQ166: 38 | AR166: 10 | AS166: 19 | AT166: 20 | AU166: 49 | AV166: 9 | AW166: 17 | AX166: 16 | AY166: 42 | AZ166: 10 | BA166: 19 | BB166: 18 | BC166: 47 | BD166: 10 | BE166: 18 | BF166: 20 | BG166: 48 | BH166: 2 | BI166: 5 | BJ166: 4 | BK166: 10 | BL166: 6 | BM166: 12 | BN166: 12 | BO166: 27 | BP166: 39 | BQ166: 174 | BR166: 473 | BS166: 3 | BT166: 8 | BU166: 8 | BV166: 19 | BW166: 3 | BX166: 7 | BY166: 6 | BZ166: 16 | CA166: ناجحة | CB166: ومنقولة للصف الثالث | CC166: 0 | CD166: 1 | CE166: 10/2 | CW166: 0 | CX166: 0
A167: 158 | B167: 1666 | C167: زينب عطية هاشم نصار | D167: 3/2 | K167: بنات | L167: خدمات | M167: مسائى | O167: 3147 | P167: 9 | Q167: 11 | R167: 10 | S167: 30 | T167: 8 | U167: 4 | V167: 10 | W167: 22 | X167: 4 | Y167: 5 | Z167: 5 | AA167: 14 | AB167: 9 | AC167: 11 | AD167: 5 | AE167: 25 | AF167: 9 | AG167: 15 | AH167: 14 | AI167: 38 | AJ167: 10 | AK167: 18 | AL167: 18 | AM167: 46 | AN167: 9 | AO167: 2 | AP167: 19 | AQ167: 30 | AR167: 9 | AS167: 13 | AT167: 15 | AU167: 37 | AV167: 9 | AW167: 13 | AX167: 17 | AY167: 39 | AZ167: 9 | BA167: 14 | BB167: 20 | BC167: 43 | BD167: 9 | BE167: 5 | BF167: 18 | BG167: 32 | BH167: 3 | BI167: 5 | BJ167: 5 | BK167: 8 | BL167: 4 | BM167: 12 | BN167: 12 | BO167: 25 | BP167: 37 | BQ167: 124 | BR167: 393 | BS167: 3 | BT167: 6 | BU167: 7 | BV167: 16 | BW167: 3 | BX167: 6 | BY167: 4 | BZ167: 13 | CA167: ناجحة | CB167: ومنقولة للصف الثالث | CC167: 0 | CD167: 1 | CE167: 10/2 | CW167: 0 | CX167: 0
A168: 159 | B168: 1667 | C168: زينب محمد احمد بشير | D168: 5/2 | K168: بنات | L168: خدمات | M168: مسائى | O168: 3148 | P168: 9 | Q168: 8 | R168: 8 | S168: 25 | T168: 8 | U168: 1 | V168: 4 | W168: 13 | X168: 4 | Y168: 4 | Z168: 5 | AA168: 13 | AB168: 9 | AC168: 8 | AD168: 8 | AE168: 25 | AF168: 9 | AG168: 9 | AH168: 7 | AI168: 25 | AJ168: 9 | AK168: 7 | AL168: 3 | AM168: 19 | AN168: 9 | AO168: 6 | AP168: 17 | AQ168: 32 | AR168: 9 | AS168: 15 | AT168: 17 | AU168: 41 | AV168: 9 | AW168: 11 | AX168: 16 | AY168: 36 | AZ168: 10 | BA168: 19 | BB168: 18 | BC168: 47 | BD168: 10 | BE168: 20 | BF168: 20 | BG168: 50 | BH168: 3 | BI168: 5 | BJ168: 5 | BK168: 10 | BL168: 5 | BM168: 11 | BN168: 13 | BO168: 26 | BP168: 39 | BQ168: 123 | BR168: 365 | BS168: 3 | BT168: 5 | BU168: 8 | BV168: 16 | BW168: 3 | BX168: 5 | BY168: 6 | BZ168: 14 | CA168: دورثان | CB168: فى : انجليزى - رياضة مالية - | CC168: 2 | CD168: 1 | CE168: 10/2 | CI168: انجليزى - | CM168: رياضة مالية - | CW168: 0 | CX168: 2
A169: 160 | B169: 1668 | C169: زينب محمود ركابى ابو الوفا | D169: 1/2 | K169: بنات | L169: خدمات | M169: مسائى | O169: 3149 | P169: 10 | Q169: 14 | R169: 17 | S169: 41 | T169: 8 | U169: 7 | V169: 13 | W169: 28 | X169: 4 | Y169: 5 | Z169: 5 | AA169: 14 | AB169: 8 | AC169: 14 | AD169: 16 | AE169: 38 | AF169: 9 | AG169: 9 | AH169: 18 | AI169: 36 | AJ169: 9 | AK169: 14 | AL169: 20 | AM169: 43 | AN169: 9 | AO169: 11 | AP169: 19 | AQ169: 39 | AR169: 9 | AS169: 17 | AT169: 17 | AU169: 43 | AV169: 9 | AW169: 15 | AX169: 17 | AY169: 41 | AZ169: 10 | BA169: 17 | BB169: 20 | BC169: 47 | BD169: 9 | BE169: 15 | BF169: 18 | BG169: 42 | BH169: 3 | BI169: 5 | BJ169: 7 | BK169: 10 | BL169: 5 | BM169: 12 | BN169: 15 | BO169: 27 | BP169: 42 | BQ169: 155 | BR169: 454 | BS169: 3 | BT169: 7 | BU169: 7 | BV169: 17 | BW169: 3 | BX169: 7 | BY169: 6 | BZ169: 16 | CA169: ناجحة | CB169: ومنقولة للصف الثالث | CC169: 0 | CD169: 1 | CE169: 10/2 | CW169: 0 | CX169: 0
A170: 161 | B170: 1669 | C170: سارة عبد الله مصطفى احمد | D170: 2/2 | K170: بنات | L170: خدمات | M170: مسائى | O170: 3150 | P170: 9 | Q170: 12 | R170: 13 | S170: 34 | T170: 8 | U170: 8 | V170: 6 | W170: 22 | X170: 4 | Y170: 5 | Z170: 5 | AA170: 14 | AB170: 9 | AC170: 15 | AD170: 13 | AE170: 37 | AF170: 9 | AG170: 20 | AH170: 10 | AI170: 39 | AJ170: 9 | AK170: 8 | AL170: 14 | AM170: 31 | AN170: 9 | AO170: 13 | AP170: 19 | AQ170: 41 | AR170: 9 | AS170: 15 | AT170: 19 | AU170: 43 | AV170: 9 | AW170: 14 | AX170: 17 | AY170: 40 | AZ170: 9 | BA170: 17 | BB170: 18 | BC170: 44 | BD170: 10 | BE170: 19 | BF170: 20 | BG170: 49 | BH170: 3 | BI170: 5 | BJ170: 5 | BK170: 10 | BL170: 4 | BM170: 12 | BN170: 12 | BO170: 27 | BP170: 39 | BQ170: 161 | BR170: 433 | BS170: 3 | BT170: 6 | BU170: 8 | BV170: 17 | BW170: 3 | BX170: 6 | BY170: 4 | BZ170: 13 | CA170: ناجحة | CB170: ومنقولة للصف الثالث | CC170: 0 | CD170: 1 | CE170: 10/2 | CW170: 0 | CX170: 0
A171: 162 | B171: 1670 | C171: فاطمة محمد خليفة طه | D171: 1/2 | K171: بنات | L171: خدمات | M171: مسائى | O171: 3151 | P171: 9 | Q171: 8 | R171: 15 | S171: 32 | T171: 8 | U171: 7 | V171: 12 | W171: 27 | X171: 4 | Y171: 5 | Z171: 5 | AA171: 14 | AB171: 9 | AC171: 10 | AD171: 7 | AE171: 26 | AF171: 9 | AG171: 13 | AH171: 16 | AI171: 38 | AJ171: 9 | AK171: 18 | AL171: 15 | AM171: 42 | AN171: 9 | AO171: 7 | AP171: 17 | AQ171: 33 | AR171: 10 | AS171: 18 | AT171: 18 | AU171: 46 | AV171: 9 | AW171: 13 | AX171: 16 | AY171: 38 | AZ171: 9 | BA171: 14 | BB171: 15 | BC171: 38 | BD171: 9 | BE171: 17 | BF171: 15 | BG171: 41 | BH171: 3 | BI171: 5 | BJ171: 7 | BK171: 9 | BL171: 4 | BM171: 12 | BN171: 14 | BO171: 26 | BP171: 40 | BQ171: 146 | BR171: 415 | BS171: 3 | BT171: 7 | BU171: 7 | BV171: 17 | BW171: 3 | BX171: 5 | BY171: 6 | BZ171: 14 | CA171: ناجحة | CB171: ومنقولة للصف الثالث | CC171: 0 | CD171: 1 | CE171: 10/2 | CW171: 0 | CX171: 0
A172: 163 | B172: 1671 | C172: فاطمة يوسف سيد عبد الكريم | D172: 4/2 | K172: بنات | L172: خدمات | M172: مسائى | O172: 3152 | P172: 9 | Q172: 11 | R172: 16 | S172: 36 | T172: 8 | U172: 8 | V172: 7 | W172: 23 | X172: 4 | Y172: 5 | Z172: 5 | AA172: 14 | AB172: 5 | AC172: 13 | AD172: 10 | AE172: 28 | AF172: 9 | AG172: 18 | AH172: 12 | AI172: 39 | AJ172: 9 | AK172: 15 | AL172: 12 | AM172: 36 | AN172: 9 | AO172: 13 | AP172: 19 | AQ172: 41 | AR172: 9 | AS172: 14 | AT172: 17 | AU172: 40 | AV172: 9 | AW172: 15 | AX172: 17 | AY172: 41 | AZ172: 9 | BA172: 15 | BB172: 18 | BC172: 42 | BD172: 10 | BE172: 19 | BF172: 20 | BG172: 49 | BH172: 3 | BI172: 5 | BJ172: 5 | BK172: 10 | BL172: 8 | BM172: 12 | BN172: 16 | BO172: 27 | BP172: 43 | BQ172: 161 | BR172: 432 | BS172: 3 | BT172: 8 | BU172: 8 | BV172: 19 | BW172: 3 | BX172: 6 | BY172: 4 | BZ172: 13 | CA172: ناجحة | CB172: ومنقولة للصف الثالث | CC172: 0 | CD172: 1 | CE172: 10/2 | CW172: 0 | CX172: 0
A173: 164 | B173: 1672 | C173: فايزة سيد مكى | D173: 3/2 | K173: بنات | L173: خدمات | M173: مسائى | O173: 3153 | P173: 10 | Q173: 16 | R173: 17 | S173: 43 | T173: 8 | U173: 8 | V173: 10 | W173: 26 | X173: 5 | Y173: 6 | Z173: 6 | AA173: 17 | AB173: 9 | AC173: 15 | AD173: 10 | AE173: 34 | AF173: 9 | AG173: 15 | AH173: 19 | AI173: 43 | AJ173: 10 | AK173: 18 | AL173: 19 | AM173: 47 | AN173: 9 | AO173: 10 | AP173: 18 | AQ173: 37 | AR173: 10 | AS173: 19 | AT173: 17 | AU173: 46 | AV173: 9 | AW173: 15 | AX173: 16 | AY173: 40 | AZ173: 9 | BA173: 17 | BB173: 15 | BC173: 41 | BD173: 9 | BE173: 17 | BF173: 15 | BG173: 41 | BH173: 3 | BI173: 5 | BJ173: 5 | BK173: 8 | BL173: 6 | BM173: 12 | BN173: 14 | BO173: 25 | BP173: 39 | BQ173: 169 | BR173: 454 | BS173: 3 | BT173: 8 | BU173: 7 | BV173: 18 | BW173: 3 | BX173: 5 | BY173: 6 | BZ173: 14 | CA173: ناجحة | CB173: ومنقولة للصف الثالث | CC173: 0 | CD173: 2 | CE173: 11/2 | CW173: 0 | CX173: 0
A174: 165 | B174: 1673 | C174: فرحة صابر احمد صالح | D174: 2/2 | K174: بنات | L174: خدمات | M174: مسائى | O174: 3154 | P174: 9 | Q174: 9 | R174: 12 | S174: 30 | T174: 8 | U174: 6 | V174: 6 | W174: 20 | X174: 4 | Y174: 5 | Z174: 5 | AA174: 14 | AB174: 9 | AC174: 14 | AD174: 14 | AE174: 37 | AF174: 9 | AG174: 15 | AH174: 16 | AI174: 40 | AJ174: 9 | AK174: 15 | AL174: 10 | AM174: 34 | AN174: 9 | AO174: 10 | AP174: 19 | AQ174: 38 | AR174: 9 | AS174: 14 | AT174: 17 | AU174: 40 | AV174: 9 | AW174: 15 | AX174: 16 | AY174: 40 | AZ174: 10 | BA174: 19 | BB174: 20 | BC174: 49 | BD174: 10 | BE174: 19 | BF174: 20 | BG174: 49 | BH174: 3 | BI174: 5 | BJ174: 6 | BK174: 10 | BL174: 6 | BM174: 12 | BN174: 15 | BO174: 27 | BP174: 42 | BQ174: 157 | BR174: 433 | BS174: 3 | BT174: 6 | BU174: 6 | BV174: 15 | BW174: 3 | BX174: 5 | BY174: 3 | BZ174: 11 | CA174: ناجحة | CB174: ومنقولة للصف الثالث | CC174: 0 | CD174: 2 | CE174: 11/2 | CW174: 0 | CX174: 0
A175: 166 | B175: 1674 | C175: فرحة عبده عبد الغنى ابراهيم | D175: 1/2 | K175: بنات | L175: خدمات | M175: مسائى | O175: 3155 | P175: 10 | Q175: 13 | R175: 17 | S175: 40 | T175: 8 | U175: 6 | V175: 10 | W175: 24 | X175: 5 | Y175: 7 | Z175: 5 | AA175: 17 | AB175: 9 | AC175: 14 | AD175: 13 | AE175: 36 | AF175: 9 | AG175: 16 | AH175: 19 | AI175: 44 | AJ175: 10 | AK175: 20 | AL175: 20 | AM175: 50 | AN175: 9 | AO175: 6 | AP175: 18 | AQ175: 33 | AR175: 10 | AS175: 20 | AT175: 17 | AU175: 47 | AV175: 9 | AW175: 15 | AX175: 16 | AY175: 40 | AZ175: 10 | BA175: 19 | BB175: 19 | BC175: 48 | BD175: 9 | BE175: 16 | BF175: 18 | BG175: 43 | BH175: 3 | BI175: 5 | BJ175: 6 | BK175: 6 | BL175: 5 | BM175: 11 | BN175: 14 | BO175: 22 | BP175: 36 | BQ175: 164 | BR175: 458 | BS175: 3 | BT175: 8 | BU175: 7 | BV175: 18 | BW175: 3 | BX175: 5 | BY175: 6 | BZ175: 14 | CA175: ناجحة | CB175: ومنقولة للصف الثالث | CC175: 0 | CD175: 2 | CE175: 11/2 | CW175: 0 | CX175: 0
A176: 167 | B176: 1675 | C176: فرحة فراج السيد طاهر | D176: 5/2 | K176: بنات | L176: خدمات | M176: مسائى | O176: 3156 | P176: 9 | Q176: 9 | R176: 13 | S176: 31 | T176: 8 | U176: 4 | V176: 9 | W176: 21 | X176: 4 | Y176: 4 | Z176: 5 | AA176: 13 | AB176: 6 | AC176: 10 | AD176: 9 | AE176: 25 | AF176: 10 | AG176: 17 | AH176: 19 | AI176: 46 | AJ176: 9 | AK176: 10 | AL176: 16 | AM176: 35 | AN176: 9 | AO176: 14 | AP176: 19 | AQ176: 42 | AR176: 9 | AS176: 12 | AT176: 18 | AU176: 39 | AV176: 9 | AW176: 13 | AX176: 17 | AY176: 39 | AZ176: 10 | BA176: 19 | BB176: 17 | BC176: 46 | BD176: 10 | BE176: 19 | BF176: 19 | BG176: 48 | BH176: 3 | BI176: 5 | BJ176: 5 | BK176: 10 | BL176: 5 | BM176: 9 | BN176: 13 | BO176: 24 | BP176: 37 | BQ176: 146 | BR176: 422 | BS176: 3 | BT176: 8 | BU176: 8 | BV176: 19 | BW176: 3 | BX176: 6 | BY176: 5 | BZ176: 14 | CA176: ناجحة | CB176: ومنقولة للصف الثالث | CC176: 0 | CD176: 2 | CE176: 11/2 | CW176: 0 | CX176: 0
A177: 168 | B177: 1676 | C177: فوزية محمد نوبى محمود | D177: 1/2 | K177: بنات | L177: خدمات | M177: مسائى | O177: 3157 | P177: 9 | Q177: 13 | R177: 14 | S177: 36 | T177: 8 | U177: 4 | V177: 8 | W177: 20 | X177: 4 | Y177: 5 | Z177: 4 | AA177: 13 | AB177: 9 | AC177: 8 | AD177: 13 | AE177: 30 | AF177: 9 | AG177: 16 | AH177: 18 | AI177: 43 | AJ177: 9 | AK177: 10 | AL177: 14 | AM177: 33 | AN177: 9 | AO177: 15 | AP177: 19 | AQ177: 43 | AR177: 9 | AS177: 13 | AT177: 19 | AU177: 41 | AV177: 9 | AW177: 16 | AX177: 17 | AY177: 42 | AZ177: 10 | BA177: 19 | BB177: 17 | BC177: 46 | BD177: 10 | BE177: 19 | BF177: 18 | BG177: 47 | BH177: 3 | BI177: 5 | BJ177: 5 | BK177: 11 | BL177: 5 | BM177: 9 | BN177: 13 | BO177: 25 | BP177: 38 | BQ177: 154 | BR177: 432 | BS177: 3 | BT177: 8 | BU177: 8 | BV177: 19 | BW177: 3 | BX177: 6 | BY177: 5 | BZ177: 14 | CA177: ناجحة | CB177: ومنقولة للصف الثالث | CC177: 0 | CD177: 2 | CE177: 11/2 | CW177: 0 | CX177: 0
A178: 169 | B178: 1677 | C178: كاملة يوسف محمد احمد | D178: 3/2 | K178: بنات | L178: خدمات | M178: مسائى | O178: 3158 | P178: 9 | Q178: 12 | R178: 15 | S178: 36 | T178: 8 | U178: 4 | V178: 9 | W178: 21 | X178: 4 | Y178: 4 | Z178: 5 | AA178: 13 | AB178: 9 | AC178: 19 | AD178: 14 | AE178: 42 | AF178: 9 | AG178: 17 | AH178: 20 | AI178: 46 | AJ178: 9 | AK178: 10 | AL178: 15 | AM178: 34 | AN178: 9 | AO178: 16 | AP178: 19 | AQ178: 44 | AR178: 10 | AS178: 17 | AT178: 20 | AU178: 47 | AV178: 9 | AW178: 11 | AX178: 14 | AY178: 34 | AZ178: 10 | BA178: 19 | BB178: 18 | BC178: 47 | BD178: 10 | BE178: 20 | BF178: 20 | BG178: 50 | BH178: 3 | BI178: 5 | BJ178: 6 | BK178: 7 | BL178: 8 | BM178: 9 | BN178: 17 | BO178: 21 | BP178: 38 | BQ178: 162 | BR178: 452 | BS178: 3 | BT178: 4 | BU178: 8 | BV178: 15 | BW178: 3 | BX178: 7 | BY178: 6 | BZ178: 16 | CA178: ناجحة | CB178: ومنقولة للصف الثالث | CC178: 0 | CD178: 2 | CE178: 11/2 | CW178: 0 | CX178: 0
A179: 170 | B179: 1678 | C179: كريمة محمد الطاهر مهدى | D179: 3/2 | K179: بنات | L179: خدمات | M179: مسائى | O179: 3159 | P179: 9 | Q179: 12 | R179: 14 | S179: 35 | T179: 8 | U179: 6 | V179: 7 | W179: 21 | X179: 4 | Y179: 4 | Z179: 5 | AA179: 13 | AB179: 9 | AC179: 10 | AD179: 12 | AE179: 31 | AF179: 10 | AG179: 16 | AH179: 20 | AI179: 46 | AJ179: 9 | AK179: 11 | AL179: 20 | AM179: 40 | AN179: 9 | AO179: 14 | AP179: 18 | AQ179: 41 | AR179: 9 | AS179: 16 | AT179: 19 | AU179: 44 | AV179: 9 | AW179: 18 | AX179: 14 | AY179: 41 | AZ179: 10 | BA179: 19 | BB179: 18 | BC179: 47 | BD179: 9 | BE179: 8 | BF179: 20 | BG179: 37 | BH179: 3 | BI179: 5 | BJ179: 7 | BK179: 9 | BL179: 5 | BM179: 9 | BN179: 15 | BO179: 23 | BP179: 38 | BQ179: 150 | BR179: 434 | BS179: 3 | BT179: 8 | BU179: 8 | BV179: 19 | BW179: 3 | BX179: 7 | BY179: 5 | BZ179: 15 | CA179: ناجحة | CB179: ومنقولة للصف الثالث | CC179: 0 | CD179: 2 | CE179: 11/2 | CW179: 0 | CX179: 0
A180: 171 | B180: 1679 | C180: كريمة نجار حسين حسن | D180: 3/2 | K180: بنات | L180: خدمات | M180: مسائى | O180: 3160 | P180: 9 | Q180: 11 | R180: 11 | S180: 31 | T180: 8 | U180: 7 | V180: 5 | W180: 20 | X180: 4 | Y180: 5 | Z180: 5 | AA180: 14 | AB180: 9 | AC180: 10 | AD180: 9 | AE180: 28 | AF180: 10 | AG180: 20 | AH180: 20 | AI180: 50 | AJ180: 10 | AK180: 19 | AL180: 20 | AM180: 49 | AN180: 9 | AO180: 5 | AP180: 18 | AQ180: 32 | AR180: 9 | AS180: 14 | AT180: 13 | AU180: 36 | AV180: 9 | AW180: 14 | AX180: 17 | AY180: 40 | AZ180: 10 | BA180: 19 | BB180: 18 | BC180: 47 | BD180: 9 | BE180: 17 | BF180: 17 | BG180: 43 | BH180: 2 | BI180: 5 | BJ180: 4 | BK180: 10 | BL180: 4 | BM180: 8 | BN180: 10 | BO180: 23 | BP180: 33 | BQ180: 155 | BR180: 423 | BS180: 3 | BT180: 6 | BU180: 7 | BV180: 16 | BW180: 3 | BX180: 4 | BY180: 5 | BZ180: 12 | CA180: ناجحة | CB180: ومنقولة للصف الثالث | CC180: 0 | CD180: 2 | CE180: 11/2 | CW180: 0 | CX180: 0
A181: 172 | B181: 1680 | C181: ليلى محمود يسين مرسى | D181: 4/2 | K181: بنات | L181: خدمات | M181: مسائى | O181: 3161 | P181: 9 | Q181: 10 | R181: 14 | S181: 33 | T181: 8 | U181: 8 | V181: 8 | W181: 24 | X181: 4 | Y181: 5 | Z181: 5 | AA181: 14 | AB181: 9 | AC181: 15 | AD181: 15 | AE181: 39 | AF181: 10 | AG181: 20 | AH181: 20 | AI181: 50 | AJ181: 9 | AK181: 7 | AL181: 19 | AM181: 35 | AN181: 9 | AO181: 14 | AP181: 18 | AQ181: 41 | AR181: 10 | AS181: 19 | AT181: 19 | AU181: 48 | AV181: 9 | AW181: 16 | AX181: 14 | AY181: 39 | AZ181: 10 | BA181: 18 | BB181: 18 | BC181: 46 | BD181: 10 | BE181: 18 | BF181: 20 | BG181: 48 | BH181: 4 | BI181: 5 | BJ181: 8 | BK181: 8 | BL181: 6 | BM181: 10 | BN181: 18 | BO181: 23 | BP181: 41 | BQ181: 166 | BR181: 458 | BS181: 3 | BT181: 7 | BU181: 8 | BV181: 18 | BW181: 3 | BX181: 4 | BY181: 7 | BZ181: 14 | CA181: ناجحة | CB181: ومنقولة للصف الثالث | CC181: 0 | CD181: 2 | CE181: 11/2 | CW181: 0 | CX181: 0
A182: 173 | B182: 1681 | C182: محاسن حسن على حسن | D182: 1/2 | K182: بنات | L182: خدمات | M182: مسائى | O182: 3162 | P182: 9 | Q182: 12 | R182: 14 | S182: 35 | T182: 8 | U182: 7 | V182: 5 | W182: 20 | X182: 5 | Y182: 6 | Z182: 9 | AA182: 20 | AB182: 9 | AC182: 15 | AD182: 10 | AE182: 34 | AF182: 10 | AG182: 18 | AH182: 20 | AI182: 48 | AJ182: 10 | AK182: 17 | AL182: 20 | AM182: 47 | AN182: 9 | AO182: 5 | AP182: 18 | AQ182: 32 | AR182: 9 | AS182: 14 | AT182: 11 | AU182: 34 | AV182: 9 | AW182: 15 | AX182: 17 | AY182: 41 | AZ182: 10 | BA182: 19 | BB182: 18 | BC182: 47 | BD182: 10 | BE182: 18 | BF182: 19 | BG182: 47 | BH182: 2 | BI182: 5 | BJ182: 4 | BK182: 10 | BL182: 4 | BM182: 9 | BN182: 10 | BO182: 24 | BP182: 34 | BQ182: 160 | BR182: 439 | BS182: 3 | BT182: 8 | BU182: 8 | BV182: 19 | BW182: 3 | BX182: 4 | BY182: 6 | BZ182: 13 | CA182: ناجحة | CB182: ومنقولة للصف الثالث | CC182: 0 | CD182: 2 | CE182: 11/2 | CW182: 0 | CX182: 0
A183: 174 | B183: 1682 | C183: مديحة محمد الطاهر محمد | D183: 1/2 | K183: بنات | L183: خدمات | M183: مسائى | O183: 3101 | P183: 9 | Q183: 9 | R183: 13 | S183: 31 | T183: 8 | U183: 7 | V183: 5 | W183: 20 | X183: 4 | Y183: 5 | Z183: 4 | AA183: 13 | AB183: 6 | AC183: 13 | AD183: 6 | AE183: 25 | AF183: 10 | AG183: 16 | AH183: 20 | AI183: 46 | AJ183: 9 | AK183: 15 | AL183: 20 | AM183: 44 | AN183: 9 | AO183: 13 | AP183: 19 | AQ183: 41 | AR183: 9 | AS183: 15 | AT183: 11 | AU183: 35 | AV183: 9 | AW183: 13 | AX183: 14 | AY183: 36 | AZ183: 10 | BA183: 19 | BB183: 18 | BC183: 47 | BD183: 10 | BE183: 16 | BF183: 20 | BG183: 46 | BH183: 3 | BI183: 5 | BJ183: 7 | BK183: 8 | BL183: 4 | BM183: 12 | BN183: 14 | BO183: 25 | BP183: 39 | BQ183: 156 | BR183: 423 | BS183: 3 | BT183: 7 | BU183: 7 | BV183: 17 | BW183: 3 | BX183: 5 | BY183: 4 | BZ183: 12 | CA183: ناجحة | CB183: ومنقولة للصف الثالث | CC183: 0 | CD183: 2 | CE183: 11/2 | CW183: 0 | CX183: 0
A184: 175 | B184: 1683 | C184: مروة ابراهيم محمد ابراهيم | D184: 4/2 | K184: بنات | L184: خدمات | M184: مسائى | O184: 3102 | P184: 9 | Q184: 14 | R184: 9 | S184: 32 | T184: 8 | U184: 5 | V184: 7 | W184: 20 | X184: 4 | Y184: 6 | Z184: 4 | AA184: 14 | AB184: 9 | AC184: 16 | AD184: 19 | AE184: 44 | AF184: 10 | AG184: 20 | AH184: 20 | AI184: 50 | AJ184: 10 | AK184: 19 | AL184: 20 | AM184: 49 | AN184: 9 | AO184: 6 | AP184: 19 | AQ184: 34 | AR184: 10 | AS184: 18 | AT184: 18 | AU184: 46 | AV184: 9 | AW184: 14 | AX184: 17 | AY184: 40 | AZ184: 10 | BA184: 19 | BB184: 20 | BC184: 49 | BD184: 9 | BE184: 16 | BF184: 19 | BG184: 44 | BH184: 3 | BI184: 5 | BJ184: 5 | BK184: 10 | BL184: 4 | BM184: 9 | BN184: 12 | BO184: 24 | BP184: 36 | BQ184: 168 | BR184: 458 | BS184: 3 | BT184: 8 | BU184: 8 | BV184: 19 | BW184: 3 | BX184: 4 | BY184: 5 | BZ184: 12 | CA184: ناجحة | CB184: ومنقولة للصف الثالث | CC184: 0 | CD184: 2 | CE184: 11/2 | CW184: 0 | CX184: 0
A185: 176 | B185: 1684 | C185: مروة على حسن شحات | D185: 2/2 | K185: بنات | L185: خدمات | M185: مسائى | O185: 3103 | P185: 9 | Q185: 7 | R185: 12 | S185: 28 | T185: 8 | U185: 6 | V185: 6 | W185: 20 | X185: 4 | Y185: 4 | Z185: 6 | AA185: 14 | AB185: 9 | AC185: 9 | AD185: 7 | AE185: 25 | AF185: 9 | AG185: 6 | AH185: 15 | AI185: 30 | AJ185: 9 | AK185: 12 | AL185: 15 | AM185: 36 | AN185: 9 | AO185: 8 | AP185: 17 | AQ185: 34 | AR185: 9 | AS185: 12 | AT185: 11 | AU185: 32 | AV185: 9 | AW185: 12 | AX185: 13 | AY185: 34 | AZ185: 9 | BA185: 16 | BB185: 17 | BC185: 42 | BD185: 9 | BE185: 14 | BF185: 20 | BG185: 43 | BH185: 3 | BI185: 5 | BJ185: 6 | BK185: 2 | BL185: 4 | BM185: 8 | BN185: 13 | BO185: 15 | BP185: 28 | BQ185: 114 | BR185: 366 | BS185: 3 | BT185: 3 | BU185: 8 | BV185: 14 | BW185: 3 | BX185: 5 | BY185: 2 | BZ185: 10 | CA185: ناجحة | CB185: ومنقولة للصف الثالث | CC185: 0 | CD185: 2 | CE185: 11/2 | CW185: 0 | CX185: 0
A186: 177 | B186: 1685 | C186: مروة محمود عطا احمد | D186: 1/2 | K186: بنات | L186: خدمات | M186: مسائى | O186: 3104 | P186: 9 | Q186: 7 | R186: 11 | S186: 27 | T186: 8 | U186: 7 | V186: 5 | W186: 20 | X186: 4 | Y186: 5 | Z186: 4 | AA186: 13 | AB186: 9 | AC186: 6 | AD186: 10 | AE186: 25 | AF186: 9 | AG186: 6 | AH186: 20 | AI186: 35 | AJ186: 9 | AK186: 3 | AL186: 18 | AM186: 30 | AN186: 9 | AO186: 9 | AP186: 16 | AQ186: 34 | AR186: 9 | AS186: 12 | AT186: 13 | AU186: 34 | AV186: 9 | AW186: 13 | AX186: 16 | AY186: 38 | AZ186: 10 | BA186: 18 | BB186: 20 | BC186: 48 | BD186: 9 | BE186: 15 | BF186: 18 | BG186: 42 | BH186: 3 | BI186: 5 | BJ186: 5 | BK186: 11 | BL186: 4 | BM186: 8 | BN186: 12 | BO186: 24 | BP186: 36 | BQ186: 117 | BR186: 382 | BS186: 3 | BT186: 5 | BU186: 8 | BV186: 16 | BW186: 3 | BX186: 4 | BY186: 3 | BZ186: 10 | CA186: ناجحة | CB186: ومنقولة للصف الثالث | CC186: 0 | CD186: 2 | CE186: 11/2 | CW186: 0 | CX186: 0
A187: 178 | B187: 1686 | C187: مريم تامر حلمى فاخورى | D187: 5/2 | K187: بنات | L187: خدمات | M187: مسائى | O187: 3105 | P187: 9 | Q187: 6 | R187: 10 | S187: 25 | T187: 8 | U187: 6 | V187: 6 | W187: 20 | X187: 4 | Y187: 2 | Z187: 4 | AA187: 10 | AB187: 9 | AC187: 5 | AD187: 11 | AE187: 25 | AF187: 9 | AG187: 7 | AH187: 20 | AI187: 36 | AJ187: 9 | AK187: 5 | AL187: 17 | AM187: 31 | AN187: 9 | AO187: 8 | AP187: 12 | AQ187: 29 | AR187: 9 | AS187: 15 | AT187: 11 | AU187: 35 | AV187: 9 | AW187: 18 | AX187: 16 | AY187: 43 | AZ187: 10 | BA187: 19 | BB187: 19 | BC187: 48 | BD187: 9 | BE187: 16 | BF187: 19 | BG187: 44 | BH187: 3 | BI187: 5 | BJ187: 5 | BK187: 12 | BL187: 7 | BM187: 8 | BN187: 15 | BO187: 25 | BP187: 40 | BQ187: 124 | BR187: 386 | BS187: 3 | BT187: 4 | BU187: 5 | BV187: 12 | BW187: 3 | BX187: 3 | BY187: 6 | BZ187: 12 | CA187: ناجحة | CB187: ومنقولة للصف الثالث | CC187: 0 | CD187: 2 | CE187: 11/2 | CW187: 0 | CX187: 0
A188: 179 | B188: 1687 | C188: مريم صالح مدنى على | D188: 5/2 | K188: بنات | L188: خدمات | M188: مسائى | O188: 3106 | P188: 9 | Q188: 13 | R188: 12 | S188: 34 | T188: 8 | U188: 5 | V188: 7 | W188: 20 | X188: 4 | Y188: 5 | Z188: 4 | AA188: 13 | AB188: 9 | AC188: 9 | AD188: 7 | AE188: 25 | AF188: 9 | AG188: 9 | AH188: 19 | AI188: 37 | AJ188: 9 | AK188: 3 | AL188: 20 | AM188: 32 | AN188: 9 | AO188: 9 | AP188: 17 | AQ188: 35 | AR188: 9 | AS188: 18 | AT188: 16 | AU188: 43 | AV188: 9 | AW188: 11 | AX188: 15 | AY188: 35 | AZ188: 9 | BA188: 17 | BB188: 16 | BC188: 42 | BD188: 9 | BE188: 18 | BF188: 19 | BG188: 46 | BH188: 3 | BI188: 5 | BJ188: 8 | BK188: 7 | BL188: 5 | BM188: 9 | BN188: 16 | BO188: 21 | BP188: 37 | BQ188: 132 | BR188: 399 | BS188: 3 | BT188: 4 | BU188: 6 | BV188: 13 | BW188: 3 | BX188: 7 | BY188: 7 | BZ188: 17 | CA188: ناجحة | CB188: ومنقولة للصف الثالث | CC188: 0 | CD188: 2 | CE188: 11/2 | CW188: 0 | CX188: 0
A189: 180 | B189: 1688 | C189: مريم محمد سعد حسن | D189: 1/2 | K189: بنات | L189: خدمات | M189: مسائى | O189: 3107 | P189: 9 | Q189: 12 | R189: 17 | S189: 38 | T189: 8 | U189: 9 | V189: 10 | W189: 27 | X189: 5 | Y189: 7 | Z189: 8 | AA189: 20 | AB189: 9 | AC189: 15 | AD189: 14 | AE189: 38 | AF189: 10 | AG189: 20 | AH189: 18 | AI189: 48 | AJ189: 9 | AK189: 20 | AL189: 20 | AM189: 49 | AN189: 9 | AO189: 11 | AP189: 19 | AQ189: 39 | AR189: 9 | AS189: 16 | AT189: 18 | AU189: 43 | AV189: 9 | AW189: 15 | AX189: 18 | AY189: 42 | AZ189: 9 | BA189: 17 | BB189: 17 | BC189: 43 | BD189: 9 | BE189: 15 | BF189: 19 | BG189: 43 | BH189: 3 | BI189: 5 | BJ189: 5 | BK189: 12 | BL189: 4 | BM189: 9 | BN189: 12 | BO189: 26 | BP189: 38 | BQ189: 174 | BR189: 468 | BS189: 3 | BT189: 7 | BU189: 7 | BV189: 17 | BW189: 3 | BX189: 5 | BY189: 6 | BZ189: 14 | CA189: ناجحة | CB189: ومنقولة للصف الثالث | CC189: 0 | CD189: 2 | CE189: 11/2 | CW189: 0 | CX189: 0
A190: 181 | B190: 1689 | C190: منار احمد سلطان قاسم | D190: 4/2 | K190: بنات | L190: خدمات | M190: مسائى | O190: 3108 | P190: 9 | Q190: 10 | R190: 14 | S190: 33 | T190: 8 | U190: 7 | V190: 5 | W190: 20 | X190: 5 | Y190: 7 | Z190: 6 | AA190: 18 | AB190: 9 | AC190: 15 | AD190: 15 | AE190: 39 | AF190: 10 | AG190: 17 | AH190: 20 | AI190: 47 | AJ190: 9 | AK190: 17 | AL190: 20 | AM190: 46 | AN190: 9 | AO190: 11 | AP190: 15 | AQ190: 35 | AR190: 9 | AS190: 16 | AT190: 15 | AU190: 40 | AV190: 9 | AW190: 14 | AX190: 17 | AY190: 40 | AZ190: 10 | BA190: 18 | BB190: 19 | BC190: 47 | BD190: 9 | BE190: 14 | BF190: 19 | BG190: 42 | BH190: 3 | BI190: 5 | BJ190: 5 | BK190: 12 | BL190: 4 | BM190: 9 | BN190: 12 | BO190: 26 | BP190: 38 | BQ190: 163 | BR190: 445 | BS190: 3 | BT190: 7 | BU190: 8 | BV190: 18 | BW190: 3 | BX190: 7 | BY190: 5 | BZ190: 15 | CA190: ناجحة | CB190: ومنقولة للصف الثالث | CC190: 0 | CD190: 2 | CE190: 11/2 | CW190: 0 | CX190: 0
A191: 182 | B191: 1690 | C191: منار شعبان امين ابراهيم | D191: 4/2 | K191: بنات | L191: خدمات | M191: مسائى | O191: 3109 | P191: 9 | Q191: 10 | R191: 14 | S191: 33 | T191: 8 | U191: 7 | V191: 5 | W191: 20 | X191: 5 | Y191: 6 | Z191: 6 | AA191: 17 | AB191: 9 | AC191: 5 | AD191: 11 | AE191: 25 | AF191: 9 | AG191: 7 | AH191: 17 | AI191: 33 | AJ191: 9 | AK191: 1 | AL191: 17 | AM191: 27 | AN191: 9 | AO191: 8 | AP191: 15 | AQ191: 32 | AR191: 9 | AS191: 14 | AT191: 16 | AU191: 39 | AV191: 9 | AW191: 10 | AX191: 16 | AY191: 35 | AZ191: 10 | BA191: 19 | BB191: 18 | BC191: 47 | BD191: 10 | BE191: 18 | BF191: 19 | BG191: 47 | BH191: 2 | BI191: 5 | BJ191: 4 | BK191: 10 | BL191: 4 | BM191: 6 | BN191: 10 | BO191: 21 | BP191: 31 | BQ191: 119 | BR191: 386 | BS191: 3 | BT191: 6 | BU191: 6 | BV191: 15 | BW191: 3 | BX191: 6 | BY191: 6 | BZ191: 15 | CA191: ناجحة | CB191: ومنقولة للصف الثالث | CC191: 0 | CD191: 2 | CE191: 11/2 | CW191: 0 | CX191: 0
A192: 183 | B192: 1691 | C192: منار شعبان حسن على | D192: 4/2 | K192: بنات | L192: خدمات | M192: مسائى | O192: 3110 | P192: 9 | Q192: 9 | R192: 13 | S192: 31 | T192: 8 | U192: 7 | V192: 6 | W192: 21 | X192: 4 | Y192: 5 | Z192: 6 | AA192: 15 | AB192: 9 | AC192: 5 | AD192: 13 | AE192: 27 | AF192: 9 | AG192: 6 | AH192: 20 | AI192: 35 | AJ192: 9 | AK192: 6 | AL192: 20 | AM192: 35 | AN192: 10 | AO192: 19 | AP192: 19 | AQ192: 48 | AR192: 9 | AS192: 19 | AT192: 16 | AU192: 44 | AV192: 9 | AW192: 17 | AX192: 14 | AY192: 40 | AZ192: 10 | BA192: 17 | BB192: 19 | BC192: 46 | BD192: 10 | BE192: 18 | BF192: 19 | BG192: 47 | BH192: 3 | BI192: 5 | BJ192: 6 | BK192: 10 | BL192: 6 | BM192: 12 | BN192: 15 | BO192: 27 | BP192: 42 | BQ192: 144 | BR192: 431 | BS192: 3 | BT192: 5 | BU192: 8 | BV192: 16 | BW192: 3 | BX192: 6 | BY192: 6 | BZ192: 15 | CA192: ناجحة | CB192: ومنقولة للصف الثالث | CC192: 0 | CD192: 2 | CE192: 11/2 | CW192: 0 | CX192: 0
A193: 184 | B193: 1692 | C193: منار على احمد على | D193: 4/2 | K193: بنات | L193: خدمات | M193: مسائى | O193: 3111 | P193: 9 | Q193: 11 | R193: 15 | S193: 35 | T193: 8 | U193: 11 | V193: 5 | W193: 24 | X193: 4 | Y193: 4 | Z193: 5 | AA193: 13 | AB193: 10 | AC193: 17 | AD193: 19 | AE193: 46 | AF193: 9 | AG193: 2 | AH193: 20 | AI193: 31 | AJ193: 9 | AK193: 3 | AL193: 20 | AM193: 32 | AN193: 10 | AO193: 19 | AP193: 20 | AQ193: 49 | AR193: 10 | AS193: 18 | AT193: 18 | AU193: 46 | AV193: 9 | AW193: 11 | AX193: 15 | AY193: 35 | AZ193: 9 | BA193: 16 | BB193: 19 | BC193: 44 | BD193: 9 | BE193: 16 | BF193: 19 | BG193: 44 | BH193: 4 | BI193: 5 | BJ193: 8 | BK193: 11 | BL193: 5 | BM193: 12 | BN193: 17 | BO193: 28 | BP193: 45 | BQ193: 147 | BR193: 444 | BS193: 3 | BT193: 5 | BU193: 7 | BV193: 15 | BW193: 3 | BX193: 7 | BY193: 7 | BZ193: 17 | CA193: ناجحة | CB193: ومنقولة للصف الثالث | CC193: 0 | CD193: 2 | CE193: 11/2 | CW193: 0 | CX193: 0
A194: 185 | B194: 1693 | C194: منار محمد عبد الباسط احمد | D194: 4/2 | K194: بنات | L194: خدمات | M194: مسائى | O194: 3112 | P194: 10 | Q194: 14 | R194: 18 | S194: 42 | T194: 8 | U194: 8 | V194: 7 | W194: 23 | X194: 4 | Y194: 5 | Z194: 6 | AA194: 15 | AB194: 9 | AC194: 14 | AD194: 15 | AE194: 38 | AF194: 9 | AG194: 10 | AH194: 13 | AI194: 32 | AJ194: 9 | AK194: 7 | AL194: 16 | AM194: 32 | AN194: 10 | AO194: 18 | AP194: 20 | AQ194: 48 | AR194: 9 | AS194: 18 | AT194: 17 | AU194: 44 | AV194: 9 | AW194: 11 | AX194: 13 | AY194: 33 | AZ194: 9 | BA194: 16 | BB194: 19 | BC194: 44 | BD194: 9 | BE194: 10 | BF194: 19 | BG194: 38 | BH194: 3 | BI194: 5 | BJ194: 5 | BK194: 8 | BL194: 5 | BM194: 12 | BN194: 13 | BO194: 25 | BP194: 38 | BQ194: 144 | BR194: 427 | BS194: 3 | BT194: 8 | BU194: 7 | BV194: 18 | BW194: 3 | BX194: 6 | BY194: 7 | BZ194: 16 | CA194: ناجحة | CB194: ومنقولة للصف الثالث | CC194: 0 | CD194: 3 | CE194: 12/2 | CW194: 0 | CX194: 0
A195: 186 | B195: 1694 | C195: منار محمد محمود اسماعيل | D195: 1/2 | K195: بنات | L195: خدمات | M195: مسائى | O195: 3113 | P195: 10 | Q195: 19 | R195: 19 | S195: 48 | T195: 8 | U195: 9 | V195: 12 | W195: 29 | X195: 4 | Y195: 5 | Z195: 6 | AA195: 15 | AB195: 9 | AC195: 17 | AD195: 18 | AE195: 44 | AF195: 10 | AG195: 20 | AH195: 20 | AI195: 50 | AJ195: 10 | AK195: 18 | AL195: 19 | AM195: 47 | AN195: 10 | AO195: 19 | AP195: 20 | AQ195: 49 | AR195: 10 | AS195: 19 | AT195: 17 | AU195: 46 | AV195: 9 | AW195: 19 | AX195: 16 | AY195: 44 | AZ195: 10 | BA195: 17 | BB195: 19 | BC195: 46 | BD195: 10 | BE195: 17 | BF195: 19 | BG195: 46 | BH195: 3 | BI195: 5 | BJ195: 5 | BK195: 12 | BL195: 5 | BM195: 12 | BN195: 13 | BO195: 29 | BP195: 42 | BQ195: 196 | BR195: 506 | BS195: 3 | BT195: 8 | BU195: 8 | BV195: 19 | BW195: 3 | BX195: 8 | BY195: 7 | BZ195: 18 | CA195: ناجحة | CB195: ومنقولة للصف الثالث | CC195: 0 | CD195: 3 | CE195: 12/2 | CW195: 0 | CX195: 0
A196: 187 | B196: 1695 | C196: منارعبد المعطى متولى ابراهيم | D196: 3/2 | K196: بنات | L196: خدمات | M196: مسائى | O196: 3114 | P196: 9 | Q196: 11 | R196: 13 | S196: 33 | T196: 8 | U196: 6 | V196: 6 | W196: 20 | X196: 4 | Y196: 6 | Z196: 4 | AA196: 14 | AB196: 9 | AC196: 6 | AD196: 10 | AE196: 25 | AF196: 9 | AG196: 2 | AH196: 15 | AI196: 26 | AJ196: 9 | AK196: 6 | AL196: 10 | AM196: 25 | AN196: 9 | AO196: 15 | AP196: 18 | AQ196: 42 | AR196: 9 | AS196: 14 | AT196: 15 | AU196: 38 | AV196: 9 | AW196: 9 | AX196: 13 | AY196: 31 | AZ196: 9 | BA196: 15 | BB196: 16 | BC196: 40 | BD196: 10 | BE196: 18 | BF196: 19 | BG196: 47 | BH196: 2 | BI196: 5 | BJ196: 4 | BK196: 8 | BL196: 5 | BM196: 9 | BN196: 11 | BO196: 22 | BP196: 33 | BQ196: 120 | BR196: 374 | BS196: 3 | BT196: 5 | BU196: 8 | BV196: 16 | BW196: 3 | BX196: 6 | BY196: 8 | BZ196: 17 | CA196: ناجحة | CB196: ومنقولة للصف الثالث | CC196: 0 | CD196: 3 | CE196: 12/2 | CW196: 0 | CX196: 0
A197: 188 | B197: 1696 | C197: منال عادل محمد الفاوى | D197: 3/2 | K197: بنات | L197: خدمات | M197: مسائى | O197: 3115 | P197: 9 | Q197: 10 | R197: 15 | S197: 34 | T197: 8 | U197: 9 | V197: 6 | W197: 23 | X197: 4 | Y197: 4 | Z197: 4 | AA197: 12 | AB197: 9 | AC197: 10 | AD197: 11 | AE197: 30 | AF197: 9 | AG197: 13 | AH197: 14 | AI197: 36 | AJ197: 9 | AK197: 8 | AL197: 8 | AM197: 25 | AN197: 9 | AO197: 17 | AP197: 18 | AQ197: 44 | AR197: 9 | AS197: 15 | AT197: 15 | AU197: 39 | AV197: 9 | AW197: 14 | AX197: 14 | AY197: 37 | AZ197: 9 | BA197: 12 | BB197: 16 | BC197: 37 | BD197: 10 | BE197: 17 | BF197: 19 | BG197: 46 | BH197: 3 | BI197: 5 | BJ197: 6 | BK197: 7 | BL197: 5 | BM197: 9 | BN197: 14 | BO197: 21 | BP197: 35 | BQ197: 142 | BR197: 398 | BS197: 3 | BT197: 5 | BU197: 8 | BV197: 16 | BW197: 3 | BX197: 5 | BY197: 5 | BZ197: 13 | CA197: ناجحة | CB197: ومنقولة للصف الثالث | CC197: 0 | CD197: 3 | CE197: 12/2 | CW197: 0 | CX197: 0
A198: 189 | B198: 1697 | C198: منى عبد الفتاح رمضان عبد المنعم | D198: 1/2 | K198: بنات | L198: خدمات | M198: مسائى | O198: 3116 | P198: 9 | Q198: 15 | R198: 14 | S198: 38 | T198: 8 | U198: 7 | V198: 6 | W198: 21 | X198: 4 | Y198: 4 | Z198: 5 | AA198: 13 | AB198: 9 | AC198: 9 | AD198: 7 | AE198: 25 | AF198: 9 | AG198: 11 | AH198: 15 | AI198: 35 | AJ198: 9 | AK198: 8 | AL198: 18 | AM198: 35 | AN198: 9 | AO198: 16 | AP198: 19 | AQ198: 44 | AR198: 9 | AS198: 15 | AT198: 17 | AU198: 41 | AV198: 9 | AW198: 18 | AX198: 15 | AY198: 42 | AZ198: 9 | BA198: 15 | BB198: 20 | BC198: 44 | BD198: 9 | BE198: 16 | BF198: 19 | BG198: 44 | BH198: 2 | BI198: 5 | BJ198: 4 | BK198: 8 | BL198: 5 | BM198: 8 | BN198: 11 | BO198: 21 | BP198: 32 | BQ198: 146 | BR198: 414 | BS198: 3 | BT198: 3 | BU198: 8 | BV198: 14 | BW198: 3 | BX198: 7 | BY198: 7 | BZ198: 17 | CA198: ناجحة | CB198: ومنقولة للصف الثالث | CC198: 0 | CD198: 3 | CE198: 12/2 | CW198: 0 | CX198: 0
A199: 190 | B199: 1698 | C199: منى كمال أبو المجد احمد | D199: 3/2 | K199: بنات | L199: خدمات | M199: مسائى | O199: 3117 | P199: 9 | Q199: 10 | R199: 12 | S199: 31 | T199: 8 | U199: 9 | V199: 5 | W199: 22 | X199: 4 | Y199: 6 | Z199: 3 | AA199: 13 | AB199: 9 | AC199: 9 | AD199: 7 | AE199: 25 | AF199: 9 | AG199: 1 | AH199: 15 | AI199: 25 | AJ199: 9 | AK199: 6 | AL199: 15 | AM199: 30 | AN199: 9 | AO199: 16 | AP199: 17 | AQ199: 42 | AR199: 9 | AS199: 10 | AT199: 14 | AU199: 33 | AV199: 9 | AW199: 9 | AX199: 15 | AY199: 33 | AZ199: 9 | BA199: 15 | BB199: 16 | BC199: 40 | BD199: 9 | BE199: 14 | BF199: 19 | BG199: 42 | BH199: 2 | BI199: 5 | BJ199: 4 | BK199: 8 | BL199: 4 | BM199: 7 | BN199: 10 | BO199: 20 | BP199: 30 | BQ199: 117 | BR199: 366 | BS199: 3 | BT199: 7 | BU199: 8 | BV199: 18 | BW199: 3 | BX199: 6 | BY199: 5 | BZ199: 14 | CA199: ناجحة | CB199: ومنقولة للصف الثالث | CC199: 0 | CD199: 3 | CE199: 12/2 | CW199: 0 | CX199: 0
A200: 191 | B200: 1699 | C200: نادية مصطفى شاذلى شحات | D200: 2/2 | K200: بنات | L200: خدمات | M200: مسائى | O200: 3118 | P200: 9 | Q200: 10 | R200: 15 | S200: 34 | T200: 8 | U200: 7 | V200: 5 | W200: 20 | X200: 4 | Y200: 7 | Z200: 4 | AA200: 15 | AB200: 9 | AC200: 12 | AD200: 5 | AE200: 26 | AF200: 9 | AG200: 10 | AH200: 6 | AI200: 25 | AJ200: 9 | AK200: 12 | AL200: 15 | AM200: 36 | AN200: 9 | AO200: 10 | AP200: 18 | AQ200: 37 | AR200: 9 | AS200: 12 | AT200: 17 | AU200: 38 | AV200: 9 | AW200: 10 | AX200: 14 | AY200: 33 | AZ200: 9 | BA200: 14 | BB200: 15 | BC200: 38 | BD200: 9 | BE200: 19 | BF200: 18 | BG200: 46 | BH200: 3 | BI200: 5 | BJ200: 6 | BK200: 7 | BL200: 4 | BM200: 4 | BN200: 13 | BO200: 16 | BP200: 29 | BQ200: 136 | BR200: 377 | BS200: 3 | BT200: 6 | BU200: 7 | BV200: 16 | BW200: 3 | BX200: 7 | BY200: 6 | BZ200: 16 | CA200: ناجحة | CB200: ومنقولة للصف الثالث | CC200: 0 | CD200: 3 | CE200: 12/2 | CW200: 0 | CX200: 0
... 239 more rows

Sheet شعبة التأمين
B1: بسم الله الرحمن الرحيم | AC1: شيت كنترول للعام الدراسى | AL1: 2019/2018 | CZ1: النوع | DA1: الفترة | DB1: صباحى | DE1: عدد اللجان | DF1: مسائى | DI1: عدد اللجان
C2: ادارة ……….. التعليمية | E2: 2018-10-01 | L2: الفترة | M2: العدد | AF2: الصف الثانى - | AJ2: شعبة التأمين | DA2: الفئة | DB2: من | DC2: الى | DD2: العدد | DF2: من | DG2: الى | DH2: العدد
C3: مدرسة ………..التجارية | L3: صباحى | M3: 155 | AG3: الشيت العام | CL3: اكتب اسماء المواد كما ستظهر فى الشهادة | CZ3: بنات | DA3: انتظام | DB3: 1151 | DC3: =IF(DD3>0,DB3+DD3-1,"") -> 1305 | DD3: 155 | DE3: 7 | DG3: =IF(DH3>0,DF3+DH3-1,"") ->  | DH3: 0
CZ4: بنات | DA4: خدمات | DC4: =IF(DD4>0,DB4+DD4-1,"") ->  | DD4: 0 | DG4: =IF(DH4>0,DF4+DH4-1,"") ->  | DH4: 0
A5: مسلسل | B5: البيانات الاساسية البيانات الاساسية | O5: السرى | P5: لغة عربية | T5: لغة انجليزية | X5: لغة فرنسية | AB5: مادة 1 | AF5: مادة 2 | AJ5: مادة 3 | AN5: مادة 4 | AR5: مادة 5 | AV5: مادة 6 | AZ5: مادة 7 | BD5: مادة 8 | BH5: حاسب آلى | BQ5: مجموع نصف العام | BR5: مجموع كلى | BS5: مواطنة وحقوق انسان | BW5: تربية دينية | CA5: نتيجة | CB5: مواد الرسوب | CC5: عدد المواد | CD5: اللجنة و مقرها | CH5: عربى | CI5: انجليزى | CJ5: فرنسى | CK5: مادة1 | CL5: مادة2 | CM5: مادة3 | CN5: مادة4 | CO5: مادة5 | CP5: مادة6 | CQ5: مادة7 | CR5: مادة8 | CS5: حاسب | CT5: مواطنة | CU5: دين | CV5: مجموع | CW5: عدد المواد (مواطنة-دين) | CZ5: بنين | DA5: انتظام | DC5: =IF(DD5>0,DB5+DD5-1,"") ->  | DD5: 0 | DG5: =IF(DH5>0,DF5+DH5-1,"") ->  | DH5: 0
B6: رقم جلوس | C6: الاســــــــــــــم | D6: الفصــــــــــل | E6: تاريخ الميلاد | F6: السن فى 10/1 | I6: الجنسية | J6: الديانة | K6: النوع | L6: الفئة | M6: الفترة | N6: الحالــــــــة | P6: اعمال السنة | Q6: نصف العام | R6: آخر العام | S6: المجموع | T6: اعمال السنة | U6: نصف العام | V6: آخر العام | W6: المجموع | X6: اعمال السنة | Y6: نصف العام | Z6: آخر العام | AA6: المجموع | AB6: اعمال السنة | AC6: نصف العام | AD6: آخر العام | AE6: المجموع | AF6: اعمال السنة | AG6: نصف العام | AH6: آخر العام | AI6: المجموع | AJ6: اعمال السنة | AK6: نصف العام | AL6: آخر العام | AM6: المجموع | AN6: اعمال السنة | AO6: نصف العام | AP6: آخر العام | AQ6: المجموع | AR6: اعمال السنة | AS6: نصف العام | AT6: آخر العام | AU6: المجموع | AV6: اعمال السنة | AW6: نصف العام | AX6: آخر العام | AY6: المجموع | AZ6: اعمال السنة | BA6: نصف العام | BB6: آخر العام | BC6: المجموع | BD6: اعمال السنة | BE6: نصف العام | BF6: آخر العام | BG6: المجموع | BH6: اعمال السنة | BJ6: نصف العام | BL6: آخر العام | BN6: مجموع عملى | BO6: مجموع تحريرى | BP6: مجموع حاسب | BS6: اعمال السنة | BT6: نصف العام | BU6: آخر العام | BV6: المجموع | BW6: اعمال السنة | BX6: نصف العام | BY6: آخر العام | BZ6: المجموع | CH6: تفريغ مـــــواد الرسوب - تفريغ مـــــواد الرسوب - تفريغ مـــــواد الرسوب - تفريغ مـــــواد الرسوب | CZ6: بنين | DA6: خدمات | DC6: =IF(DD6>0,DB6+DD6-1,"") ->  | DD6: 0 | DG6: =IF(DH6>0,DF6+DH6-1,"") ->  | DH6: 0
BH7: عملى | BI7: تحريرى | BJ7: عملى | BK7: تحريرى | BL7: عملى | BM7: تحريرى | CZ7: يتم اختيار رقم اول لجنة لكل فئة و كتابة عدد لجانها فقط ثم استخدام الازرار ( الخلايا الملونة فقط )
F8: يوم | G8: شهر | H8: سنة | O8: عظمى | P8: 10 | Q8: 20 | R8: 20 | S8: 50 | T8: 10 | U8: 20 | V8: 20 | W8: 50 | X8: 6 | Y8: 12 | Z8: 12 | AA8: 30 | AB8: 10 | AC8: 20 | AD8: 20 | AE8: 50 | AF8: 10 | AG8: 20 | AH8: 20 | AI8: 50 | AJ8: 10 | AK8: 20 | AL8: 20 | AM8: 50 | AN8: 10 | AO8: 20 | AP8: 20 | AQ8: 50 | AR8: 10 | AS8: 20 | AT8: 20 | AU8: 50 | AV8: 10 | AW8: 20 | AX8: 20 | AY8: 50 | AZ8: 10 | BA8: 20 | BB8: 20 | BC8: 50 | BD8: 10 | BE8: 20 | BF8: 20 | BG8: 50 | BH8: 4 | BI8: 6 | BJ8: 8 | BK8: 12 | BL8: 8 | BM8: 12 | BN8: 20 | BO8: 30 | BP8: 50 | BR8: 580 | BS8: 4 | BT8: 8 | BU8: 8 | BV8: 20 | BW8: 4 | BX8: 8 | BY8: 8 | BZ8: 20 | CD8: لجنة | CE8: مقر
O9: صغرى | P9: 0 | Q9: 0 | R9: 5 | S9: 25 | T9: 0 | U9: 0 | V9: 5 | W9: 20 | X9: 0 | Y9: 0 | Z9: 3 | AA9: 9 | AB9: 0 | AC9: 0 | AD9: 5 | AE9: 25 | AF9: 0 | AG9: 0 | AH9: 5 | AI9: 25 | AJ9: 0 | AK9: 0 | AL9: 5 | AM9: 25 | AN9: 0 | AO9: 0 | AP9: 5 | AQ9: 25 | AR9: 0 | AS9: 0 | AT9: 5 | AU9: 25 | AV9: 0 | AW9: 0 | AX9: 5 | AY9: 20 | AZ9: 0 | BA9: 0 | BB9: 5 | BC9: 25 | BD9: 0 | BE9: 0 | BF9: 5 | BG9: 25 | BH9: 0 | BI9: 0 | BK9: 0 | BL9: 2 | BM9: 3 | BN9: 10 | BO9: 15 | BP9: 25 | BR9: 290 | BS9: 0 | BT9: 0 | BU9: 2 | BV9: 10 | BW9: 0 | BX9: 0 | BY9: 2 | BZ9: 10
A10: 1 | B10: 1151 | C10: اسماء ابراهيم محمد عبد النعيم | D10: 6/2 | E10: 2002-12-21 | F10: 10 | G10: 9 | H10: 15 | K10: بنات | L10: انتظام | M10: صباحى | N10: باقية | O10: 3201 | P10: 9 | Q10: 12 | R10: 13 | S10: =IF($C10="","",SUM(P10,Q10,R10)) -> 34 | T10: 8 | U10: 2 | V10: 10 | W10: =IF($C10="","",SUM(T10,U10,V10)) -> 20 | X10: 4 | Y10: 4 | Z10: 7 | AA10: =IF($C10="","",SUM(X10,Y10,Z10)) -> 15 | AB10: 9 | AC10: 10 | AD10: 13 | AE10: =IF($C10="","",SUM(AB10,AC10,AD10)) -> 32 | AF10: 9 | AG10: 6 | AH10: 14 | AI10: =IF($C10="","",SUM(AF10,AG10,AH10)) -> 29 | AJ10: 9 | AK10: 7 | AL10: 17 | AM10: =IF($C10="","",SUM(AJ10:AL10)) -> 33 | AN10: 9 | AO10: 13 | AP10: 15 | AQ10: =IF($C10="","",SUM(AN10,AO10,AP10)) -> 37 | AR10: 9 | AS10: 15 | AT10: 15 | AU10: =IF($C10="","",SUM(AR10,AS10,AT10)) -> 39 | AV10: 9 | AW10: 9 | AX10: 16 | AY10: =IF($C10="","",SUM(AV10,AW10,AX10)) -> 34 | AZ10: 10 | BA10: 18 | BB10: 19 | BC10: =IF($C10="","",SUM(AZ10,BA10,BB10)) -> 47 | BD10: 10 | BE10: 17 | BF10: 19 | BG10: =IF($C10="","",SUM(BD10,BE10,BF10)) -> 46 | BH10: 2 | BI10: 5 | BJ10: 4 | BK10: 10 | BL10: 4 | BM10: 12 | BN10: =IF($C10="","",SUM(BH10,BJ10,BL10)) -> 10 | BO10: 27 | BP10: =IF($C10="","",SUM(BN10,BO10)) -> 37 | BQ10: =IF($C10="","",SUM(Q10,U10,Y10,AC10,AG10,AK10,AO10,AS10,AW10,BA10,BE10,BJ10,BK10)) -> 127 | BR10: =IF($C10="","",SUM(S10,W10,AA10,AE10,AI10,AM10,AQ10,AU10,AY10,BC10,BG10,BP10)) -> 403 | BS10: 3 | BT10: 5 | BU10: 8 | BV10: =IF($C10="","",SUM(BS10,BT10,BU10)) -> 16 | BW10: 3 | BX10: 6 | BY10: 8 | BZ10: =IF($C10="","",SUM(BW10,BX10,BY10)) -> 17 | CA10: =IF($C10="","",IF(CC10=0,"ناجحة",IF(CC10<=2,"دورثان","راسبة"))) -> ناجحة | CB10: =IF($C10="","",IF(CC10=0,"ومنقولة للصف الثالث",IF(CC10>0,"فى : "&CONCATENATE(CH10,CI10,CJ10,CK10,CL10,CM10,CN10,CO10,CP10,CQ10,CR10,CS10,CT10,CU10,CV10),CONCATENATE(CH10,CI10,CJ10,CK10,CL10,CM10,CN10,CO10,CP10,CQ10,CR10,CS10,CT10,CU10,CV10)))) -> ومنقولة للصف الثالث | CC10: =IF($C10="","",COUNTIF($CH10:$CS10,"?*")+COUNTIF($CV10,"?*")) -> 0 | CD10: 8 | CE10: 8/3 | CH10: =IF($C10="","",IF(OR(R10<$R$9,R10="غ",S10<$S$9),$CH$5&" - ","")) ->  | CI10: =IF($C10="","",IF(OR(V10<$V$9,V10="غ",W10<$W$9),$CI$5&" - ","")) ->  | CJ10: =IF($C10="","",IF(OR(Z10<$Z$9,Z10="غ",AA10<$AA$9),CJ$5&" - ","")) ->  | CK10: =IF($C10="","",IF(OR(AD10<$AD$9,AD10="غ",AE10<$AE$9),CK$5&" - ","")) ->  | CL10: =IF($C10="","",IF(OR(AH10<$AH$9,AH10="غ",AI10<$AI$9),CL$5&" - ","")) ->  | CM10: =IF($C10="","",IF(OR(AL10<$AL$9,AL10="غ",AM10<$AM$9),CM$5&" - ","")) ->  | CN10: =IF($C10="","",IF(OR(AP10<$AP$9,AP10="غ",AQ10<$AQ$9),CN$5&" - ","")) ->  | CO10: =IF($C10="","",IF(OR(AT10<$AT$9,AT10="غ",AU10<$AU$9),CO$5&" - ","")) ->  | CP10: =IF($C10="","",IF(OR(AX10<$AX$9,AX10="غ",AY10<$AY$9),CP$5&" - ","")) ->  | CQ10: =IF($C10="","",IF(OR(BB10<$BB$9,BB10="غ",BC10<$BC$9),CQ$5&" - ","")) ->  | CR10: =IF($C10="","",IF(OR(BF10<$BF$9,BF10="غ",BG10<$BG$9),CR$5&" - ","")) ->  | CS10: =IF($C10="","",IF(OR(BN10<$BN$9,BN10="غ",BO10<$BO$9,BO10="غ",BP10<$BP$9),CS$5&" - ","")) ->  | CT10: =IF($C10="","",IF(OR(BU10<$BU$9,BU10="غ",BV10<$BV$9),CT$5&" - ","")) ->  | CU10: =IF($C10="","",IF(OR(BY10<$BY$9,BY10="غ",BZ10<$BZ$9),CU$5&" - ","")) ->  | CV10: =IF($C10="","",IF(BR10<$BR$9,CV$5,"")) ->  | CW10: =IF($C10="","",COUNTIF($CT10:$CU10,"?*")) -> 0
A11: 2 | B11: 1152 | C11: اسماء خالد عبد الستار سعد محمد | D11: 7/2 | K11: بنات | L11: انتظام | M11: صباحى | O11: 3202 | P11: 9 | Q11: 13 | R11: 15 | S11: 37 | T11: 8 | U11: 7 | V11: 12 | W11: 27 | X11: 4 | Y11: 4 | Z11: 7 | AA11: 15 | AB11: 9 | AC11: 15 | AD11: 16 | AE11: 40 | AF11: 9 | AG11: 17 | AH11: 18 | AI11: 44 | AJ11: 9 | AK11: 12 | AL11: 20 | AM11: 41 | AN11: 9 | AO11: 16 | AP11: 17 | AQ11: 42 | AR11: 10 | AS11: 19 | AT11: 18 | AU11: 47 | AV11: 9 | AW11: 15 | AX11: 15 | AY11: 39 | AZ11: 10 | BA11: 18 | BB11: 19 | BC11: 47 | BD11: 9 | BE11: 17 | BF11: 18 | BG11: 44 | BH11: 4 | BI11: 5 | BJ11: 8 | BK11: 10 | BL11: 7 | BM11: 12 | BN11: 19 | BO11: 27 | BP11: 46 | BQ11: 171 | BR11: 469 | BS11: 3 | BT11: 5 | BU11: 8 | BV11: 16 | BW11: 3 | BX11: 8 | BY11: 7 | BZ11: 18 | CA11: ناجحة | CB11: ومنقولة للصف الثالث | CC11: =IF($C11="","",COUNTIF($CH11:$CS11,"?*")+COUNTIF($CV11,"?*")) -> 0 | CD11: 8 | CE11: 8/3 | CW11: =IF($C11="","",COUNTIF($CT11:$CU11,"?*")) -> 0
A12: 3 | B12: 1153 | C12: اسماء محفوظ محمد خليل | D12: 1/2 | K12: بنات | L12: انتظام | M12: صباحى | N12: باقية | O12: 3203 | P12: 9 | Q12: 11 | R12: 13 | S12: 33 | T12: 8 | U12: 5 | V12: 9 | W12: 22 | X12: 4 | Y12: 2 | Z12: 6 | AA12: 12 | AB12: 9 | AC12: 15 | AD12: 16 | AE12: 40 | AF12: 10 | AG12: 20 | AH12: 19 | AI12: 49 | AJ12: 9 | AK12: 20 | AL12: 20 | AM12: 49 | AN12: 9 | AO12: 17 | AP12: 17 | AQ12: 43 | AR12: 9 | AS12: 17 | AT12: 17 | AU12: 43 | AV12: 9 | AW12: 16 | AX12: 15 | AY12: 40 | AZ12: 9 | BA12: 18 | BB12: 17 | BC12: 44 | BD12: 10 | BE12: 19 | BF12: 19 | BG12: 48 | BH12: 4 | BI12: 5 | BJ12: 7 | BK12: 10 | BL12: 4 | BM12: 12 | BN12: 15 | BO12: 27 | BP12: 42 | BQ12: 177 | BR12: 465 | BS12: 3 | BT12: 6 | BU12: 8 | BV12: 17 | BW12: 3 | BX12: 8 | BY12: 6 | BZ12: 17 | CA12: ناجحة | CB12: ومنقولة للصف الثالث | CC12: 0 | CD12: 8 | CE12: 8/3 | CW12: 0
A13: 4 | B13: 1154 | C13: اميرة مرسى على محمد | D13: 3/2 | K13: بنات | L13: انتظام | M13: صباحى | O13: 3204 | P13: 9 | Q13: 9 | R13: 13 | S13: 31 | T13: 8 | U13: 5 | V13: 7 | W13: 20 | X13: 4 | Y13: 4 | Z13: 4 | AA13: 12 | AB13: 9 | AC13: 11 | AD13: 7 | AE13: 27 | AF13: 9 | AG13: 10 | AH13: 16 | AI13: 35 | AJ13: 9 | AK13: 8 | AL13: 8 | AM13: 25 | AN13: 9 | AO13: 15 | AP13: 18 | AQ13: 42 | AR13: 9 | AS13: 16 | AT13: 15 | AU13: 40 | AV13: 9 | AW13: 12 | AX13: 15 | AY13: 36 | AZ13: 9 | BA13: 18 | BB13: 17 | BC13: 44 | BD13: 10 | BE13: 20 | BF13: 19 | BG13: 49 | BH13: 3 | BI13: 5 | BJ13: 5 | BK13: 10 | BL13: 4 | BM13: 12 | BN13: 12 | BO13: 27 | BP13: 39 | BQ13: 143 | BR13: 400 | BS13: 3 | BT13: 5 | BU13: 8 | BV13: 16 | BW13: 3 | BX13: 5 | BY13: 3 | BZ13: 11 | CA13: ناجحة | CB13: ومنقولة للصف الثالث | CC13: 0 | CD13: 8 | CE13: 8/3 | CW13: 0
A14: 5 | B14: 1155 | C14: اميرة ممدوح ربيع بكير | D14: 2/2 | K14: بنات | L14: انتظام | M14: صباحى | O14: 3205 | P14: 9 | Q14: 13 | R14: 17 | S14: 39 | T14: 8 | U14: 7 | V14: 8 | W14: 23 | X14: 4 | Y14: 5 | Z14: 6 | AA14: 15 | AB14: 9 | AC14: 9 | AD14: 15 | AE14: 33 | AF14: 10 | AG14: 20 | AH14: 20 | AI14: 50 | AJ14: 9 | AK14: 16 | AL14: 19 | AM14: 44 | AN14: 9 | AO14: 16 | AP14: 19 | AQ14: 44 | AR14: 10 | AS14: 20 | AT14: 18 | AU14: 48 | AV14: 9 | AW14: 15 | AX14: 14 | AY14: 38 | AZ14: 10 | BA14: 18 | BB14: 19 | BC14: 47 | BD14: 10 | BE14: 19 | BF14: 18 | BG14: 47 | BH14: 3 | BI14: 5 | BJ14: 6 | BK14: 11 | BL14: 4 | BM14: 12 | BN14: 13 | BO14: 28 | BP14: 41 | BQ14: 175 | BR14: 469 | BS14: 3 | BT14: 7 | BU14: 8 | BV14: 18 | BW14: 3 | BX14: 5 | BY14: 5 | BZ14: 13 | CA14: ناجحة | CB14: ومنقولة للصف الثالث | CC14: 0 | CD14: 8 | CE14: 8/3 | CW14: 0
A15: 6 | B15: 1156 | C15: انجى محمد محمود نوبى | D15: 1/2 | K15: بنات | L15: انتظام | M15: صباحى | O15: 3206 | P15: 9 | Q15: 7 | R15: 9 | S15: 25 | T15: 8 | U15: 5 | V15: 7 | W15: 20 | X15: 4 | Y15: 4 | Z15: 5 | AA15: 13 | AB15: 8 | AC15: 11 | AD15: 12 | AE15: 31 | AF15: 9 | AG15: 4 | AH15: 20 | AI15: 33 | AJ15: 9 | AK15: 12 | AL15: 16 | AM15: 37 | AN15: 9 | AO15: 11 | AP15: 19 | AQ15: 39 | AR15: 9 | AS15: 8 | AT15: 13 | AU15: 30 | AV15: 9 | AW15: 11 | AX15: 16 | AY15: 36 | AZ15: 9 | BA15: 18 | BB15: 14 | BC15: 41 | BD15: 10 | BE15: 19 | BF15: 18 | BG15: 47 | BH15: 2 | BI15: 5 | BJ15: 4 | BK15: 9 | BL15: 5 | BM15: 12 | BN15: 11 | BO15: 26 | BP15: 37 | BQ15: 123 | BR15: 389 | BS15: 3 | BT15: 3 | BU15: 7 | BV15: 13 | BW15: 3 | BX15: 4 | BY15: 3 | BZ15: 10 | CA15: ناجحة | CB15: ومنقولة للصف الثالث | CC15: 0 | CD15: 8 | CE15: 8/3 | CW15: 0
A16: 7 | B16: 1157 | C16: ايمان احمد محمود حسن | D16: 2/2 | K16: بنات | L16: انتظام | M16: صباحى | O16: 3207 | P16: 9 | Q16: 9 | R16: 12 | S16: 30 | T16: 8 | U16: 6 | V16: 6 | W16: 20 | X16: 4 | Y16: 5 | Z16: 6 | AA16: 15 | AB16: 9 | AC16: 7 | AD16: 13 | AE16: 29 | AF16: 9 | AG16: 8 | AH16: 20 | AI16: 37 | AJ16: 10 | AK16: 18 | AL16: 19 | AM16: 47 | AN16: 9 | AO16: 8 | AP16: 20 | AQ16: 37 | AR16: 9 | AS16: 11 | AT16: 17 | AU16: 37 | AV16: 9 | AW16: 12 | AX16: 11 | AY16: 32 | AZ16: 9 | BA16: 17 | BB16: 18 | BC16: 44 | BD16: 9 | BE16: 17 | BF16: 18 | BG16: 44 | BH16: 2 | BI16: 5 | BJ16: 4 | BK16: 10 | BL16: 7 | BM16: 12 | BN16: 13 | BO16: 27 | BP16: 40 | BQ16: 132 | BR16: 412 | BS16: 3 | BT16: 5 | BU16: 8 | BV16: 16 | BW16: 3 | BX16: 4 | BY16: 6 | BZ16: 13 | CA16: ناجحة | CB16: ومنقولة للصف الثالث | CC16: 0 | CD16: 8 | CE16: 8/3 | CW16: 0
A17: 8 | B17: 1158 | C17: ايمان محمود احمد محمود | D17: 3/2 | K17: بنات | L17: انتظام | M17: صباحى | O17: 3208 | P17: 9 | Q17: 11 | R17: 13 | S17: 33 | T17: 8 | U17: 6 | V17: 6 | W17: 20 | X17: 4 | Y17: 4 | Z17: 5 | AA17: 13 | AB17: 9 | AC17: 9 | AD17: 12 | AE17: 30 | AF17: 9 | AG17: 10 | AH17: 19 | AI17: 38 | AJ17: 9 | AK17: 9 | AL17: 19 | AM17: 37 | AN17: 9 | AO17: 15 | AP17: 20 | AQ17: 44 | AR17: 9 | AS17: 13 | AT17: 17 | AU17: 39 | AV17: 9 | AW17: 16 | AX17: 12 | AY17: 37 | AZ17: 9 | BA17: 17 | BB17: 16 | BC17: 42 | BD17: 10 | BE17: 17 | BF17: 19 | BG17: 46 | BH17: 3 | BI17: 5 | BJ17: 6 | BK17: 10 | BL17: 4 | BM17: 12 | BN17: 13 | BO17: 27 | BP17: 40 | BQ17: 143 | BR17: 419 | BS17: 3 | BT17: 6 | BU17: 8 | BV17: 17 | BW17: 3 | BX17: 3 | BY17: 6 | BZ17: 12 | CA17: ناجحة | CB17: ومنقولة للصف الثالث | CC17: 0 | CD17: 8 | CE17: 8/3 | CW17: 0
A18: 9 | B18: 1159 | C18: آيات عبد العليم محمود ابو الفضل | D18: 1/2 | K18: بنات | L18: انتظام | M18: صباحى | O18: 3209 | P18: 9 | Q18: 9 | R18: 9 | S18: 27 | T18: 8 | U18: 6 | V18: 6 | W18: 20 | X18: 4 | Y18: 5 | Z18: 5 | AA18: 14 | AB18: 9 | AC18: 16 | AD18: 11 | AE18: 36 | AF18: 9 | AG18: 14 | AH18: 20 | AI18: 43 | AJ18: 9 | AK18: 16 | AL18: 14 | AM18: 39 | AN18: 10 | AO18: 16 | AP18: 20 | AQ18: 46 | AR18: 9 | AS18: 11 | AT18: 19 | AU18: 39 | AV18: 9 | AW18: 16 | AX18: 12 | AY18: 37 | AZ18: 10 | BA18: 18 | BB18: 19 | BC18: 47 | BD18: 10 | BE18: 19 | BF18: 17 | BG18: 46 | BH18: 3 | BI18: 5 | BJ18: 6 | BK18: 11 | BL18: 7 | BM18: 12 | BN18: 16 | BO18: 28 | BP18: 44 | BQ18: 163 | BR18: 438 | BS18: 3 | BT18: 5 | BU18: 7 | BV18: 15 | BW18: 3 | BX18: 3 | BY18: 4 | BZ18: 10 | CA18: ناجحة | CB18: ومنقولة للصف الثالث | CC18: 0 | CD18: 8 | CE18: 8/3 | CW18: 0
A19: 10 | B19: 1160 | C19: آية عبد الهادى محمد احمد | D19: 6/2 | K19: بنات | L19: انتظام | M19: صباحى | N19: باقية | O19: 3210 | P19: 9 | Q19: 12 | R19: 15 | S19: 36 | T19: 8 | U19: 7 | V19: 8 | W19: 23 | X19: 5 | Y19: 5 | Z19: 7 | AA19: 17 | AB19: 9 | AC19: 12 | AD19: 16 | AE19: 37 | AF19: 9 | AG19: 14 | AH19: 20 | AI19: 43 | AJ19: 9 | AK19: 12 | AL19: 18 | AM19: 39 | AN19: 10 | AO19: 16 | AP19: 20 | AQ19: 46 | AR19: 9 | AS19: 16 | AT19: 19 | AU19: 44 | AV19: 9 | AW19: 19 | AX19: 14 | AY19: 42 | AZ19: 10 | BA19: 18 | BB19: 18 | BC19: 46 | BD19: 10 | BE19: 19 | BF19: 18 | BG19: 47 | BH19: 4 | BI19: 5 | BJ19: 8 | BK19: 12 | BL19: 5 | BM19: 12 | BN19: 17 | BO19: 29 | BP19: 46 | BQ19: 170 | BR19: 466 | BS19: 3 | BT19: 6 | BU19: 8 | BV19: 17 | BW19: 3 | BX19: 6 | BY19: 5 | BZ19: 14 | CA19: ناجحة | CB19: ومنقولة للصف الثالث | CC19: 0 | CD19: 8 | CE19: 8/3 | CW19: 0
A20: 11 | B20: 1161 | C20: بثينة جمعة السيد عيد الرازق | D20: 3/2 | K20: بنات | L20: انتظام | M20: صباحى | O20: 3211 | P20: 9 | Q20: 8 | R20: 14 | S20: 31 | T20: 8 | U20: 5 | V20: 7 | W20: 20 | X20: 4 | Y20: 5 | Z20: 5 | AA20: 14 | AB20: 9 | AC20: 11 | AD20: 5 | AE20: 25 | AF20: 10 | AG20: 17 | AH20: 19 | AI20: 46 | AJ20: 9 | AK20: 8 | AL20: 8 | AM20: 25 | AN20: 9 | AO20: 14 | AP20: 19 | AQ20: 42 | AR20: 9 | AS20: 18 | AT20: 16 | AU20: 43 | AV20: 9 | AW20: 11 | AX20: 11 | AY20: 31 | AZ20: 10 | BA20: 18 | BB20: 19 | BC20: 47 | BD20: 9 | BE20: 16 | BF20: 17 | BG20: 42 | BH20: 4 | BI20: 5 | BJ20: 8 | BK20: 11 | BL20: 4 | BM20: 12 | BN20: 16 | BO20: 28 | BP20: 44 | BQ20: 150 | BR20: 410 | BS20: 3 | BT20: 5 | BU20: 8 | BV20: 16 | BW20: 3 | BX20: 4 | BY20: 7 | BZ20: 14 | CA20: ناجحة | CB20: ومنقولة للصف الثالث | CC20: 0 | CD20: 8 | CE20: 8/3 | CW20: 0
A21: 12 | B21: 1162 | C21: بسمة احمد حسن محمد | D21: 3/2 | K21: بنات | L21: انتظام | M21: صباحى | O21: 3212 | P21: 9 | Q21: 12 | R21: 15 | S21: 36 | T21: 8 | U21: 5 | V21: 11 | W21: 24 | X21: 4 | Y21: 4 | Z21: 4 | AA21: 12 | AB21: 9 | AC21: 11 | AD21: 5 | AE21: 25 | AF21: 9 | AG21: 7 | AH21: 14 | AI21: 30 | AJ21: 9 | AK21: 5 | AL21: 12 | AM21: 26 | AN21: 9 | AO21: 9 | AP21: 18 | AQ21: 36 | AR21: 9 | AS21: 14 | AT21: 16 | AU21: 39 | AV21: 9 | AW21: 13 | AX21: 13 | AY21: 35 | AZ21: 10 | BA21: 18 | BB21: 19 | BC21: 47 | BD21: 10 | BE21: 17 | BF21: 19 | BG21: 46 | BH21: 2 | BI21: 5 | BJ21: 4 | BK21: 11 | BL21: 4 | BM21: 12 | BN21: 10 | BO21: 28 | BP21: 38 | BQ21: 130 | BR21: 394 | BS21: 3 | BT21: 5 | BU21: 8 | BV21: 16 | BW21: 3 | BX21: 5 | BY21: 7 | BZ21: 15 | CA21: ناجحة | CB21: ومنقولة للصف الثالث | CC21: 0 | CD21: 8 | CE21: 8/3 | CW21: 0
A22: 13 | B22: 1163 | C22: تيسير عيد على ابراهيم | D22: 1/2 | K22: بنات | L22: انتظام | M22: صباحى | O22: 3213 | P22: 9 | Q22: 13 | R22: 13 | S22: 35 | T22: 8 | U22: 5 | V22: 10 | W22: 23 | X22: 4 | Y22: 4 | Z22: 4 | AA22: 12 | AB22: 9 | AC22: 13 | AD22: 9 | AE22: 31 | AF22: 9 | AG22: 10 | AH22: 17 | AI22: 36 | AJ22: 9 | AK22: 6 | AL22: 14 | AM22: 29 | AN22: 9 | AO22: 14 | AP22: 19 | AQ22: 42 | AR22: 9 | AS22: 16 | AT22: 18 | AU22: 43 | AV22: 9 | AW22: 12 | AX22: 11 | AY22: 32 | AZ22: 10 | BA22: 19 | BB22: 17 | BC22: 46 | BD22: 10 | BE22: 17 | BF22: 19 | BG22: 46 | BH22: 2 | BI22: 5 | BJ22: 4 | BK22: 11 | BL22: 5 | BM22: 12 | BN22: 11 | BO22: 28 | BP22: 39 | BQ22: 144 | BR22: 414 | BS22: 3 | BT22: 5 | BU22: 8 | BV22: 16 | BW22: 3 | BX22: 6 | BY22: 6 | BZ22: 15 | CA22: ناجحة | CB22: ومنقولة للصف الثالث | CC22: 0 | CD22: 8 | CE22: 8/3 | CW22: 0
A23: 14 | B23: 1164 | C23: حبيبة منصور عبد العظيم محمد | D23: 5/2 | K23: بنات | L23: انتظام | M23: صباحى | O23: 3214 | P23: 9 | Q23: 9 | R23: 13 | S23: 31 | T23: 8 | U23: 5 | V23: 7 | W23: 20 | X23: 4 | Y23: 3 | Z23: 3 | AA23: 10 | AB23: 8 | AC23: 10 | AD23: 7 | AE23: 25 | AF23: 9 | AG23: 6 | AH23: 10 | AI23: 25 | AJ23: 9 | AK23: 9 | AL23: 7 | AM23: 25 | AN23: 9 | AO23: 15 | AP23: 11 | AQ23: 35 | AR23: 9 | AS23: 9 | AT23: 15 | AU23: 33 | AV23: 9 | AW23: 14 | AX23: 14 | AY23: 37 | AZ23: 9 | BA23: 13 | BB23: 17 | BC23: 39 | BD23: 9 | BE23: 17 | BF23: 16 | BG23: 42 | BH23: 3 | BI23: 5 | BJ23: 6 | BK23: 8 | BL23: 4 | BM23: 7 | BN23: 13 | BO23: 20 | BP23: 33 | BQ23: 124 | BR23: 355 | BS23: 3 | BT23: 4 | BU23: 8 | BV23: 15 | BW23: 3 | BX23: 7 | BY23: 4 | BZ23: 14 | CA23: ناجحة | CB23: ومنقولة للصف الثالث | CC23: 0 | CD23: 8 | CE23: 8/3 | CW23: 0
A24: 15 | B24: 1165 | C24: حنان عبد المنعم عطية عبد الدايم | D24: 4/2 | K24: بنات | L24: انتظام | M24: صباحى | O24: 3215 | P24: 9 | Q24: 12 | R24: 14 | S24: 35 | T24: 8 | U24: 5 | V24: 8 | W24: 21 | X24: 4 | Y24: 4 | Z24: 6 | AA24: 14 | AB24: 9 | AC24: 17 | AD24: 14 | AE24: 40 | AF24: 10 | AG24: 20 | AH24: 20 | AI24: 50 | AJ24: 10 | AK24: 19 | AL24: 20 | AM24: 49 | AN24: 9 | AO24: 17 | AP24: 17 | AQ24: 43 | AR24: 10 | AS24: 18 | AT24: 18 | AU24: 46 | AV24: 9 | AW24: 12 | AX24: 15 | AY24: 36 | AZ24: 9 | BA24: 18 | BB24: 16 | BC24: 43 | BD24: 10 | BE24: 19 | BF24: 17 | BG24: 46 | BH24: 2 | BI24: 5 | BJ24: 3 | BK24: 10 | BL24: 5 | BM24: 12 | BN24: 10 | BO24: 27 | BP24: 37 | BQ24: 174 | BR24: 460 | BS24: 3 | BT24: 8 | BU24: 8 | BV24: 19 | BW24: 3 | BX24: 4 | BY24: 3 | BZ24: 10 | CA24: ناجحة | CB24: ومنقولة للصف الثالث | CC24: 0 | CD24: 8 | CE24: 8/3 | CW24: 0
A25: 16 | B25: 1166 | C25: دنيا ابازيد محمد على | D25: 3/2 | K25: بنات | L25: انتظام | M25: صباحى | O25: 3216 | P25: 9 | Q25: 10 | R25: 14 | S25: 33 | T25: 8 | U25: 2 | V25: 10 | W25: 20 | X25: 4 | Y25: 4 | Z25: 5 | AA25: 13 | AB25: 9 | AC25: 8 | AD25: 9 | AE25: 26 | AF25: 9 | AG25: 7 | AH25: 14 | AI25: 30 | AJ25: 9 | AK25: 6 | AL25: 19 | AM25: 34 | AN25: 9 | AO25: 10 | AP25: 18 | AQ25: 37 | AR25: 9 | AS25: 12 | AT25: 15 | AU25: 36 | AV25: 9 | AW25: 13 | AX25: 14 | AY25: 36 | AZ25: 9 | BA25: 18 | BB25: 16 | BC25: 43 | BD25: 9 | BE25: 16 | BF25: 17 | BG25: 42 | BH25: 3 | BI25: 5 | BJ25: 5 | BK25: 11 | BL25: 4 | BM25: 12 | BN25: 12 | BO25: 28 | BP25: 40 | BQ25: 122 | BR25: 390 | BS25: 3 | BT25: 5 | BU25: 8 | BV25: 16 | BW25: 3 | BX25: 4 | BY25: 6 | BZ25: 13 | CA25: ناجحة | CB25: ومنقولة للصف الثالث | CC25: 0 | CD25: 8 | CE25: 8/3 | CW25: 0
A26: 17 | B26: 1167 | C26: دنيا عامر سيد | D26: 3/2 | K26: بنات | L26: انتظام | M26: صباحى | O26: 3217 | P26: 9 | Q26: 10 | R26: 6 | S26: 25 | T26: 8 | U26: 4 | V26: 8 | W26: 20 | X26: 4 | Y26: 3 | Z26: 5 | AA26: 12 | AB26: 9 | AC26: 11 | AD26: 5 | AE26: 25 | AF26: 9 | AG26: 3 | AH26: 13 | AI26: 25 | AJ26: 9 | AK26: 3 | AL26: 14 | AM26: 26 | AN26: 9 | AO26: 10 | AP26: 17 | AQ26: 36 | AR26: 9 | AS26: 8 | AT26: 13 | AU26: 30 | AV26: 9 | AW26: 11 | AX26: 12 | AY26: 32 | AZ26: 9 | BA26: 18 | BB26: 16 | BC26: 43 | BD26: 9 | BE26: 17 | BF26: 14 | BG26: 40 | BH26: 2 | BI26: 5 | BJ26: 4 | BK26: 10 | BL26: 4 | BM26: 11 | BN26: 10 | BO26: 26 | BP26: 36 | BQ26: 112 | BR26: 350 | BS26: 3 | BT26: 5 | BU26: 8 | BV26: 16 | BW26: 3 | BX26: 4 | BY26: 3 | BZ26: 10 | CA26: ناجحة | CB26: ومنقولة للصف الثالث | CC26: 0 | CD26: 8 | CE26: 8/3 | CW26: 0
A27: 18 | B27: 1168 | C27: دهب محمد حسن نصار | D27: 7/2 | K27: بنات | L27: انتظام | M27: صباحى | O27: 3218 | P27: 9 | Q27: 12 | R27: 14 | S27: 35 | T27: 8 | U27: 6 | V27: 9 | W27: 23 | X27: 4 | Y27: 4 | Z27: 5 | AA27: 13 | AB27: 9 | AC27: 10 | AD27: 11 | AE27: 30 | AF27: 9 | AG27: 8 | AH27: 15 | AI27: 32 | AJ27: 9 | AK27: 7 | AL27: 18 | AM27: 34 | AN27: 9 | AO27: 16 | AP27: 19 | AQ27: 44 | AR27: 9 | AS27: 18 | AT27: 14 | AU27: 41 | AV27: 9 | AW27: 9 | AX27: 13 | AY27: 31 | AZ27: 10 | BA27: 19 | BB27: 20 | BC27: 49 | BD27: 10 | BE27: 17 | BF27: 19 | BG27: 46 | BH27: 3 | BI27: 5 | BJ27: 6 | BK27: 12 | BL27: 4 | BM27: 12 | BN27: 13 | BO27: 29 | BP27: 42 | BQ27: 144 | BR27: 420 | BS27: 3 | BT27: 5 | BU27: 8 | BV27: 16 | BW27: 3 | BX27: 6 | BY27: 7 | BZ27: 16 | CA27: ناجحة | CB27: ومنقولة للصف الثالث | CC27: 0 | CD27: 8 | CE27: 8/3 | CW27: 0
A28: 19 | B28: 1169 | C28: دينا محمود محمد حسين | D28: 4/2 | K28: بنات | L28: انتظام | M28: صباحى | O28: 3219 | P28: 9 | Q28: 10 | R28: 12 | S28: 31 | T28: 8 | U28: 3 | V28: 9 | W28: 20 | X28: 4 | Y28: 4 | Z28: 6 | AA28: 14 | AB28: 9 | AC28: 12 | AD28: 13 | AE28: 34 | AF28: 9 | AG28: 13 | AH28: 17 | AI28: 39 | AJ28: 9 | AK28: 10 | AL28: 19 | AM28: 38 | AN28: 9 | AO28: 11 | AP28: 18 | AQ28: 38 | AR28: 9 | AS28: 19 | AT28: 20 | AU28: 48 | AV28: 9 | AW28: 15 | AX28: 13 | AY28: 37 | AZ28: 9 | BA28: 17 | BB28: 17 | BC28: 43 | BD28: 10 | BE28: 19 | BF28: 18 | BG28: 47 | BH28: 2 | BI28: 5 | BJ28: 4 | BK28: 12 | BL28: 4 | BM28: 12 | BN28: 10 | BO28: 29 | BP28: 39 | BQ28: 149 | BR28: 428 | BS28: 3 | BT28: 5 | BU28: 8 | BV28: 16 | BW28: 3 | BX28: 5 | BY28: 5 | BZ28: 13 | CA28: ناجحة | CB28: ومنقولة للصف الثالث | CC28: 0 | CD28: 8 | CE28: 8/3 | CW28: 0
A29: 20 | B29: 1170 | C29: دينا ناصر سليمان اسماعيل | D29: 1/2 | K29: بنات | L29: انتظام | M29: صباحى | O29: 3220 | P29: 9 | Q29: 9 | R29: 11 | S29: 29 | T29: 8 | U29: 4 | V29: 8 | W29: 20 | X29: 4 | Y29: 4 | Z29: 5 | AA29: 13 | AB29: 9 | AC29: 4 | AD29: 0 | AE29: 13 | AF29: 9 | AG29: 2 | AH29: 1 | AI29: 12 | AJ29: 9 | AK29: 0 | AL29: 6 | AM29: 15 | AN29: 9 | AO29: 6 | AP29: 15 | AQ29: 30 | AR29: 9 | AS29: 8 | AT29: 14 | AU29: 31 | AV29: 9 | AW29: 9 | AX29: 15 | AY29: 33 | AZ29: 9 | BA29: 17 | BB29: 18 | BC29: 44 | BD29: 9 | BE29: 15 | BF29: 20 | BG29: 44 | BH29: 2 | BI29: 5 | BJ29: 4 | BK29: 8 | BL29: 5 | BM29: 9 | BN29: 11 | BO29: 22 | BP29: 33 | BQ29: 90 | BR29: 317 | BS29: 3 | BT29: 4 | BU29: 8 | BV29: 15 | BW29: 3 | BX29: 4 | BY29: 4 | BZ29: 11 | CA29: راسبة | CB29: فى : مادة1 - مادة2 - مادة3 - | CC29: 3 | CD29: 8 | CE29: 8/3 | CK29: مادة1 - | CL29: مادة2 - | CM29: مادة3 - | CW29: 0
A30: 21 | B30: 1171 | C30: رانيا عبد الرحيم التهامى حسين | D30: 4/2 | K30: بنات | L30: انتظام | M30: صباحى | O30: 3221 | P30: 9 | Q30: 9 | R30: 12 | S30: 30 | T30: 8 | U30: 4 | V30: 8 | W30: 20 | X30: 4 | Y30: 4 | Z30: 3 | AA30: 11 | AB30: 3 | AC30: 8 | AD30: 2 | AE30: 13 | AF30: 9 | AG30: 5 | AH30: 4 | AI30: 18 | AJ30: 9 | AK30: 9 | AL30: 7 | AM30: 25 | AN30: 9 | AO30: 8 | AP30: 16 | AQ30: 33 | AR30: 9 | AS30: 7 | AT30: 14 | AU30: 30 | AV30: 9 | AW30: 12 | AX30: 13 | AY30: 34 | AZ30: 9 | BA30: 17 | BB30: 18 | BC30: 44 | BD30: 9 | BE30: 13 | BF30: 17 | BG30: 39 | BH30: 2 | BI30: 5 | BJ30: 5 | BK30: 9 | BL30: 4 | BM30: 8 | BN30: 11 | BO30: 22 | BP30: 33 | BQ30: 110 | BR30: 330 | BS30: 3 | BT30: 5 | BU30: 8 | BV30: 16 | BW30: 3 | BX30: 5 | BY30: 3 | BZ30: 11 | CA30: دورثان | CB30: فى : مادة1 - مادة2 - | CC30: 2 | CD30: 8 | CE30: 8/3 | CK30: مادة1 - | CL30: مادة2 - | CW30: 0
A31: 22 | B31: 1172 | C31: رانيا عمران مصطفى ابو زيد | D31: 4/2 | K31: بنات | L31: انتظام | M31: صباحى | O31: 3222 | P31: 9 | Q31: 10 | R31: 14 | S31: 33 | T31: 8 | U31: 5 | V31: 10 | W31: 23 | X31: 4 | Y31: 5 | Z31: 4 | AA31: 13 | AB31: 9 | AC31: 8 | AD31: 13 | AE31: 30 | AF31: 9 | AG31: 6 | AH31: 10 | AI31: 25 | AJ31: 9 | AK31: 7 | AL31: 12 | AM31: 28 | AN31: 9 | AO31: 7 | AP31: 15 | AQ31: 31 | AR31: 9 | AS31: 11 | AT31: 15 | AU31: 35 | AV31: 9 | AW31: 11 | AX31: 13 | AY31: 33 | AZ31: 9 | BA31: 17 | BB31: 18 | BC31: 44 | BD31: 9 | BE31: 14 | BF31: 18 | BG31: 41 | BH31: 2 | BI31: 5 | BJ31: 4 | BK31: 9 | BL31: 4 | BM31: 9 | BN31: 10 | BO31: 23 | BP31: 33 | BQ31: 114 | BR31: 369 | BS31: 3 | BT31: 6 | BU31: 8 | BV31: 17 | BW31: 3 | BX31: 5 | BY31: 4 | BZ31: 12 | CA31: ناجحة | CB31: ومنقولة للصف الثالث | CC31: 0 | CD31: 8 | CE31: 8/3 | CW31: 0
A32: 23 | B32: 1173 | C32: رانيا محمد صابر احمد | D32: 1/2 | K32: بنات | L32: انتظام | M32: صباحى | O32: 3223 | P32: 10 | Q32: 14 | R32: 17 | S32: 41 | T32: 8 | U32: 7 | V32: 5 | W32: 20 | X32: 4 | Y32: 4 | Z32: 5 | AA32: 13 | AB32: 9 | AC32: 11 | AD32: 8 | AE32: 28 | AF32: 9 | AG32: 11 | AH32: 12 | AI32: 32 | AJ32: 9 | AK32: 14 | AL32: 15 | AM32: 38 | AN32: 9 | AO32: 16 | AP32: 16 | AQ32: 41 | AR32: 10 | AS32: 18 | AT32: 18 | AU32: 46 | AV32: 9 | AW32: 16 | AX32: 14 | AY32: 39 | AZ32: 10 | BA32: 18 | BB32: 20 | BC32: 48 | BD32: 10 | BE32: 18 | BF32: 19 | BG32: 47 | BH32: 3 | BI32: 5 | BJ32: 5 | BK32: 7 | BL32: 4 | BM32: 7 | BN32: 12 | BO32: 19 | BP32: 31 | BQ32: 159 | BR32: 424 | BS32: 3 | BT32: 7 | BU32: 8 | BV32: 18 | BW32: 3 | BX32: 5 | BY32: 5 | BZ32: 13 | CA32: ناجحة | CB32: ومنقولة للصف الثالث | CC32: 0 | CD32: 8 | CE32: 8/3 | CW32: 0
A33: 24 | B33: 1174 | C33: رانيا محمد عبد الوهاب عبد الجليل | D33: 6/2 | K33: بنات | L33: انتظام | M33: صباحى | O33: 3224 | P33: 10 | Q33: 15 | R33: 17 | S33: 42 | T33: 8 | U33: 7 | V33: 9 | W33: 24 | X33: 4 | Y33: 5 | Z33: 5 | AA33: 14 | AB33: 10 | AC33: 20 | AD33: 20 | AE33: 50 | AF33: 10 | AG33: 20 | AH33: 20 | AI33: 50 | AJ33: 10 | AK33: 20 | AL33: 20 | AM33: 50 | AN33: 9 | AO33: 16 | AP33: 18 | AQ33: 43 | AR33: 10 | AS33: 20 | AT33: 18 | AU33: 48 | AV33: 9 | AW33: 17 | AX33: 15 | AY33: 41 | AZ33: 10 | BA33: 18 | BB33: 20 | BC33: 48 | BD33: 10 | BE33: 19 | BF33: 18 | BG33: 47 | BH33: 4 | BI33: 5 | BJ33: 8 | BK33: 8 | BL33: 4 | BM33: 5 | BN33: 16 | BO33: 18 | BP33: 34 | BQ33: 193 | BR33: 491 | BS33: 3 | BT33: 7 | BU33: 8 | BV33: 18 | BW33: 3 | BX33: 7 | BY33: 5 | BZ33: 15 | CA33: ناجحة | CB33: ومنقولة للصف الثالث | CC33: 0 | CD33: 9 | CE33: 9/3 | CW33: 0
A34: 25 | B34: 1175 | C34: رجاء يونس محمد احمد | D34: 6/2 | K34: بنات | L34: انتظام | M34: صباحى | O34: 3225 | P34: 10 | Q34: 13 | R34: 17 | S34: 40 | T34: 8 | U34: 6 | V34: 6 | W34: 20 | X34: 4 | Y34: 5 | Z34: 6 | AA34: 15 | AB34: 9 | AC34: 10 | AD34: 16 | AE34: 35 | AF34: 9 | AG34: 8 | AH34: 15 | AI34: 32 | AJ34: 9 | AK34: 12 | AL34: 18 | AM34: 39 | AN34: 9 | AO34: 15 | AP34: 17 | AQ34: 41 | AR34: 9 | AS34: 12 | AT34: 14 | AU34: 35 | AV34: 9 | AW34: 13 | AX34: 14 | AY34: 36 | AZ34: 9 | BA34: 14 | BB34: 19 | BC34: 42 | BD34: 10 | BE34: 18 | BF34: 18 | BG34: 46 | BH34: 2 | BI34: 5 | BJ34: 4 | BK34: 5 | BL34: 4 | BM34: 5 | BN34: 10 | BO34: 15 | BP34: 25 | BQ34: 135 | BR34: 406 | BS34: 3 | BT34: 6 | BU34: 5 | BV34: 14 | BW34: 3 | BX34: 3 | BY34: 4 | BZ34: 10 | CA34: ناجحة | CB34: ومنقولة للصف الثالث | CC34: 0 | CD34: 9 | CE34: 9/3 | CW34: 0
A35: 26 | B35: 1176 | C35: رحاب حسن قاسم حسن | D35: 5/2 | K35: بنات | L35: انتظام | M35: صباحى | O35: 3226 | P35: 9 | Q35: 9 | R35: 14 | S35: 32 | T35: 8 | U35: 2 | V35: 3 | W35: 13 | X35: 4 | Y35: 5 | Z35: 5 | AA35: 14 | AB35: 9 | AC35: 6 | AD35: 11 | AE35: 26 | AF35: 9 | AG35: 3 | AH35: 6 | AI35: 18 | AJ35: 9 | AK35: 1 | AL35: 3 | AM35: 13 | AN35: 9 | AO35: 14 | AP35: 16 | AQ35: 39 | AR35: 9 | AS35: 6 | AT35: 12 | AU35: 27 | AV35: 9 | AW35: 8 | AX35: 14 | AY35: 31 | AZ35: 10 | BA35: 17 | BB35: 20 | BC35: 47 | BD35: 10 | BE35: 19 | BF35: 17 | BG35: 46 | BH35: 2 | BI35: 5 | BJ35: 4 | BK35: 5 | BL35: 5 | BM35: 5 | BN35: 11 | BO35: 15 | BP35: 26 | BQ35: 99 | BR35: 332 | BS35: 3 | BT35: 6 | BU35: 8 | BV35: 17 | BW35: 3 | BX35: 3 | BY35: 5 | BZ35: 11 | CA35: راسبة | CB35: فى : انجليزى - مادة2 - مادة3 - | CC35: 3 | CD35: 9 | CE35: 9/3 | CI35: انجليزى - | CL35: مادة2 - | CM35: مادة3 - | CW35: 0
A36: 27 | B36: 1177 | C36: رحمة خالد عبدالله مصطفى | D36: 7/2 | K36: بنات | L36: انتظام | M36: صباحى | O36: 3227 | P36: 9 | Q36: 11 | R36: 12 | S36: 32 | T36: 8 | U36: 5 | V36: 7 | W36: 20 | X36: 4 | Y36: 4 | Z36: 6 | AA36: 14 | AB36: 9 | AC36: 11 | AD36: 13 | AE36: 33 | AF36: 9 | AG36: 6 | AH36: 10 | AI36: 25 | AJ36: 9 | AK36: 3 | AL36: 18 | AM36: 30 | AN36: 9 | AO36: 10 | AP36: 18 | AQ36: 37 | AR36: 9 | AS36: 8 | AT36: 17 | AU36: 34 | AV36: 9 | AW36: 9 | AX36: 14 | AY36: 32 | AZ36: 9 | BA36: 16 | BB36: 19 | BC36: 44 | BD36: 9 | BE36: 16 | BF36: 19 | BG36: 44 | BH36: 3 | BI36: 5 | BJ36: 6 | BK36: 9 | BL36: 4 | BM36: 10 | BN36: 13 | BO36: 24 | BP36: 37 | BQ36: 114 | BR36: 382 | BS36: 3 | BT36: 7 | BU36: 8 | BV36: 18 | BW36: 3 | BX36: 4 | BY36: 3 | BZ36: 10 | CA36: ناجحة | CB36: ومنقولة للصف الثالث | CC36: 0 | CD36: 9 | CE36: 9/3 | CW36: 0
A37: 28 | B37: 1178 | C37: رحمة عبد الله ادريس | D37: 1/2 | K37: بنات | L37: انتظام | M37: صباحى | O37: 3228 | P37: 9 | Q37: 10 | R37: 13 | S37: 32 | T37: 8 | U37: 7 | V37: 6 | W37: 21 | X37: 4 | Y37: 5 | Z37: 5 | AA37: 14 | AB37: 9 | AC37: 12 | AD37: 16 | AE37: 37 | AF37: 9 | AG37: 11 | AH37: 11 | AI37: 31 | AJ37: 9 | AK37: 5 | AL37: 11 | AM37: 25 | AN37: 9 | AO37: 12 | AP37: 18 | AQ37: 39 | AR37: 9 | AS37: 15 | AT37: 17 | AU37: 41 | AV37: 9 | AW37: 14 | AX37: 15 | AY37: 38 | AZ37: 10 | BA37: 18 | BB37: 20 | BC37: 48 | BD37: 10 | BE37: 18 | BF37: 18 | BG37: 46 | BH37: 2 | BI37: 5 | BJ37: 4 | BK37: 10 | BL37: 4 | BM37: 10 | BN37: 10 | BO37: 25 | BP37: 35 | BQ37: 141 | BR37: 407 | BS37: 3 | BT37: 7 | BU37: 8 | BV37: 18 | BW37: 3 | BX37: 4 | BY37: 6 | BZ37: 13 | CA37: ناجحة | CB37: ومنقولة للصف الثالث | CC37: 0 | CD37: 9 | CE37: 9/3 | CW37: 0
A38: 29 | B38: 1179 | C38: رحمة يوسف عبد اللطيف مصطفى | D38: 1/2 | K38: بنات | L38: انتظام | M38: صباحى | O38: 3229 | P38: 9 | Q38: 13 | R38: 16 | S38: 38 | T38: 8 | U38: 5 | V38: 8 | W38: 21 | X38: 4 | Y38: 5 | Z38: 6 | AA38: 15 | AB38: 9 | AC38: 19 | AD38: 13 | AE38: 41 | AF38: 9 | AG38: 4 | AH38: 16 | AI38: 29 | AJ38: 9 | AK38: 9 | AL38: 16 | AM38: 34 | AN38: 9 | AO38: 10 | AP38: 19 | AQ38: 38 | AR38: 9 | AS38: 15 | AT38: 19 | AU38: 43 | AV38: 9 | AW38: 15 | AX38: 15 | AY38: 39 | AZ38: 10 | BA38: 18 | BB38: 20 | BC38: 48 | BD38: 9 | BE38: 16 | BF38: 18 | BG38: 43 | BH38: 2 | BI38: 5 | BJ38: 4 | BK38: 9 | BL38: 4 | BM38: 10 | BN38: 10 | BO38: 24 | BP38: 34 | BQ38: 142 | BR38: 423 | BS38: 3 | BT38: 8 | BU38: 8 | BV38: 19 | BW38: 3 | BX38: 6 | BY38: 8 | BZ38: 17 | CA38: ناجحة | CB38: ومنقولة للصف الثالث | CC38: 0 | CD38: 9 | CE38: 9/3 | CW38: 0
A39: 30 | B39: 1180 | C39: رشا سعيد محمد موسى | D39: 1/2 | K39: بنات | L39: انتظام | M39: صباحى | O39: 3230 | P39: 9 | Q39: 12 | R39: 12 | S39: 33 | T39: 8 | U39: 7 | V39: 5 | W39: 20 | X39: 4 | Y39: 5 | Z39: 6 | AA39: 15 | AB39: 9 | AC39: 10 | AD39: 14 | AE39: 33 | AF39: 9 | AG39: 5 | AH39: 12 | AI39: 26 | AJ39: 9 | AK39: 5 | AL39: 11 | AM39: 25 | AN39: 9 | AO39: 10 | AP39: 17 | AQ39: 36 | AR39: 9 | AS39: 13 | AT39: 14 | AU39: 36 | AV39: 9 | AW39: 16 | AX39: 13 | AY39: 38 | AZ39: 10 | BA39: 16 | BB39: 20 | BC39: 46 | BD39: 9 | BE39: 12 | BF39: 19 | BG39: 40 | BH39: 2 | BI39: 5 | BJ39: 4 | BK39: 7 | BL39: 4 | BM39: 8 | BN39: 10 | BO39: 20 | BP39: 30 | BQ39: 122 | BR39: 378 | BS39: 3 | BT39: 5 | BU39: 8 | BV39: 16 | BW39: 3 | BX39: 5 | BY39: 7 | BZ39: 15 | CA39: ناجحة | CB39: ومنقولة للصف الثالث | CC39: 0 | CD39: 9 | CE39: 9/3 | CW39: 0
A40: 31 | B40: 1181 | C40: رشا مصطفى بشرى موسى | D40: 3/2 | K40: بنات | L40: انتظام | M40: صباحى | O40: 3231 | P40: 9 | Q40: 7 | R40: 10 | S40: 26 | T40: 8 | U40: 1 | V40: 1 | W40: 10 | X40: 4 | Y40: 2 | Z40: 4 | AA40: 10 | AB40: 9 | AC40: 6 | AD40: 2 | AE40: 17 | AF40: 9 | AG40: 0 | AH40: 6 | AI40: 15 | AJ40: 9 | AK40: 1 | AL40: 0 | AM40: 10 | AN40: 9 | AO40: 10 | AP40: 16 | AQ40: 35 | AR40: 9 | AS40: 5 | AT40: 11 | AU40: 25 | AV40: 9 | AW40: 9 | AX40: 11 | AY40: 29 | AZ40: 9 | BA40: 14 | BB40: 20 | BC40: 43 | BD40: 9 | BE40: 16 | BF40: 12 | BG40: 37 | BH40: 2 | BI40: 5 | BJ40: 4 | BK40: 8 | BL40: 4 | BM40: 6 | BN40: 10 | BO40: 19 | BP40: 29 | BQ40: 83 | BR40: 286 | BS40: 3 | BT40: 7 | BU40: 8 | BV40: 18 | BW40: 3 | BX40: 4 | BY40: 3 | BZ40: 10 | CA40: راسبة | CB40: فى : انجليزى - مادة1 - مادة2 - مادة3 - مجموع | CC40: 5 | CD40: 9 | CE40: 9/3 | CI40: انجليزى - | CK40: مادة1 - | CL40: مادة2 - | CM40: مادة3 - | CV40: مجموع | CW40: 0
A41: 32 | B41: 1182 | C41: رضا عنتر فتحى احمد | D41: 4/2 | K41: بنات | L41: انتظام | M41: صباحى | O41: 3232 | P41: غ | Q41: غ | R41: غ | S41: 0 | T41: غ | U41: غ | V41: غ | W41: 0 | X41: غ | Y41: غ | Z41: غ | AA41: 0 | AB41: غ | AC41: غ | AD41: غ | AE41: 0 | AF41: غ | AG41: غ | AH41: غ | AI41: 0 | AJ41: غ | AK41: غ | AL41: غ | AM41: 0 | AN41: غ | AO41: غ | AP41: غ | AQ41: 0 | AR41: غ | AS41: غ | AT41: غ | AU41: 0 | AV41: غ | AW41: غ | AX41: غ | AY41: 0 | AZ41: غ | BA41: غ | BB41: غ | BC41: 0 | BD41: غ | BE41: غ | BF41: غ | BG41: 0 | BH41: غ | BI41: غ | BJ41: غ | BK41: غ | BL41: غ | BM41: غ | BN41: 0 | BO41: 0 | BP41: 0 | BQ41: 0 | BR41: 0 | BS41: غ | BT41: غ | BU41: غ | BV41: 0 | BW41: غ | BX41: غ | BY41: غ | BZ41: 0 | CA41: راسبة | CB41: فى : عربى - انجليزى - فرنسى - مادة1 - مادة2 - مادة3 - مادة4 - مادة5 - مادة6 - مادة7 - مادة8 - حاسب - مواطنة - دين - مجموع | CC41: 13 | CD41: 9 | CE41: 9/3 | CH41: عربى - | CI41: انجليزى - | CJ41: فرنسى - | CK41: مادة1 - | CL41: مادة2 - | CM41: مادة3 - | CN41: مادة4 - | CO41: مادة5 - | CP41: مادة6 - | CQ41: مادة7 - | CR41: مادة8 - | CS41: حاسب - | CT41: مواطنة - | CU41: دين - | CV41: مجموع | CW41: 2
A42: 33 | B42: 1183 | C42: رضوى محمد فراج عبد الحميد | D42: 6/2 | K42: بنات | L42: انتظام | M42: صباحى | O42: 3233 | P42: 9 | Q42: 8 | R42: 12 | S42: 29 | T42: 8 | U42: 3 | V42: 5 | W42: 16 | X42: 4 | Y42: 6 | Z42: 5 | AA42: 15 | AB42: 9 | AC42: 7 | AD42: 14 | AE42: 30 | AF42: 9 | AG42: 6 | AH42: 10 | AI42: 25 | AJ42: 9 | AK42: 1 | AL42: 8 | AM42: 18 | AN42: 9 | AO42: 9 | AP42: 17 | AQ42: 35 | AR42: 9 | AS42: 6 | AT42: 12 | AU42: 27 | AV42: 9 | AW42: 10 | AX42: 14 | AY42: 33 | AZ42: 10 | BA42: 19 | BB42: 19 | BC42: 48 | BD42: 9 | BE42: 15 | BF42: 19 | BG42: 43 | BH42: 3 | BI42: 5 | BJ42: 5 | BK42: 7 | BL42: 4 | BM42: 5 | BN42: 12 | BO42: 17 | BP42: 29 | BQ42: 102 | BR42: 348 | BS42: 3 | BT42: 6 | BU42: 8 | BV42: 17 | BW42: 3 | BX42: 4 | BY42: 3 | BZ42: 10 | CA42: دورثان | CB42: فى : انجليزى - مادة3 - | CC42: 2 | CD42: 9 | CE42: 9/3 | CI42: انجليزى - | CM42: مادة3 - | CW42: 0
A43: 34 | B43: 1184 | C43: رنيا شوقى حسين مروانى | D43: 4/2 | K43: بنات | L43: انتظام | M43: صباحى | O43: 3234 | P43: 9 | Q43: 14 | R43: 14 | S43: 37 | T43: 8 | U43: 5 | V43: 7 | W43: 20 | X43: 4 | Y43: 4 | Z43: 6 | AA43: 14 | AB43: 9 | AC43: 8 | AD43: 15 | AE43: 32 | AF43: 9 | AG43: 10 | AH43: 13 | AI43: 32 | AJ43: 9 | AK43: 10 | AL43: 9 | AM43: 28 | AN43: 9 | AO43: 11 | AP43: 17 | AQ43: 37 | AR43: 9 | AS43: 18 | AT43: 17 | AU43: 44 | AV43: 9 | AW43: 14 | AX43: 15 | AY43: 38 | AZ43: 10 | BA43: 17 | BB43: 20 | BC43: 47 | BD43: 9 | BE43: 15 | BF43: 18 | BG43: 42 | BH43: 2 | BI43: 5 | BJ43: 4 | BK43: 8 | BL43: 7 | BM43: 9 | BN43: 13 | BO43: 22 | BP43: 35 | BQ43: 138 | BR43: 406 | BS43: 3 | BT43: 7 | BU43: 8 | BV43: 18 | BW43: 3 | BX43: 6 | BY43: 7 | BZ43: 16 | CA43: ناجحة | CB43: ومنقولة للصف الثالث | CC43: 0 | CD43: 9 | CE43: 9/3 | CW43: 0
A44: 35 | B44: 1185 | C44: روضة عبد الرحمن مسلوب احمد | D44: 3/2 | K44: بنات | L44: انتظام | M44: صباحى | O44: 3235 | P44: 9 | Q44: 12 | R44: 15 | S44: 36 | T44: 8 | U44: 5 | V44: 8 | W44: 21 | X44: 5 | Y44: 6 | Z44: 7 | AA44: 18 | AB44: 9 | AC44: 14 | AD44: 16 | AE44: 39 | AF44: 10 | AG44: 17 | AH44: 20 | AI44: 47 | AJ44: 9 | AK44: 17 | AL44: 9 | AM44: 35 | AN44: 9 | AO44: 11 | AP44: 15 | AQ44: 35 | AR44: 9 | AS44: 14 | AT44: 19 | AU44: 42 | AV44: 9 | AW44: 13 | AX44: 13 | AY44: 35 | AZ44: 10 | BA44: 17 | BB44: 19 | BC44: 46 | BD44: 10 | BE44: 19 | BF44: 18 | BG44: 47 | BH44: 3 | BI44: 5 | BJ44: 6 | BK44: 6 | BL44: 5 | BM44: 4 | BN44: 14 | BO44: 15 | BP44: 29 | BQ44: 157 | BR44: 430 | BS44: 3 | BT44: 8 | BU44: 7 | BV44: 18 | BW44: 3 | BX44: 5 | BY44: 5 | BZ44: 13 | CA44: ناجحة | CB44: ومنقولة للصف الثالث | CC44: 0 | CD44: 9 | CE44: 9/3 | CW44: 0
A45: 36 | B45: 1186 | C45: روفيدة جمال مصطفى احمد | D45: 4/2 | K45: بنات | L45: انتظام | M45: صباحى | O45: 3236 | P45: 9 | Q45: 13 | R45: 16 | S45: 38 | T45: 8 | U45: 5 | V45: 7 | W45: 20 | X45: 4 | Y45: 4 | Z45: 5 | AA45: 13 | AB45: 9 | AC45: 14 | AD45: 17 | AE45: 40 | AF45: 10 | AG45: 18 | AH45: 20 | AI45: 48 | AJ45: 10 | AK45: 18 | AL45: 20 | AM45: 48 | AN45: 9 | AO45: 15 | AP45: 18 | AQ45: 42 | AR45: 10 | AS45: 18 | AT45: 19 | AU45: 47 | AV45: 9 | AW45: 13 | AX45: 14 | AY45: 36 | AZ45: 10 | BA45: 18 | BB45: 19 | BC45: 47 | BD45: 10 | BE45: 18 | BF45: 19 | BG45: 47 | BH45: 2 | BI45: 5 | BJ45: 4 | BK45: 10 | BL45: 4 | BM45: 8 | BN45: 10 | BO45: 23 | BP45: 33 | BQ45: 168 | BR45: 459 | BS45: 3 | BT45: 5 | BU45: 8 | BV45: 16 | BW45: 3 | BX45: 6 | BY45: 4 | BZ45: 13 | CA45: ناجحة | CB45: ومنقولة للصف الثالث | CC45: 0 | CD45: 9 | CE45: 9/3 | CW45: 0
A46: 37 | B46: 1187 | C46: رويدا حسين ابراهيم على | D46: 4/2 | K46: بنات | L46: انتظام | M46: صباحى | O46: 3237 | P46: 10 | Q46: 15 | R46: 19 | S46: 44 | T46: 8 | U46: 8 | V46: 11 | W46: 27 | X46: 4 | Y46: 5 | Z46: 6 | AA46: 15 | AB46: 9 | AC46: 15 | AD46: 17 | AE46: 41 | AF46: 9 | AG46: 16 | AH46: 19 | AI46: 44 | AJ46: 9 | AK46: 13 | AL46: 17 | AM46: 39 | AN46: 9 | AO46: 15 | AP46: 16 | AQ46: 40 | AR46: 9 | AS46: 19 | AT46: 17 | AU46: 45 | AV46: 9 | AW46: 18 | AX46: 14 | AY46: 41 | AZ46: 10 | BA46: 18 | BB46: 20 | BC46: 48 | BD46: 10 | BE46: 19 | BF46: 20 | BG46: 49 | BH46: 3 | BI46: 5 | BJ46: 5 | BK46: 8 | BL46: 5 | BM46: 4 | BN46: 13 | BO46: 17 | BP46: 30 | BQ46: 174 | BR46: 463 | BS46: 3 | BT46: 5 | BU46: 8 | BV46: 16 | BW46: 3 | BX46: 5 | BY46: 7 | BZ46: 15 | CA46: ناجحة | CB46: ومنقولة للصف الثالث | CC46: 0 | CD46: 9 | CE46: 9/3 | CW46: 0
A47: 38 | B47: 1188 | C47: ريهام احمد محمدين محمود | D47: 1/2 | K47: بنات | L47: انتظام | M47: صباحى | O47: 3238 | P47: 9 | Q47: 13 | R47: 14 | S47: 36 | T47: 8 | U47: 6 | V47: 6 | W47: 20 | X47: 4 | Y47: 5 | Z47: 5 | AA47: 14 | AB47: 9 | AC47: 17 | AD47: 15 | AE47: 41 | AF47: 9 | AG47: 15 | AH47: 6 | AI47: 30 | AJ47: 9 | AK47: 8 | AL47: 9 | AM47: 26 | AN47: 9 | AO47: 14 | AP47: 13 | AQ47: 36 | AR47: 9 | AS47: 19 | AT47: 12 | AU47: 40 | AV47: 9 | AW47: 17 | AX47: 16 | AY47: 42 | AZ47: 10 | BA47: 16 | BB47: 20 | BC47: 46 | BD47: 10 | BE47: 18 | BF47: 19 | BG47: 47 | BH47: 2 | BI47: 5 | BJ47: 4 | BK47: 6 | BL47: 6 | BM47: 8 | BN47: 12 | BO47: 19 | BP47: 31 | BQ47: 158 | BR47: 409 | BS47: 3 | BT47: 7 | BU47: 8 | BV47: 18 | BW47: 3 | BX47: 5 | BY47: 3 | BZ47: 11 | CA47: ناجحة | CB47: ومنقولة للصف الثالث | CC47: 0 | CD47: 9 | CE47: 9/3 | CW47: 0
A48: 39 | B48: 1189 | C48: ريهام انور حسان محمد | D48: 5/2 | K48: بنات | L48: انتظام | M48: صباحى | O48: 3239 | P48: غ | Q48: غ | R48: غ | S48: 0 | T48: غ | U48: غ | V48: غ | W48: 0 | X48: غ | Y48: غ | Z48: غ | AA48: 0 | AB48: غ | AC48: غ | AD48: غ | AE48: 0 | AF48: غ | AG48: غ | AH48: غ | AI48: 0 | AJ48: غ | AK48: غ | AL48: غ | AM48: 0 | AN48: غ | AO48: غ | AP48: غ | AQ48: 0 | AR48: غ | AS48: غ | AT48: غ | AU48: 0 | AV48: غ | AW48: غ | AX48: غ | AY48: 0 | AZ48: غ | BA48: غ | BB48: غ | BC48: 0 | BD48: غ | BE48: غ | BF48: غ | BG48: 0 | BH48: غ | BI48: غ | BJ48: غ | BK48: غ | BL48: غ | BM48: غ | BN48: 0 | BO48: 0 | BP48: 0 | BQ48: 0 | BR48: 0 | BS48: غ | BT48: غ | BU48: غ | BV48: 0 | BW48: غ | BX48: غ | BY48: غ | BZ48: 0 | CA48: راسبة | CB48: فى : عربى - انجليزى - فرنسى - مادة1 - مادة2 - مادة3 - مادة4 - مادة5 - مادة6 - مادة7 - مادة8 - حاسب - مواطنة - دين - مجموع | CC48: 13 | CD48: 9 | CE48: 9/3 | CH48: عربى - | CI48: انجليزى - | CJ48: فرنسى - | CK48: مادة1 - | CL48: مادة2 - | CM48: مادة3 - | CN48: مادة4 - | CO48: مادة5 - | CP48: مادة6 - | CQ48: مادة7 - | CR48: مادة8 - | CS48: حاسب - | CT48: مواطنة - | CU48: دين - | CV48: مجموع | CW48: 2
A49: 40 | B49: 1190 | C49: ريهام جابر محمد احمد | D49: 3/2 | K49: بنات | L49: انتظام | M49: صباحى | O49: 3240 | P49: 9 | Q49: 10 | R49: 13 | S49: 32 | T49: 8 | U49: 5 | V49: 7 | W49: 20 | X49: 4 | Y49: 5 | Z49: 5 | AA49: 14 | AB49: 3 | AC49: 13 | AD49: 15 | AE49: 31 | AF49: 9 | AG49: 14 | AH49: 20 | AI49: 43 | AJ49: 9 | AK49: 12 | AL49: 20 | AM49: 41 | AN49: 9 | AO49: 15 | AP49: 17 | AQ49: 41 | AR49: 10 | AS49: 19 | AT49: 17 | AU49: 46 | AV49: 9 | AW49: 14 | AX49: 13 | AY49: 36 | AZ49: 10 | BA49: 18 | BB49: 18 | BC49: 46 | BD49: 10 | BE49: 18 | BF49: 18 | BG49: 46 | BH49: 3 | BI49: 5 | BJ49: 5 | BK49: 7 | BL49: 3 | BM49: 6 | BN49: 11 | BO49: 18 | BP49: 29 | BQ49: 155 | BR49: 425 | BS49: 3 | BT49: 7 | BU49: 8 | BV49: 18 | BW49: 3 | BX49: 5 | BY49: 4 | BZ49: 12 | CA49: ناجحة | CB49: ومنقولة للصف الثالث | CC49: 0 | CD49: 9 | CE49: 9/3 | CW49: 0
A50: 41 | B50: 1191 | C50: ريهام خالد عبد الله محمد | D50: 4/2 | K50: بنات | L50: انتظام | M50: صباحى | O50: 3241 | P50: 9 | Q50: 12 | R50: 14 | S50: 35 | T50: 8 | U50: 7 | V50: 9 | W50: 24 | X50: 4 | Y50: 5 | Z50: 4 | AA50: 13 | AB50: 9 | AC50: 14 | AD50: 16 | AE50: 39 | AF50: 10 | AG50: 20 | AH50: 18 | AI50: 48 | AJ50: 9 | AK50: 16 | AL50: 20 | AM50: 45 | AN50: 9 | AO50: 16 | AP50: 14 | AQ50: 39 | AR50: 9 | AS50: 19 | AT50: 18 | AU50: 46 | AV50: 9 | AW50: 15 | AX50: 13 | AY50: 37 | AZ50: 10 | BA50: 17 | BB50: 19 | BC50: 46 | BD50: 10 | BE50: 19 | BF50: 18 | BG50: 47 | BH50: 3 | BI50: 5 | BJ50: 6 | BK50: 9 | BL50: 4 | BM50: 6 | BN50: 13 | BO50: 20 | BP50: 33 | BQ50: 175 | BR50: 452 | BS50: 3 | BT50: 7 | BU50: 8 | BV50: 18 | BW50: 3 | BX50: 5 | BY50: 3 | BZ50: 11 | CA50: ناجحة | CB50: ومنقولة للصف الثالث | CC50: 0 | CD50: 9 | CE50: 9/3 | CW50: 0
A51: 42 | B51: 1192 | C51: زمزم رمضان صالح محمد | D51: 6/2 | K51: بنات | L51: انتظام | M51: صباحى | O51: 3242 | P51: 9 | Q51: 7 | R51: 11 | S51: 27 | T51: 9 | U51: 6 | V51: 5 | W51: 20 | X51: 4 | Y51: 5 | Z51: 4 | AA51: 13 | AB51: 3 | AC51: 8 | AD51: 14 | AE51: 25 | AF51: 9 | AG51: 11 | AH51: 5 | AI51: 25 | AJ51: 9 | AK51: 5 | AL51: 11 | AM51: 25 | AN51: 9 | AO51: 14 | AP51: 9 | AQ51: 32 | AR51: 9 | AS51: 4 | AT51: 12 | AU51: 25 | AV51: 9 | AW51: 5 | AX51: 6 | AY51: 20 | AZ51: 9 | BA51: 11 | BB51: 18 | BC51: 38 | BD51: 9 | BE51: 17 | BF51: 16 | BG51: 42 | BH51: 3 | BI51: 5 | BJ51: 5 | BK51: 9 | BL51: 5 | BM51: 6 | BN51: 13 | BO51: 20 | BP51: 33 | BQ51: 107 | BR51: 325 | BS51: 3 | BT51: 4 | BU51: 5 | BV51: 12 | BW51: 3 | BX51: 4 | BY51: 3 | BZ51: 10 | CA51: ناجحة | CB51: ومنقولة للصف الثالث | CC51: 0 | CD51: 9 | CE51: 9/3 | CW51: 0
A52: 43 | B52: 1193 | C52: زنوبة عبد الرازق عبد الوهاب عبد الموجود | D52: 2/2 | K52: بنات | L52: انتظام | M52: صباحى | O52: 3243 | P52: 9 | Q52: 9 | R52: 13 | S52: 31 | T52: 8 | U52: 1 | V52: 2 | W52: 11 | X52: 4 | Y52: 5 | Z52: 5 | AA52: 14 | AB52: 8 | AC52: 12 | AD52: 5 | AE52: 25 | AF52: 9 | AG52: 11 | AH52: 5 | AI52: 25 | AJ52: 9 | AK52: 0 | AL52: 8 | AM52: 17 | AN52: 9 | AO52: 13 | AP52: 12 | AQ52: 34 | AR52: 9 | AS52: 10 | AT52: 12 | AU52: 31 | AV52: 9 | AW52: 9 | AX52: 14 | AY52: 32 | AZ52: 9 | BA52: 16 | BB52: 18 | BC52: 43 | BD52: 10 | BE52: 17 | BF52: 20 | BG52: 47 | BH52: 3 | BI52: 5 | BJ52: 5 | BK52: 6 | BL52: 4 | BM52: 7 | BN52: 12 | BO52: 18 | BP52: 30 | BQ52: 114 | BR52: 340 | BS52: 3 | BT52: 7 | BU52: 8 | BV52: 18 | BW52: 3 | BX52: 4 | BY52: 5 | BZ52: 12 | CA52: دورثان | CB52: فى : انجليزى - مادة3 - | CC52: 2 | CD52: 9 | CE52: 9/3 | CI52: انجليزى - | CM52: مادة3 - | CW52: 0
A53: 44 | B53: 1194 | C53: زهرة رجب محمد عبد الحليم | D53: 7/2 | K53: بنات | L53: انتظام | M53: صباحى | O53: 3244 | P53: 9 | Q53: 11 | R53: 13 | S53: 33 | T53: 8 | U53: 2 | V53: 4 | W53: 14 | X53: 4 | Y53: 4 | Z53: 4 | AA53: 12 | AB53: 9 | AC53: 7 | AD53: 11 | AE53: 27 | AF53: 9 | AG53: 9 | AH53: 7 | AI53: 25 | AJ53: 9 | AK53: 2 | AL53: 6 | AM53: 17 | AN53: 9 | AO53: 11 | AP53: 18 | AQ53: 38 | AR53: 9 | AS53: 16 | AT53: 13 | AU53: 38 | AV53: 9 | AW53: 12 | AX53: 16 | AY53: 37 | AZ53: 9 | BA53: 17 | BB53: 17 | BC53: 43 | BD53: 9 | BE53: 15 | BF53: 19 | BG53: 43 | BH53: 3 | BI53: 5 | BJ53: 5 | BK53: 8 | BL53: 4 | BM53: 6 | BN53: 12 | BO53: 19 | BP53: 31 | BQ53: 119 | BR53: 358 | BS53: 3 | BT53: 7 | BU53: 8 | BV53: 18 | BW53: 3 | BX53: 4 | BY53: 5 | BZ53: 12 | CA53: دورثان | CB53: فى : انجليزى - مادة3 - | CC53: 2 | CD53: 9 | CE53: 9/3 | CI53: انجليزى - | CM53: مادة3 - | CW53: 0
A54: 45 | B54: 1195 | C54: زهرة صلاح الدين احمد خليفة | D54: 2/2 | K54: بنات | L54: انتظام | M54: صباحى | O54: 3245 | P54: 9 | Q54: 7 | R54: 13 | S54: 29 | T54: 8 | U54: 7 | V54: 5 | W54: 20 | X54: 4 | Y54: 4 | Z54: 3 | AA54: 11 | AB54: 9 | AC54: 9 | AD54: 7 | AE54: 25 | AF54: 9 | AG54: 14 | AH54: 15 | AI54: 38 | AJ54: 9 | AK54: 5 | AL54: 16 | AM54: 30 | AN54: 9 | AO54: 11 | AP54: 16 | AQ54: 36 | AR54: 9 | AS54: 9 | AT54: 11 | AU54: 29 | AV54: 9 | AW54: 3 | AX54: 14 | AY54: 26 | AZ54: 10 | BA54: 19 | BB54: 18 | BC54: 47 | BD54: 9 | BE54: 14 | BF54: 20 | BG54: 43 | BH54: 3 | BI54: 5 | BJ54: 6 | BK54: 7 | BL54: 5 | BM54: 8 | BN54: 14 | BO54: 20 | BP54: 34 | BQ54: 115 | BR54: 368 | BS54: 3 | BT54: 4 | BU54: 7 | BV54: 14 | BW54: 3 | BX54: 4 | BY54: 4 | BZ54: 11 | CA54: ناجحة | CB54: ومنقولة للصف الثالث | CC54: 0 | CD54: 9 | CE54: 9/3 | CW54: 0
A55: 46 | B55: 1196 | C55: زينب ابراهيم خليل احمد | D55: 6/2 | K55: بنات | L55: انتظام | M55: صباحى | O55: 3246 | P55: 9 | Q55: 9 | R55: 12 | S55: 30 | T55: 8 | U55: 7 | V55: 5 | W55: 20 | X55: 4 | Y55: 4 | Z55: 4 | AA55: 12 | AB55: 8 | AC55: 11 | AD55: 10 | AE55: 29 | AF55: 10 | AG55: 19 | AH55: 18 | AI55: 47 | AJ55: 10 | AK55: 20 | AL55: 19 | AM55: 49 | AN55: 9 | AO55: 9 | AP55: 15 | AQ55: 33 | AR55: 9 | AS55: 10 | AT55: 16 | AU55: 35 | AV55: 9 | AW55: 15 | AX55: 13 | AY55: 37 | AZ55: 10 | BA55: 18 | BB55: 18 | BC55: 46 | BD55: 9 | BE55: 15 | BF55: 20 | BG55: 44 | BH55: 3 | BI55: 5 | BJ55: 5 | BK55: 8 | BL55: 7 | BM55: 6 | BN55: 15 | BO55: 19 | BP55: 34 | BQ55: 150 | BR55: 416 | BS55: 3 | BT55: 7 | BU55: 7 | BV55: 17 | BW55: 3 | BX55: 4 | BY55: 5 | BZ55: 12 | CA55: ناجحة | CB55: ومنقولة للصف الثالث | CC55: 0 | CD55: 10 | CE55: 10/3 | CW55: 0
A56: 47 | B56: 1197 | C56: زينب احمد طه احمد | D56: 7/2 | K56: بنات | L56: انتظام | M56: صباحى | O56: 3247 | P56: 9 | Q56: 9 | R56: 11 | S56: 29 | T56: 8 | U56: 5 | V56: 7 | W56: 20 | X56: 4 | Y56: 4 | Z56: 6 | AA56: 14 | AB56: 9 | AC56: 8 | AD56: 13 | AE56: 30 | AF56: 9 | AG56: 19 | AH56: 11 | AI56: 39 | AJ56: 9 | AK56: 7 | AL56: 14 | AM56: 30 | AN56: 9 | AO56: 11 | AP56: 11 | AQ56: 31 | AR56: 9 | AS56: 15 | AT56: 12 | AU56: 36 | AV56: 9 | AW56: 10 | AX56: 12 | AY56: 31 | AZ56: 9 | BA56: 18 | BB56: 14 | BC56: 41 | BD56: 10 | BE56: 17 | BF56: 20 | BG56: 47 | BH56: 3 | BI56: 5 | BJ56: 5 | BK56: 7 | BL56: 4 | BM56: 8 | BN56: 12 | BO56: 20 | BP56: 32 | BQ56: 135 | BR56: 380 | BS56: 3 | BT56: 7 | BU56: 8 | BV56: 18 | BW56: 3 | BX56: 7 | BY56: 8 | BZ56: 18 | CA56: ناجحة | CB56: ومنقولة للصف الثالث | CC56: 0 | CD56: 10 | CE56: 10/3 | CW56: 0
A57: 48 | B57: 1198 | C57: زينب احمد فولى مرسى | D57: 3/2 | K57: بنات | L57: انتظام | M57: صباحى | O57: 3248 | P57: 9 | Q57: 8 | R57: 8 | S57: 25 | T57: 8 | U57: 1 | V57: 3 | W57: 12 | X57: 4 | Y57: 3 | Z57: 4 | AA57: 11 | AB57: 9 | AC57: 9 | AD57: 7 | AE57: 25 | AF57: 9 | AG57: 16 | AH57: 12 | AI57: 37 | AJ57: 9 | AK57: 4 | AL57: 13 | AM57: 26 | AN57: 9 | AO57: 11 | AP57: 11 | AQ57: 31 | AR57: 9 | AS57: 9 | AT57: 12 | AU57: 30 | AV57: 9 | AW57: 11 | AX57: 11 | AY57: 31 | AZ57: 9 | BA57: 15 | BB57: 17 | BC57: 41 | BD57: 9 | BE57: 15 | BF57: 18 | BG57: 42 | BH57: 3 | BI57: 5 | BJ57: 4 | BK57: 8 | BL57: 5 | BM57: 8 | BN57: 12 | BO57: 21 | BP57: 33 | BQ57: 114 | BR57: 344 | BS57: 3 | BT57: 6 | BU57: 8 | BV57: 17 | BW57: 3 | BX57: 3 | BY57: 4 | BZ57: 10 | CA57: دورثان | CB57: فى : انجليزى - | CC57: 1 | CD57: 10 | CE57: 10/3 | CI57: انجليزى - | CW57: 0
A58: 49 | B58: 1199 | C58: زينب احمد محمد حسب الله | D58: 1/2 | K58: بنات | L58: انتظام | M58: صباحى | O58: 3249 | P58: 9 | Q58: 8 | R58: 11 | S58: 28 | T58: 8 | U58: 7 | V58: 5 | W58: 20 | X58: 4 | Y58: 4 | Z58: 5 | AA58: 13 | AB58: 9 | AC58: 8 | AD58: 8 | AE58: 25 | AF58: 9 | AG58: 0 | AH58: 9 | AI58: 18 | AJ58: 9 | AK58: 0 | AL58: 3 | AM58: 12 | AN58: 9 | AO58: 7 | AP58: 9 | AQ58: 25 | AR58: 9 | AS58: 10 | AT58: 11 | AU58: 30 | AV58: 9 | AW58: 12 | AX58: 11 | AY58: 32 | AZ58: 9 | BA58: 15 | BB58: 13 | BC58: 37 | BD58: 9 | BE58: 13 | BF58: 19 | BG58: 41 | BH58: 4 | BI58: 5 | BJ58: 8 | BK58: 8 | BL58: 4 | BM58: 8 | BN58: 16 | BO58: 21 | BP58: 37 | BQ58: 100 | BR58: 318 | BS58: 3 | BT58: 6 | BU58: 8 | BV58: 17 | BW58: 3 | BX58: 4 | BY58: 7 | BZ58: 14 | CA58: دورثان | CB58: فى : مادة2 - مادة3 - | CC58: 2 | CD58: 10 | CE58: 10/3 | CL58: مادة2 - | CM58: مادة3 - | CW58: 0
A59: 50 | B59: 1200 | C59: زينب اسانة حسين محمد | D59: 2/2 | K59: بنات | L59: انتظام | M59: صباحى | O59: 3250 | P59: 9 | Q59: 8 | R59: 11 | S59: 28 | T59: 8 | U59: 2 | V59: 2 | W59: 12 | X59: 4 | Y59: 3 | Z59: 6 | AA59: 13 | AB59: 9 | AC59: 7 | AD59: 11 | AE59: 27 | AF59: 9 | AG59: 9 | AH59: 7 | AI59: 25 | AJ59: 9 | AK59: 1 | AL59: 5 | AM59: 15 | AN59: 9 | AO59: 4 | AP59: 14 | AQ59: 27 | AR59: 9 | AS59: 9 | AT59: 12 | AU59: 30 | AV59: 9 | AW59: 10 | AX59: 12 | AY59: 31 | AZ59: 10 | BA59: 19 | BB59: 19 | BC59: 48 | BD59: 9 | BE59: 15 | BF59: 19 | BG59: 43 | BH59: 2 | BI59: 5 | BJ59: 4 | BK59: 6 | BL59: 4 | BM59: 10 | BN59: 10 | BO59: 21 | BP59: 31 | BQ59: 97 | BR59: 330 | BS59: 3 | BT59: 7 | BU59: 7 | BV59: 17 | BW59: 3 | BX59: 4 | BY59: 3 | BZ59: 10 | CA59: دورثان | CB59: فى : انجليزى - مادة3 - | CC59: 2 | CD59: 10 | CE59: 10/3 | CI59: انجليزى - | CM59: مادة3 - | CW59: 0
A60: 51 | B60: 1201 | C60: زينب حسن محمد احمد | D60: 2/2 | K60: بنات | L60: انتظام | M60: صباحى | O60: 3251 | P60: 9 | Q60: 10 | R60: 15 | S60: 34 | T60: 8 | U60: 5 | V60: 9 | W60: 22 | X60: 4 | Y60: 4 | Z60: 3 | AA60: 11 | AB60: 8 | AC60: 8 | AD60: 9 | AE60: 25 | AF60: 9 | AG60: 10 | AH60: 12 | AI60: 31 | AJ60: 9 | AK60: 10 | AL60: 11 | AM60: 30 | AN60: 9 | AO60: 13 | AP60: 15 | AQ60: 37 | AR60: 9 | AS60: 16 | AT60: 14 | AU60: 39 | AV60: 9 | AW60: 15 | AX60: 14 | AY60: 38 | AZ60: 9 | BA60: 16 | BB60: 19 | BC60: 44 | BD60: 10 | BE60: 17 | BF60: 19 | BG60: 46 | BH60: 3 | BI60: 5 | BJ60: 5 | BK60: 7 | BL60: 6 | BM60: 8 | BN60: 14 | BO60: 20 | BP60: 34 | BQ60: 136 | BR60: 391 | BS60: 3 | BT60: 5 | BU60: 8 | BV60: 16 | BW60: 3 | BX60: 5 | BY60: 6 | BZ60: 14 | CA60: ناجحة | CB60: ومنقولة للصف الثالث | CC60: 0 | CD60: 10 | CE60: 10/3 | CW60: 0
A61: 52 | B61: 1202 | C61: زينب حسين شاكر عبد الحافظ | D61: 5/2 | K61: بنات | L61: انتظام | M61: صباحى | O61: 3252 | P61: 9 | Q61: 9 | R61: 12 | S61: 30 | T61: 8 | U61: 7 | V61: 5 | W61: 20 | X61: 4 | Y61: 4 | Z61: 3 | AA61: 11 | AB61: 9 | AC61: 12 | AD61: 14 | AE61: 35 | AF61: 9 | AG61: 9 | AH61: 13 | AI61: 31 | AJ61: 9 | AK61: 9 | AL61: 15 | AM61: 33 | AN61: 9 | AO61: 16 | AP61: 18 | AQ61: 43 | AR61: 9 | AS61: 18 | AT61: 16 | AU61: 43 | AV61: 9 | AW61: 14 | AX61: 14 | AY61: 37 | AZ61: 9 | BA61: 18 | BB61: 14 | BC61: 41 | BD61: 10 | BE61: 17 | BF61: 19 | BG61: 46 | BH61: 3 | BI61: 5 | BJ61: 5 | BK61: 5 | BL61: 4 | BM61: 10 | BN61: 12 | BO61: 20 | BP61: 32 | BQ61: 143 | BR61: 402 | BS61: 3 | BT61: 7 | BU61: 8 | BV61: 18 | BW61: 3 | BX61: 5 | BY61: 5 | BZ61: 13 | CA61: ناجحة | CB61: ومنقولة للصف الثالث | CC61: 0 | CD61: 10 | CE61: 10/3 | CW61: 0
A62: 53 | B62: 1203 | C62: زينب رضوان ابراهيم محمد | D62: 6/2 | K62: بنات | L62: انتظام | M62: صباحى | O62: 3304 | P62: 9 | Q62: 11 | R62: 18 | S62: 38 | T62: 8 | U62: 6 | V62: 6 | W62: 20 | X62: 4 | Y62: 5 | Z62: 5 | AA62: 14 | AB62: 10 | AC62: 7 | AD62: 8 | AE62: 25 | AF62: 9 | AG62: 2 | AH62: 6 | AI62: 17 | AJ62: 9 | AK62: 7 | AL62: 9 | AM62: 25 | AN62: 9 | AO62: 10 | AP62: 16 | AQ62: 35 | AR62: 9 | AS62: 10 | AT62: 18 | AU62: 37 | AV62: 9 | AW62: 12 | AX62: 14 | AY62: 35 | AZ62: 9 | BA62: 17 | BB62: 18 | BC62: 44 | BD62: 10 | BE62: 17 | BF62: 19 | BG62: 46 | BH62: 4 | BI62: 5 | BJ62: 8 | BK62: 5 | BL62: 6 | BM62: 8 | BN62: 18 | BO62: 18 | BP62: 36 | BQ62: 117 | BR62: 372 | BS62: 3 | BT62: 7 | BU62: 8 | BV62: 18 | BW62: 3 | BX62: 5 | BY62: 7 | BZ62: 15 | CA62: دورثان | CB62: فى : مادة2 - | CC62: 1 | CD62: 10 | CE62: 10/3 | CL62: مادة2 - | CW62: 0
A63: 54 | B63: 1204 | C63: زينب ركابى زايد محمد | D63: 4/2 | K63: بنات | L63: انتظام | M63: صباحى | O63: 3305 | P63: 9 | Q63: 11 | R63: 14 | S63: 34 | T63: 8 | U63: 5 | V63: 7 | W63: 20 | X63: 4 | Y63: 3 | Z63: 3 | AA63: 10 | AB63: 9 | AC63: 3 | AD63: 6 | AE63: 18 | AF63: 9 | AG63: 0 | AH63: 5 | AI63: 14 | AJ63: 9 | AK63: 8 | AL63: 8 | AM63: 25 | AN63: 9 | AO63: 7 | AP63: 16 | AQ63: 32 | AR63: 9 | AS63: 7 | AT63: 13 | AU63: 29 | AV63: 9 | AW63: 10 | AX63: 14 | AY63: 33 | AZ63: 9 | BA63: 12 | BB63: 16 | BC63: 37 | BD63: 9 | BE63: 13 | BF63: 19 | BG63: 41 | BH63: 2 | BI63: 5 | BJ63: 4 | BK63: 7 | BL63: 4 | BM63: 12 | BN63: 10 | BO63: 24 | BP63: 34 | BQ63: 90 | BR63: 327 | BS63: 3 | BT63: 7 | BU63: 8 | BV63: 18 | BW63: 3 | BX63: 4 | BY63: 4 | BZ63: 11 | CA63: دورثان | CB63: فى : مادة1 - مادة2 - | CC63: 2 | CD63: 10 | CE63: 10/3 | CK63: مادة1 - | CL63: مادة2 - | CW63: 0
A64: 55 | B64: 1205 | C64: زينب صابر احمد | D64: 7/2 | K64: بنات | L64: انتظام | M64: صباحى | O64: 3306 | P64: 9 | Q64: 9 | R64: 13 | S64: 31 | T64: 8 | U64: 7 | V64: 5 | W64: 20 | X64: 4 | Y64: 5 | Z64: 4 | AA64: 13 | AB64: 9 | AC64: 10 | AD64: 13 | AE64: 32 | AF64: 9 | AG64: 9 | AH64: 12 | AI64: 30 | AJ64: 9 | AK64: 6 | AL64: 10 | AM64: 25 | AN64: 9 | AO64: 8 | AP64: 17 | AQ64: 34 | AR64: 9 | AS64: 12 | AT64: 12 | AU64: 33 | AV64: 9 | AW64: 14 | AX64: 15 | AY64: 38 | AZ64: 10 | BA64: 19 | BB64: 17 | BC64: 46 | BD64: 10 | BE64: 18 | BF64: 20 | BG64: 48 | BH64: 2 | BI64: 5 | BJ64: 4 | BK64: 9 | BL64: 5 | BM64: 8 | BN64: 11 | BO64: 22 | BP64: 33 | BQ64: 130 | BR64: 383 | BS64: 3 | BT64: 7 | BU64: 7 | BV64: 17 | BW64: 3 | BX64: 4 | BY64: 7 | BZ64: 14 | CA64: ناجحة | CB64: ومنقولة للصف الثالث | CC64: 0 | CD64: 10 | CE64: 10/3 | CW64: 0
A65: 56 | B65: 1206 | C65: زينب عبد الرحيم خليفة بصرى | D65: 6/2 | K65: بنات | L65: انتظام | M65: صباحى | O65: 3307 | P65: 9 | Q65: 10 | R65: 12 | S65: 31 | T65: 8 | U65: 6 | V65: 6 | W65: 20 | X65: 4 | Y65: 4 | Z65: 4 | AA65: 12 | AB65: 9 | AC65: 5 | AD65: 11 | AE65: 25 | AF65: 9 | AG65: 2 | AH65: 16 | AI65: 27 | AJ65: 9 | AK65: 3 | AL65: 14 | AM65: 26 | AN65: 9 | AO65: 13 | AP65: 17 | AQ65: 39 | AR65: 9 | AS65: 12 | AT65: 10 | AU65: 31 | AV65: 9 | AW65: 13 | AX65: 15 | AY65: 37 | AZ65: 10 | BA65: 19 | BB65: 17 | BC65: 46 | BD65: 10 | BE65: 16 | BF65: 20 | BG65: 46 | BH65: 3 | BI65: 5 | BJ65: 5 | BK65: 9 | BL65: 5 | BM65: 8 | BN65: 13 | BO65: 22 | BP65: 35 | BQ65: 117 | BR65: 375 | BS65: 3 | BT65: 5 | BU65: 7 | BV65: 15 | BW65: 3 | BX65: 5 | BY65: 8 | BZ65: 16 | CA65: ناجحة | CB65: ومنقولة للصف الثالث | CC65: 0 | CD65: 10 | CE65: 10/3 | CW65: 0
A66: 57 | B66: 1207 | C66: زينب عبد السلام عبده مدبولى | D66: 2/2 | K66: بنات | L66: انتظام | M66: صباحى | O66: 3308 | P66: 9 | Q66: 13 | R66: 14 | S66: 36 | T66: 8 | U66: 4 | V66: 8 | W66: 20 | X66: 4 | Y66: 4 | Z66: 3 | AA66: 11 | AB66: 9 | AC66: 10 | AD66: 14 | AE66: 33 | AF66: 9 | AG66: 4 | AH66: 17 | AI66: 30 | AJ66: 9 | AK66: 6 | AL66: 16 | AM66: 31 | AN66: 9 | AO66: 9 | AP66: 18 | AQ66: 36 | AR66: 9 | AS66: 11 | AT66: 9 | AU66: 29 | AV66: 9 | AW66: 12 | AX66: 15 | AY66: 36 | AZ66: 10 | BA66: 20 | BB66: 16 | BC66: 46 | BD66: 10 | BE66: 17 | BF66: 20 | BG66: 47 | BH66: 3 | BI66: 5 | BJ66: 5 | BK66: 9 | BL66: 7 | BM66: 12 | BN66: 15 | BO66: 26 | BP66: 41 | BQ66: 124 | BR66: 396 | BS66: 3 | BT66: 6 | BU66: 8 | BV66: 17 | BW66: 3 | BX66: 7 | BY66: 8 | BZ66: 18 | CA66: ناجحة | CB66: ومنقولة للصف الثالث | CC66: 0 | CD66: 10 | CE66: 10/3 | CW66: 0
A67: 58 | B67: 1208 | C67: زينب عطية حسين احمد | D67: 6/2 | K67: بنات | L67: انتظام | M67: صباحى | O67: 3309 | P67: 9 | Q67: 12 | R67: 13 | S67: 34 | T67: 8 | U67: 7 | V67: 8 | W67: 23 | X67: 4 | Y67: 4 | Z67: 5 | AA67: 13 | AB67: 9 | AC67: 11 | AD67: 16 | AE67: 36 | AF67: 9 | AG67: 8 | AH67: 14 | AI67: 31 | AJ67: 9 | AK67: 17 | AL67: 17 | AM67: 43 | AN67: 9 | AO67: 15 | AP67: 17 | AQ67: 41 | AR67: 9 | AS67: 19 | AT67: 17 | AU67: 45 | AV67: 9 | AW67: 15 | AX67: 15 | AY67: 39 | AZ67: 10 | BA67: 19 | BB67: 20 | BC67: 49 | BD67: 10 | BE67: 16 | BF67: 20 | BG67: 46 | BH67: 4 | BI67: 5 | BJ67: 8 | BK67: 10 | BL67: 4 | BM67: 12 | BN67: 16 | BO67: 27 | BP67: 43 | BQ67: 161 | BR67: 443 | BS67: 3 | BT67: 7 | BU67: 8 | BV67: 18 | BW67: 3 | BX67: 5 | BY67: 7 | BZ67: 15 | CA67: ناجحة | CB67: ومنقولة للصف الثالث | CC67: 0 | CD67: 10 | CE67: 10/3 | CW67: 0
A68: 59 | B68: 1209 | C68: زينب على احمد على | D68: 2/2 | K68: بنات | L68: انتظام | M68: صباحى | O68: 3310 | P68: 9 | Q68: 10 | R68: 12 | S68: 31 | T68: 8 | U68: 6 | V68: 6 | W68: 20 | X68: 4 | Y68: 5 | Z68: 5 | AA68: 14 | AB68: 9 | AC68: 6 | AD68: 2 | AE68: 17 | AF68: 9 | AG68: 5 | AH68: 11 | AI68: 25 | AJ68: 9 | AK68: 10 | AL68: 6 | AM68: 25 | AN68: 9 | AO68: 7 | AP68: 11 | AQ68: 27 | AR68: 9 | AS68: 11 | AT68: 11 | AU68: 31 | AV68: 9 | AW68: 11 | AX68: 14 | AY68: 34 | AZ68: 9 | BA68: 15 | BB68: 16 | BC68: 40 | BD68: 9 | BE68: 15 | BF68: 18 | BG68: 42 | BH68: 3 | BI68: 5 | BJ68: 4 | BK68: 7 | BL68: 6 | BM68: 8 | BN68: 13 | BO68: 20 | BP68: 33 | BQ68: 112 | BR68: 339 | BS68: 3 | BT68: 7 | BU68: 7 | BV68: 17 | BW68: 3 | BX68: 5 | BY68: 5 | BZ68: 13 | CA68: دورثان | CB68: فى : مادة1 - | CC68: 1 | CD68: 10 | CE68: 10/3 | CK68: مادة1 - | CW68: 0
A69: 60 | B69: 1210 | C69: زينب على محمد على | D69: 7/2 | K69: بنات | L69: انتظام | M69: صباحى | O69: 3311 | P69: 9 | Q69: 9 | R69: 16 | S69: 34 | T69: 8 | U69: 4 | V69: 8 | W69: 20 | X69: 4 | Y69: 4 | Z69: 4 | AA69: 12 | AB69: 9 | AC69: 8 | AD69: 12 | AE69: 29 | AF69: 9 | AG69: 11 | AH69: 16 | AI69: 36 | AJ69: 9 | AK69: 6 | AL69: 16 | AM69: 31 | AN69: 9 | AO69: 14 | AP69: 13 | AQ69: 36 | AR69: 9 | AS69: 19 | AT69: 16 | AU69: 44 | AV69: 9 | AW69: 11 | AX69: 15 | AY69: 35 | AZ69: 10 | BA69: 20 | BB69: 17 | BC69: 47 | BD69: 10 | BE69: 17 | BF69: 20 | BG69: 47 | BH69: 2 | BI69: 5 | BJ69: 4 | BK69: 9 | BL69: 5 | BM69: 8 | BN69: 11 | BO69: 22 | BP69: 33 | BQ69: 136 | BR69: 404 | BS69: 3 | BT69: 6 | BU69: 8 | BV69: 17 | BW69: 3 | BX69: 5 | BY69: 7 | BZ69: 15 | CA69: ناجحة | CB69: ومنقولة للصف الثالث | CC69: 0 | CD69: 10 | CE69: 10/3 | CW69: 0
A70: 61 | B70: 1211 | C70: زينب محمد عبد الرحيم صغير | D70: 4/2 | K70: بنات | L70: انتظام | M70: صباحى | O70: 3312 | P70: 9 | Q70: 11 | R70: 16 | S70: 36 | T70: 8 | U70: 5 | V70: 9 | W70: 22 | X70: 4 | Y70: 4 | Z70: 4 | AA70: 12 | AB70: 9 | AC70: 10 | AD70: 6 | AE70: 25 | AF70: 9 | AG70: 4 | AH70: 12 | AI70: 25 | AJ70: 9 | AK70: 4 | AL70: 19 | AM70: 32 | AN70: 9 | AO70: 17 | AP70: 15 | AQ70: 41 | AR70: 9 | AS70: 15 | AT70: 16 | AU70: 40 | AV70: 9 | AW70: 11 | AX70: 15 | AY70: 35 | AZ70: 9 | BA70: 18 | BB70: 17 | BC70: 44 | BD70: 9 | BE70: 14 | BF70: 20 | BG70: 43 | BH70: 2 | BI70: 5 | BJ70: 4 | BK70: 8 | BL70: 4 | BM70: 8 | BN70: 10 | BO70: 21 | BP70: 31 | BQ70: 125 | BR70: 386 | BS70: 3 | BT70: 6 | BU70: 8 | BV70: 17 | BW70: 3 | BX70: 4 | BY70: 7 | BZ70: 14 | CA70: ناجحة | CB70: ومنقولة للصف الثالث | CC70: 0 | CD70: 10 | CE70: 10/3 | CW70: 0
A71: 62 | B71: 1212 | C71: سعاد عباس محمود فضل | D71: 5/2 | K71: بنات | L71: انتظام | M71: صباحى | O71: 3313 | P71: 10 | Q71: 14 | R71: 18 | S71: 42 | T71: 8 | U71: 7 | V71: 10 | W71: 25 | X71: 4 | Y71: 4 | Z71: 3 | AA71: 11 | AB71: 9 | AC71: 10 | AD71: 17 | AE71: 36 | AF71: 10 | AG71: 16 | AH71: 20 | AI71: 46 | AJ71: 9 | AK71: 5 | AL71: 19 | AM71: 33 | AN71: 9 | AO71: 14 | AP71: 17 | AQ71: 40 | AR71: 9 | AS71: 18 | AT71: 16 | AU71: 43 | AV71: 9 | AW71: 16 | AX71: 15 | AY71: 40 | AZ71: 10 | BA71: 20 | BB71: 18 | BC71: 48 | BD71: 10 | BE71: 18 | BF71: 20 | BG71: 48 | BH71: 3 | BI71: 5 | BJ71: 5 | BK71: 9 | BL71: 4 | BM71: 7 | BN71: 12 | BO71: 21 | BP71: 33 | BQ71: 156 | BR71: 445 | BS71: 3 | BT71: 8 | BU71: 8 | BV71: 19 | BW71: 3 | BX71: 7 | BY71: 8 | BZ71: 18 | CA71: ناجحة | CB71: ومنقولة للصف الثالث | CC71: 0 | CD71: 10 | CE71: 10/3 | CW71: 0
A72: 63 | B72: 1213 | C72: سماح اسماعيل نوبى اسماعيل | D72: 2/2 | K72: بنات | L72: انتظام | M72: صباحى | O72: 3314 | P72: 9 | Q72: 7 | R72: 9 | S72: 25 | T72: 8 | U72: 5 | V72: 7 | W72: 20 | X72: 4 | Y72: 4 | Z72: 3 | AA72: 11 | AB72: 9 | AC72: 8 | AD72: 12 | AE72: 29 | AF72: 9 | AG72: 1 | AH72: 6 | AI72: 16 | AJ72: 9 | AK72: 2 | AL72: 7 | AM72: 18 | AN72: 9 | AO72: 7 | AP72: 9 | AQ72: 25 | AR72: 9 | AS72: 18 | AT72: 8 | AU72: 35 | AV72: 9 | AW72: 10 | AX72: 13 | AY72: 32 | AZ72: 10 | BA72: 18 | BB72: 18 | BC72: 46 | BD72: 10 | BE72: 18 | BF72: 20 | BG72: 48 | BH72: 3 | BI72: 5 | BJ72: 7 | BK72: 9 | BL72: 5 | BM72: 5 | BN72: 15 | BO72: 19 | BP72: 34 | BQ72: 114 | BR72: 339 | BS72: 3 | BT72: 4 | BU72: 6 | BV72: 13 | BW72: 3 | BX72: 3 | BY72: 5 | BZ72: 11 | CA72: دورثان | CB72: فى : مادة2 - مادة3 - | CC72: 2 | CD72: 10 | CE72: 10/3 | CL72: مادة2 - | CM72: مادة3 - | CW72: 0
A73: 64 | B73: 1214 | C73: سماح رمضان احمد محمد | D73: 3/2 | K73: بنات | L73: انتظام | M73: صباحى | O73: 3315 | P73: 9 | Q73: 8 | R73: 12 | S73: 29 | T73: 8 | U73: 6 | V73: 6 | W73: 20 | X73: 4 | Y73: 4 | Z73: 4 | AA73: 12 | AB73: 9 | AC73: 13 | AD73: 15 | AE73: 37 | AF73: 9 | AG73: 11 | AH73: 16 | AI73: 36 | AJ73: 9 | AK73: 17 | AL73: 18 | AM73: 44 | AN73: 9 | AO73: 11 | AP73: 16 | AQ73: 36 | AR73: 9 | AS73: 19 | AT73: 14 | AU73: 42 | AV73: 9 | AW73: 14 | AX73: 15 | AY73: 38 | AZ73: 10 | BA73: 20 | BB73: 20 | BC73: 50 | BD73: 10 | BE73: 17 | BF73: 20 | BG73: 47 | BH73: 3 | BI73: 5 | BJ73: 4 | BK73: 9 | BL73: 4 | BM73: 12 | BN73: 11 | BO73: 26 | BP73: 37 | BQ73: 153 | BR73: 428 | BS73: 3 | BT73: 6 | BU73: 8 | BV73: 17 | BW73: 3 | BX73: 4 | BY73: 8 | BZ73: 15 | CA73: ناجحة | CB73: ومنقولة للصف الثالث | CC73: 0 | CD73: 10 | CE73: 10/3 | CW73: 0
A74: 65 | B74: 1215 | C74: شيماء امين ابراهيم سالم | D74: 4/2 | K74: بنات | L74: انتظام | M74: صباحى | O74: 3316 | P74: 9 | Q74: 10 | R74: 13 | S74: =IF($C74="","",SUM(P74,Q74,R74)) -> 32 | T74: 8 | U74: 6 | V74: 6 | W74: =IF($C74="","",SUM(T74,U74,V74)) -> 20 | X74: 4 | Y74: 3 | Z74: 4 | AA74: =IF($C74="","",SUM(X74,Y74,Z74)) -> 11 | AB74: 9 | AC74: 12 | AD74: 11 | AE74: =IF($C74="","",SUM(AB74,AC74,AD74)) -> 32 | AF74: 9 | AG74: 6 | AH74: 13 | AI74: =IF($C74="","",SUM(AF74,AG74,AH74)) -> 28 | AJ74: 9 | AK74: 13 | AL74: 13 | AM74: =IF($C74="","",SUM(AJ74:AL74)) -> 35 | AN74: 9 | AO74: 12 | AP74: 10 | AQ74: =IF($C74="","",SUM(AN74,AO74,AP74)) -> 31 | AR74: 9 | AS74: 18 | AT74: 14 | AU74: =IF($C74="","",SUM(AR74,AS74,AT74)) -> 41 | AV74: 9 | AW74: 15 | AX74: 14 | AY74: =IF($C74="","",SUM(AV74,AW74,AX74)) -> 38 | AZ74: 9 | BA74: 15 | BB74: 11 | BC74: =IF($C74="","",SUM(AZ74,BA74,BB74)) -> 35 | BD74: 9 | BE74: 14 | BF74: 20 | BG74: =IF($C74="","",SUM(BD74,BE74,BF74)) -> 43 | BH74: 2 | BI74: 5 | BJ74: 4 | BK74: 9 | BL74: 5 | BM74: 10 | BN74: =IF($C74="","",SUM(BH74,BJ74,BL74)) -> 11 | BO74: 24 | BP74: =IF($C74="","",SUM(BN74,BO74)) -> 35 | BQ74: =IF($C74="","",SUM(Q74,U74,Y74,AC74,AG74,AK74,AO74,AS74,AW74,BA74,BE74,BJ74,BK74)) -> 137 | BR74: =IF($C74="","",SUM(S74,W74,AA74,AE74,AI74,AM74,AQ74,AU74,AY74,BC74,BG74,BP74)) -> 381 | BS74: 3 | BT74: 6 | BU74: 7 | BV74: =IF($C74="","",SUM(BS74,BT74,BU74)) -> 16 | BW74: 3 | BX74: 5 | BY74: 6 | BZ74: =IF($C74="","",SUM(BW74,BX74,BY74)) -> 14 | CA74: =IF($C74="","",IF(CC74=0,"ناجحة",IF(CC74<=2,"دورثان","راسبة"))) -> ناجحة | CB74: =IF($C74="","",IF(CC74=0,"ومنقولة للصف الثالث",IF(CC74>0,"فى : "&CONCATENATE(CH74,CI74,CJ74,CK74,CL74,CM74,CN74,CO74,CP74,CQ74,CR74,CS74,CT74,CU74,CV74),CONCATENATE(CH74,CI74,CJ74,CK74,CL74,CM74,CN74,CO74,CP74,CQ74,CR74,CS74,CT74,CU74,CV74)))) -> ومنقولة للصف الثالث | CC74: 0 | CD74: 10 | CE74: 10/3 | CH74: =IF($C74="","",IF(OR(R74<$R$9,R74="غ",S74<$S$9),$CH$5&" - ","")) ->  | CI74: =IF($C74="","",IF(OR(V74<$V$9,V74="غ",W74<$W$9),$CI$5&" - ","")) ->  | CJ74: =IF($C74="","",IF(OR(Z74<$Z$9,Z74="غ",AA74<$AA$9),CJ$5&" - ","")) ->  | CK74: =IF($C74="","",IF(OR(AD74<$AD$9,AD74="غ",AE74<$AE$9),CK$5&" - ","")) ->  | CL74: =IF($C74="","",IF(OR(AH74<$AH$9,AH74="غ",AI74<$AI$9),CL$5&" - ","")) ->  | CM74: =IF($C74="","",IF(OR(AL74<$AL$9,AL74="غ",AM74<$AM$9),CM$5&" - ","")) ->  | CN74: =IF($C74="","",IF(OR(AP74<$AP$9,AP74="غ",AQ74<$AQ$9),CN$5&" - ","")) ->  | CO74: =IF($C74="","",IF(OR(AT74<$AT$9,AT74="غ",AU74<$AU$9),CO$5&" - ","")) ->  | CP74: =IF($C74="","",IF(OR(AX74<$AX$9,AX74="غ",AY74<$AY$9),CP$5&" - ","")) ->  | CQ74: =IF($C74="","",IF(OR(BB74<$BB$9,BB74="غ",BC74<$BC$9),CQ$5&" - ","")) ->  | CR74: =IF($C74="","",IF(OR(BF74<$BF$9,BF74="غ",BG74<$BG$9),CR$5&" - ","")) ->  | CS74: =IF($C74="","",IF(OR(BN74<$BN$9,BN74="غ",BO74<$BO$9,BO74="غ",BP74<$BP$9),CS$5&" - ","")) ->  | CT74: =IF($C74="","",IF(OR(BU74<$BU$9,BU74="غ",BV74<$BV$9),CT$5&" - ","")) ->  | CU74: =IF($C74="","",IF(OR(BY74<$BY$9,BY74="غ",BZ74<$BZ$9),CU$5&" - ","")) ->  | CV74: =IF($C74="","",IF(BR74<$BR$9,CV$5,"")) ->  | CW74: 0
A75: 66 | B75: 1216 | C75: شيماء عبد الرازق عبد الوهاب عبد الموجود | D75: 1/2 | K75: بنات | L75: انتظام | M75: صباحى | O75: 3317 | P75: 9 | Q75: 8 | R75: 8 | S75: 25 | T75: 8 | U75: 6 | V75: 6 | W75: 20 | X75: 4 | Y75: 4 | Z75: 4 | AA75: 12 | AB75: 8 | AC75: 5 | AD75: 12 | AE75: 25 | AF75: 9 | AG75: 3 | AH75: 13 | AI75: 25 | AJ75: 9 | AK75: 7 | AL75: 18 | AM75: 34 | AN75: 9 | AO75: 10 | AP75: 9 | AQ75: 28 | AR75: 9 | AS75: 10 | AT75: 10 | AU75: 29 | AV75: 9 | AW75: 14 | AX75: 11 | AY75: 34 | AZ75: 9 | BA75: 18 | BB75: 17 | BC75: 44 | BD75: 9 | BE75: 11 | BF75: 20 | BG75: 40 | BH75: 3 | BI75: 5 | BJ75: 5 | BK75: 8 | BL75: 4 | BM75: 11 | BN75: 12 | BO75: 24 | BP75: 36 | BQ75: 109 | BR75: 352 | BS75: 3 | BT75: 4 | BU75: 8 | BV75: 15 | BW75: 3 | BX75: 5 | BY75: 5 | BZ75: 13 | CA75: ناجحة | CB75: ومنقولة للصف الثالث | CC75: =IF($C75="","",COUNTIF($CH75:$CS75,"?*")+COUNTIF($CV75,"?*")) -> 0 | CD75: 10 | CE75: 10/3 | CW75: =IF($C75="","",COUNTIF($CT75:$CU75,"?*")) -> 0
A76: 67 | B76: 1217 | C76: شيماء عبد الله محمد عبدالله | D76: 4/2 | K76: بنات | L76: انتظام | M76: صباحى | O76: 3318 | P76: 9 | Q76: 13 | R76: 14 | S76: 36 | T76: 8 | U76: 5 | V76: 8 | W76: 21 | X76: 4 | Y76: 4 | Z76: 4 | AA76: 12 | AB76: 9 | AC76: 10 | AD76: 6 | AE76: 25 | AF76: 9 | AG76: 2 | AH76: 18 | AI76: 29 | AJ76: 9 | AK76: 3 | AL76: 13 | AM76: 25 | AN76: 9 | AO76: 8 | AP76: 17 | AQ76: 34 | AR76: 9 | AS76: 15 | AT76: 13 | AU76: 37 | AV76: 9 | AW76: 16 | AX76: 16 | AY76: 41 | AZ76: 10 | BA76: 20 | BB76: 17 | BC76: 47 | BD76: 9 | BE76: 15 | BF76: 19 | BG76: 43 | BH76: 3 | BI76: 5 | BJ76: 5 | BK76: 9 | BL76: 7 | BM76: 12 | BN76: 15 | BO76: 26 | BP76: 41 | BQ76: 125 | BR76: 391 | BS76: 3 | BT76: 6 | BU76: 6 | BV76: 15 | BW76: 3 | BX76: 5 | BY76: 7 | BZ76: 15 | CA76: ناجحة | CB76: ومنقولة للصف الثالث | CC76: 0 | CD76: 10 | CE76: 10/3 | CW76: 0
A77: 68 | B77: 1218 | C77: شيماء عبدالعاطى محمد عبدالله | D77: 3/2 | K77: بنات | L77: انتظام | M77: صباحى | O77: 3319 | P77: 9 | Q77: 14 | R77: 14 | S77: 37 | T77: 8 | U77: 5 | V77: 7 | W77: 20 | X77: 4 | Y77: 6 | Z77: 4 | AA77: 14 | AB77: 9 | AC77: 5 | AD77: 4 | AE77: 18 | AF77: 9 | AG77: 4 | AH77: 13 | AI77: 26 | AJ77: 9 | AK77: 2 | AL77: 5 | AM77: 16 | AN77: 9 | AO77: 3 | AP77: 13 | AQ77: 25 | AR77: 9 | AS77: 16 | AT77: 13 | AU77: 38 | AV77: 9 | AW77: 11 | AX77: 16 | AY77: 36 | AZ77: 10 | BA77: 20 | BB77: 17 | BC77: 47 | BD77: 9 | BE77: 15 | BF77: 19 | BG77: 43 | BH77: 3 | BI77: 5 | BJ77: 4 | BK77: 9 | BL77: 5 | BM77: 12 | BN77: 12 | BO77: 26 | BP77: 38 | BQ77: 114 | BR77: 358 | BS77: 3 | BT77: 5 | BU77: 8 | BV77: 16 | BW77: 3 | BX77: 4 | BY77: 5 | BZ77: 12 | CA77: دورثان | CB77: فى : مادة1 - مادة3 - | CC77: 2 | CD77: 11 | CE77: 11/3 | CK77: مادة1 - | CM77: مادة3 - | CW77: 0
A78: 69 | B78: 1219 | C78: شيماء عبده سيد احمد | D78: 4/2 | K78: بنات | L78: انتظام | M78: صباحى | O78: 3320 | P78: 10 | Q78: 13 | R78: 19 | S78: 42 | T78: 8 | U78: 6 | V78: 8 | W78: 22 | X78: 4 | Y78: 4 | Z78: 7 | AA78: 15 | AB78: 10 | AC78: 19 | AD78: 20 | AE78: 49 | AF78: 10 | AG78: 20 | AH78: 20 | AI78: 50 | AJ78: 10 | AK78: 19 | AL78: 19 | AM78: 48 | AN78: 9 | AO78: 18 | AP78: 19 | AQ78: 46 | AR78: 9 | AS78: 20 | AT78: 17 | AU78: 46 | AV78: 10 | AW78: 18 | AX78: 19 | AY78: 47 | AZ78: 10 | BA78: 20 | BB78: 20 | BC78: 50 | BD78: 9 | BE78: 15 | BF78: 20 | BG78: 44 | BH78: 3 | BI78: 5 | BJ78: 6 | BK78: 10 | BL78: 5 | BM78: 11 | BN78: 14 | BO78: 26 | BP78: 40 | BQ78: 188 | BR78: 499 | BS78: 3 | BT78: 8 | BU78: 8 | BV78: 19 | BW78: 3 | BX78: 7 | BY78: 8 | BZ78: 18 | CA78: ناجحة | CB78: ومنقولة للصف الثالث | CC78: 0 | CD78: 11 | CE78: 11/3 | CW78: 0
A79: 70 | B79: 1220 | C79: شيماء عربى حسن عربى | D79: 7/2 | K79: بنات | L79: انتظام | M79: صباحى | O79: 3321 | P79: 9 | Q79: 7 | R79: 9 | S79: 25 | T79: 8 | U79: 7 | V79: 5 | W79: 20 | X79: 4 | Y79: 5 | Z79: 5 | AA79: 14 | AB79: 10 | AC79: 20 | AD79: 19 | AE79: 49 | AF79: 10 | AG79: 20 | AH79: 20 | AI79: 50 | AJ79: 10 | AK79: 20 | AL79: 20 | AM79: 50 | AN79: 9 | AO79: 13 | AP79: 19 | AQ79: 41 | AR79: 10 | AS79: 19 | AT79: 18 | AU79: 47 | AV79: 10 | AW79: 17 | AX79: 19 | AY79: 46 | AZ79: 10 | BA79: 20 | BB79: 20 | BC79: 50 | BD79: 10 | BE79: 17 | BF79: 20 | BG79: 47 | BH79: 3 | BI79: 5 | BJ79: 4 | BK79: 10 | BL79: 5 | BM79: 11 | BN79: 12 | BO79: 26 | BP79: 38 | BQ79: 179 | BR79: 477 | BS79: 3 | BT79: 6 | BU79: 6 | BV79: 15 | BW79: 3 | BX79: 5 | BY79: 2 | BZ79: 10 | CA79: ناجحة | CB79: ومنقولة للصف الثالث | CC79: 0 | CD79: 11 | CE79: 11/3 | CW79: 0
A80: 71 | B80: 1221 | C80: شيماء محمود عباس احمد | D80: 4/2 | K80: بنات | L80: انتظام | M80: صباحى | O80: 3322 | P80: 9 | Q80: 9 | R80: 16 | S80: 34 | T80: 8 | U80: 9 | V80: 8 | W80: 25 | X80: 4 | Y80: 4 | Z80: 7 | AA80: 15 | AB80: 9 | AC80: 14 | AD80: 18 | AE80: 41 | AF80: 9 | AG80: 19 | AH80: 16 | AI80: 44 | AJ80: 10 | AK80: 20 | AL80: 19 | AM80: 49 | AN80: 9 | AO80: 15 | AP80: 19 | AQ80: 43 | AR80: 10 | AS80: 18 | AT80: 20 | AU80: 48 | AV80: 9 | AW80: 19 | AX80: 14 | AY80: 42 | AZ80: 10 | BA80: 20 | BB80: 20 | BC80: 50 | BD80: 10 | BE80: 18 | BF80: 20 | BG80: 48 | BH80: 3 | BI80: 5 | BJ80: 5 | BK80: 10 | BL80: 7 | BM80: 12 | BN80: 15 | BO80: 27 | BP80: 42 | BQ80: 180 | BR80: 481 | BS80: 3 | BT80: 7 | BU80: 8 | BV80: 18 | BW80: 3 | BX80: 7 | BY80: 8 | BZ80: 18 | CA80: ناجحة | CB80: ومنقولة للصف الثالث | CC80: 0 | CD80: 11 | CE80: 11/3 | CW80: 0
A81: 72 | B81: 1222 | C81: شيماء مصطفى محمد على | D81: 5/2 | K81: بنات | L81: انتظام | M81: صباحى | O81: 3323 | P81: 9 | Q81: 14 | R81: 13 | S81: 36 | T81: 8 | U81: 7 | V81: 6 | W81: 21 | X81: 4 | Y81: 4 | Z81: 6 | AA81: 14 | AB81: 10 | AC81: 18 | AD81: 20 | AE81: 48 | AF81: 9 | AG81: 18 | AH81: 17 | AI81: 44 | AJ81: 10 | AK81: 20 | AL81: 20 | AM81: 50 | AN81: 9 | AO81: 16 | AP81: 18 | AQ81: 43 | AR81: 10 | AS81: 19 | AT81: 20 | AU81: 49 | AV81: 9 | AW81: 19 | AX81: 15 | AY81: 43 | AZ81: 10 | BA81: 20 | BB81: 20 | BC81: 50 | BD81: 10 | BE81: 18 | BF81: 20 | BG81: 48 | BH81: 4 | BI81: 5 | BJ81: 8 | BK81: 8 | BL81: 5 | BM81: 12 | BN81: 17 | BO81: 25 | BP81: 42 | BQ81: 189 | BR81: 488 | BS81: 3 | BT81: 6 | BU81: 7 | BV81: 16 | BW81: 3 | BX81: 7 | BY81: 7 | BZ81: 17 | CA81: ناجحة | CB81: ومنقولة للصف الثالث | CC81: 0 | CD81: 11 | CE81: 11/3 | CW81: 0
A82: 73 | B82: 1223 | C82: صابرين البدرى عزمى عبد النعيم | D82: 6/2 | K82: بنات | L82: انتظام | M82: صباحى | O82: 3324 | P82: 10 | Q82: 13 | R82: 17 | S82: 40 | T82: 8 | U82: 10 | V82: 12 | W82: 30 | X82: 4 | Y82: 5 | Z82: 5 | AA82: 14 | AB82: 10 | AC82: 19 | AD82: 17 | AE82: 46 | AF82: 9 | AG82: 20 | AH82: 20 | AI82: 49 | AJ82: 10 | AK82: 20 | AL82: 20 | AM82: 50 | AN82: 9 | AO82: 5 | AP82: 19 | AQ82: 33 | AR82: 9 | AS82: 16 | AT82: 18 | AU82: 43 | AV82: 9 | AW82: 17 | AX82: 17 | AY82: 43 | AZ82: 10 | BA82: 19 | BB82: 20 | BC82: 49 | BD82: 10 | BE82: 17 | BF82: 20 | BG82: 47 | BH82: 3 | BI82: 5 | BJ82: 5 | BK82: 9 | BL82: 7 | BM82: 12 | BN82: 15 | BO82: 26 | BP82: 41 | BQ82: 175 | BR82: 485 | BS82: 3 | BT82: 8 | BU82: 8 | BV82: 19 | BW82: 3 | BX82: 6 | BY82: 5 | BZ82: 14 | CA82: ناجحة | CB82: ومنقولة للصف الثالث | CC82: 0 | CD82: 11 | CE82: 11/3 | CW82: 0
A83: 74 | B83: 1224 | C83: صابرين رمضان خليفة محسب | D83: 1/2 | K83: بنات | L83: انتظام | M83: صباحى | O83: 3325 | P83: 9 | Q83: 12 | R83: 14 | S83: 35 | T83: 8 | U83: 7 | V83: 6 | W83: 21 | X83: 4 | Y83: 4 | Z83: 5 | AA83: 13 | AB83: 9 | AC83: 15 | AD83: 11 | AE83: 35 | AF83: 10 | AG83: 20 | AH83: 20 | AI83: 50 | AJ83: 10 | AK83: 20 | AL83: 19 | AM83: 49 | AN83: 9 | AO83: 10 | AP83: 19 | AQ83: 38 | AR83: 10 | AS83: 19 | AT83: 20 | AU83: 49 | AV83: 9 | AW83: 15 | AX83: 15 | AY83: 39 | AZ83: 10 | BA83: 19 | BB83: 20 | BC83: 49 | BD83: 10 | BE83: 19 | BF83: 20 | BG83: 49 | BH83: 3 | BI83: 5 | BJ83: 5 | BK83: 9 | BL83: 5 | BM83: 12 | BN83: 13 | BO83: 26 | BP83: 39 | BQ83: 174 | BR83: 466 | BS83: 3 | BT83: 7 | BU83: 7 | BV83: 17 | BW83: 3 | BX83: 7 | BY83: 5 | BZ83: 15 | CA83: ناجحة | CB83: ومنقولة للصف الثالث | CC83: 0 | CD83: 11 | CE83: 11/3 | CW83: 0
A84: 75 | B84: 1225 | C84: صابرين عامر احمد بدرى | D84: 5/2 | K84: بنات | L84: انتظام | M84: صباحى | O84: 3326 | P84: 9 | Q84: 12 | R84: 16 | S84: 37 | T84: 8 | U84: 6 | V84: 8 | W84: 22 | X84: 4 | Y84: 4 | Z84: 6 | AA84: 14 | AB84: 8 | AC84: 15 | AD84: 17 | AE84: 40 | AF84: 9 | AG84: 13 | AH84: 18 | AI84: 40 | AJ84: 9 | AK84: 14 | AL84: 18 | AM84: 41 | AN84: 9 | AO84: 13 | AP84: 18 | AQ84: 40 | AR84: 10 | AS84: 18 | AT84: 19 | AU84: 47 | AV84: 9 | AW84: 19 | AX84: 14 | AY84: 42 | AZ84: 10 | BA84: 20 | BB84: 20 | BC84: 50 | BD84: 10 | BE84: 19 | BF84: 20 | BG84: 49 | BH84: 3 | BI84: 5 | BJ84: 5 | BK84: 9 | BL84: 5 | BM84: 12 | BN84: 13 | BO84: 26 | BP84: 39 | BQ84: 167 | BR84: 461 | BS84: 3 | BT84: 8 | BU84: 8 | BV84: 19 | BW84: 3 | BX84: 7 | BY84: 6 | BZ84: 16 | CA84: ناجحة | CB84: ومنقولة للصف الثالث | CC84: 0 | CD84: 11 | CE84: 11/3 | CW84: 0
A85: 76 | B85: 1226 | C85: صباح احمد حفنى احمد | D85: 7/2 | K85: بنات | L85: انتظام | M85: صباحى | O85: 3327 | P85: 9 | Q85: 11 | R85: 16 | S85: 36 | T85: 8 | U85: 9 | V85: 8 | W85: 25 | X85: 4 | Y85: 5 | Z85: 5 | AA85: 14 | AB85: 10 | AC85: 18 | AD85: 20 | AE85: 48 | AF85: 10 | AG85: 20 | AH85: 20 | AI85: 50 | AJ85: 9 | AK85: 20 | AL85: 16 | AM85: 45 | AN85: 9 | AO85: 17 | AP85: 19 | AQ85: 45 | AR85: 10 | AS85: 20 | AT85: 20 | AU85: 50 | AV85: 9 | AW85: 17 | AX85: 16 | AY85: 42 | AZ85: 10 | BA85: 17 | BB85: 20 | BC85: 47 | BD85: 10 | BE85: 19 | BF85: 20 | BG85: 49 | BH85: 3 | BI85: 5 | BJ85: 6 | BK85: 9 | BL85: 5 | BM85: 12 | BN85: 14 | BO85: 26 | BP85: 40 | BQ85: 188 | BR85: 491 | BS85: 3 | BT85: 6 | BU85: 8 | BV85: 17 | BW85: 3 | BX85: 6 | BY85: 5 | BZ85: 14 | CA85: ناجحة | CB85: ومنقولة للصف الثالث | CC85: 0 | CD85: 11 | CE85: 11/3 | CW85: 0
A86: 77 | B86: 1227 | C86: صفاء احمد ابو ضيف احمد | D86: 4/2 | K86: بنات | L86: انتظام | M86: صباحى | O86: 3328 | P86: 10 | Q86: 15 | R86: 17 | S86: 42 | T86: 8 | U86: 14 | V86: 10 | W86: 32 | X86: 5 | Y86: 7 | Z86: 5 | AA86: 17 | AB86: 9 | AC86: 17 | AD86: 18 | AE86: 44 | AF86: 10 | AG86: 20 | AH86: 17 | AI86: 47 | AJ86: 9 | AK86: 14 | AL86: 14 | AM86: 37 | AN86: 9 | AO86: 16 | AP86: 19 | AQ86: 44 | AR86: 10 | AS86: 19 | AT86: 19 | AU86: 48 | AV86: 9 | AW86: 19 | AX86: 15 | AY86: 43 | AZ86: 10 | BA86: 19 | BB86: 20 | BC86: 49 | BD86: 10 | BE86: 18 | BF86: 20 | BG86: 48 | BH86: 4 | BI86: 5 | BJ86: 8 | BK86: 10 | BL86: 5 | BM86: 12 | BN86: 17 | BO86: 27 | BP86: 44 | BQ86: 196 | BR86: 495 | BS86: 3 | BT86: 7 | BU86: 8 | BV86: 18 | BW86: 3 | BX86: 6 | BY86: 8 | BZ86: 17 | CA86: ناجحة | CB86: ومنقولة للصف الثالث | CC86: 0 | CD86: 11 | CE86: 11/3 | CW86: 0
A87: 78 | B87: 1228 | C87: صفاء ادريس برسى سليمان | D87: 4/2 | K87: بنات | L87: انتظام | M87: صباحى | O87: 3329 | P87: 9 | Q87: 10 | R87: 15 | S87: 34 | T87: 8 | U87: 10 | V87: 6 | W87: 24 | X87: 4 | Y87: 6 | Z87: 4 | AA87: 14 | AB87: 9 | AC87: 13 | AD87: 13 | AE87: 35 | AF87: 9 | AG87: 13 | AH87: 15 | AI87: 37 | AJ87: 9 | AK87: 15 | AL87: 13 | AM87: 37 | AN87: 9 | AO87: 12 | AP87: 18 | AQ87: 39 | AR87: 10 | AS87: 19 | AT87: 17 | AU87: 46 | AV87: 9 | AW87: 16 | AX87: 15 | AY87: 40 | AZ87: 10 | BA87: 20 | BB87: 20 | BC87: 50 | BD87: 10 | BE87: 18 | BF87: 20 | BG87: 48 | BH87: 3 | BI87: 5 | BJ87: 6 | BK87: 10 | BL87: 5 | BM87: 12 | BN87: 14 | BO87: 27 | BP87: 41 | BQ87: 168 | BR87: 445 | BS87: 3 | BT87: 7 | BU87: 6 | BV87: 16 | BW87: 3 | BX87: 5 | BY87: 2 | BZ87: 10 | CA87: ناجحة | CB87: ومنقولة للصف الثالث | CC87: 0 | CD87: 11 | CE87: 11/3 | CW87: 0
A88: 79 | B88: 1229 | C88: صفاء جمال على طه | D88: 5/2 | K88: بنات | L88: انتظام | M88: صباحى | O88: 3330 | P88: 9 | Q88: 11 | R88: 13 | S88: 33 | T88: 8 | U88: 6 | V88: 6 | W88: 20 | X88: 4 | Y88: 4 | Z88: 5 | AA88: 13 | AB88: 9 | AC88: 7 | AD88: 9 | AE88: 25 | AF88: 9 | AG88: 8 | AH88: 8 | AI88: 25 | AJ88: 9 | AK88: 11 | AL88: 5 | AM88: 25 | AN88: 9 | AO88: 6 | AP88: 17 | AQ88: 32 | AR88: 10 | AS88: 19 | AT88: 17 | AU88: 46 | AV88: 9 | AW88: 15 | AX88: 14 | AY88: 38 | AZ88: 10 | BA88: 19 | BB88: 20 | BC88: 49 | BD88: 10 | BE88: 18 | BF88: 20 | BG88: 48 | BH88: 3 | BI88: 5 | BJ88: 5 | BK88: 10 | BL88: 6 | BM88: 12 | BN88: 14 | BO88: 27 | BP88: 41 | BQ88: 139 | BR88: 395 | BS88: 3 | BT88: 7 | BU88: 8 | BV88: 18 | BW88: 3 | BX88: 6 | BY88: 4 | BZ88: 13 | CA88: ناجحة | CB88: ومنقولة للصف الثالث | CC88: 0 | CD88: 11 | CE88: 11/3 | CW88: 0
A89: 80 | B89: 1230 | C89: صفاء جمال محمود محمد | D89: 6/2 | K89: بنات | L89: انتظام | M89: صباحى | O89: 3331 | P89: 9 | Q89: 12 | R89: 15 | S89: 36 | T89: 8 | U89: 6 | V89: 7 | W89: 21 | X89: 4 | Y89: 4 | Z89: 4 | AA89: 12 | AB89: 9 | AC89: 10 | AD89: 15 | AE89: 34 | AF89: 9 | AG89: 11 | AH89: 16 | AI89: 36 | AJ89: 9 | AK89: 17 | AL89: 18 | AM89: 44 | AN89: 9 | AO89: 8 | AP89: 18 | AQ89: 35 | AR89: 10 | AS89: 19 | AT89: 19 | AU89: 48 | AV89: 9 | AW89: 16 | AX89: 14 | AY89: 39 | AZ89: 10 | BA89: 18 | BB89: 18 | BC89: 46 | BD89: 10 | BE89: 19 | BF89: 20 | BG89: 49 | BH89: 2 | BI89: 5 | BJ89: 4 | BK89: 10 | BL89: 5 | BM89: 12 | BN89: 11 | BO89: 27 | BP89: 38 | BQ89: 154 | BR89: 438 | BS89: 3 | BT89: 7 | BU89: 8 | BV89: 18 | BW89: 3 | BX89: 6 | BY89: 3 | BZ89: 12 | CA89: ناجحة | CB89: ومنقولة للصف الثالث | CC89: 0 | CD89: 11 | CE89: 11/3 | CW89: 0
A90: 81 | B90: 1231 | C90: صفاء صالح حسن احمد | D90: 2/2 | K90: بنات | L90: انتظام | M90: صباحى | O90: 3332 | P90: 9 | Q90: 12 | R90: 13 | S90: 34 | T90: 8 | U90: 6 | V90: 6 | W90: 20 | X90: 4 | Y90: 5 | Z90: 4 | AA90: 13 | AB90: 9 | AC90: 11 | AD90: 5 | AE90: 25 | AF90: 9 | AG90: 7 | AH90: 15 | AI90: 31 | AJ90: 9 | AK90: 10 | AL90: 6 | AM90: 25 | AN90: 9 | AO90: 10 | AP90: 18 | AQ90: 37 | AR90: 9 | AS90: 14 | AT90: 11 | AU90: 34 | AV90: 9 | AW90: 16 | AX90: 14 | AY90: 39 | AZ90: 10 | BA90: 19 | BB90: 18 | BC90: 47 | BD90: 10 | BE90: 19 | BF90: 20 | BG90: 49 | BH90: 2 | BI90: 5 | BJ90: 4 | BK90: 9 | BL90: 4 | BM90: 12 | BN90: 10 | BO90: 26 | BP90: 36 | BQ90: 142 | BR90: 390 | BS90: 3 | BT90: 8 | BU90: 8 | BV90: 19 | BW90: 3 | BX90: 6 | BY90: 6 | BZ90: 15 | CA90: ناجحة | CB90: ومنقولة للصف الثالث | CC90: 0 | CD90: 11 | CE90: 11/3 | CW90: 0
A91: 82 | B91: 1232 | C91: صفاء عبد الستار اسماعيل قاسم | D91: 6/2 | K91: بنات | L91: انتظام | M91: صباحى | O91: 3333 | P91: 9 | Q91: 9 | R91: 11 | S91: 29 | T91: 8 | U91: 2 | V91: 3 | W91: 13 | X91: 4 | Y91: 4 | Z91: 3 | AA91: 11 | AB91: 9 | AC91: 8 | AD91: 1 | AE91: 18 | AF91: 9 | AG91: 3 | AH91: 1 | AI91: 13 | AJ91: 9 | AK91: 1 | AL91: 2 | AM91: 12 | AN91: 9 | AO91: 7 | AP91: 18 | AQ91: 34 | AR91: 9 | AS91: 9 | AT91: 10 | AU91: 28 | AV91: 9 | AW91: 16 | AX91: 13 | AY91: 38 | AZ91: 10 | BA91: 20 | BB91: 18 | BC91: 48 | BD91: 9 | BE91: 14 | BF91: 20 | BG91: 43 | BH91: 3 | BI91: 5 | BJ91: 5 | BK91: 9 | BL91: 5 | BM91: 12 | BN91: 13 | BO91: 26 | BP91: 39 | BQ91: 107 | BR91: 326 | BS91: 3 | BT91: 6 | BU91: 7 | BV91: 16 | BW91: 3 | BX91: 5 | BY91: 4 | BZ91: 12 | CA91: راسبة | CB91: فى : انجليزى - مادة1 - مادة2 - مادة3 - | CC91: 4 | CD91: 11 | CE91: 11/3 | CI91: انجليزى - | CK91: مادة1 - | CL91: مادة2 - | CM91: مادة3 - | CW91: 0
A92: 83 | B92: 1233 | C92: صفاء محمد وجدى محمد رفعت | D92: 4/2 | K92: بنات | L92: انتظام | M92: صباحى | O92: 3334 | P92: 9 | Q92: 12 | R92: 13 | S92: 34 | T92: 8 | U92: 6 | V92: 6 | W92: 20 | X92: 4 | Y92: 6 | Z92: 5 | AA92: 15 | AB92: 9 | AC92: 8 | AD92: 14 | AE92: 31 | AF92: 9 | AG92: 17 | AH92: 12 | AI92: 38 | AJ92: 10 | AK92: 20 | AL92: 19 | AM92: 49 | AN92: 9 | AO92: 13 | AP92: 18 | AQ92: 40 | AR92: 10 | AS92: 17 | AT92: 19 | AU92: 46 | AV92: 9 | AW92: 16 | AX92: 13 | AY92: 38 | AZ92: 10 | BA92: 19 | BB92: 18 | BC92: 47 | BD92: 10 | BE92: 19 | BF92: 20 | BG92: 49 | BH92: 2 | BI92: 5 | BJ92: 4 | BK92: 10 | BL92: 5 | BM92: 12 | BN92: 11 | BO92: 27 | BP92: 38 | BQ92: 167 | BR92: 445 | BS92: 3 | BT92: 7 | BU92: 8 | BV92: 18 | BW92: 3 | BX92: 5 | BY92: 4 | BZ92: 12 | CA92: ناجحة | CB92: ومنقولة للصف الثالث | CC92: 0 | CD92: 11 | CE92: 11/3 | CW92: 0
A93: 84 | B93: 1234 | C93: ضحى فوزى حسن مصطفى | D93: 5/2 | K93: بنات | L93: انتظام | M93: صباحى | O93: 3335 | P93: 10 | Q93: 13 | R93: 17 | S93: 40 | T93: 8 | U93: 5 | V93: 7 | W93: 20 | X93: 4 | Y93: 6 | Z93: 5 | AA93: 15 | AB93: 9 | AC93: 14 | AD93: 15 | AE93: 38 | AF93: 10 | AG93: 19 | AH93: 20 | AI93: 49 | AJ93: 10 | AK93: 18 | AL93: 20 | AM93: 48 | AN93: 9 | AO93: 12 | AP93: 17 | AQ93: 38 | AR93: 10 | AS93: 19 | AT93: 20 | AU93: 49 | AV93: 9 | AW93: 17 | AX93: 16 | AY93: 42 | AZ93: 10 | BA93: 19 | BB93: 18 | BC93: 47 | BD93: 10 | BE93: 18 | BF93: 20 | BG93: 48 | BH93: 2 | BI93: 5 | BJ93: 4 | BK93: 10 | BL93: 6 | BM93: 12 | BN93: 12 | BO93: 27 | BP93: 39 | BQ93: 174 | BR93: 473 | BS93: 3 | BT93: 8 | BU93: 8 | BV93: 19 | BW93: 3 | BX93: 7 | BY93: 6 | BZ93: 16 | CA93: ناجحة | CB93: ومنقولة للصف الثالث | CC93: 0 | CD93: 11 | CE93: 11/3 | CW93: 0
A94: 85 | B94: 1235 | C94: عايدة عبد الفتاح نادى محمود | D94: 3/2 | K94: بنات | L94: انتظام | M94: صباحى | O94: 3336 | P94: 9 | Q94: 8 | R94: 8 | S94: 25 | T94: 8 | U94: 1 | V94: 4 | W94: 13 | X94: 4 | Y94: 4 | Z94: 5 | AA94: 13 | AB94: 9 | AC94: 8 | AD94: 8 | AE94: 25 | AF94: 9 | AG94: 9 | AH94: 7 | AI94: 25 | AJ94: 9 | AK94: 7 | AL94: 3 | AM94: 19 | AN94: 9 | AO94: 6 | AP94: 17 | AQ94: 32 | AR94: 9 | AS94: 15 | AT94: 17 | AU94: 41 | AV94: 9 | AW94: 11 | AX94: 16 | AY94: 36 | AZ94: 10 | BA94: 19 | BB94: 18 | BC94: 47 | BD94: 10 | BE94: 20 | BF94: 20 | BG94: 50 | BH94: 3 | BI94: 5 | BJ94: 5 | BK94: 10 | BL94: 5 | BM94: 11 | BN94: 13 | BO94: 26 | BP94: 39 | BQ94: 123 | BR94: 365 | BS94: 3 | BT94: 5 | BU94: 8 | BV94: 16 | BW94: 3 | BX94: 5 | BY94: 6 | BZ94: 14 | CA94: دورثان | CB94: فى : انجليزى - مادة3 - | CC94: 2 | CD94: 11 | CE94: 11/3 | CI94: انجليزى - | CM94: مادة3 - | CW94: 0
A95: 86 | B95: 1236 | C95: عائشة حمدان حباشى على | D95: 2/2 | K95: بنات | L95: انتظام | M95: صباحى | O95: 3337 | P95: 9 | Q95: 12 | R95: 13 | S95: 34 | T95: 8 | U95: 8 | V95: 6 | W95: 22 | X95: 4 | Y95: 5 | Z95: 5 | AA95: 14 | AB95: 9 | AC95: 15 | AD95: 13 | AE95: 37 | AF95: 9 | AG95: 20 | AH95: 10 | AI95: 39 | AJ95: 9 | AK95: 8 | AL95: 14 | AM95: 31 | AN95: 9 | AO95: 13 | AP95: 19 | AQ95: 41 | AR95: 9 | AS95: 15 | AT95: 19 | AU95: 43 | AV95: 9 | AW95: 14 | AX95: 17 | AY95: 40 | AZ95: 9 | BA95: 17 | BB95: 18 | BC95: 44 | BD95: 10 | BE95: 19 | BF95: 20 | BG95: 49 | BH95: 3 | BI95: 5 | BJ95: 5 | BK95: 10 | BL95: 4 | BM95: 12 | BN95: 12 | BO95: 27 | BP95: 39 | BQ95: 161 | BR95: 433 | BS95: 3 | BT95: 6 | BU95: 8 | BV95: 17 | BW95: 3 | BX95: 6 | BY95: 4 | BZ95: 13 | CA95: ناجحة | CB95: ومنقولة للصف الثالث | CC95: 0 | CD95: 11 | CE95: 11/3 | CW95: 0
A96: 87 | B96: 1237 | C96: عبير ابو الحسن محمود الضوى | D96: 1/2 | K96: بنات | L96: انتظام | M96: صباحى | O96: 3338 | P96: 9 | Q96: 11 | R96: 16 | S96: 36 | T96: 8 | U96: 8 | V96: 7 | W96: 23 | X96: 4 | Y96: 5 | Z96: 5 | AA96: 14 | AB96: 5 | AC96: 13 | AD96: 10 | AE96: 28 | AF96: 9 | AG96: 18 | AH96: 12 | AI96: 39 | AJ96: 9 | AK96: 15 | AL96: 12 | AM96: 36 | AN96: 9 | AO96: 13 | AP96: 19 | AQ96: 41 | AR96: 9 | AS96: 14 | AT96: 17 | AU96: 40 | AV96: 9 | AW96: 15 | AX96: 17 | AY96: 41 | AZ96: 9 | BA96: 15 | BB96: 18 | BC96: 42 | BD96: 10 | BE96: 19 | BF96: 20 | BG96: 49 | BH96: 3 | BI96: 5 | BJ96: 5 | BK96: 10 | BL96: 8 | BM96: 12 | BN96: 16 | BO96: 27 | BP96: 43 | BQ96: 161 | BR96: 432 | BS96: 3 | BT96: 8 | BU96: 8 | BV96: 19 | BW96: 3 | BX96: 6 | BY96: 4 | BZ96: 13 | CA96: ناجحة | CB96: ومنقولة للصف الثالث | CC96: 0 | CD96: 11 | CE96: 11/3 | CW96: 0
A97: 88 | B97: 1238 | C97: عبير صابر صالح سيد | D97: 5/2 | K97: بنات | L97: انتظام | M97: صباحى | O97: 3339 | P97: 9 | Q97: 9 | R97: 12 | S97: 30 | T97: 8 | U97: 6 | V97: 6 | W97: 20 | X97: 4 | Y97: 5 | Z97: 5 | AA97: 14 | AB97: 9 | AC97: 14 | AD97: 14 | AE97: 37 | AF97: 9 | AG97: 15 | AH97: 16 | AI97: 40 | AJ97: 9 | AK97: 15 | AL97: 10 | AM97: 34 | AN97: 9 | AO97: 10 | AP97: 19 | AQ97: 38 | AR97: 9 | AS97: 14 | AT97: 17 | AU97: 40 | AV97: 9 | AW97: 15 | AX97: 16 | AY97: 40 | AZ97: 10 | BA97: 19 | BB97: 20 | BC97: 49 | BD97: 10 | BE97: 19 | BF97: 20 | BG97: 49 | BH97: 3 | BI97: 5 | BJ97: 6 | BK97: 10 | BL97: 6 | BM97: 12 | BN97: 15 | BO97: 27 | BP97: 42 | BQ97: 157 | BR97: 433 | BS97: 3 | BT97: 6 | BU97: 6 | BV97: 15 | BW97: 3 | BX97: 5 | BY97: 3 | BZ97: 11 | CA97: ناجحة | CB97: ومنقولة للصف الثالث | CC97: 0 | CD97: 11 | CE97: 11/3 | CW97: 0
A98: 89 | B98: 1239 | C98: عبير عبد الباسط سيد محمد | D98: 5/2 | K98: بنات | L98: انتظام | M98: صباحى | O98: 3340 | P98: 9 | Q98: 9 | R98: 13 | S98: 31 | T98: 8 | U98: 4 | V98: 9 | W98: 21 | X98: 4 | Y98: 4 | Z98: 5 | AA98: 13 | AB98: 6 | AC98: 10 | AD98: 9 | AE98: 25 | AF98: 10 | AG98: 17 | AH98: 19 | AI98: 46 | AJ98: 9 | AK98: 10 | AL98: 16 | AM98: 35 | AN98: 9 | AO98: 14 | AP98: 19 | AQ98: 42 | AR98: 9 | AS98: 12 | AT98: 18 | AU98: 39 | AV98: 9 | AW98: 13 | AX98: 17 | AY98: 39 | AZ98: 10 | BA98: 19 | BB98: 17 | BC98: 46 | BD98: 10 | BE98: 19 | BF98: 19 | BG98: 48 | BH98: 3 | BI98: 5 | BJ98: 5 | BK98: 10 | BL98: 5 | BM98: 9 | BN98: 13 | BO98: 24 | BP98: 37 | BQ98: 146 | BR98: 422 | BS98: 3 | BT98: 8 | BU98: 8 | BV98: 19 | BW98: 3 | BX98: 6 | BY98: 5 | BZ98: 14 | CA98: ناجحة | CB98: ومنقولة للصف الثالث | CC98: 0 | CD98: 11 | CE98: 11/3 | CW98: 0
A99: 90 | B99: 1240 | C99: عبير عبد الحارث امين سليم | D99: 7/2 | K99: بنات | L99: انتظام | M99: صباحى | O99: 3341 | P99: 9 | Q99: 13 | R99: 14 | S99: 36 | T99: 8 | U99: 4 | V99: 8 | W99: 20 | X99: 4 | Y99: 5 | Z99: 4 | AA99: 13 | AB99: 9 | AC99: 8 | AD99: 13 | AE99: 30 | AF99: 9 | AG99: 16 | AH99: 18 | AI99: 43 | AJ99: 9 | AK99: 10 | AL99: 14 | AM99: 33 | AN99: 9 | AO99: 15 | AP99: 19 | AQ99: 43 | AR99: 9 | AS99: 13 | AT99: 19 | AU99: 41 | AV99: 9 | AW99: 16 | AX99: 17 | AY99: 42 | AZ99: 10 | BA99: 19 | BB99: 17 | BC99: 46 | BD99: 10 | BE99: 19 | BF99: 18 | BG99: 47 | BH99: 3 | BI99: 5 | BJ99: 5 | BK99: 11 | BL99: 5 | BM99: 9 | BN99: 13 | BO99: 25 | BP99: 38 | BQ99: 154 | BR99: 432 | BS99: 3 | BT99: 8 | BU99: 8 | BV99: 19 | BW99: 3 | BX99: 6 | BY99: 5 | BZ99: 14 | CA99: ناجحة | CB99: ومنقولة للصف الثالث | CC99: 0 | CD99: 12 | CE99: 12/3 | CW99: 0
A100: 91 | B100: 1241 | C100: عبير عبد العزيز شاذلى مصطفى | D100: 5/2 | K100: بنات | L100: انتظام | M100: صباحى | O100: 3342 | P100: 9 | Q100: 12 | R100: 15 | S100: 36 | T100: 8 | U100: 4 | V100: 9 | W100: 21 | X100: 4 | Y100: 4 | Z100: 5 | AA100: 13 | AB100: 9 | AC100: 19 | AD100: 14 | AE100: 42 | AF100: 9 | AG100: 17 | AH100: 20 | AI100: 46 | AJ100: 9 | AK100: 10 | AL100: 15 | AM100: 34 | AN100: 9 | AO100: 16 | AP100: 19 | AQ100: 44 | AR100: 10 | AS100: 17 | AT100: 20 | AU100: 47 | AV100: 9 | AW100: 11 | AX100: 14 | AY100: 34 | AZ100: 10 | BA100: 19 | BB100: 18 | BC100: 47 | BD100: 10 | BE100: 20 | BF100: 20 | BG100: 50 | BH100: 3 | BI100: 5 | BJ100: 6 | BK100: 7 | BL100: 8 | BM100: 9 | BN100: 17 | BO100: 21 | BP100: 38 | BQ100: 162 | BR100: 452 | BS100: 3 | BT100: 4 | BU100: 8 | BV100: 15 | BW100: 3 | BX100: 7 | BY100: 6 | BZ100: 16 | CA100: ناجحة | CB100: ومنقولة للصف الثالث | CC100: 0 | CD100: 12 | CE100: 12/3 | CW100: 0
A101: 92 | B101: 1242 | C101: عبير عبده محمد السيد احمد | D101: 2/2 | K101: بنات | L101: انتظام | M101: صباحى | O101: 3343 | P101: 9 | Q101: 12 | R101: 14 | S101: 35 | T101: 8 | U101: 6 | V101: 7 | W101: 21 | X101: 4 | Y101: 4 | Z101: 5 | AA101: 13 | AB101: 9 | AC101: 10 | AD101: 12 | AE101: 31 | AF101: 10 | AG101: 16 | AH101: 20 | AI101: 46 | AJ101: 9 | AK101: 11 | AL101: 20 | AM101: 40 | AN101: 9 | AO101: 14 | AP101: 18 | AQ101: 41 | AR101: 9 | AS101: 16 | AT101: 19 | AU101: 44 | AV101: 9 | AW101: 18 | AX101: 14 | AY101: 41 | AZ101: 10 | BA101: 19 | BB101: 18 | BC101: 47 | BD101: 9 | BE101: 8 | BF101: 20 | BG101: 37 | BH101: 3 | BI101: 5 | BJ101: 7 | BK101: 9 | BL101: 5 | BM101: 9 | BN101: 15 | BO101: 23 | BP101: 38 | BQ101: 150 | BR101: 434 | BS101: 3 | BT101: 8 | BU101: 8 | BV101: 19 | BW101: 3 | BX101: 7 | BY101: 5 | BZ101: 15 | CA101: ناجحة | CB101: ومنقولة للصف الثالث | CC101: 0 | CD101: 12 | CE101: 12/3 | CW101: 0
A102: 93 | B102: 1243 | C102: عبير كرم نور الدين محمود | D102: 1/2 | K102: بنات | L102: انتظام | M102: صباحى | O102: 3344 | P102: 9 | Q102: 10 | R102: 14 | S102: 33 | T102: 8 | U102: 8 | V102: 8 | W102: 24 | X102: 4 | Y102: 5 | Z102: 5 | AA102: 14 | AB102: 9 | AC102: 15 | AD102: 15 | AE102: 39 | AF102: 10 | AG102: 20 | AH102: 20 | AI102: 50 | AJ102: 9 | AK102: 7 | AL102: 19 | AM102: 35 | AN102: 9 | AO102: 14 | AP102: 18 | AQ102: 41 | AR102: 10 | AS102: 19 | AT102: 19 | AU102: 48 | AV102: 9 | AW102: 16 | AX102: 14 | AY102: 39 | AZ102: 10 | BA102: 18 | BB102: 18 | BC102: 46 | BD102: 10 | BE102: 18 | BF102: 20 | BG102: 48 | BH102: 4 | BI102: 5 | BJ102: 8 | BK102: 8 | BL102: 6 | BM102: 10 | BN102: 18 | BO102: 23 | BP102: 41 | BQ102: 166 | BR102: 458 | BS102: 3 | BT102: 7 | BU102: 8 | BV102: 18 | BW102: 3 | BX102: 4 | BY102: 7 | BZ102: 14 | CA102: ناجحة | CB102: ومنقولة للصف الثالث | CC102: 0 | CD102: 12 | CE102: 12/3 | CW102: 0
A103: 94 | B103: 1244 | C103: عزة جلال محمد احمد | D103: 4/2 | K103: بنات | L103: انتظام | M103: صباحى | O103: 3345 | P103: 9 | Q103: 9 | R103: 13 | S103: 31 | T103: 8 | U103: 7 | V103: 5 | W103: 20 | X103: 4 | Y103: 5 | Z103: 4 | AA103: 13 | AB103: 6 | AC103: 13 | AD103: 6 | AE103: 25 | AF103: 10 | AG103: 16 | AH103: 20 | AI103: 46 | AJ103: 9 | AK103: 15 | AL103: 20 | AM103: 44 | AN103: 9 | AO103: 13 | AP103: 19 | AQ103: 41 | AR103: 9 | AS103: 15 | AT103: 11 | AU103: 35 | AV103: 9 | AW103: 13 | AX103: 14 | AY103: 36 | AZ103: 10 | BA103: 19 | BB103: 18 | BC103: 47 | BD103: 10 | BE103: 16 | BF103: 20 | BG103: 46 | BH103: 3 | BI103: 5 | BJ103: 7 | BK103: 8 | BL103: 4 | BM103: 12 | BN103: 14 | BO103: 25 | BP103: 39 | BQ103: 156 | BR103: 423 | BS103: 3 | BT103: 7 | BU103: 7 | BV103: 17 | BW103: 3 | BX103: 5 | BY103: 4 | BZ103: 12 | CA103: ناجحة | CB103: ومنقولة للصف الثالث | CC103: 0 | CD103: 12 | CE103: 12/3 | CW103: 0
A104: 95 | B104: 1245 | C104: عزة حسين عبد العاطى حسين | D104: 7/2 | K104: بنات | L104: انتظام | M104: صباحى | O104: 3346 | P104: 9 | Q104: 7 | R104: 12 | S104: 28 | T104: 8 | U104: 6 | V104: 6 | W104: 20 | X104: 4 | Y104: 4 | Z104: 6 | AA104: 14 | AB104: 9 | AC104: 9 | AD104: 7 | AE104: 25 | AF104: 9 | AG104: 6 | AH104: 15 | AI104: 30 | AJ104: 9 | AK104: 12 | AL104: 15 | AM104: 36 | AN104: 9 | AO104: 8 | AP104: 17 | AQ104: 34 | AR104: 9 | AS104: 12 | AT104: 11 | AU104: 32 | AV104: 9 | AW104: 12 | AX104: 13 | AY104: 34 | AZ104: 9 | BA104: 16 | BB104: 17 | BC104: 42 | BD104: 9 | BE104: 14 | BF104: 20 | BG104: 43 | BH104: 3 | BI104: 5 | BJ104: 6 | BK104: 2 | BL104: 4 | BM104: 8 | BN104: 13 | BO104: 15 | BP104: 28 | BQ104: 114 | BR104: 366 | BS104: 3 | BT104: 3 | BU104: 8 | BV104: 14 | BW104: 3 | BX104: 5 | BY104: 2 | BZ104: 10 | CA104: ناجحة | CB104: ومنقولة للصف الثالث | CC104: 0 | CD104: 12 | CE104: 12/3 | CW104: 0
A105: 96 | B105: 1246 | C105: عفاف عبد الراضى احمد الصغير | D105: 2/2 | K105: بنات | L105: انتظام | M105: صباحى | O105: 3347 | P105: 9 | Q105: 9 | R105: 13 | S105: 31 | T105: 8 | U105: 6 | V105: 6 | W105: 20 | X105: 4 | Y105: 4 | Z105: 4 | AA105: 12 | AB105: 9 | AC105: 11 | AD105: 5 | AE105: 25 | AF105: 9 | AG105: 4 | AH105: 17 | AI105: 30 | AJ105: 9 | AK105: 8 | AL105: 10 | AM105: 27 | AN105: 9 | AO105: 5 | AP105: 18 | AQ105: 32 | AR105: 9 | AS105: 16 | AT105: 7 | AU105: 32 | AV105: 9 | AW105: 15 | AX105: 11 | AY105: 35 | AZ105: 9 | BA105: 16 | BB105: 17 | BC105: 42 | BD105: 9 | BE105: 12 | BF105: 20 | BG105: 41 | BH105: 4 | BI105: 5 | BJ105: 8 | BK105: 3 | BL105: 5 | BM105: 7 | BN105: 17 | BO105: 15 | BP105: 32 | BQ105: 117 | BR105: 359 | BS105: 3 | BT105: 5 | BU105: 6 | BV105: 14 | BW105: 3 | BX105: 5 | BY105: 3 | BZ105: 11 | CA105: ناجحة | CB105: ومنقولة للصف الثالث | CC105: 0 | CD105: 12 | CE105: 12/3 | CW105: 0
A106: 97 | B106: 1247 | C106: علا سعيد حسين ابراهيم | D106: 6/2 | K106: بنات | L106: انتظام | M106: صباحى | O106: 3348 | P106: 9 | Q106: 11 | R106: 15 | S106: 35 | T106: 8 | U106: 6 | V106: 6 | W106: 20 | X106: 4 | Y106: 4 | Z106: 6 | AA106: 14 | AB106: 9 | AC106: 15 | AD106: 15 | AE106: 39 | AF106: 10 | AG106: 19 | AH106: 19 | AI106: 48 | AJ106: 9 | AK106: 12 | AL106: 20 | AM106: 41 | AN106: 9 | AO106: 15 | AP106: 18 | AQ106: 42 | AR106: 9 | AS106: 13 | AT106: 14 | AU106: 36 | AV106: 9 | AW106: 16 | AX106: 14 | AY106: 39 | AZ106: 9 | BA106: 17 | BB106: 18 | BC106: 44 | BD106: 10 | BE106: 18 | BF106: 20 | BG106: 48 | BH106: 3 | BI106: 5 | BJ106: 5 | BK106: 9 | BL106: 5 | BM106: 10 | BN106: 13 | BO106: 24 | BP106: 37 | BQ106: 160 | BR106: 443 | BS106: 3 | BT106: 7 | BU106: 8 | BV106: 18 | BW106: 3 | BX106: 6 | BY106: 5 | BZ106: 14 | CA106: ناجحة | CB106: ومنقولة للصف الثالث | CC106: 0 | CD106: 12 | CE106: 12/3 | CW106: 0
A107: 98 | B107: 1248 | C107: غادة ثابت محمود الطيب | D107: 2/2 | K107: بنات | L107: انتظام | M107: صباحى | O107: 3349 | P107: 9 | Q107: 10 | R107: 12 | S107: 31 | T107: 8 | U107: 5 | V107: 7 | W107: 20 | X107: 4 | Y107: 4 | Z107: 3 | AA107: 11 | AB107: 9 | AC107: 11 | AD107: 13 | AE107: 33 | AF107: 9 | AG107: 8 | AH107: 20 | AI107: 37 | AJ107: 9 | AK107: 14 | AL107: 19 | AM107: 42 | AN107: 9 | AO107: 11 | AP107: 19 | AQ107: 39 | AR107: 9 | AS107: 12 | AT107: 15 | AU107: 36 | AV107: 9 | AW107: 12 | AX107: 14 | AY107: 35 | AZ107: 9 | BA107: 16 | BB107: 16 | BC107: 41 | BD107: 9 | BE107: 12 | BF107: 20 | BG107: 41 | BH107: 3 | BI107: 5 | BJ107: 7 | BK107: 9 | BL107: 6 | BM107: 7 | BN107: 16 | BO107: 21 | BP107: 37 | BQ107: 131 | BR107: 403 | BS107: 3 | BT107: 6 | BU107: 8 | BV107: 17 | BW107: 3 | BX107: 4 | BY107: 4 | BZ107: 11 | CA107: ناجحة | CB107: ومنقولة للصف الثالث | CC107: 0 | CD107: 12 | CE107: 12/3 | CW107: 0
A108: 99 | B108: 1249 | C108: غادة رجب محمد احمد | D108: 3/2 | K108: بنات | L108: انتظام | M108: صباحى | O108: 3350 | P108: 9 | Q108: 8 | R108: 10 | S108: 27 | T108: 8 | U108: 4 | V108: 8 | W108: 20 | X108: 4 | Y108: 5 | Z108: 4 | AA108: 13 | AB108: 9 | AC108: 14 | AD108: 17 | AE108: 40 | AF108: 10 | AG108: 18 | AH108: 20 | AI108: 48 | AJ108: 10 | AK108: 16 | AL108: 20 | AM108: 46 | AN108: 9 | AO108: 12 | AP108: 19 | AQ108: 40 | AR108: 9 | AS108: 12 | AT108: 19 | AU108: 40 | AV108: 9 | AW108: 17 | AX108: 14 | AY108: 40 | AZ108: 10 | BA108: 19 | BB108: 18 | BC108: 47 | BD108: 10 | BE108: 17 | BF108: 20 | BG108: 47 | BH108: 3 | BI108: 5 | BJ108: 5 | BK108: 11 | BL108: 5 | BM108: 9 | BN108: 13 | BO108: 25 | BP108: 38 | BQ108: 158 | BR108: 446 | BS108: 3 | BT108: 8 | BU108: 7 | BV108: 18 | BW108: 3 | BX108: 5 | BY108: 6 | BZ108: 14 | CA108: ناجحة | CB108: ومنقولة للصف الثالث | CC108: 0 | CD108: 12 | CE108: 12/3 | CW108: 0
